Workbook

Sheet Filtro
A1: Comuna | B1: (Todas)
A2: Establecimiento | B2: (Todas)
A3: Mes | B3: (Todas)
A5: Etiquetas de fila | B5: Suma de Col01 | C5: Suma de Col02 | D5: Suma de Col03 | E5: Suma de Col04 | F5: Suma de Col05 | G5: Suma de Col06 | H5: Suma de Col07 | I5: Suma de Col08 | J5: Suma de Col09 | K5: Suma de Col10 | L5: Suma de Col11 | M5: Suma de Col12 | N5: Suma de Col13 | O5: Suma de Col14 | P5: Suma de Col15 | Q5: Suma de Col16 | R5: Suma de Col17 | S5: Suma de Col18 | T5: Suma de Col19 | U5: Suma de Col20 | V5: Suma de Col21 | W5: Suma de Col22 | X5: Suma de Col23 | Y5: Suma de Col24 | Z5: Suma de Col25 | AA5: Suma de Col26 | AB5: Suma de Col27 | AC5: Suma de Col28 | AD5: Suma de Col29 | AE5: Suma de Col30 | AF5: Suma de Col31 | AG5: Suma de Col32 | AH5: Suma de Col33 | AI5: Suma de Col34 | AJ5: Suma de Col35 | AK5: Suma de Col36 | AL5: Suma de Col37 | AM5: Suma de Col38 | AN5: Suma de Col39 | AO5: Suma de Col40 | AP5: Suma de Col41 | AQ5: Suma de col42 | AR5: Suma de col43 | AS5: Suma de col44 | AT5: Suma de col45 | AU5: Suma de col46 | AV5: Suma de col47 | AW5: Suma de col48
A6: 01010101 | B6: 7 | E6: 0 | F6: 0 | G6: 0 | H6: 4 | I6: 2 | J6: 0 | K6: 1 | L6: 0 | M6: 0 | N6: 0 | T6: 0 | U6: 7 | X6: 0 | Y6: 0 | Z6: 0 | AA6: 0 | AB6: 0
A7: 01010103 | B7: 995 | E7: 3 | F7: 37 | G7: 162 | H7: 276 | I7: 268 | J7: 176 | K7: 67 | L7: 6 | M7: 0 | N7: 0 | T7: 6 | U7: 976 | X7: 4 | Y7: 0 | Z7: 0 | AA7: 7 | AB7: 38
A8: 01010201 | B8: 200 | E8: 0 | F8: 13 | G8: 45 | H8: 51 | I8: 50 | J8: 38 | K8: 3 | L8: 0 | M8: 0 | N8: 0 | U8: 202 | V8: 11 | Y8: 0 | Z8: 0 | AA8: 2 | AB8: 0
A9: 01010203 | B9: 24273 | E9: 68 | F9: 1430 | G9: 5446 | H9: 7022 | I9: 6328 | J9: 3051 | K9: 887 | L9: 38 | M9: 2 | N9: 1 | U9: 24044 | V9: 6824 | Y9: 17 | Z9: 0 | AA9: 222 | AB9: 1749
A10: 01010401 | B10: 1 | E10: 1 | F10: 0 | G10: 0 | H10: 0 | I10: 0 | J10: 0 | K10: 0 | L10: 0 | M10: 0 | N10: 0 | O10: 0 | P10: 0 | Q10: 0 | R10: 0 | S10: 0 | T10: 0 | U10: 8 | X10: 8 | Y10: 8 | Z10: 8 | AA10: 4 | AB10: 8
A11: 01010403 | B11: 47229 | E11: 1078 | F11: 6739 | G11: 8117 | H11: 8412 | I11: 7722 | J11: 5889 | K11: 4659 | L11: 3284 | M11: 1155 | N11: 114 | O11: 38 | P11: 15 | Q11: 4 | R11: 1 | S11: 2 | T11: 305 | U11: 46597 | X11: 884 | Y11: 34 | Z11: 30 | AA11: 294 | AB11: 946
A12: 01010601 | B12: 770 | E12: 23 | F12: 47 | G12: 46 | H12: 60 | I12: 100 | J12: 103 | K12: 111 | L12: 71 | M12: 72 | N12: 68 | O12: 18 | P12: 21 | Q12: 19 | R12: 8 | S12: 3 | U12: 845 | X12: 0 | Y12: 0 | Z12: 0 | AA12: 0 | AB12: 15
A13: 01010603 | B13: 32074 | E13: 206 | F13: 451 | G13: 1386 | H13: 2649 | I13: 3228 | J13: 3373 | K13: 3761 | L13: 3870 | M13: 3989 | N13: 3665 | O13: 2983 | P13: 1521 | Q13: 630 | R13: 253 | S13: 109 | U13: 31719 | X13: 26 | Y13: 6 | Z13: 1 | AA13: 134 | AB13: 1038
A14: 01010901 | B14: 247 | L14: 75 | M14: 83 | N14: 68 | O14: 21 | U14: 247 | AA14: 4 | AB14: 6
A15: 01010903 | B15: 2491 | L15: 647 | M15: 969 | N15: 569 | O15: 306 | U15: 2507 | AA15: 26 | AB15: 107
A16: 01030100 | B16: 1812 | C16: 7 | D16: 127 | E16: 1384 | F16: 293 | G16: 8 | H16: 8 | I16: 12 | J16: 122 | K16: 991 | L16: 1265 | M16: 110 | N16: 1 | O16: 9 | P16: 599 | Q16: 497 | R16: 54 | S16: 1605 | T16: 31 | U16: 258 | V16: 1344 | W16: 1 | X16: 59 | Y16: 187 | Z16: 0 | AA16: 0
A17: 01030100A | B17: 35 | C17: 8 | D17: 27 | AE17: 1 | AF17: 5 | AG17: 4 | AH17: 4 | AI17: 0 | AJ17: 11 | AK17: 3 | AL17: 7 | AM17: 0 | AN17: 0
A18: 01030200B | B18: 944 | C18: 369 | D18: 575 | AE18: 68 | AF18: 138 | AG18: 108 | AH18: 155 | AI18: 90 | AJ18: 138 | AK18: 103 | AL18: 144 | AM18: 1 | AN18: 0
A19: 01030300 | B19: 716 | C19: 0 | D19: 7 | E19: 481 | F19: 209 | G19: 0 | H19: 0 | I19: 2 | J19: 16 | K19: 485 | L19: 682 | M19: 4 | N19: 0 | O19: 13 | P19: 5 | Q19: 13 | R19: 0 | S19: 44 | T19: 15 | U19: 523 | V19: 470 | W19: 0 | X19: 18 | Y19: 56 | Z19: 0 | AA19: 0
A20: 01030300C | B20: 28 | C20: 13 | D20: 15 | AE20: 2 | AF20: 6 | AG20: 4 | AH20: 2 | AI20: 3 | AJ20: 2 | AK20: 4 | AL20: 5 | AM20: 1 | AN20: 0
A21: 01030400 | B21: 326 | C21: 326 | K21: 6 | L21: 187 | M21: 15 | N21: 151 | O21: 242
A22: 01030400D | B22: 430 | C22: 157 | D22: 273 | AE22: 17 | AF22: 24 | AG22: 31 | AH22: 65 | AI22: 29 | AJ22: 58 | AK22: 80 | AL22: 126 | AM22: 5 | AN22: 0
A23: 01030500 | B23: 600 | C23: 223 | D23: 377 | E23: 17 | F23: 12 | G23: 494 | H23: 123 | I23: 371 | J23: 21 | K23: 21 | L23: 9 | M23: 33
A24: 01030600 | B24: 2159 | C24: 936 | D24: 1223 | E24: 137 | F24: 87 | G24: 892 | H24: 306 | I24: 586 | J24: 79 | K24: 49 | L24: 42 | M24: 43
A25: 01030700 | B25: 2370 | C25: 1131 | D25: 1239 | E25: 89 | F25: 84 | G25: 602 | H25: 275 | I25: 327 | J25: 31 | K25: 18 | L25: 3 | M25: 1
A26: 01030800 | B26: 221 | C26: 103 | D26: 118 | E26: 7 | F26: 3 | G26: 60 | H26: 41 | I26: 20 | J26: 5 | K26: 0 | L26: 40 | M26: 78
A27: 01031000 | B27: 220 | C27: 93 | D27: 127 | E27: 0 | F27: 0 | G27: 0 | H27: 0
A28: 01031100 | B28: 364 | C28: 176 | D28: 188 | E28: 1 | F28: 2 | G28: 1 | H28: 0
A29: 01031200 | B29: 487 | C29: 224 | D29: 263 | E29: 0 | F29: 5 | G29: 0 | H29: 0
A30: 01031300 | B30: 529 | C30: 259 | D30: 270 | E30: 2 | F30: 2 | G30: 0 | H30: 0
A31: 01031400 | B31: 454 | C31: 200 | D31: 254 | E31: 2 | F31: 0 | G31: 1 | H31: 0
A32: 01031900 | C32: 0 | G32: 1
A33: 01060100 | B33: 3713 | C33: 2 | D33: 13 | E33: 23 | F33: 65 | G33: 176 | H33: 652 | I33: 2475 | J33: 307 | K33: 66
A34: 01080003 | B34: 16 | C34: 1 | D34: 1 | E34: 7 | F34: 7 | G34: 0 | H34: 0 | I34: 0 | J34: 0 | K34: 0 | L34: 0 | M34: 0
A35: 01080004 | B35: 273 | C35: 10 | D35: 51 | E35: 46 | F35: 147 | G35: 0 | H35: 3 | I35: 3 | J35: 13 | K35: 0 | L35: 8 | M35: 6
A36: 01080008 | B36: 3958 | C36: 8 | D36: 227 | E36: 895 | F36: 1202 | G36: 962 | H36: 522 | I36: 139 | J36: 3 | K36: 0 | L36: 0 | M36: 73 | N36: 231 | O36: 489 | P36: 187 | Q36: 420
A37: 01080009 | B37: 3363 | C37: 6 | D37: 190 | E37: 760 | F37: 1020 | G37: 836 | H37: 436 | I37: 112 | J37: 3 | K37: 0 | L37: 0 | M37: 46 | N37: 192 | O37: 332 | P37: 125 | Q37: 328
A38: 01080010 | B38: 1377 | C38: 8 | D38: 210 | E38: 504 | F38: 382 | G38: 187 | H38: 75 | I38: 11 | J38: 0 | K38: 0 | L38: 0 | M38: 17 | N38: 84 | O38: 164 | P38: 63 | Q38: 134
A39: 01080011 | B39: 747 | C39: 21 | D39: 103 | E39: 125 | F39: 161 | G39: 150 | H39: 95 | I39: 56 | J39: 24 | K39: 12 | L39: 0 | P39: 12 | Q39: 256 | R39: 1 | S39: 23 | T39: 1
A40: 01080013 | B40: 485 | C40: 23 | D40: 96 | E40: 69 | F40: 92 | G40: 77 | H40: 49 | I40: 37 | J40: 21 | K40: 18 | L40: 3 | P40: 17 | Q40: 98 | R40: 2 | S40: 18 | T40: 1
A41: 01080014 | B41: 238 | C41: 47 | D41: 135 | E41: 13 | F41: 7 | G41: 13 | H41: 9 | I41: 6 | J41: 2 | K41: 4 | L41: 2 | P41: 90 | Q41: 7 | R41: 2 | S41: 9 | T41: 0
A42: 01080016 | B42: 235
A43: 01080017 | B43: 46 | C43: 0 | D43: 1 | E43: 9
A44: 01080018 | B44: 65 | C44: 0 | D44: 0 | E44: 0
A45: 01080019 | B45: 648 | C45: 0 | D45: 21 | E45: 71
A46: 01080020 | B46: 4531
A47: 01080021 | B47: 2872 | C47: 227 | D47: 806 | E47: 582 | F47: 453 | G47: 379 | H47: 255 | I47: 121 | J47: 42 | K47: 7 | L47: 0 | P47: 176 | Q47: 492 | R47: 19 | S47: 108 | T47: 3
A48: 01080022 | B48: 1112 | C48: 6 | D48: 80 | E48: 150 | F48: 207 | G48: 207 | H48: 159 | I48: 146 | J48: 126 | K48: 30 | L48: 1 | P48: 7 | Q48: 285 | R48: 6 | S48: 33 | T48: 2
A49: 01080023 | B49: 1271 | C49: 58 | D49: 346 | E49: 302 | F49: 237 | G49: 167 | H49: 92 | I49: 56 | J49: 13 | K49: 0 | L49: 0 | P49: 64 | Q49: 340 | R49: 11 | S49: 58 | T49: 4
A50: 01080030 | B50: 5 | E50: 0 | F50: 0 | G50: 1 | H50: 2 | I50: 2 | J50: 0 | K50: 0 | L50: 0 | M50: 0 | N50: 0 | U50: 4 | V50: 1 | W50: 2 | Y50: 0 | Z50: 0 | AA50: 0 | AB50: 0
A51: 01080040 | B51: 1066 | E51: 1 | F51: 68 | G51: 202 | H51: 310 | I51: 276 | J51: 159 | K51: 48 | L51: 1 | M51: 0 | N51: 1 | U51: 1043 | V51: 159 | W51: 348 | Y51: 2 | Z51: 0 | AA51: 9 | AB51: 48
A52: 01080090 | B52: 1050
A53: 01090040 | B53: 7 | C53: 0 | D53: 0 | E53: 1
A54: 01090050 | B54: 2188 | C54: 8 | D54: 181 | E54: 581 | F54: 615 | G54: 459 | H54: 258 | I54: 85 | J54: 1 | K54: 0 | L54: 0 | M54: 38 | N54: 124 | O54: 252 | P54: 88 | Q54: 158
A55: 01090060 | B55: 3205 | C55: 111 | D55: 511 | E55: 678 | F55: 655 | G55: 516 | H55: 338 | I55: 234 | J55: 126 | K55: 35 | L55: 1 | P55: 114 | Q55: 570 | R55: 22 | S55: 164 | T55: 2
A56: 01110106 | B56: 38 | F56: 2 | G56: 8 | H56: 10 | I56: 7 | J56: 6 | K56: 5 | U56: 35 | V56: 1 | W56: 19 | Y56: 0 | Z56: 0 | AA56: 1 | AB56: 4
A57: 01110107 | B57: 2036 | E57: 5 | F57: 103 | G57: 408 | H57: 591 | I57: 554 | J57: 279 | K57: 92 | L57: 3 | M57: 0 | N57: 1 | U57: 2009 | V57: 342 | W57: 936 | Y57: 2 | Z57: 1 | AA57: 15 | AB57: 134
A58: 01200010 | B58: 38 | C58: 13 | D58: 25 | E58: 0 | F58: 0 | G58: 0 | H58: 0 | I58: 0 | J58: 0 | K58: 1 | L58: 1 | M58: 1 | N58: 1 | O58: 1 | P58: 0 | Q58: 1 | R58: 0 | S58: 1 | T58: 0 | U58: 0 | V58: 0 | W58: 0 | X58: 1 | Y58: 0 | Z58: 2 | AA58: 0 | AB58: 3 | AC58: 0 | AD58: 6 | AE58: 2 | AF58: 3 | AG58: 4 | AH58: 3 | AI58: 1 | AJ58: 2 | AK58: 1 | AL58: 3 | AM58: 0 | AN58: 0
A59: 01200020 | B59: 222 | C59: 68 | D59: 154 | E59: 0 | F59: 0 | G59: 2 | H59: 1 | I59: 0 | J59: 4 | K59: 0 | L59: 1 | M59: 0 | N59: 2 | O59: 0 | P59: 4 | Q59: 2 | R59: 4 | S59: 1 | T59: 10 | U59: 0 | V59: 17 | W59: 1 | X59: 7 | Y59: 2 | Z59: 12 | AA59: 8 | AB59: 16 | AC59: 16 | AD59: 12 | AE59: 11 | AF59: 20 | AG59: 10 | AH59: 17 | AI59: 8 | AJ59: 13 | AK59: 7 | AL59: 14 | AM59: 6 | AN59: 2
A60: 01200030 | B60: 185 | C60: 39 | D60: 146 | E60: 0 | F60: 1 | G60: 0 | H60: 0 | I60: 0 | J60: 0 | K60: 2 | L60: 2 | M60: 8 | N60: 43 | O60: 4 | P60: 23 | Q60: 7 | R60: 22 | S60: 7 | T60: 11 | U60: 6 | V60: 14 | W60: 3 | X60: 5 | Y60: 1 | Z60: 10 | AA60: 0 | AB60: 5 | AC60: 0 | AD60: 1 | AE60: 1 | AF60: 2 | AG60: 0 | AH60: 1 | AI60: 0 | AJ60: 5 | AK60: 0 | AL60: 1 | AM60: 1 | AN60: 14
A61: 01200031 | B61: 50 | C61: 36 | D61: 14 | E61: 23 | F61: 9 | G61: 9 | H61: 4 | I61: 2 | J61: 1 | K61: 2 | L61: 0 | AM61: 0 | AN61: 0
A62: 01200032 | B62: 520 | C62: 336 | D62: 184 | E62: 228 | F62: 131 | G62: 83 | H62: 40 | I62: 15 | J62: 9 | K62: 10 | L62: 6 | AM62: 1 | AN62: 0
A63: 01200033 | B63: 6 | C63: 2 | D63: 4 | E63: 1 | F63: 2 | G63: 1 | H63: 1 | I63: 0 | J63: 1 | K63: 0 | L63: 0 | AM63: 0 | AN63: 0
A64: 01200034 | B64: 139 | C64: 98 | D64: 41 | E64: 60 | F64: 25 | G64: 20 | H64: 13 | I64: 15 | J64: 2 | K64: 3 | L64: 1 | AM64: 0 | AN64: 0
A65: 01501010 | B65: 288 | C65: 108 | D65: 180 | E65: 2 | F65: 0 | G65: 2 | H65: 1 | I65: 4 | J65: 0 | K65: 4 | L65: 6 | M65: 1 | N65: 9 | O65: 5 | P65: 11 | Q65: 5 | R65: 15 | S65: 13 | T65: 15 | U65: 15 | V65: 28 | W65: 20 | X65: 24 | Y65: 12 | Z65: 27 | AA65: 8 | AB65: 12 | AC65: 7 | AD65: 17 | AE65: 10 | AF65: 15 | AG65: 0 | AH65: 0
A66: 01501020 | B66: 265 | C66: 93 | D66: 172 | E66: 1 | F66: 0 | G66: 0 | H66: 0 | I66: 3 | J66: 3 | K66: 0 | L66: 0 | M66: 2 | N66: 4 | O66: 2 | P66: 7 | Q66: 6 | R66: 12 | S66: 6 | T66: 7 | U66: 13 | V66: 36 | W66: 13 | X66: 23 | Y66: 16 | Z66: 19 | AA66: 18 | AB66: 20 | AC66: 6 | AD66: 11 | AE66: 7 | AF66: 30 | AG66: 0 | AH66: 0
A67: 01501030 | B67: 890 | C67: 283 | D67: 607 | E67: 0 | F67: 0 | G67: 0 | H67: 1 | I67: 0 | J67: 1 | K67: 0 | L67: 3 | M67: 5 | N67: 7 | O67: 1 | P67: 12 | Q67: 10 | R67: 20 | S67: 17 | T67: 39 | U67: 21 | V67: 74 | W67: 38 | X67: 78 | Y67: 65 | Z67: 106 | AA67: 41 | AB67: 97 | AC67: 34 | AD67: 81 | AE67: 51 | AF67: 88 | AG67: 2 | AH67: 0
A68: 01501040 | B68: 1038 | C68: 303 | D68: 735 | E68: 0 | F68: 0 | G68: 0 | H68: 2 | I68: 0 | J68: 0 | K68: 2 | L68: 0 | M68: 0 | N68: 11 | O68: 0 | P68: 15 | Q68: 2 | R68: 11 | S68: 8 | T68: 74 | U68: 18 | V68: 109 | W68: 51 | X68: 129 | Y68: 81 | Z68: 139 | AA68: 54 | AB68: 127 | AC68: 33 | AD68: 52 | AE68: 54 | AF68: 66 | AG68: 2 | AH68: 2
A69: 01501050 | B69: 2 | G69: 1 | J69: 1 | U69: 2
A70: 01501060 | B70: 286 | E70: 0 | F70: 10 | G70: 63 | H70: 72 | I70: 78 | J70: 47 | K70: 14 | L70: 1 | M70: 0 | N70: 1 | U70: 286 | Y70: 1 | Z70: 0 | AA70: 2 | AB70: 20
A71: 01501070 | B71: 3 | E71: 0 | F71: 0 | G71: 0 | H71: 1 | I71: 0 | J71: 2 | K71: 0 | L71: 0 | M71: 0 | N71: 0 | U71: 3 | Y71: 0 | Z71: 0 | AA71: 0 | AB71: 0
A72: 01501080 | B72: 107 | E72: 0 | F72: 7 | G72: 20 | H72: 13 | I72: 33 | J72: 24 | K72: 8 | L72: 2 | M72: 0 | N72: 0 | U72: 101 | Y72: 0 | Z72: 0 | AA72: 2 | AB72: 6
A73: 01502000 | B73: 759 | C73: 759 | T73: 335 | U73: 401 | V73: 186 | W73: 357 | X73: 0 | Y73: 1 | Z73: 0 | AA73: 1 | AB73: 8
A74: 01502010 | B74: 1 | C74: 1 | U74: 1 | V74: 0 | W74: 0 | X74: 0 | Y74: 0 | Z74: 0 | AA74: 0 | AB74: 0
A75: 01502020 | B75: 352 | C75: 352 | T75: 161 | U75: 184 | V75: 56 | W75: 101 | X75: 1 | Y75: 3 | Z75: 1 | AA75: 1 | AB75: 7
A76: 01502040 | B76: 1 | C76: 0 | D76: 1 | E76: 0 | F76: 0 | G76: 0 | H76: 0 | I76: 0 | J76: 1 | K76: 0 | L76: 0 | M76: 0 | N76: 0 | O76: 0 | P76: 0 | Q76: 0 | R76: 0 | S76: 0 | T76: 0 | U76: 0 | V76: 0 | W76: 0 | X76: 0 | Y76: 0 | Z76: 0 | AA76: 0 | AB76: 0 | AC76: 0 | AD76: 0 | AE76: 0 | AF76: 0 | AG76: 0 | AH76: 0
A77: 02010101 | B77: 10744 | C77: 4917 | D77: 5822 | E77: 155 | F77: 2918 | G77: 261 | H77: 2846 | I77: 255 | J77: 52 | K77: 32 | L77: 30 | M77: 37 | N77: 37 | O77: 112 | P77: 105 | Q77: 126 | R77: 764 | S77: 218 | T77: 133 | U77: 31 | V77: 43 | W77: 64 | X77: 78 | Y77: 106 | Z77: 145 | AA77: 152 | AB77: 301 | AC77: 307 | AD77: 429 | AE77: 328 | AF77: 262 | AG77: 417 | AH77: 1455 | AI77: 7 | AJ77: 34 | AK77: 21 | AL77: 50 | AM77: 428
A78: 02010103 | B78: 12556 | C78: 2436 | D78: 9999 | E78: 2421 | S78: 1772 | T78: 1682 | U78: 864 | V78: 1080 | W78: 1068 | X78: 880 | Y78: 768 | Z78: 678 | AA78: 528 | AB78: 371 | AC78: 279 | AD78: 118 | AE78: 30 | AF78: 11 | AG78: 6 | AH78: 1048 | AJ78: 10 | AK78: 16 | AL78: 62 | AM78: 206
A79: 02010105 | B79: 27 | C79: 16 | D79: 10 | M79: 1 | N79: 1 | O79: 11 | P79: 0 | Q79: 2 | R79: 12 | AI79: 4 | AJ79: 2 | AK79: 0 | AL79: 1 | AM79: 36
A80: 02010201 | B80: 61180 | C80: 28516 | D80: 32112 | E80: 35 | F80: 51 | G80: 3275 | H80: 176 | I80: 3201 | J80: 241 | K80: 3167 | L80: 3791 | M80: 3941 | N80: 3313 | O80: 7562 | P80: 3546 | Q80: 3271 | R80: 7750 | S80: 3380 | T80: 1000 | U80: 420 | V80: 520 | W80: 552 | X80: 572 | Y80: 575 | Z80: 662 | AA80: 696 | AB80: 807 | AC80: 864 | AD80: 1964 | AE80: 1992 | AF80: 1665 | AG80: 2239 | AH80: 2963 | AI80: 2492 | AJ80: 272 | AK80: 138 | AL80: 620 | AM80: 957
A81: 02010320 | B81: 8115 | C81: 3922 | D81: 4193 | E81: 51 | F81: 35 | G81: 1493 | H81: 1494 | I81: 262 | J81: 272 | K81: 1188 | L81: 1295 | M81: 854 | N81: 1013 | O81: 74 | P81: 84 | Q81: 34 | R81: 43
A82: 02010321 | B82: 847 | C82: 518 | D82: 329 | E82: 9 | F82: 5 | G82: 70 | H82: 59 | I82: 38 | J82: 12 | K82: 201 | L82: 137 | M82: 195 | N82: 112 | O82: 5 | P82: 4 | Q82: 1 | R82: 6
A83: 02010322 | B83: 275 | C83: 188 | D83: 87 | E83: 1 | F83: 1 | G83: 11 | H83: 12 | I83: 9 | J83: 3 | K83: 88 | L83: 36 | M83: 73 | N83: 32 | O83: 6 | P83: 3 | Q83: 0 | R83: 1
A84: 02010420 | B84: 285 | C84: 163 | D84: 122 | E84: 1 | F84: 1 | G84: 15 | H84: 16 | I84: 13 | J84: 8 | K84: 76 | L84: 52 | M84: 50 | N84: 38 | O84: 8 | P84: 7 | Q84: 0 | R84: 0
A85: 02010421 | B85: 74 | C85: 48 | D85: 26 | E85: 0 | F85: 0 | G85: 4 | H85: 1 | I85: 8 | J85: 3 | K85: 21 | L85: 13 | M85: 13 | N85: 9 | O85: 2 | P85: 0 | Q85: 0 | R85: 0
A86: 02010422 | B86: 21 | C86: 17 | D86: 4 | E86: 0 | F86: 0 | G86: 1 | H86: 0 | I86: 0 | J86: 0 | K86: 6 | L86: 3 | M86: 8 | N86: 1 | O86: 2 | P86: 0 | Q86: 0 | R86: 0
A87: 02021730 | B87: 8632 | C87: 4300 | D87: 4332 | E87: 3 | F87: 13 | G87: 44 | H87: 45 | I87: 1 | J87: 9 | K87: 55 | L87: 83 | M87: 1459 | N87: 1518 | O87: 65 | P87: 66 | Q87: 12 | R87: 14 | S87: 54 | T87: 51 | U87: 1471 | V87: 1369 | W87: 1136 | X87: 1174
A88: 02021740 | B88: 10744 | C88: 5538 | D88: 5206 | E88: 69 | F88: 46 | G88: 1683 | H88: 1667 | I88: 388 | J88: 345 | K88: 1790 | L88: 1650 | M88: 1473 | N88: 1391 | O88: 135 | P88: 108 | Q88: 48 | R88: 55
A89: 02021760 | B89: 2895 | C89: 1423 | D89: 1472 | E89: 1178 | F89: 1204 | G89: 245 | H89: 268
A90: 02021790 | B90: 712 | C90: 404 | D90: 308 | E90: 17 | F90: 16 | G90: 50 | H90: 62 | I90: 46 | J90: 25 | K90: 114 | L90: 76 | M90: 167 | N90: 128 | O90: 11 | P90: 1
A91: 02021810 | B91: 794 | C91: 493 | D91: 301 | E91: 7 | F91: 7 | G91: 58 | H91: 58 | I91: 48 | J91: 22 | K91: 178 | L91: 107 | M91: 192 | N91: 103 | O91: 10 | P91: 4
A92: 02021820 | B92: 251 | C92: 180 | D92: 71 | E92: 1 | F92: 1 | G92: 8 | H92: 7 | I92: 13 | J92: 4 | K92: 76 | L92: 34 | M92: 71 | N92: 23 | O92: 11 | P92: 2
A93: 02021830 | B93: 3656 | C93: 1026 | D93: 830 | E93: 81
A94: 02200010 | B94: 10117 | C94: 3830 | D94: 6287 | E94: 10 | F94: 22 | G94: 371 | H94: 637 | I94: 423 | J94: 712 | K94: 446 | L94: 868 | M94: 428 | N94: 814 | O94: 450 | P94: 728 | Q94: 360 | R94: 688 | S94: 372 | T94: 590 | U94: 319 | V94: 390 | W94: 203 | X94: 275 | Y94: 162 | Z94: 245 | AA94: 133 | AB94: 159 | AC94: 90 | AD94: 87 | AE94: 63 | AF94: 73 | AG94: 19 | AH94: 50
A95: 02200020 | B95: 9087 | C95: 3987 | D95: 5100 | E95: 13 | F95: 24 | G95: 127 | H95: 119 | I95: 146 | J95: 131 | K95: 168 | L95: 201 | M95: 191 | N95: 254 | O95: 215 | P95: 293 | Q95: 262 | R95: 347 | S95: 323 | T95: 401 | U95: 331 | V95: 298 | W95: 259 | X95: 278 | Y95: 512 | Z95: 680 | AA95: 504 | AB95: 659 | AC95: 461 | AD95: 612 | AE95: 475 | AF95: 803 | AG95: 27 | AH95: 60
A96: 02200030 | B96: 7768 | C96: 2721 | D96: 5047 | E96: 7 | F96: 13 | G96: 136 | H96: 346 | I96: 138 | J96: 383 | K96: 204 | L96: 457 | M96: 219 | N96: 499 | O96: 221 | P96: 443 | Q96: 212 | R96: 458 | S96: 258 | T96: 415 | U96: 237 | V96: 350 | W96: 190 | X96: 284 | Y96: 266 | Z96: 429 | AA96: 248 | AB96: 349 | AC96: 187 | AD96: 293 | AE96: 198 | AF96: 328 | AG96: 24 | AH96: 98
A97: 02200040 | B97: 2896 | C97: 966 | D97: 1930 | E97: 0 | F97: 2 | G97: 19 | H97: 33 | I97: 33 | J97: 59 | K97: 47 | L97: 83 | M97: 44 | N97: 102 | O97: 82 | P97: 142 | Q97: 90 | R97: 183 | S97: 81 | T97: 162 | U97: 87 | V97: 153 | W97: 64 | X97: 115 | Y97: 125 | Z97: 289 | AA97: 116 | AB97: 249 | AC97: 94 | AD97: 173 | AE97: 84 | AF97: 185 | AG97: 12 | AH97: 16
A98: 03010501 | B98: 82836 | C98: 28685 | D98: 54494 | K98: 57 | L98: 91 | M98: 91 | N98: 205 | O98: 149 | P98: 385 | Q98: 241 | R98: 679 | S98: 412 | T98: 1169 | U98: 688 | V98: 1933 | W98: 1129 | X98: 3053 | Y98: 1800 | Z98: 4638 | AA98: 2869 | AB98: 6711 | AC98: 4038 | AD98: 7770 | AE98: 4814 | AF98: 8079 | AG98: 4493 | AH98: 7056 | AI98: 3857 | AJ98: 5954 | AK98: 4234 | AL98: 6771 | AM98: 629 | AN98: 536
A99: 03010502 | B99: 35987 | C99: 13071 | D99: 22916 | K99: 23 | L99: 24 | M99: 33 | N99: 64 | O99: 57 | P99: 150 | Q99: 94 | R99: 263 | S99: 172 | T99: 474 | U99: 310 | V99: 798 | W99: 470 | X99: 1219 | Y99: 781 | Z99: 1833 | AA99: 1321 | AB99: 2668 | AC99: 1689 | AD99: 3139 | AE99: 2240 | AF99: 3572 | AG99: 2097 | AH99: 3058 | AI99: 1698 | AJ99: 2486 | AK99: 2086 | AL99: 3174 | AM99: 272 | AN99: 248
A100: 03010504 | B100: 35223 | C100: 11680 | D100: 23543 | K100: 27 | L100: 34 | M100: 41 | N100: 89 | O100: 67 | P100: 169 | Q100: 128 | R100: 342 | S100: 174 | T100: 588 | U100: 300 | V100: 956 | W100: 494 | X100: 1425 | Y100: 756 | Z100: 2082 | AA100: 1144 | AB100: 3045 | AC100: 1617 | AD100: 3401 | AE100: 1935 | AF100: 3467 | AG100: 1871 | AH100: 2963 | AI100: 1423 | AJ100: 2399 | AK100: 1703 | AL100: 2583 | AM100: 594 | AN100: 251
A101: 03010505 | B101: 476 | C101: 197 | D101: 279 | K101: 0 | L101: 0 | M101: 0 | N101: 1 | O101: 2 | P101: 1 | Q101: 3 | R101: 6 | S101: 4 | T101: 5 | U101: 7 | V101: 12 | W101: 17 | X101: 19 | Y101: 8 | Z101: 41 | AA101: 29 | AB101: 36 | AC101: 29 | AD101: 34 | AE101: 23 | AF101: 38 | AG101: 22 | AH101: 29 | AI101: 22 | AJ101: 26 | AK101: 31 | AL101: 31 | AM101: 36 | AN101: 0
A102: 03020101 | B102: 7052 | C102: 2982 | D102: 4070 | E102: 184 | F102: 163 | G102: 670 | H102: 582 | I102: 677 | J102: 707 | K102: 379 | L102: 322 | M102: 146 | N102: 171 | O102: 52 | P102: 103 | Q102: 58 | R102: 151 | S102: 57 | T102: 160 | U102: 53 | V102: 181 | W102: 58 | X102: 154 | Y102: 36 | Z102: 164 | AA102: 48 | AB102: 170 | AC102: 73 | AD102: 183 | AE102: 104 | AF102: 203 | AG102: 97 | AH102: 200 | AI102: 80 | AJ102: 185 | AK102: 84 | AL102: 107 | AM102: 126 | AN102: 164 | AO102: 200 | AP102: 55 | AQ102: 14 | AR102: 32 | AS102: 56
A103: 03020201 | B103: 475 | C103: 235 | D103: 240 | E103: 56 | F103: 54 | G103: 116 | H103: 103 | I103: 63 | J103: 83 | AO103: 26 | AP103: 6 | AQ103: 9 | AR103: 2 | AS103: 35
A104: 03020301 | B104: 663 | C104: 259 | D104: 404 | E104: 6 | F104: 9 | G104: 38 | H104: 42 | I104: 39 | J104: 18 | K104: 15 | L104: 8 | M104: 5 | N104: 5 | O104: 2 | P104: 4 | Q104: 4 | R104: 3 | S104: 5 | T104: 9 | U104: 3 | V104: 10 | W104: 2 | X104: 11 | Y104: 4 | Z104: 12 | AA104: 10 | AB104: 21 | AC104: 11 | AD104: 44 | AE104: 15 | AF104: 43 | AG104: 18 | AH104: 39 | AI104: 19 | AJ104: 23 | AK104: 23 | AL104: 39 | AM104: 40 | AN104: 64 | AO104: 4 | AP104: 2 | AQ104: 0 | AR104: 0 | AS104: 14
A105: 03020401 | B105: 5672 | C105: 2298 | D105: 3374 | E105: 168 | F105: 200 | G105: 497 | H105: 475 | I105: 502 | J105: 501 | K105: 237 | L105: 267 | M105: 102 | N105: 132 | O105: 48 | P105: 96 | Q105: 53 | R105: 157 | S105: 59 | T105: 152 | U105: 59 | V105: 160 | W105: 37 | X105: 109 | Y105: 46 | Z105: 145 | AA105: 46 | AB105: 131 | AC105: 67 | AD105: 161 | AE105: 75 | AF105: 158 | AG105: 81 | AH105: 164 | AI105: 83 | AJ105: 150 | AK105: 65 | AL105: 99 | AM105: 73 | AN105: 117 | AO105: 522 | AP105: 35 | AQ105: 17 | AR105: 12 | AS105: 31
A106: 03020402 | B106: 615 | C106: 223 | D106: 392 | I106: 60 | J106: 38 | K106: 40 | L106: 36 | M106: 29 | N106: 23 | O106: 9 | P106: 16 | Q106: 4 | R106: 17 | S106: 4 | T106: 23 | U106: 1 | V106: 25 | W106: 4 | X106: 11 | Y106: 4 | Z106: 21 | AA106: 7 | AB106: 27 | AC106: 9 | AD106: 37 | AE106: 10 | AF106: 29 | AG106: 15 | AH106: 15 | AI106: 12 | AJ106: 31 | AK106: 8 | AL106: 20 | AM106: 7 | AN106: 23 | AO106: 19 | AP106: 2 | AQ106: 1 | AR106: 2 | AS106: 7
A107: 03020403 | B107: 403 | C107: 178 | D107: 225 | U107: 1 | V107: 1 | W107: 4 | X107: 7 | Y107: 3 | Z107: 9 | AA107: 2 | AB107: 10 | AC107: 5 | AD107: 17 | AE107: 15 | AF107: 21 | AG107: 18 | AH107: 26 | AI107: 29 | AJ107: 26 | AK107: 37 | AL107: 32 | AM107: 64 | AN107: 76 | AO107: 1 | AP107: 1 | AQ107: 0 | AR107: 0 | AS107: 5
A108: 03020501 | B108: 220811 | C108: 83019 | D108: 137792 | E108: 1792 | F108: 1717 | G108: 5295 | H108: 4472 | I108: 6554 | J108: 5920 | K108: 5468 | L108: 5348 | M108: 4261 | N108: 5436 | O108: 2604 | P108: 5505 | Q108: 2732 | R108: 5801 | S108: 3007 | T108: 6838 | U108: 2896 | V108: 7133 | W108: 3060 | X108: 7990 | Y108: 3606 | Z108: 9066 | AA108: 4683 | AB108: 10915 | AC108: 5787 | AD108: 12045 | AE108: 6714 | AF108: 12271 | AG108: 7045 | AH108: 11488 | AI108: 6346 | AJ108: 9292 | AK108: 5113 | AL108: 7339 | AM108: 6056 | AN108: 9216 | AO108: 8231 | AP108: 3788 | AQ108: 607 | AR108: 164 | AS108: 40
A109: 03020604 | B109: 14420 | C109: 5149 | D109: 9271 | E109: 1833 | F109: 2014 | G109: 1404 | H109: 1337 | I109: 459 | J109: 568 | K109: 298 | L109: 469 | M109: 226 | N109: 598 | O109: 57 | P109: 732 | Q109: 44 | R109: 816 | S109: 49 | T109: 745 | U109: 38 | V109: 452 | W109: 65 | X109: 261 | Y109: 58 | Z109: 217 | AA109: 57 | AB109: 167 | AC109: 57 | AD109: 179 | AE109: 72 | AF109: 169 | AG109: 114 | AH109: 187 | AI109: 121 | AJ109: 121 | AK109: 94 | AL109: 88 | AM109: 103 | AN109: 151 | AO109: 260 | AP109: 223 | AQ109: 384 | AR109: 70 | AS109: 88
A110: 03020702 | B110: 30774 | C110: 14004 | D110: 16770 | E110: 434 | F110: 494 | G110: 833 | H110: 735 | I110: 390 | J110: 382 | K110: 270 | L110: 271 | M110: 193 | N110: 198 | O110: 132 | P110: 311 | Q110: 205 | R110: 377 | S110: 224 | T110: 494 | U110: 303 | V110: 439 | W110: 246 | X110: 686 | Y110: 443 | Z110: 885 | AA110: 796 | AB110: 1159 | AC110: 1191 | AD110: 1435 | AE110: 1382 | AF110: 1408 | AG110: 2143 | AH110: 2427 | AI110: 1800 | AJ110: 1721 | AK110: 1311 | AL110: 1254 | AM110: 1708 | AN110: 2094 | AO110: 747 | AP110: 354 | AQ110: 65 | AR110: 55 | AS110: 6
A111: 03020806 | B111: 43658 | C111: 14933 | D111: 28725 | E111: 758 | F111: 858 | G111: 1087 | H111: 779 | I111: 1118 | J111: 933 | K111: 880 | L111: 967 | M111: 729 | N111: 1327 | O111: 614 | P111: 2284 | Q111: 760 | R111: 2821 | S111: 851 | T111: 2927 | U111: 806 | V111: 2249 | W111: 703 | X111: 1883 | Y111: 729 | Z111: 1729 | AA111: 890 | AB111: 1818 | AC111: 1050 | AD111: 2117 | AE111: 1057 | AF111: 1695 | AG111: 856 | AH111: 1215 | AI111: 651 | AJ111: 844 | AK111: 538 | AL111: 782 | AM111: 856 | AN111: 1497 | AO111: 870 | AP111: 5073 | AQ111: 541 | AR111: 212 | AS111: 378
A112: 03020908 | B112: 8798 | C112: 2860 | D112: 5938 | E112: 44 | F112: 16 | G112: 220 | H112: 115 | I112: 431 | J112: 319 | K112: 583 | L112: 902 | M112: 423 | N112: 794 | O112: 119 | P112: 337 | Q112: 98 | R112: 417 | S112: 150 | T112: 453 | U112: 117 | V112: 380 | W112: 76 | X112: 335 | Y112: 97 | Z112: 317 | AA112: 67 | AB112: 303 | AC112: 93 | AD112: 289 | AE112: 70 | AF112: 249 | AG112: 66 | AH112: 210 | AI112: 86 | AJ112: 182 | AK112: 52 | AL112: 154 | AM112: 68 | AN112: 166 | AO112: 120 | AP112: 91 | AQ112: 724 | AR112: 43 | AS112: 219
A113: 03021106 | B113: 3736 | C113: 1583 | D113: 2153 | E113: 7 | F113: 3 | G113: 8 | H113: 14 | I113: 21 | J113: 27 | K113: 20 | L113: 55 | M113: 40 | N113: 111 | O113: 68 | P113: 131 | Q113: 88 | R113: 195 | S113: 128 | T113: 218 | U113: 191 | V113: 275 | W113: 227 | X113: 287 | Y113: 291 | Z113: 256 | AA113: 213 | AB113: 220 | AC113: 136 | AD113: 168 | AE113: 145 | AF113: 193 | AG113: 24 | AH113: 49
A114: 03021107 | B114: 2007 | C114: 871 | D114: 1136 | E114: 2 | F114: 2 | G114: 8 | H114: 4 | I114: 8 | J114: 21 | K114: 14 | L114: 40 | M114: 33 | N114: 43 | O114: 50 | P114: 73 | Q114: 54 | R114: 88 | S114: 83 | T114: 144 | U114: 120 | V114: 163 | W114: 149 | X114: 155 | Y114: 130 | Z114: 154 | AA114: 92 | AB114: 112 | AC114: 66 | AD114: 67 | AE114: 62 | AF114: 70 | AG114: 14 | AH114: 13
A115: 03021108 | B115: 2650 | C115: 985 | D115: 1665 | E115: 5 | F115: 5 | G115: 9 | H115: 19 | I115: 20 | J115: 31 | K115: 24 | L115: 48 | M115: 34 | N115: 72 | O115: 64 | P115: 112 | Q115: 71 | R115: 142 | S115: 92 | T115: 216 | U115: 123 | V115: 236 | W115: 154 | X115: 268 | Y115: 153 | Z115: 205 | AA115: 110 | AB115: 132 | AC115: 67 | AD115: 98 | AE115: 59 | AF115: 81 | AG115: 15 | AH115: 21
A116: 03030101 | B116: 507 | C116: 188 | D116: 319 | E116: 0 | F116: 1
A117: 03030102 | B117: 36154 | C117: 13621 | D117: 22538 | E117: 89 | F117: 317
A118: 03030103 | B118: 1991 | C118: 137 | D118: 1885 | E118: 4 | F118: 25
A119: 03030104 | B119: 4091 | C119: 1357 | D119: 2742 | E119: 3 | F119: 99
A120: 03030110 | B120: 9672 | C120: 3174 | D120: 6498 | E120: 48 | F120: 161
A121: 03030120 | B121: 20936 | C121: 7934 | D121: 13002 | E121: 32 | F121: 79 | G121: 435 | H121: 860 | I121: 537 | J121: 1056 | K121: 659 | L121: 1222 | M121: 631 | N121: 1234 | O121: 601 | P121: 1083 | Q121: 585 | R121: 1074 | S121: 590 | T121: 994 | U121: 580 | V121: 772 | W121: 466 | X121: 538 | Y121: 766 | Z121: 1123 | AA121: 781 | AB121: 1043 | AC121: 634 | AD121: 903 | AE121: 637 | AF121: 1024 | AG121: 44 | AH121: 220
A122: 03030130 | B122: 17730 | C122: 5067 | D122: 12663 | E122: 25 | F122: 90 | G122: 284 | H122: 849 | I122: 396 | J122: 1112 | K122: 466 | L122: 1316 | M122: 420 | N122: 1213 | O122: 437 | P122: 1106 | Q122: 420 | R122: 988 | S122: 418 | T122: 916 | U122: 381 | V122: 663 | W122: 270 | X122: 512 | Y122: 513 | Z122: 1275 | AA122: 429 | AB122: 1063 | AC122: 319 | AD122: 759 | AE122: 289 | AF122: 807 | AG122: 48 | AH122: 196
A123: 03030140 | B123: 17481 | C123: 5208 | D123: 12273 | E123: 54 | F123: 48 | G123: 86 | H123: 50 | I123: 63 | J123: 66 | K123: 83 | L123: 149 | M123: 83 | N123: 211 | O123: 73 | P123: 236 | Q123: 85 | R123: 376 | S123: 122 | T123: 478 | U123: 136 | V123: 536 | W123: 142 | X123: 762 | Y123: 276 | Z123: 933 | AA123: 392 | AB123: 1334 | AC123: 607 | AD123: 1559 | AE123: 643 | AF123: 1492 | AG123: 738 | AH123: 1363 | AI123: 630 | AJ123: 1166 | AK123: 995 | AL123: 1514 | AM123: 52 | AN123: 82
A124: 03030150 | B124: 1300 | C124: 372 | D124: 928 | E124: 9 | F124: 4 | G124: 2 | H124: 0 | I124: 5 | J124: 7 | K124: 3 | L124: 6 | M124: 4 | N124: 21 | O124: 4 | P124: 16 | Q124: 1 | R124: 44 | S124: 10 | T124: 50 | U124: 13 | V124: 65 | W124: 14 | X124: 61 | Y124: 25 | Z124: 88 | AA124: 31 | AB124: 98 | AC124: 45 | AD124: 105 | AE124: 56 | AF124: 88 | AG124: 52 | AH124: 94 | AI124: 34 | AJ124: 76 | AK124: 64 | AL124: 105 | AM124: 5 | AN124: 5
A125: 03030160 | B125: 1961 | C125: 510 | D125: 1451 | E125: 114 | F125: 102 | G125: 50 | H125: 55 | I125: 35 | J125: 46 | K125: 20 | L125: 51 | M125: 26 | N125: 101 | O125: 15 | P125: 90 | Q125: 16 | R125: 124 | S125: 19 | T125: 111 | U125: 25 | V125: 107 | W125: 21 | X125: 121 | Y125: 21 | Z125: 134 | AA125: 22 | AB125: 115 | AC125: 24 | AD125: 98 | AE125: 34 | AF125: 67 | AG125: 27 | AH125: 60 | AI125: 23 | AJ125: 42 | AK125: 18 | AL125: 27 | AM125: 15 | AN125: 49
A126: 03030170 | B126: 132 | C126: 3 | D126: 129 | E126: 2 | F126: 1 | G126: 0 | H126: 1 | I126: 0 | J126: 2 | K126: 0 | L126: 10 | M126: 0 | N126: 22 | O126: 0 | P126: 21 | Q126: 0 | R126: 21 | S126: 0 | T126: 16 | U126: 0 | V126: 6 | W126: 0 | X126: 2 | Y126: 0 | Z126: 6 | AA126: 0 | AB126: 8 | AC126: 0 | AD126: 6 | AE126: 0 | AF126: 2 | AG126: 0 | AH126: 2 | AI126: 0 | AJ126: 0 | AK126: 1 | AL126: 3 | AM126: 0 | AN126: 9
A127: 03030180 | B127: 172 | C127: 80 | D127: 92 | E127: 4 | F127: 2 | G127: 3 | H127: 1 | I127: 2 | J127: 2 | K127: 2 | L127: 1 | M127: 6 | N127: 14 | O127: 1 | P127: 5 | Q127: 5 | R127: 14 | S127: 3 | T127: 5 | U127: 12 | V127: 11 | W127: 9 | X127: 1 | Y127: 2 | Z127: 7 | AA127: 7 | AB127: 8 | AC127: 4 | AD127: 5 | AE127: 4 | AF127: 6 | AG127: 7 | AH127: 3 | AI127: 4 | AJ127: 5 | AK127: 5 | AL127: 2 | AM127: 8 | AN127: 0
A128: 03030250 | B128: 10206 | C128: 6407 | D128: 3799 | E128: 132 | F128: 126 | G128: 4449 | H128: 2038 | I128: 983 | J128: 428 | K128: 149 | L128: 116 | M128: 45 | N128: 39 | O128: 18 | P128: 53 | Q128: 10 | R128: 22 | S128: 18 | T128: 33 | U128: 42 | V128: 40 | W128: 35 | X128: 50 | Y128: 14 | Z128: 39 | AA128: 23 | AB128: 84 | AC128: 36 | AD128: 80 | AE128: 51 | AF128: 96 | AG128: 64 | AH128: 93 | AI128: 93 | AJ128: 156 | AK128: 109 | AL128: 116 | AM128: 150 | AN128: 204 | AO128: 90 | AP128: 35 | AQ128: 8 | AR128: 46 | AS128: 22
A129: 03030270 | B129: 1692 | C129: 863 | D129: 829 | E129: 65 | F129: 33 | G129: 130 | H129: 39 | I129: 122 | J129: 41 | K129: 82 | L129: 17 | M129: 25 | N129: 29 | O129: 4 | P129: 4 | Q129: 9 | R129: 5 | S129: 3 | T129: 13 | U129: 9 | V129: 17 | W129: 17 | X129: 41 | Y129: 17 | Z129: 31 | AA129: 21 | AB129: 81 | AC129: 52 | AD129: 85 | AE129: 52 | AF129: 91 | AG129: 78 | AH129: 83 | AI129: 97 | AJ129: 56 | AK129: 40 | AL129: 68 | AM129: 40 | AN129: 95 | AO129: 3 | AP129: 27 | AQ129: 0 | AR129: 36 | AS129: 52
A130: 03030280 | B130: 199 | C130: 108 | D130: 91 | E130: 2 | F130: 2 | G130: 37 | H130: 18 | I130: 5 | J130: 4 | K130: 14 | L130: 5 | M130: 13 | N130: 18 | O130: 3 | P130: 4 | Q130: 1 | R130: 4 | S130: 0 | T130: 7 | U130: 5 | V130: 1 | W130: 1 | X130: 9 | Y130: 1 | Z130: 2 | AA130: 3 | AB130: 2 | AC130: 7 | AD130: 6 | AE130: 4 | AF130: 3 | AG130: 1 | AH130: 0 | AI130: 5 | AJ130: 0 | AK130: 0 | AL130: 3 | AM130: 6 | AN130: 3 | AO130: 10 | AP130: 4 | AQ130: 0 | AR130: 5 | AS130: 0
A131: 03030290 | B131: 76673
A132: 03030330 | B132: 17909 | C132: 6911 | D132: 10998 | E132: 81 | F132: 145 | G132: 587 | H132: 1032 | I132: 441 | J132: 915 | K132: 390 | L132: 907 | M132: 304 | N132: 721 | O132: 275 | P132: 634 | Q132: 256 | R132: 579 | S132: 245 | T132: 439 | U132: 231 | V132: 402 | W132: 215 | X132: 352 | Y132: 837 | Z132: 1119 | AA132: 900 | AB132: 1085 | AC132: 873 | AD132: 1003 | AE132: 1276 | AF132: 1666 | AG132: 48 | AH132: 160
A133: 03030340 | B133: 2595 | C133: 1010 | D133: 1585 | E133: 23 | F133: 6 | G133: 29 | H133: 73 | I133: 20 | J133: 35 | K133: 16 | L133: 28 | M133: 6 | N133: 19 | O133: 4 | P133: 17 | Q133: 6 | R133: 18 | S133: 5 | T133: 15 | U133: 6 | V133: 13 | W133: 12 | X133: 17 | Y133: 131 | Z133: 202 | AA133: 176 | AB133: 228 | AC133: 174 | AD133: 246 | AE133: 402 | AF133: 668 | AG133: 12 | AH133: 47
A134: 03030350 | B134: 6983 | C134: 2622 | D134: 4361 | E134: 13 | F134: 108
A135: 03030360 | B135: 6577 | C135: 2667 | D135: 3910 | E135: 13 | F135: 8 | G135: 24 | H135: 37 | I135: 40 | J135: 64 | K135: 55 | L135: 123 | M135: 88 | N135: 206 | O135: 138 | P135: 277 | Q135: 173 | R135: 343 | S135: 241 | T135: 475 | U135: 335 | V135: 537 | W135: 388 | X135: 543 | Y135: 445 | Z135: 440 | AA135: 310 | AB135: 340 | AC135: 211 | AD135: 259 | AE135: 209 | AF135: 263 | AG135: 41 | AH135: 63
A136: 03040210 | B136: 121 | D136: 121 | L136: 1 | N136: 9 | P136: 30 | R136: 34 | T136: 22 | V136: 12 | X136: 6 | Z136: 5 | AB136: 0 | AD136: 1 | AF136: 1 | AO136: 1 | AP136: 6 | AQ136: 0 | AR136: 0 | AS136: 0
A137: 03040220 | B137: 349 | D137: 349 | F137: 0 | H137: 3 | J137: 3 | L137: 6 | N137: 29 | P137: 30 | R137: 26 | T137: 19 | V137: 40 | X137: 26 | Z137: 42 | AB137: 30 | AD137: 24 | AF137: 16 | AH137: 17 | AJ137: 17 | AL137: 11 | AN137: 10 | AO137: 43 | AP137: 2 | AQ137: 4 | AR137: 0 | AS137: 0
A138: 03050400 | B138: 2990 | C138: 1230 | D138: 1784 | E138: 891 | F138: 1220 | G138: 339 | H138: 564
A139: 03050500 | B139: 444 | C139: 231 | D139: 213 | E139: 146 | F139: 144 | G139: 85 | H139: 69
A140: 03050600 | B140: 1710 | C140: 660 | D140: 1050 | E140: 507 | F140: 704 | G140: 153 | H140: 346
A141: 03050700 | B141: 1378 | C141: 614 | D141: 764 | E141: 486 | F141: 496 | G141: 128 | H141: 268
A142: 03050710 | B142: 267 | C142: 134 | D142: 133 | E142: 102 | F142: 82 | G142: 32 | H142: 51
A143: 03051000A | B143: 6 | C143: 5 | D143: 1 | E143: 0 | F143: 0 | G143: 0 | H143: 0 | I143: 1 | J143: 0 | K143: 0 | L143: 0 | M143: 0 | N143: 0 | O143: 0 | P143: 0 | Q143: 0 | R143: 0 | S143: 2 | T143: 0 | U143: 1 | V143: 0 | W143: 1 | X143: 1 | Y143: 0 | Z143: 0
A144: 03051100 | B144: 190 | C144: 107 | D144: 83 | E144: 2 | F144: 1 | G144: 0 | H144: 0 | I144: 1 | J144: 0 | K144: 5 | L144: 1 | M144: 5 | N144: 1 | O144: 1 | P144: 2 | Q144: 0 | R144: 5 | S144: 60 | T144: 58 | U144: 14 | V144: 7 | W144: 14 | X144: 7 | Y144: 5 | Z144: 1
A145: 03051200 | B145: 244 | C145: 110 | D145: 134 | E145: 0 | F145: 0 | G145: 0 | H145: 1 | I145: 0 | J145: 1 | K145: 3 | L145: 1 | M145: 1 | N145: 0 | O145: 1 | P145: 1 | Q145: 6 | R145: 3 | S145: 73 | T145: 82 | U145: 9 | V145: 22 | W145: 11 | X145: 16 | Y145: 6 | Z145: 7
A146: 03051300 | B146: 175 | C146: 85 | D146: 90 | E146: 0 | F146: 0 | G146: 1 | H146: 1 | I146: 2 | J146: 1 | K146: 8 | L146: 4 | M146: 4 | N146: 1 | O146: 0 | P146: 0 | Q146: 0 | R146: 2 | S146: 38 | T146: 49 | U146: 6 | V146: 6 | W146: 19 | X146: 12 | Y146: 7 | Z146: 14
A147: 03051400 | B147: 15 | C147: 6 | D147: 9 | E147: 0 | F147: 0 | G147: 0 | H147: 0 | I147: 1 | J147: 1 | K147: 0 | L147: 0 | M147: 0 | N147: 0 | O147: 0 | P147: 0 | Q147: 0 | R147: 0 | S147: 1 | T147: 1 | U147: 0 | V147: 1 | W147: 1 | X147: 3 | Y147: 3 | Z147: 3
A148: 03051500 | B148: 1 | C148: 0 | D148: 1 | E148: 0 | F148: 0 | G148: 0 | H148: 0 | I148: 0 | J148: 0 | K148: 0 | L148: 0 | M148: 0 | N148: 0 | O148: 0 | P148: 0 | Q148: 0 | R148: 0 | S148: 0 | T148: 1 | U148: 0 | V148: 0 | W148: 0 | X148: 0 | Y148: 0 | Z148: 0
A149: 03051600 | B149: 24 | C149: 16 | D149: 8 | E149: 0 | F149: 0 | G149: 0 | H149: 0 | I149: 0 | J149: 0 | K149: 1 | L149: 0 | M149: 0 | N149: 0 | O149: 1 | P149: 1 | Q149: 0 | R149: 0 | S149: 10 | T149: 6 | U149: 4 | V149: 1 | W149: 0 | X149: 0 | Y149: 0 | Z149: 0
A150: 03051700 | B150: 29 | C150: 16 | D150: 13 | E150: 0 | F150: 0 | G150: 1 | H150: 0 | I150: 0 | J150: 0 | K150: 0 | L150: 0 | M150: 1 | N150: 0 | O150: 1 | P150: 0 | Q150: 0 | R150: 1 | S150: 10 | T150: 9 | U150: 2 | V150: 1 | W150: 1 | X150: 2 | Y150: 0 | Z150: 0
A151: 03051800 | B151: 35 | C151: 17 | D151: 18 | E151: 0 | F151: 0 | G151: 0 | H151: 0 | I151: 0 | J151: 1 | K151: 1 | L151: 0 | M151: 1 | N151: 1 | O151: 1 | P151: 0 | Q151: 1 | R151: 0 | S151: 7 | T151: 10 | U151: 4 | V151: 2 | W151: 1 | X151: 1 | Y151: 1 | Z151: 3
A152: 03051900 | B152: 5 | C152: 2 | D152: 3 | E152: 0 | F152: 0 | G152: 0 | H152: 0 | I152: 0 | J152: 0 | K152: 0 | L152: 0 | M152: 0 | N152: 0 | O152: 0 | P152: 0 | Q152: 0 | R152: 0 | S152: 0 | T152: 1 | U152: 0 | V152: 0 | W152: 1 | X152: 1 | Y152: 1 | Z152: 1
A153: 03052100 | B153: 20 | C153: 11 | D153: 9 | E153: 0 | F153: 0 | G153: 0 | H153: 0 | I153: 0 | J153: 0 | K153: 0 | L153: 0 | M153: 0 | N153: 0 | O153: 1 | P153: 0 | Q153: 0 | R153: 0 | S153: 9 | T153: 8 | U153: 1 | V153: 1 | W153: 0 | X153: 0 | Y153: 0 | Z153: 0
A154: 03052200 | B154: 11 | C154: 7 | D154: 4 | E154: 0 | F154: 0 | G154: 0 | H154: 0 | I154: 0 | J154: 0 | K154: 0 | L154: 0 | M154: 0 | N154: 0 | O154: 0 | P154: 0 | Q154: 0 | R154: 0 | S154: 2 | T154: 2 | U154: 0 | V154: 1 | W154: 2 | X154: 0 | Y154: 3 | Z154: 1
A155: 03052300 | B155: 13 | C155: 8 | D155: 5 | E155: 0 | F155: 0 | G155: 0 | H155: 0 | I155: 1 | J155: 0 | K155: 2 | L155: 0 | M155: 0 | N155: 0 | O155: 1 | P155: 0 | Q155: 0 | R155: 0 | S155: 1 | T155: 4 | U155: 1 | V155: 0 | W155: 2 | X155: 1 | Y155: 0 | Z155: 0
A156: 03052400 | B156: 2 | C156: 1 | D156: 1 | E156: 0 | F156: 0 | G156: 0 | H156: 0 | I156: 0 | J156: 0 | K156: 0 | L156: 0 | M156: 0 | N156: 0 | O156: 0 | P156: 0 | Q156: 0 | R156: 0 | S156: 0 | T156: 0 | U156: 1 | V156: 1 | W156: 0 | X156: 0 | Y156: 0 | Z156: 0
A157: 03052500 | B157: 1 | C157: 0 | D157: 1 | T157: 1
A158: 03052600 | B158: 70 | C158: 49 | D158: 21 | E158: 0 | F158: 0 | G158: 0 | H158: 0 | I158: 11 | J158: 1 | K158: 10 | L158: 3 | M158: 9 | N158: 3 | O158: 4 | P158: 0 | Q158: 2 | R158: 2 | S158: 10 | T158: 11 | U158: 2 | V158: 0 | W158: 1 | X158: 0 | Y158: 0 | Z158: 1
A159: 03052700 | B159: 125 | C159: 83 | D159: 42 | E159: 0 | F159: 0 | G159: 0 | H159: 1 | I159: 19 | J159: 4 | K159: 35 | L159: 12 | M159: 15 | N159: 7 | O159: 5 | P159: 4 | Q159: 0 | R159: 2 | S159: 5 | T159: 8 | U159: 1 | V159: 1 | W159: 2 | X159: 1 | Y159: 1 | Z159: 2
A160: 03052800 | B160: 235 | C160: 139 | D160: 96 | E160: 0 | F160: 0 | G160: 0 | H160: 1 | I160: 47 | J160: 13 | K160: 40 | L160: 18 | M160: 17 | N160: 5 | O160: 11 | P160: 4 | Q160: 2 | R160: 2 | S160: 12 | T160: 15 | U160: 2 | V160: 2 | W160: 1 | X160: 8 | Y160: 7 | Z160: 28
A161: 03052900 | B161: 17 | C161: 1 | D161: 16 | E161: 0 | F161: 0 | G161: 0 | H161: 0 | I161: 0 | J161: 1 | K161: 0 | L161: 0 | M161: 0 | N161: 0 | O161: 0 | P161: 0 | Q161: 0 | R161: 0 | S161: 0 | T161: 4 | U161: 0 | V161: 0 | W161: 0 | X161: 3 | Y161: 1 | Z161: 8
A162: 03053100 | B162: 16 | C162: 8 | D162: 8 | E162: 0 | F162: 0 | G162: 0 | H162: 0 | I162: 0 | J162: 0 | K162: 2 | L162: 3 | M162: 1 | N162: 3 | O162: 2 | P162: 2 | Q162: 1 | R162: 0 | S162: 2 | T162: 0 | U162: 0 | V162: 0 | W162: 0 | X162: 0 | Y162: 0 | Z162: 0
A163: 03053200 | B163: 21 | C163: 12 | D163: 9 | E163: 1 | F163: 0 | G163: 0 | H163: 0 | I163: 0 | J163: 2 | K163: 5 | L163: 0 | M163: 3 | N163: 2 | O163: 0 | P163: 2 | Q163: 1 | R163: 0 | S163: 2 | T163: 3 | U163: 0 | V163: 0 | W163: 0 | X163: 0 | Y163: 0 | Z163: 0
A164: 03053300 | B164: 35 | C164: 27 | D164: 8 | E164: 0 | F164: 0 | G164: 0 | H164: 1 | I164: 4 | J164: 0 | K164: 9 | L164: 1 | M164: 4 | N164: 1 | O164: 3 | P164: 1 | Q164: 0 | R164: 0 | S164: 5 | T164: 1 | U164: 2 | V164: 0 | W164: 0 | X164: 1 | Y164: 0 | Z164: 2
A165: 03053400 | B165: 10 | C165: 5 | D165: 5 | E165: 0 | F165: 0 | G165: 0 | H165: 0 | I165: 1 | J165: 1 | K165: 1 | L165: 1 | M165: 0 | N165: 0 | O165: 0 | P165: 0 | Q165: 0 | R165: 0 | S165: 1 | T165: 1 | U165: 1 | V165: 0 | W165: 0 | X165: 1 | Y165: 1 | Z165: 1
A166: 03053600 | B166: 7 | C166: 5 | D166: 2 | E166: 0 | F166: 0 | G166: 0 | H166: 0 | I166: 1 | J166: 0 | K166: 0 | L166: 1 | M166: 1 | N166: 0 | O166: 0 | P166: 0 | Q166: 0 | R166: 0 | S166: 1 | T166: 1 | U166: 1 | V166: 0 | W166: 1 | X166: 0 | Y166: 0 | Z166: 0
A167: 03053700 | B167: 21 | C167: 7 | D167: 14 | E167: 0 | F167: 0 | G167: 0 | H167: 0 | I167: 1 | J167: 1 | K167: 2 | L167: 1 | M167: 0 | N167: 1 | O167: 1 | P167: 0 | Q167: 0 | R167: 0 | S167: 2 | T167: 10 | U167: 0 | V167: 0 | W167: 0 | X167: 1 | Y167: 1 | Z167: 0
A168: 03053800 | B168: 149 | C168: 74 | D168: 75 | E168: 1 | F168: 0 | G168: 0 | H168: 1 | I168: 6 | J168: 2 | K168: 8 | L168: 9 | M168: 5 | N168: 6 | O168: 13 | P168: 6 | Q168: 2 | R168: 1 | S168: 22 | T168: 30 | U168: 11 | V168: 1 | W168: 2 | X168: 6 | Y168: 4 | Z168: 13
A169: 03053900 | B169: 32 | C169: 11 | D169: 21 | E169: 0 | F169: 0 | G169: 0 | H169: 0 | I169: 1 | J169: 1 | K169: 3 | L169: 0 | M169: 0 | N169: 1 | O169: 1 | P169: 1 | Q169: 0 | R169: 0 | S169: 4 | T169: 4 | U169: 0 | V169: 0 | W169: 0 | X169: 2 | Y169: 2 | Z169: 12
A170: 03500020 | B170: 7691 | C170: 3724 | D170: 3967 | E170: 3 | F170: 12 | G170: 44 | H170: 45 | I170: 1 | J170: 9 | K170: 54 | L170: 82 | M170: 1378 | N170: 1465 | O170: 61 | P170: 62 | Q170: 12 | R170: 11 | S170: 49 | T170: 45 | U170: 1280 | V170: 1250 | W170: 842 | X170: 986
A171: 03500030 | B171: 936 | C171: 574 | D171: 362 | E171: 0 | F171: 1 | G171: 0 | H171: 0 | I171: 0 | J171: 0 | K171: 1 | L171: 1 | M171: 79 | N171: 50 | O171: 4 | P171: 4 | Q171: 0 | R171: 2 | S171: 5 | T171: 6 | U171: 192 | V171: 113 | W171: 293 | X171: 186
A172: 03500040 | B172: 2442 | C172: 1190 | D172: 1252 | E172: 1000 | F172: 1030 | G172: 190 | H172: 222
A173: 03500050 | B173: 425 | C173: 219 | D173: 206 | E173: 169 | F173: 165 | G173: 50 | H173: 41
A174: 03500060 | B174: 40 | C174: 22 | D174: 18 | E174: 17 | F174: 13 | G174: 5 | H174: 5
A175: 03500120 | B175: 218
A176: 03500130 | B176: 220
A177: 03500140 | B177: 120
A178: 03500150 | B178: 12
A179: 03500160 | B179: 3640 | D179: 334 | E179: 322
A180: 03500170 | B180: 61 | D180: 24 | E180: 12
A181: 03500200 | B181: 2709 | C181: 407 | E181: 297
A182: 03500210 | B182: 2581 | C182: 384 | E182: 260
A183: 03500290 | B183: 2250 | C183: 925 | D183: 1325 | E183: 18 | F183: 25 | G183: 81 | H183: 82 | I183: 92 | J183: 162 | K183: 334 | L183: 557 | M183: 264 | N183: 338 | O183: 58 | P183: 59 | Q183: 66 | R183: 84 | S183: 12 | T183: 18
A184: 03500300 | B184: 387 | C184: 212 | D184: 175 | E184: 14 | F184: 16 | G184: 37 | H184: 39 | I184: 10 | J184: 9 | K184: 59 | L184: 50 | M184: 67 | N184: 40 | O184: 13 | P184: 14 | Q184: 11 | R184: 4 | S184: 1 | T184: 3
A185: 03500331 | B185: 92 | C185: 59 | D185: 33 | E185: 0 | F185: 0 | G185: 9 | H185: 6 | I185: 8 | J185: 5 | K185: 19 | L185: 12 | M185: 20 | N185: 10 | O185: 3 | P185: 1 | Q185: 0 | R185: 0
A186: 03500332 | B186: 91 | C186: 71 | D186: 20 | E186: 0 | F186: 1 | G186: 1 | H186: 2 | I186: 9 | J186: 1 | K186: 33 | L186: 10 | M186: 24 | N186: 4 | O186: 4 | P186: 2 | Q186: 0 | R186: 1
A187: 03500333 | B187: 2 | C187: 0 | D187: 2 | E187: 0 | F187: 0 | G187: 0 | H187: 1 | I187: 0 | J187: 0 | K187: 0 | L187: 1 | M187: 0 | N187: 0 | O187: 0 | P187: 0 | Q187: 0 | R187: 0
A188: 03500334 | B188: 10 | C188: 7 | D188: 3 | E188: 0 | F188: 0 | G188: 0 | H188: 0 | I188: 2 | J188: 0 | K188: 4 | L188: 1 | M188: 1 | N188: 1 | O188: 0 | P188: 1 | Q188: 0 | R188: 0
A189: 03500336 | B189: 152 | C189: 78 | D189: 74 | E189: 0 | F189: 0 | G189: 0 | H189: 0 | I189: 6 | J189: 1 | K189: 15 | L189: 6 | M189: 9 | N189: 5 | O189: 6 | P189: 1 | Q189: 2 | R189: 1 | S189: 23 | T189: 33 | U189: 9 | V189: 6 | W189: 8 | X189: 9 | Y189: 0 | Z189: 12
A190: 03500337 | B190: 110 | C190: 61 | D190: 49 | E190: 0 | F190: 0 | G190: 0 | H190: 0 | I190: 3 | J190: 0 | K190: 1 | L190: 2 | M190: 3 | N190: 1 | O190: 1 | P190: 1 | Q190: 2 | R190: 5 | S190: 34 | T190: 36 | U190: 9 | V190: 1 | W190: 5 | X190: 3 | Y190: 3 | Z190: 0
A191: 03500338 | B191: 137 | C191: 69 | D191: 68 | E191: 1 | F191: 0 | G191: 1 | H191: 1 | I191: 9 | J191: 4 | K191: 15 | L191: 5 | M191: 6 | N191: 5 | O191: 3 | P191: 5 | Q191: 0 | R191: 0 | S191: 24 | T191: 29 | U191: 3 | V191: 11 | W191: 5 | X191: 3 | Y191: 2 | Z191: 5
A192: 03500339 | B192: 198 | C192: 117 | D192: 81 | E192: 0 | F192: 0 | G192: 1 | H192: 3 | I192: 23 | J192: 6 | K192: 25 | L192: 12 | M192: 10 | N192: 6 | O192: 11 | P192: 4 | Q192: 2 | R192: 0 | S192: 25 | T192: 36 | U192: 4 | V192: 3 | W192: 9 | X192: 4 | Y192: 7 | Z192: 7
A193: 03500340 | B193: 24 | C193: 9 | D193: 15 | E193: 0 | F193: 0 | G193: 0 | H193: 0 | I193: 2 | J193: 1 | K193: 0 | L193: 1 | M193: 0 | N193: 0 | O193: 1 | P193: 0 | Q193: 0 | R193: 0 | S193: 5 | T193: 2 | U193: 0 | V193: 0 | W193: 0 | X193: 2 | Y193: 1 | Z193: 9
A194: 03500341 | B194: 18 | C194: 8 | D194: 10 | E194: 0 | F194: 0 | G194: 0 | H194: 0 | I194: 1 | J194: 2 | K194: 0 | L194: 0 | M194: 0 | N194: 0 | O194: 1 | P194: 1 | Q194: 0 | R194: 0 | S194: 2 | T194: 3 | U194: 3 | V194: 1 | W194: 1 | X194: 2 | Y194: 0 | Z194: 1
A195: 03500342 | B195: 41 | C195: 24 | D195: 17 | E195: 0 | F195: 0 | G195: 0 | H195: 0 | I195: 2 | J195: 2 | K195: 0 | L195: 0 | M195: 1 | N195: 1 | O195: 2 | P195: 1 | Q195: 1 | R195: 0 | S195: 7 | T195: 6 | U195: 7 | V195: 3 | W195: 4 | X195: 3 | Y195: 0 | Z195: 1
A196: 03500343 | B196: 51 | C196: 21 | D196: 30 | E196: 0 | F196: 0 | G196: 0 | H196: 0 | I196: 1 | J196: 1 | K196: 4 | L196: 1 | M196: 1 | N196: 2 | O196: 1 | P196: 0 | Q196: 0 | R196: 0 | S196: 10 | T196: 19 | U196: 2 | V196: 5 | W196: 2 | X196: 2 | Y196: 0 | Z196: 0
A197: 03500344 | B197: 75 | C197: 38 | D197: 37 | E197: 0 | F197: 0 | G197: 0 | H197: 0 | I197: 1 | J197: 0 | K197: 13 | L197: 5 | M197: 4 | N197: 3 | O197: 3 | P197: 1 | Q197: 1 | R197: 1 | S197: 9 | T197: 10 | U197: 3 | V197: 1 | W197: 4 | X197: 6 | Y197: 0 | Z197: 10
A198: 03500345 | B198: 10 | C198: 4 | D198: 6 | E198: 0 | F198: 0 | G198: 0 | H198: 0 | I198: 0 | J198: 1 | K198: 1 | L198: 0 | M198: 3 | N198: 0 | O198: 0 | P198: 0 | Q198: 0 | R198: 0 | S198: 0 | T198: 1 | U198: 0 | V198: 0 | W198: 0 | X198: 1 | Y198: 0 | Z198: 3
A199: 03500346 | B199: 23189 | C199: 7796 | D199: 15393 | G199: 87 | H199: 177 | I199: 487 | J199: 1193 | K199: 2167 | L199: 5301 | M199: 1910 | N199: 3685 | O199: 842 | P199: 1464 | Q199: 1486 | R199: 2260 | S199: 817 | T199: 1313
A200: 03500347 | B200: 16522 | C200: 5709 | D200: 10813 | I200: 660 | J200: 1194 | K200: 1740 | L200: 3973 | M200: 1663 | N200: 3343 | O200: 630 | P200: 954 | Q200: 679 | R200: 980 | S200: 337 | T200: 369
A201: 03500348 | B201: 1679 | C201: 436 | D201: 1243 | I201: 38 | J201: 107 | K201: 172 | L201: 492 | M201: 146 | N201: 486 | O201: 33 | P201: 72 | Q201: 36 | R201: 66 | S201: 11 | T201: 20
... 2330 more rows

Sheet NOMBRE (hidden)
A1: DATOS DEL ESTABLECIMIENTO | C1: CÓDIGOS
A2: NOMBRE DE COMUNA | I2: =IF(OR(NOMBRE!C2="",NOMBRE!D2="",NOMBRE!E2="",NOMBRE!F2="",NOMBRE!G2=""),"Falta Cód. Com.","") -> Falta Cód. Com. | AG2: =IF(I2>"",1,0) -> 1
A3: NOMBRE ESTABLECIMIENTO/ESTRATEGIA | I3: =IF(OR(NOMBRE!C3="",NOMBRE!D3="",NOMBRE!E3="",NOMBRE!F3="",NOMBRE!G3="",NOMBRE!H3=""),"Falta Cód. Est.","") -> Falta Cód. Est. | AG3: =IF(I3>"",1,0) -> 1
A4: TIPO DE ESTABLECIMIENTO/ESTRATEGIA | I4: =IF(OR(NOMBRE!B4=""),"Falta Tipo. Est.","") -> Falta Tipo. Est. | AG4: =IF(I4>"",1,0) -> 1
A5: DEPENDENCIA | I5: =IF(OR(NOMBRE!B5=""),"Falta Dependencia. Est.","") -> Falta Dependencia. Est. | AG5: =IF(I5>"",1,0) -> 1
A6: MES: | I6: =IF(OR(NOMBRE!C6="",NOMBRE!D6=""),"Falta Cód. Mes.","") -> Falta Cód. Mes. | AG6: =IF(I6>"",1,0) -> 1
A7: AÑO: | B7: 2023 | AG7: =SUM(AG2:AG6) -> 5
A9: Versión 1.4: Mayo 2023 | G9: Para habilitar el contenido de las celdas "Tipo de Establecimiento", "Dependencia" y "Mes", presione el boton "Verificar Habilitacion de Macros". Para poder tener un 100% de funcionalidad debe hablitar la opcion Macros en esta planilla.
A11: Director Servicio de Salud o Director Establecimiento | AA11: ENERO | AB11: Establecimiento de Mayor Complejidad (EMAYC) | AC11: SERVICIO DE SALUD
A12: Jefe de Estadísticas | AA12: FEBRERO | AB12: Establecimiento de Mediana Complejidad (EMEDC) | AC12: MUNICIPAL
AA13: MARZO | AB13: Establecimiento de Menor Complejidad (EMENC) | AC13: OTRA INSTITUCION (Delegado)
AA14: ABRIL | AB14: Centros de Diagnóstico Terapeutico (CDT)
A15: MINSAL - DEIS | AA15: MAYO | AB15: Centro de Referencia de Salud (CRS)
AA16: JUNIO | AB16: Consultorio General Urbano (CGU)
B17: SERIE A | G17: ESTADO MACROS: | AA17: JULIO | AB17: Consultorio General Urbano (CGU) - CESFAM
I18: HABILITADO | AA18: AGOSTO | AB18: Consultorio General Urbano(CGU) con SAPU/SUR/SAR
AA19: SEPTIEMBRE | AB19: Consultorio General Urbano (CGU) - CESFAM con SAPU/SAR
AA20: OCTUBRE | AB20: Consultorio General Rural (CGR)
AA21: NOVIEMBRE | AB21: Consultorio General Rural (CGR) - CESFAM
AA22: DICIEMBRE | AB22: Consultorio General Rural (CGR) con SAPU/SAR/SUR
AB23: Consultorio General Rural (CGR) - CESFAM con SAPU/SAR/SUR
AB24: Posta de Salud Rural (PSR)
AB25: Centro Comunitario de Salud Familiar (CECOF)
AB26: Consultorio de Salud Mental (COSAM)
AB27: Programa de Reparación y Atención Integral de Salud (PRAIS)
AB28: Centro de Atención Funcionarios (CAF)
AB29: Unidad de Salud de Funcionarios (USF)
AB30: ClÍnica Dental Móvil (CDM)
AB31: Dirección Servicio de Salud (DSS)
AB32: Servicio de Atención Primaria de Urgencia (SAPU)
AB33: Servicio de Atención Primaria de Urgencia de Alta Resolutividad (SAR)
AB34: Servicio de Urgencia Rural (SUR)
AB35: Laboratorio Clínico o Dental
AB36: Servicio de Atención Primaria de Urgencia Dental (SAPUDENT)
AB37: Centro de Rehabilitación (CR)
AB38: Hospital de Campaña
AB39: Centro Oncologico
AB40: SAMU

Sheet A01
B1: SERVICIO DE SALUD
B2: =CONCATENATE("COMUNA: ",NOMBRE!B2," - ","( ",NOMBRE!C2,NOMBRE!D2,NOMBRE!E2,NOMBRE!F2,NOMBRE!G2," )") -> COMUNA: - ( )
B3: =CONCATENATE("ESTABLECIMIENTO/ESTRATEGIA: ",NOMBRE!B3," - ","( ",NOMBRE!C3,NOMBRE!D3,NOMBRE!E3,NOMBRE!F3,NOMBRE!G3,NOMBRE!H3," )") -> ESTABLECIMIENTO/ESTRATEGIA: - ( )
B4: =CONCATENATE("MES: ",NOMBRE!B6," - ","( ",NOMBRE!C6,NOMBRE!D6," )") -> MES: - ( )
B5: =CONCATENATE("AÑO: ",NOMBRE!B7) -> AÑO: 2023
B6: REM-A01. CONTROLES DE SALUD
B9: SECCIÓN A: CONTROLES DE SALUD SEXUAL Y REPRODUCTIVA
B10: TIPO DE CONTROL | C10: PROFESIONAL | D10: TOTAL | E10: POR EDAD | V10: SEXO | X10: Control con pareja familiar u otro | Y10: Control de diada con presencia del padre | Z10: Espacios Amigables/ Adolescentes | AA10: Niños, Niñas, Adolescentes y Jóvenes SENAME | AB10: Niños, Niñas, Adolescentes y Jóvenes Mejor Niñez | AC10: Pueblos Originarios | AD10: Migrantes
E11: Menor de 4 años | F11: 5 - 9 años | G11: 10 - 14 años | H11: 15 a 19 años | I11: 20 - 24 años | J11: 25 - 29 años | K11: 30 - 34 años | L11: 35 - 39 años | M11: 40 - 44 años | N11: 45 - 49 años | O11: 50 - 54 años | P11: 55 - 59 años | Q11: 60 - 64 años | R11: 65 - 69 años | S11: 70 - 74 años | T11: 75 - 79 años | U11: 80 y más años | V11: HOMBRES | W11: MUJERES
A12: 01010101 | B12: PRE- CONCEPCIONAL | C12: MÉDICO/A | D12: =SUM(G12:P12) -> 7 | E12: =IFERROR(VLOOKUP($A12,Filtro!$A$5:$AW$2531,3,FALSE),0) -> 0 | F12: =IFERROR(VLOOKUP($A12,Filtro!$A$5:$AW$2531,4,FALSE),0) -> 0 | G12: =IFERROR(VLOOKUP($A12,Filtro!$A$5:$AW$2531,5,FALSE),0) -> 0 | H12: =IFERROR(VLOOKUP($A12,Filtro!$A$5:$AW$2531,6,FALSE),0) -> 0 | I12: =IFERROR(VLOOKUP($A12,Filtro!$A$5:$AW$2531,7,FALSE),0) -> 0 | J12: =IFERROR(VLOOKUP($A12,Filtro!$A$5:$AW$2531,8,FALSE),0) -> 4 | K12: =IFERROR(VLOOKUP($A12,Filtro!$A$5:$AW$2531,9,FALSE),0) -> 2 | L12: =IFERROR(VLOOKUP($A12,Filtro!$A$5:$AW$2531,10,FALSE),0) -> 0 | M12: =IFERROR(VLOOKUP($A12,Filtro!$A$5:$AW$2531,11,FALSE),0) -> 1 | N12: =IFERROR(VLOOKUP($A12,Filtro!$A$5:$AW$2531,12,FALSE),0) -> 0 | O12: =IFERROR(VLOOKUP($A12,Filtro!$A$5:$AW$2531,13,FALSE),0) -> 0 | P12: =IFERROR(VLOOKUP($A12,Filtro!$A$5:$AW$2531,14,FALSE),0) -> 0 | Q12: =IFERROR(VLOOKUP($A12,Filtro!$A$5:$AW$2531,15,FALSE),0) -> 0 | R12: =IFERROR(VLOOKUP($A12,Filtro!$A$5:$AW$2531,16,FALSE),0) -> 0 | S12: =IFERROR(VLOOKUP($A12,Filtro!$A$5:$AW$2531,17,FALSE),0) -> 0 | T12: =IFERROR(VLOOKUP($A12,Filtro!$A$5:$AW$2531,18,FALSE),0) -> 0 | U12: =IFERROR(VLOOKUP($A12,Filtro!$A$5:$AW$2531,19,FALSE),0) -> 0 | V12: =IFERROR(VLOOKUP($A12,Filtro!$A$5:$AW$2531,20,FALSE),0) -> 0 | W12: =IFERROR(VLOOKUP($A12,Filtro!$A$5:$AW$2531,21,FALSE),0) -> 7 | X12: =IFERROR(VLOOKUP($A12,Filtro!$A$5:$AW$2531,22,FALSE),0) -> 0 | Y12: =IFERROR(VLOOKUP($A12,Filtro!$A$5:$AW$2531,23,FALSE),0) -> 0 | Z12: =IFERROR(VLOOKUP($A12,Filtro!$A$5:$AW$2531,24,FALSE),0) -> 0 | AA12: =IFERROR(VLOOKUP($A12,Filtro!$A$5:$AW$2531,25,FALSE),0) -> 0 | AB12: =IFERROR(VLOOKUP($A12,Filtro!$A$5:$AW$2531,26,FALSE),0) -> 0 | AC12: =IFERROR(VLOOKUP($A12,Filtro!$A$5:$AW$2531,27,FALSE),0) -> 0 | AD12: =IFERROR(VLOOKUP($A12,Filtro!$A$5:$AW$2531,28,FALSE),0) -> 0 | CA12: * El número de Sexo Hombres y mujeres debe ser igual al total. | DA12: 1 | DB12: 0 | DE12: 0 | DF12: 0 | DG12: 0 | DH12: 0 | DI12: 0 | DJ12: 0 | DK12: 0 | DL12: 0 | DM12: 0 | DN12: 0 | DO12: 0 | DP12: 0 | DQ12: 0
A13: 01010103 | C13: MATRONA/ÓN | D13: =SUM(G13:P13) -> 995 | E13: =IFERROR(VLOOKUP($A13,Filtro!$A$5:$AW$2531,3,FALSE),0) -> 0 | F13: =IFERROR(VLOOKUP($A13,Filtro!$A$5:$AW$2531,4,FALSE),0) -> 0 | G13: =IFERROR(VLOOKUP($A13,Filtro!$A$5:$AW$2531,5,FALSE),0) -> 3 | H13: =IFERROR(VLOOKUP($A13,Filtro!$A$5:$AW$2531,6,FALSE),0) -> 37 | I13: =IFERROR(VLOOKUP($A13,Filtro!$A$5:$AW$2531,7,FALSE),0) -> 162 | J13: =IFERROR(VLOOKUP($A13,Filtro!$A$5:$AW$2531,8,FALSE),0) -> 276 | K13: =IFERROR(VLOOKUP($A13,Filtro!$A$5:$AW$2531,9,FALSE),0) -> 268 | L13: =IFERROR(VLOOKUP($A13,Filtro!$A$5:$AW$2531,10,FALSE),0) -> 176 | M13: =IFERROR(VLOOKUP($A13,Filtro!$A$5:$AW$2531,11,FALSE),0) -> 67 | N13: =IFERROR(VLOOKUP($A13,Filtro!$A$5:$AW$2531,12,FALSE),0) -> 6 | O13: =IFERROR(VLOOKUP($A13,Filtro!$A$5:$AW$2531,13,FALSE),0) -> 0 | P13: =IFERROR(VLOOKUP($A13,Filtro!$A$5:$AW$2531,14,FALSE),0) -> 0 | Q13: =IFERROR(VLOOKUP($A13,Filtro!$A$5:$AW$2531,15,FALSE),0) -> 0 | R13: =IFERROR(VLOOKUP($A13,Filtro!$A$5:$AW$2531,16,FALSE),0) -> 0 | S13: =IFERROR(VLOOKUP($A13,Filtro!$A$5:$AW$2531,17,FALSE),0) -> 0 | T13: =IFERROR(VLOOKUP($A13,Filtro!$A$5:$AW$2531,18,FALSE),0) -> 0 | U13: =IFERROR(VLOOKUP($A13,Filtro!$A$5:$AW$2531,19,FALSE),0) -> 0 | V13: =IFERROR(VLOOKUP($A13,Filtro!$A$5:$AW$2531,20,FALSE),0) -> 6 | W13: =IFERROR(VLOOKUP($A13,Filtro!$A$5:$AW$2531,21,FALSE),0) -> 976 | X13: =IFERROR(VLOOKUP($A13,Filtro!$A$5:$AW$2531,22,FALSE),0) -> 0 | Y13: =IFERROR(VLOOKUP($A13,Filtro!$A$5:$AW$2531,23,FALSE),0) -> 0 | Z13: =IFERROR(VLOOKUP($A13,Filtro!$A$5:$AW$2531,24,FALSE),0) -> 4 | AA13: =IFERROR(VLOOKUP($A13,Filtro!$A$5:$AW$2531,25,FALSE),0) -> 0 | AB13: =IFERROR(VLOOKUP($A13,Filtro!$A$5:$AW$2531,26,FALSE),0) -> 0 | AC13: =IFERROR(VLOOKUP($A13,Filtro!$A$5:$AW$2531,27,FALSE),0) -> 7 | AD13: =IFERROR(VLOOKUP($A13,Filtro!$A$5:$AW$2531,28,FALSE),0) -> 38 | CA13: * El número de Sexo Hombres y mujeres debe ser igual al total. | DA13: 1 | DB13: 0 | DE13: 0 | DF13: 0 | DG13: 0 | DH13: 0 | DI13: 0 | DJ13: 0 | DK13: 0 | DL13: 0 | DM13: 0 | DN13: 0 | DO13: 0 | DP13: 0 | DQ13: 0
A14: 01010201 | B14: PRENATAL | C14: MÉDICO/A | D14: =SUM(G14:P14) -> 200 | E14: =IFERROR(VLOOKUP($A14,Filtro!$A$5:$AW$2531,3,FALSE),0) -> 0 | F14: =IFERROR(VLOOKUP($A14,Filtro!$A$5:$AW$2531,4,FALSE),0) -> 0 | G14: =IFERROR(VLOOKUP($A14,Filtro!$A$5:$AW$2531,5,FALSE),0) -> 0 | H14: =IFERROR(VLOOKUP($A14,Filtro!$A$5:$AW$2531,6,FALSE),0) -> 13 | I14: =IFERROR(VLOOKUP($A14,Filtro!$A$5:$AW$2531,7,FALSE),0) -> 45 | J14: =IFERROR(VLOOKUP($A14,Filtro!$A$5:$AW$2531,8,FALSE),0) -> 51 | K14: =IFERROR(VLOOKUP($A14,Filtro!$A$5:$AW$2531,9,FALSE),0) -> 50 | L14: =IFERROR(VLOOKUP($A14,Filtro!$A$5:$AW$2531,10,FALSE),0) -> 38 | M14: =IFERROR(VLOOKUP($A14,Filtro!$A$5:$AW$2531,11,FALSE),0) -> 3 | N14: =IFERROR(VLOOKUP($A14,Filtro!$A$5:$AW$2531,12,FALSE),0) -> 0 | O14: =IFERROR(VLOOKUP($A14,Filtro!$A$5:$AW$2531,13,FALSE),0) -> 0 | P14: =IFERROR(VLOOKUP($A14,Filtro!$A$5:$AW$2531,14,FALSE),0) -> 0 | Q14: =IFERROR(VLOOKUP($A14,Filtro!$A$5:$AW$2531,15,FALSE),0) -> 0 | R14: =IFERROR(VLOOKUP($A14,Filtro!$A$5:$AW$2531,16,FALSE),0) -> 0 | S14: =IFERROR(VLOOKUP($A14,Filtro!$A$5:$AW$2531,17,FALSE),0) -> 0 | T14: =IFERROR(VLOOKUP($A14,Filtro!$A$5:$AW$2531,18,FALSE),0) -> 0 | U14: =IFERROR(VLOOKUP($A14,Filtro!$A$5:$AW$2531,19,FALSE),0) -> 0 | V14: =IFERROR(VLOOKUP($A14,Filtro!$A$5:$AW$2531,20,FALSE),0) -> 0 | W14: =IFERROR(VLOOKUP($A14,Filtro!$A$5:$AW$2531,21,FALSE),0) -> 202 | X14: =IFERROR(VLOOKUP($A14,Filtro!$A$5:$AW$2531,22,FALSE),0) -> 11 | Y14: =IFERROR(VLOOKUP($A14,Filtro!$A$5:$AW$2531,23,FALSE),0) -> 0 | Z14: =IFERROR(VLOOKUP($A14,Filtro!$A$5:$AW$2531,24,FALSE),0) -> 0 | AA14: =IFERROR(VLOOKUP($A14,Filtro!$A$5:$AW$2531,25,FALSE),0) -> 0 | AB14: =IFERROR(VLOOKUP($A14,Filtro!$A$5:$AW$2531,26,FALSE),0) -> 0 | AC14: =IFERROR(VLOOKUP($A14,Filtro!$A$5:$AW$2531,27,FALSE),0) -> 2 | AD14: =IFERROR(VLOOKUP($A14,Filtro!$A$5:$AW$2531,28,FALSE),0) -> 0 | DB14: 0 | DC14: 0 | DF14: 0 | DG14: 0 | DH14: 0 | DI14: 0 | DJ14: 0 | DK14: 0 | DL14: 0 | DM14: 0 | DN14: 0 | DO14: 0 | DP14: 0 | DQ14: 0
A15: 01010203 | C15: MATRONA/ÓN | D15: 24273 | E15: =IFERROR(VLOOKUP($A15,Filtro!$A$5:$AW$2531,3,FALSE),0) -> 0 | F15: =IFERROR(VLOOKUP($A15,Filtro!$A$5:$AW$2531,4,FALSE),0) -> 0 | G15: =IFERROR(VLOOKUP($A15,Filtro!$A$5:$AW$2531,5,FALSE),0) -> 68 | H15: =IFERROR(VLOOKUP($A15,Filtro!$A$5:$AW$2531,6,FALSE),0) -> 1430 | I15: =IFERROR(VLOOKUP($A15,Filtro!$A$5:$AW$2531,7,FALSE),0) -> 5446 | J15: =IFERROR(VLOOKUP($A15,Filtro!$A$5:$AW$2531,8,FALSE),0) -> 7022 | K15: =IFERROR(VLOOKUP($A15,Filtro!$A$5:$AW$2531,9,FALSE),0) -> 6328 | L15: =IFERROR(VLOOKUP($A15,Filtro!$A$5:$AW$2531,10,FALSE),0) -> 3051 | M15: =IFERROR(VLOOKUP($A15,Filtro!$A$5:$AW$2531,11,FALSE),0) -> 887 | N15: =IFERROR(VLOOKUP($A15,Filtro!$A$5:$AW$2531,12,FALSE),0) -> 38 | O15: =IFERROR(VLOOKUP($A15,Filtro!$A$5:$AW$2531,13,FALSE),0) -> 2 | P15: =IFERROR(VLOOKUP($A15,Filtro!$A$5:$AW$2531,14,FALSE),0) -> 1 | Q15: =IFERROR(VLOOKUP($A15,Filtro!$A$5:$AW$2531,15,FALSE),0) -> 0 | R15: =IFERROR(VLOOKUP($A15,Filtro!$A$5:$AW$2531,16,FALSE),0) -> 0 | S15: =IFERROR(VLOOKUP($A15,Filtro!$A$5:$AW$2531,17,FALSE),0) -> 0 | T15: =IFERROR(VLOOKUP($A15,Filtro!$A$5:$AW$2531,18,FALSE),0) -> 0 | U15: =IFERROR(VLOOKUP($A15,Filtro!$A$5:$AW$2531,19,FALSE),0) -> 0 | V15: =IFERROR(VLOOKUP($A15,Filtro!$A$5:$AW$2531,20,FALSE),0) -> 0 | W15: =IFERROR(VLOOKUP($A15,Filtro!$A$5:$AW$2531,21,FALSE),0) -> 24044 | X15: =IFERROR(VLOOKUP($A15,Filtro!$A$5:$AW$2531,22,FALSE),0) -> 6824 | Y15: =IFERROR(VLOOKUP($A15,Filtro!$A$5:$AW$2531,23,FALSE),0) -> 0 | Z15: =IFERROR(VLOOKUP($A15,Filtro!$A$5:$AW$2531,24,FALSE),0) -> 0 | AA15: =IFERROR(VLOOKUP($A15,Filtro!$A$5:$AW$2531,25,FALSE),0) -> 17 | AB15: =IFERROR(VLOOKUP($A15,Filtro!$A$5:$AW$2531,26,FALSE),0) -> 0 | AC15: =IFERROR(VLOOKUP($A15,Filtro!$A$5:$AW$2531,27,FALSE),0) -> 222 | AD15: =IFERROR(VLOOKUP($A15,Filtro!$A$5:$AW$2531,28,FALSE),0) -> 1749 | DB15: 0 | DC15: 0 | DF15: 0 | DG15: 0 | DH15: 0 | DI15: 0 | DJ15: 0 | DK15: 0 | DL15: 0 | DM15: 0 | DN15: 0 | DO15: 0 | DP15: 0 | DQ15: 0
A16: 01501050 | B16: POST PARTO | C16: MÉDICO/A | D16: 2 | E16: =IFERROR(VLOOKUP($A16,Filtro!$A$5:$AW$2531,3,FALSE),0) -> 0 | F16: =IFERROR(VLOOKUP($A16,Filtro!$A$5:$AW$2531,4,FALSE),0) -> 0 | G16: =IFERROR(VLOOKUP($A16,Filtro!$A$5:$AW$2531,5,FALSE),0) -> 0 | H16: =IFERROR(VLOOKUP($A16,Filtro!$A$5:$AW$2531,6,FALSE),0) -> 0 | I16: =IFERROR(VLOOKUP($A16,Filtro!$A$5:$AW$2531,7,FALSE),0) -> 1 | J16: =IFERROR(VLOOKUP($A16,Filtro!$A$5:$AW$2531,8,FALSE),0) -> 0 | K16: =IFERROR(VLOOKUP($A16,Filtro!$A$5:$AW$2531,9,FALSE),0) -> 0 | L16: =IFERROR(VLOOKUP($A16,Filtro!$A$5:$AW$2531,10,FALSE),0) -> 1 | M16: =IFERROR(VLOOKUP($A16,Filtro!$A$5:$AW$2531,11,FALSE),0) -> 0 | N16: =IFERROR(VLOOKUP($A16,Filtro!$A$5:$AW$2531,12,FALSE),0) -> 0 | O16: =IFERROR(VLOOKUP($A16,Filtro!$A$5:$AW$2531,13,FALSE),0) -> 0 | P16: =IFERROR(VLOOKUP($A16,Filtro!$A$5:$AW$2531,14,FALSE),0) -> 0 | Q16: =IFERROR(VLOOKUP($A16,Filtro!$A$5:$AW$2531,15,FALSE),0) -> 0 | R16: =IFERROR(VLOOKUP($A16,Filtro!$A$5:$AW$2531,16,FALSE),0) -> 0 | S16: =IFERROR(VLOOKUP($A16,Filtro!$A$5:$AW$2531,17,FALSE),0) -> 0 | T16: =IFERROR(VLOOKUP($A16,Filtro!$A$5:$AW$2531,18,FALSE),0) -> 0 | U16: =IFERROR(VLOOKUP($A16,Filtro!$A$5:$AW$2531,19,FALSE),0) -> 0 | V16: =IFERROR(VLOOKUP($A16,Filtro!$A$5:$AW$2531,20,FALSE),0) -> 0 | W16: =IFERROR(VLOOKUP($A16,Filtro!$A$5:$AW$2531,21,FALSE),0) -> 2 | X16: =IFERROR(VLOOKUP($A16,Filtro!$A$5:$AW$2531,22,FALSE),0) -> 0 | Y16: =IFERROR(VLOOKUP($A16,Filtro!$A$5:$AW$2531,23,FALSE),0) -> 0 | Z16: =IFERROR(VLOOKUP($A16,Filtro!$A$5:$AW$2531,24,FALSE),0) -> 0 | AA16: =IFERROR(VLOOKUP($A16,Filtro!$A$5:$AW$2531,25,FALSE),0) -> 0 | AB16: =IFERROR(VLOOKUP($A16,Filtro!$A$5:$AW$2531,26,FALSE),0) -> 0 | AC16: =IFERROR(VLOOKUP($A16,Filtro!$A$5:$AW$2531,27,FALSE),0) -> 0 | AD16: =IFERROR(VLOOKUP($A16,Filtro!$A$5:$AW$2531,28,FALSE),0) -> 0 | DB16: 0 | DF16: 0 | DG16: 0 | DH16: 0 | DI16: 0 | DJ16: 0 | DK16: 0 | DL16: 0 | DM16: 0 | DN16: 0 | DO16: 0 | DP16: 0 | DQ16: 0
A17: 01501060 | C17: MATRONA/ÓN | D17: 286 | E17: =IFERROR(VLOOKUP($A17,Filtro!$A$5:$AW$2531,3,FALSE),0) -> 0 | F17: =IFERROR(VLOOKUP($A17,Filtro!$A$5:$AW$2531,4,FALSE),0) -> 0 | G17: =IFERROR(VLOOKUP($A17,Filtro!$A$5:$AW$2531,5,FALSE),0) -> 0 | H17: =IFERROR(VLOOKUP($A17,Filtro!$A$5:$AW$2531,6,FALSE),0) -> 10 | I17: =IFERROR(VLOOKUP($A17,Filtro!$A$5:$AW$2531,7,FALSE),0) -> 63 | J17: =IFERROR(VLOOKUP($A17,Filtro!$A$5:$AW$2531,8,FALSE),0) -> 72 | K17: =IFERROR(VLOOKUP($A17,Filtro!$A$5:$AW$2531,9,FALSE),0) -> 78 | L17: =IFERROR(VLOOKUP($A17,Filtro!$A$5:$AW$2531,10,FALSE),0) -> 47 | M17: =IFERROR(VLOOKUP($A17,Filtro!$A$5:$AW$2531,11,FALSE),0) -> 14 | N17: =IFERROR(VLOOKUP($A17,Filtro!$A$5:$AW$2531,12,FALSE),0) -> 1 | O17: =IFERROR(VLOOKUP($A17,Filtro!$A$5:$AW$2531,13,FALSE),0) -> 0 | P17: =IFERROR(VLOOKUP($A17,Filtro!$A$5:$AW$2531,14,FALSE),0) -> 1 | Q17: =IFERROR(VLOOKUP($A17,Filtro!$A$5:$AW$2531,15,FALSE),0) -> 0 | R17: =IFERROR(VLOOKUP($A17,Filtro!$A$5:$AW$2531,16,FALSE),0) -> 0 | S17: =IFERROR(VLOOKUP($A17,Filtro!$A$5:$AW$2531,17,FALSE),0) -> 0 | T17: =IFERROR(VLOOKUP($A17,Filtro!$A$5:$AW$2531,18,FALSE),0) -> 0 | U17: =IFERROR(VLOOKUP($A17,Filtro!$A$5:$AW$2531,19,FALSE),0) -> 0 | V17: =IFERROR(VLOOKUP($A17,Filtro!$A$5:$AW$2531,20,FALSE),0) -> 0 | W17: =IFERROR(VLOOKUP($A17,Filtro!$A$5:$AW$2531,21,FALSE),0) -> 286 | X17: =IFERROR(VLOOKUP($A17,Filtro!$A$5:$AW$2531,22,FALSE),0) -> 0 | Y17: =IFERROR(VLOOKUP($A17,Filtro!$A$5:$AW$2531,23,FALSE),0) -> 0 | Z17: =IFERROR(VLOOKUP($A17,Filtro!$A$5:$AW$2531,24,FALSE),0) -> 0 | AA17: =IFERROR(VLOOKUP($A17,Filtro!$A$5:$AW$2531,25,FALSE),0) -> 1 | AB17: =IFERROR(VLOOKUP($A17,Filtro!$A$5:$AW$2531,26,FALSE),0) -> 0 | AC17: =IFERROR(VLOOKUP($A17,Filtro!$A$5:$AW$2531,27,FALSE),0) -> 2 | AD17: =IFERROR(VLOOKUP($A17,Filtro!$A$5:$AW$2531,28,FALSE),0) -> 20 | DB17: 0 | DF17: 0 | DG17: 0 | DH17: 0 | DI17: 0 | DJ17: 0 | DK17: 0 | DL17: 0 | DM17: 0 | DN17: 0 | DO17: 0 | DP17: 0 | DQ17: 0
A18: 01501070 | B18: POST ABORTO | C18: MÉDICO/A | D18: 3 | E18: =IFERROR(VLOOKUP($A18,Filtro!$A$5:$AW$2531,3,FALSE),0) -> 0 | F18: =IFERROR(VLOOKUP($A18,Filtro!$A$5:$AW$2531,4,FALSE),0) -> 0 | G18: =IFERROR(VLOOKUP($A18,Filtro!$A$5:$AW$2531,5,FALSE),0) -> 0 | H18: =IFERROR(VLOOKUP($A18,Filtro!$A$5:$AW$2531,6,FALSE),0) -> 0 | I18: =IFERROR(VLOOKUP($A18,Filtro!$A$5:$AW$2531,7,FALSE),0) -> 0 | J18: =IFERROR(VLOOKUP($A18,Filtro!$A$5:$AW$2531,8,FALSE),0) -> 1 | K18: =IFERROR(VLOOKUP($A18,Filtro!$A$5:$AW$2531,9,FALSE),0) -> 0 | L18: =IFERROR(VLOOKUP($A18,Filtro!$A$5:$AW$2531,10,FALSE),0) -> 2 | M18: =IFERROR(VLOOKUP($A18,Filtro!$A$5:$AW$2531,11,FALSE),0) -> 0 | N18: =IFERROR(VLOOKUP($A18,Filtro!$A$5:$AW$2531,12,FALSE),0) -> 0 | O18: =IFERROR(VLOOKUP($A18,Filtro!$A$5:$AW$2531,13,FALSE),0) -> 0 | P18: =IFERROR(VLOOKUP($A18,Filtro!$A$5:$AW$2531,14,FALSE),0) -> 0 | Q18: =IFERROR(VLOOKUP($A18,Filtro!$A$5:$AW$2531,15,FALSE),0) -> 0 | R18: =IFERROR(VLOOKUP($A18,Filtro!$A$5:$AW$2531,16,FALSE),0) -> 0 | S18: =IFERROR(VLOOKUP($A18,Filtro!$A$5:$AW$2531,17,FALSE),0) -> 0 | T18: =IFERROR(VLOOKUP($A18,Filtro!$A$5:$AW$2531,18,FALSE),0) -> 0 | U18: =IFERROR(VLOOKUP($A18,Filtro!$A$5:$AW$2531,19,FALSE),0) -> 0 | V18: =IFERROR(VLOOKUP($A18,Filtro!$A$5:$AW$2531,20,FALSE),0) -> 0 | W18: =IFERROR(VLOOKUP($A18,Filtro!$A$5:$AW$2531,21,FALSE),0) -> 3 | X18: =IFERROR(VLOOKUP($A18,Filtro!$A$5:$AW$2531,22,FALSE),0) -> 0 | Y18: =IFERROR(VLOOKUP($A18,Filtro!$A$5:$AW$2531,23,FALSE),0) -> 0 | Z18: =IFERROR(VLOOKUP($A18,Filtro!$A$5:$AW$2531,24,FALSE),0) -> 0 | AA18: =IFERROR(VLOOKUP($A18,Filtro!$A$5:$AW$2531,25,FALSE),0) -> 0 | AB18: =IFERROR(VLOOKUP($A18,Filtro!$A$5:$AW$2531,26,FALSE),0) -> 0 | AC18: =IFERROR(VLOOKUP($A18,Filtro!$A$5:$AW$2531,27,FALSE),0) -> 0 | AD18: =IFERROR(VLOOKUP($A18,Filtro!$A$5:$AW$2531,28,FALSE),0) -> 0 | DB18: 0 | DF18: 0 | DG18: 0 | DH18: 0 | DI18: 0 | DJ18: 0 | DK18: 0 | DL18: 0 | DM18: 0 | DN18: 0 | DO18: 0 | DP18: 0 | DQ18: 0
A19: 01501080 | C19: MATRONA/ÓN | D19: 107 | E19: =IFERROR(VLOOKUP($A19,Filtro!$A$5:$AW$2531,3,FALSE),0) -> 0 | F19: =IFERROR(VLOOKUP($A19,Filtro!$A$5:$AW$2531,4,FALSE),0) -> 0 | G19: =IFERROR(VLOOKUP($A19,Filtro!$A$5:$AW$2531,5,FALSE),0) -> 0 | H19: =IFERROR(VLOOKUP($A19,Filtro!$A$5:$AW$2531,6,FALSE),0) -> 7 | I19: =IFERROR(VLOOKUP($A19,Filtro!$A$5:$AW$2531,7,FALSE),0) -> 20 | J19: =IFERROR(VLOOKUP($A19,Filtro!$A$5:$AW$2531,8,FALSE),0) -> 13 | K19: =IFERROR(VLOOKUP($A19,Filtro!$A$5:$AW$2531,9,FALSE),0) -> 33 | L19: =IFERROR(VLOOKUP($A19,Filtro!$A$5:$AW$2531,10,FALSE),0) -> 24 | M19: =IFERROR(VLOOKUP($A19,Filtro!$A$5:$AW$2531,11,FALSE),0) -> 8 | N19: =IFERROR(VLOOKUP($A19,Filtro!$A$5:$AW$2531,12,FALSE),0) -> 2 | O19: =IFERROR(VLOOKUP($A19,Filtro!$A$5:$AW$2531,13,FALSE),0) -> 0 | P19: =IFERROR(VLOOKUP($A19,Filtro!$A$5:$AW$2531,14,FALSE),0) -> 0 | Q19: =IFERROR(VLOOKUP($A19,Filtro!$A$5:$AW$2531,15,FALSE),0) -> 0 | R19: =IFERROR(VLOOKUP($A19,Filtro!$A$5:$AW$2531,16,FALSE),0) -> 0 | S19: =IFERROR(VLOOKUP($A19,Filtro!$A$5:$AW$2531,17,FALSE),0) -> 0 | T19: =IFERROR(VLOOKUP($A19,Filtro!$A$5:$AW$2531,18,FALSE),0) -> 0 | U19: =IFERROR(VLOOKUP($A19,Filtro!$A$5:$AW$2531,19,FALSE),0) -> 0 | V19: =IFERROR(VLOOKUP($A19,Filtro!$A$5:$AW$2531,20,FALSE),0) -> 0 | W19: =IFERROR(VLOOKUP($A19,Filtro!$A$5:$AW$2531,21,FALSE),0) -> 101 | X19: =IFERROR(VLOOKUP($A19,Filtro!$A$5:$AW$2531,22,FALSE),0) -> 0 | Y19: =IFERROR(VLOOKUP($A19,Filtro!$A$5:$AW$2531,23,FALSE),0) -> 0 | Z19: =IFERROR(VLOOKUP($A19,Filtro!$A$5:$AW$2531,24,FALSE),0) -> 0 | AA19: =IFERROR(VLOOKUP($A19,Filtro!$A$5:$AW$2531,25,FALSE),0) -> 0 | AB19: =IFERROR(VLOOKUP($A19,Filtro!$A$5:$AW$2531,26,FALSE),0) -> 0 | AC19: =IFERROR(VLOOKUP($A19,Filtro!$A$5:$AW$2531,27,FALSE),0) -> 2 | AD19: =IFERROR(VLOOKUP($A19,Filtro!$A$5:$AW$2531,28,FALSE),0) -> 6 | DB19: 0 | DF19: 0 | DG19: 0 | DH19: 0 | DI19: 0 | DJ19: 0 | DK19: 0 | DL19: 0 | DM19: 0 | DN19: 0 | DO19: 0 | DP19: 0 | DQ19: 0
A20: 01110106 | B20: PUÉRPERA CON RECIÉN NACIDO HASTA 10 DÍAS DE VIDA | C20: MÉDICO/A | D20: 38 | E20: =IFERROR(VLOOKUP($A20,Filtro!$A$5:$AW$2531,3,FALSE),0) -> 0 | F20: =IFERROR(VLOOKUP($A20,Filtro!$A$5:$AW$2531,4,FALSE),0) -> 0 | G20: =IFERROR(VLOOKUP($A20,Filtro!$A$5:$AW$2531,5,FALSE),0) -> 0 | H20: =IFERROR(VLOOKUP($A20,Filtro!$A$5:$AW$2531,6,FALSE),0) -> 2 | I20: =IFERROR(VLOOKUP($A20,Filtro!$A$5:$AW$2531,7,FALSE),0) -> 8 | J20: =IFERROR(VLOOKUP($A20,Filtro!$A$5:$AW$2531,8,FALSE),0) -> 10 | K20: =IFERROR(VLOOKUP($A20,Filtro!$A$5:$AW$2531,9,FALSE),0) -> 7 | L20: =IFERROR(VLOOKUP($A20,Filtro!$A$5:$AW$2531,10,FALSE),0) -> 6 | M20: =IFERROR(VLOOKUP($A20,Filtro!$A$5:$AW$2531,11,FALSE),0) -> 5 | N20: =IFERROR(VLOOKUP($A20,Filtro!$A$5:$AW$2531,12,FALSE),0) -> 0 | O20: =IFERROR(VLOOKUP($A20,Filtro!$A$5:$AW$2531,13,FALSE),0) -> 0 | P20: =IFERROR(VLOOKUP($A20,Filtro!$A$5:$AW$2531,14,FALSE),0) -> 0 | Q20: =IFERROR(VLOOKUP($A20,Filtro!$A$5:$AW$2531,15,FALSE),0) -> 0 | R20: =IFERROR(VLOOKUP($A20,Filtro!$A$5:$AW$2531,16,FALSE),0) -> 0 | S20: =IFERROR(VLOOKUP($A20,Filtro!$A$5:$AW$2531,17,FALSE),0) -> 0 | T20: =IFERROR(VLOOKUP($A20,Filtro!$A$5:$AW$2531,18,FALSE),0) -> 0 | U20: =IFERROR(VLOOKUP($A20,Filtro!$A$5:$AW$2531,19,FALSE),0) -> 0 | V20: =IFERROR(VLOOKUP($A20,Filtro!$A$5:$AW$2531,20,FALSE),0) -> 0 | W20: =IFERROR(VLOOKUP($A20,Filtro!$A$5:$AW$2531,21,FALSE),0) -> 35 | X20: =IFERROR(VLOOKUP($A20,Filtro!$A$5:$AW$2531,22,FALSE),0) -> 1 | Y20: =IFERROR(VLOOKUP($A20,Filtro!$A$5:$AW$2531,23,FALSE),0) -> 19 | Z20: =IFERROR(VLOOKUP($A20,Filtro!$A$5:$AW$2531,24,FALSE),0) -> 0 | AA20: =IFERROR(VLOOKUP($A20,Filtro!$A$5:$AW$2531,25,FALSE),0) -> 0 | AB20: =IFERROR(VLOOKUP($A20,Filtro!$A$5:$AW$2531,26,FALSE),0) -> 0 | AC20: =IFERROR(VLOOKUP($A20,Filtro!$A$5:$AW$2531,27,FALSE),0) -> 1 | AD20: =IFERROR(VLOOKUP($A20,Filtro!$A$5:$AW$2531,28,FALSE),0) -> 4 | CE20: =IF(AND(D20<>0,'A05'!D81=""),"* No olvide registrar ingresos a control de salud de los respectivos RN, en REM A05-sección E. ","") -> * No olvide registrar ingresos a control de salud de los respectivos RN, en REM A05-sección E. | DB20: 0 | DC20: 0 | DD20: 0 | DF20: 0 | DG20: 0 | DH20: 0 | DI20: 0 | DJ20: 0 | DK20: 0 | DL20: 0 | DM20: 0 | DN20: 0 | DO20: 0 | DP20: 0 | DQ20: 0
A21: 01110107 | C21: MATRONA/ÓN | D21: 2036 | E21: =IFERROR(VLOOKUP($A21,Filtro!$A$5:$AW$2531,3,FALSE),0) -> 0 | F21: =IFERROR(VLOOKUP($A21,Filtro!$A$5:$AW$2531,4,FALSE),0) -> 0 | G21: =IFERROR(VLOOKUP($A21,Filtro!$A$5:$AW$2531,5,FALSE),0) -> 5 | H21: =IFERROR(VLOOKUP($A21,Filtro!$A$5:$AW$2531,6,FALSE),0) -> 103 | I21: =IFERROR(VLOOKUP($A21,Filtro!$A$5:$AW$2531,7,FALSE),0) -> 408 | J21: =IFERROR(VLOOKUP($A21,Filtro!$A$5:$AW$2531,8,FALSE),0) -> 591 | K21: =IFERROR(VLOOKUP($A21,Filtro!$A$5:$AW$2531,9,FALSE),0) -> 554 | L21: =IFERROR(VLOOKUP($A21,Filtro!$A$5:$AW$2531,10,FALSE),0) -> 279 | M21: =IFERROR(VLOOKUP($A21,Filtro!$A$5:$AW$2531,11,FALSE),0) -> 92 | N21: =IFERROR(VLOOKUP($A21,Filtro!$A$5:$AW$2531,12,FALSE),0) -> 3 | O21: =IFERROR(VLOOKUP($A21,Filtro!$A$5:$AW$2531,13,FALSE),0) -> 0 | P21: =IFERROR(VLOOKUP($A21,Filtro!$A$5:$AW$2531,14,FALSE),0) -> 1 | Q21: =IFERROR(VLOOKUP($A21,Filtro!$A$5:$AW$2531,15,FALSE),0) -> 0 | R21: =IFERROR(VLOOKUP($A21,Filtro!$A$5:$AW$2531,16,FALSE),0) -> 0 | S21: =IFERROR(VLOOKUP($A21,Filtro!$A$5:$AW$2531,17,FALSE),0) -> 0 | T21: =IFERROR(VLOOKUP($A21,Filtro!$A$5:$AW$2531,18,FALSE),0) -> 0 | U21: =IFERROR(VLOOKUP($A21,Filtro!$A$5:$AW$2531,19,FALSE),0) -> 0 | V21: =IFERROR(VLOOKUP($A21,Filtro!$A$5:$AW$2531,20,FALSE),0) -> 0 | W21: =IFERROR(VLOOKUP($A21,Filtro!$A$5:$AW$2531,21,FALSE),0) -> 2009 | X21: =IFERROR(VLOOKUP($A21,Filtro!$A$5:$AW$2531,22,FALSE),0) -> 342 | Y21: =IFERROR(VLOOKUP($A21,Filtro!$A$5:$AW$2531,23,FALSE),0) -> 936 | Z21: =IFERROR(VLOOKUP($A21,Filtro!$A$5:$AW$2531,24,FALSE),0) -> 0 | AA21: =IFERROR(VLOOKUP($A21,Filtro!$A$5:$AW$2531,25,FALSE),0) -> 2 | AB21: =IFERROR(VLOOKUP($A21,Filtro!$A$5:$AW$2531,26,FALSE),0) -> 1 | AC21: =IFERROR(VLOOKUP($A21,Filtro!$A$5:$AW$2531,27,FALSE),0) -> 15 | AD21: =IFERROR(VLOOKUP($A21,Filtro!$A$5:$AW$2531,28,FALSE),0) -> 134 | CE21: =IF(AND(D21<>0,'A05'!D81=""),"* No olvide registrar ingresos a control de salud de los respectivos RN, en REM A05-sección E. ","") -> * No olvide registrar ingresos a control de salud de los respectivos RN, en REM A05-sección E. | DB21: 0 | DC21: 0 | DD21: 0 | DF21: 0 | DG21: 0 | DH21: 0 | DI21: 0 | DJ21: 0 | DK21: 0 | DL21: 0 | DM21: 0 | DN21: 0 | DO21: 0 | DP21: 0 | DQ21: 0
A22: 01080030 | B22: PUÉRPERA CON RECIÉN NACIDO ENTRE 11 y 28 DÍAS | C22: MÉDICO/A | D22: 5 | E22: =IFERROR(VLOOKUP($A22,Filtro!$A$5:$AW$2531,3,FALSE),0) -> 0 | F22: =IFERROR(VLOOKUP($A22,Filtro!$A$5:$AW$2531,4,FALSE),0) -> 0 | G22: =IFERROR(VLOOKUP($A22,Filtro!$A$5:$AW$2531,5,FALSE),0) -> 0 | H22: =IFERROR(VLOOKUP($A22,Filtro!$A$5:$AW$2531,6,FALSE),0) -> 0 | I22: =IFERROR(VLOOKUP($A22,Filtro!$A$5:$AW$2531,7,FALSE),0) -> 1 | J22: =IFERROR(VLOOKUP($A22,Filtro!$A$5:$AW$2531,8,FALSE),0) -> 2 | K22: =IFERROR(VLOOKUP($A22,Filtro!$A$5:$AW$2531,9,FALSE),0) -> 2 | L22: =IFERROR(VLOOKUP($A22,Filtro!$A$5:$AW$2531,10,FALSE),0) -> 0 | M22: =IFERROR(VLOOKUP($A22,Filtro!$A$5:$AW$2531,11,FALSE),0) -> 0 | N22: =IFERROR(VLOOKUP($A22,Filtro!$A$5:$AW$2531,12,FALSE),0) -> 0 | O22: =IFERROR(VLOOKUP($A22,Filtro!$A$5:$AW$2531,13,FALSE),0) -> 0 | P22: =IFERROR(VLOOKUP($A22,Filtro!$A$5:$AW$2531,14,FALSE),0) -> 0 | Q22: =IFERROR(VLOOKUP($A22,Filtro!$A$5:$AW$2531,15,FALSE),0) -> 0 | R22: =IFERROR(VLOOKUP($A22,Filtro!$A$5:$AW$2531,16,FALSE),0) -> 0 | S22: =IFERROR(VLOOKUP($A22,Filtro!$A$5:$AW$2531,17,FALSE),0) -> 0 | T22: =IFERROR(VLOOKUP($A22,Filtro!$A$5:$AW$2531,18,FALSE),0) -> 0 | U22: =IFERROR(VLOOKUP($A22,Filtro!$A$5:$AW$2531,19,FALSE),0) -> 0 | V22: =IFERROR(VLOOKUP($A22,Filtro!$A$5:$AW$2531,20,FALSE),0) -> 0 | W22: =IFERROR(VLOOKUP($A22,Filtro!$A$5:$AW$2531,21,FALSE),0) -> 4 | X22: =IFERROR(VLOOKUP($A22,Filtro!$A$5:$AW$2531,22,FALSE),0) -> 1 | Y22: =IFERROR(VLOOKUP($A22,Filtro!$A$5:$AW$2531,23,FALSE),0) -> 2 | Z22: =IFERROR(VLOOKUP($A22,Filtro!$A$5:$AW$2531,24,FALSE),0) -> 0 | AA22: =IFERROR(VLOOKUP($A22,Filtro!$A$5:$AW$2531,25,FALSE),0) -> 0 | AB22: =IFERROR(VLOOKUP($A22,Filtro!$A$5:$AW$2531,26,FALSE),0) -> 0 | AC22: =IFERROR(VLOOKUP($A22,Filtro!$A$5:$AW$2531,27,FALSE),0) -> 0 | AD22: =IFERROR(VLOOKUP($A22,Filtro!$A$5:$AW$2531,28,FALSE),0) -> 0 | CE22: =IF(AND(D22<>0,'A05'!D81=""),"* No olvide registrar ingresos a control de salud de los respectivos RN, en REM A05-sección E. ","") -> * No olvide registrar ingresos a control de salud de los respectivos RN, en REM A05-sección E. | DB22: 0 | DC22: 0 | DD22: 0 | DF22: 0 | DG22: 0 | DH22: 0 | DI22: 0 | DJ22: 0 | DK22: 0 | DL22: 0 | DM22: 0 | DN22: 0 | DO22: 0 | DP22: 0 | DQ22: 0
A23: 01080040 | C23: MATRONA/ÓN | D23: 1066 | E23: =IFERROR(VLOOKUP($A23,Filtro!$A$5:$AW$2531,3,FALSE),0) -> 0 | F23: =IFERROR(VLOOKUP($A23,Filtro!$A$5:$AW$2531,4,FALSE),0) -> 0 | G23: =IFERROR(VLOOKUP($A23,Filtro!$A$5:$AW$2531,5,FALSE),0) -> 1 | H23: =IFERROR(VLOOKUP($A23,Filtro!$A$5:$AW$2531,6,FALSE),0) -> 68 | I23: =IFERROR(VLOOKUP($A23,Filtro!$A$5:$AW$2531,7,FALSE),0) -> 202 | J23: =IFERROR(VLOOKUP($A23,Filtro!$A$5:$AW$2531,8,FALSE),0) -> 310 | K23: =IFERROR(VLOOKUP($A23,Filtro!$A$5:$AW$2531,9,FALSE),0) -> 276 | L23: =IFERROR(VLOOKUP($A23,Filtro!$A$5:$AW$2531,10,FALSE),0) -> 159 | M23: =IFERROR(VLOOKUP($A23,Filtro!$A$5:$AW$2531,11,FALSE),0) -> 48 | N23: =IFERROR(VLOOKUP($A23,Filtro!$A$5:$AW$2531,12,FALSE),0) -> 1 | O23: =IFERROR(VLOOKUP($A23,Filtro!$A$5:$AW$2531,13,FALSE),0) -> 0 | P23: =IFERROR(VLOOKUP($A23,Filtro!$A$5:$AW$2531,14,FALSE),0) -> 1 | Q23: =IFERROR(VLOOKUP($A23,Filtro!$A$5:$AW$2531,15,FALSE),0) -> 0 | R23: =IFERROR(VLOOKUP($A23,Filtro!$A$5:$AW$2531,16,FALSE),0) -> 0 | S23: =IFERROR(VLOOKUP($A23,Filtro!$A$5:$AW$2531,17,FALSE),0) -> 0 | T23: =IFERROR(VLOOKUP($A23,Filtro!$A$5:$AW$2531,18,FALSE),0) -> 0 | U23: =IFERROR(VLOOKUP($A23,Filtro!$A$5:$AW$2531,19,FALSE),0) -> 0 | V23: =IFERROR(VLOOKUP($A23,Filtro!$A$5:$AW$2531,20,FALSE),0) -> 0 | W23: =IFERROR(VLOOKUP($A23,Filtro!$A$5:$AW$2531,21,FALSE),0) -> 1043 | X23: =IFERROR(VLOOKUP($A23,Filtro!$A$5:$AW$2531,22,FALSE),0) -> 159 | Y23: =IFERROR(VLOOKUP($A23,Filtro!$A$5:$AW$2531,23,FALSE),0) -> 348 | Z23: =IFERROR(VLOOKUP($A23,Filtro!$A$5:$AW$2531,24,FALSE),0) -> 0 | AA23: =IFERROR(VLOOKUP($A23,Filtro!$A$5:$AW$2531,25,FALSE),0) -> 2 | AB23: =IFERROR(VLOOKUP($A23,Filtro!$A$5:$AW$2531,26,FALSE),0) -> 0 | AC23: =IFERROR(VLOOKUP($A23,Filtro!$A$5:$AW$2531,27,FALSE),0) -> 9 | AD23: =IFERROR(VLOOKUP($A23,Filtro!$A$5:$AW$2531,28,FALSE),0) -> 48 | CE23: =IF(AND(D23<>0,'A05'!D81=""),"* No olvide registrar ingresos a control de salud de los respectivos RN, en REM A05-sección E. ","") -> * No olvide registrar ingresos a control de salud de los respectivos RN, en REM A05-sección E. | DB23: 0 | DC23: 0 | DD23: 0 | DF23: 0 | DG23: 0 | DH23: 0 | DI23: 0 | DJ23: 0 | DK23: 0 | DL23: 0 | DM23: 0 | DN23: 0 | DO23: 0 | DP23: 0 | DQ23: 0
A24: 01501090 | B24: RECIÉN NACIDO HASTA 10 DÍAS DE VIDA | C24: MÉDICO | D24: =SUM(E24) -> 0 | E24: =IFERROR(VLOOKUP($A24,Filtro!$A$5:$AW$2531,3,FALSE),0) -> 0 | F24: =IFERROR(VLOOKUP($A24,Filtro!$A$5:$AW$2531,4,FALSE),0) -> 0 | G24: =IFERROR(VLOOKUP($A24,Filtro!$A$5:$AW$2531,5,FALSE),0) -> 0 | H24: =IFERROR(VLOOKUP($A24,Filtro!$A$5:$AW$2531,6,FALSE),0) -> 0 | I24: =IFERROR(VLOOKUP($A24,Filtro!$A$5:$AW$2531,7,FALSE),0) -> 0 | J24: =IFERROR(VLOOKUP($A24,Filtro!$A$5:$AW$2531,8,FALSE),0) -> 0 | K24: =IFERROR(VLOOKUP($A24,Filtro!$A$5:$AW$2531,9,FALSE),0) -> 0 | L24: =IFERROR(VLOOKUP($A24,Filtro!$A$5:$AW$2531,10,FALSE),0) -> 0 | M24: =IFERROR(VLOOKUP($A24,Filtro!$A$5:$AW$2531,11,FALSE),0) -> 0 | N24: =IFERROR(VLOOKUP($A24,Filtro!$A$5:$AW$2531,12,FALSE),0) -> 0 | O24: =IFERROR(VLOOKUP($A24,Filtro!$A$5:$AW$2531,13,FALSE),0) -> 0 | P24: =IFERROR(VLOOKUP($A24,Filtro!$A$5:$AW$2531,14,FALSE),0) -> 0 | Q24: =IFERROR(VLOOKUP($A24,Filtro!$A$5:$AW$2531,15,FALSE),0) -> 0 | R24: =IFERROR(VLOOKUP($A24,Filtro!$A$5:$AW$2531,16,FALSE),0) -> 0 | S24: =IFERROR(VLOOKUP($A24,Filtro!$A$5:$AW$2531,17,FALSE),0) -> 0 | T24: =IFERROR(VLOOKUP($A24,Filtro!$A$5:$AW$2531,18,FALSE),0) -> 0 | U24: =IFERROR(VLOOKUP($A24,Filtro!$A$5:$AW$2531,19,FALSE),0) -> 0 | V24: =IFERROR(VLOOKUP($A24,Filtro!$A$5:$AW$2531,20,FALSE),0) -> 0 | W24: =IFERROR(VLOOKUP($A24,Filtro!$A$5:$AW$2531,21,FALSE),0) -> 0 | X24: =IFERROR(VLOOKUP($A24,Filtro!$A$5:$AW$2531,22,FALSE),0) -> 0 | Y24: =IFERROR(VLOOKUP($A24,Filtro!$A$5:$AW$2531,23,FALSE),0) -> 0 | Z24: =IFERROR(VLOOKUP($A24,Filtro!$A$5:$AW$2531,24,FALSE),0) -> 0 | AA24: =IFERROR(VLOOKUP($A24,Filtro!$A$5:$AW$2531,25,FALSE),0) -> 0 | AB24: =IFERROR(VLOOKUP($A24,Filtro!$A$5:$AW$2531,26,FALSE),0) -> 0 | AC24: =IFERROR(VLOOKUP($A24,Filtro!$A$5:$AW$2531,27,FALSE),0) -> 0 | AD24: =IFERROR(VLOOKUP($A24,Filtro!$A$5:$AW$2531,28,FALSE),0) -> 0 | DB24: 0 | DF24: 0 | DG24: 0 | DH24: 0 | DI24: 0 | DJ24: 0 | DK24: 0 | DL24: 0 | DM24: 0 | DN24: 0 | DO24: 0 | DP24: 0 | DQ24: 0
A25: 01502000 | C25: MATRONA /ÓN | D25: =SUM(E25) -> 759 | E25: =IFERROR(VLOOKUP($A25,Filtro!$A$5:$AW$2531,3,FALSE),0) -> 759 | F25: =IFERROR(VLOOKUP($A25,Filtro!$A$5:$AW$2531,4,FALSE),0) -> 0 | G25: =IFERROR(VLOOKUP($A25,Filtro!$A$5:$AW$2531,5,FALSE),0) -> 0 | H25: =IFERROR(VLOOKUP($A25,Filtro!$A$5:$AW$2531,6,FALSE),0) -> 0 | I25: =IFERROR(VLOOKUP($A25,Filtro!$A$5:$AW$2531,7,FALSE),0) -> 0 | J25: =IFERROR(VLOOKUP($A25,Filtro!$A$5:$AW$2531,8,FALSE),0) -> 0 | K25: =IFERROR(VLOOKUP($A25,Filtro!$A$5:$AW$2531,9,FALSE),0) -> 0 | L25: =IFERROR(VLOOKUP($A25,Filtro!$A$5:$AW$2531,10,FALSE),0) -> 0 | M25: =IFERROR(VLOOKUP($A25,Filtro!$A$5:$AW$2531,11,FALSE),0) -> 0 | N25: =IFERROR(VLOOKUP($A25,Filtro!$A$5:$AW$2531,12,FALSE),0) -> 0 | O25: =IFERROR(VLOOKUP($A25,Filtro!$A$5:$AW$2531,13,FALSE),0) -> 0 | P25: =IFERROR(VLOOKUP($A25,Filtro!$A$5:$AW$2531,14,FALSE),0) -> 0 | Q25: =IFERROR(VLOOKUP($A25,Filtro!$A$5:$AW$2531,15,FALSE),0) -> 0 | R25: =IFERROR(VLOOKUP($A25,Filtro!$A$5:$AW$2531,16,FALSE),0) -> 0 | S25: =IFERROR(VLOOKUP($A25,Filtro!$A$5:$AW$2531,17,FALSE),0) -> 0 | T25: =IFERROR(VLOOKUP($A25,Filtro!$A$5:$AW$2531,18,FALSE),0) -> 0 | U25: =IFERROR(VLOOKUP($A25,Filtro!$A$5:$AW$2531,19,FALSE),0) -> 0 | V25: =IFERROR(VLOOKUP($A25,Filtro!$A$5:$AW$2531,20,FALSE),0) -> 335 | W25: =IFERROR(VLOOKUP($A25,Filtro!$A$5:$AW$2531,21,FALSE),0) -> 401 | X25: =IFERROR(VLOOKUP($A25,Filtro!$A$5:$AW$2531,22,FALSE),0) -> 186 | Y25: =IFERROR(VLOOKUP($A25,Filtro!$A$5:$AW$2531,23,FALSE),0) -> 357 | Z25: =IFERROR(VLOOKUP($A25,Filtro!$A$5:$AW$2531,24,FALSE),0) -> 0 | AA25: =IFERROR(VLOOKUP($A25,Filtro!$A$5:$AW$2531,25,FALSE),0) -> 1 | AB25: =IFERROR(VLOOKUP($A25,Filtro!$A$5:$AW$2531,26,FALSE),0) -> 0 | AC25: =IFERROR(VLOOKUP($A25,Filtro!$A$5:$AW$2531,27,FALSE),0) -> 1 | AD25: =IFERROR(VLOOKUP($A25,Filtro!$A$5:$AW$2531,28,FALSE),0) -> 8 | DB25: 0 | DF25: 0 | DG25: 0 | DH25: 0 | DI25: 0 | DJ25: 0 | DK25: 0 | DL25: 0 | DM25: 0 | DN25: 0 | DO25: 0 | DP25: 0 | DQ25: 0
A26: 01502010 | B26: RECIÉN NACIDO ENTRE 11 y 28 DÍAS | C26: MÉDICO | D26: =SUM(E26) -> 1 | E26: =IFERROR(VLOOKUP($A26,Filtro!$A$5:$AW$2531,3,FALSE),0) -> 1 | F26: =IFERROR(VLOOKUP($A26,Filtro!$A$5:$AW$2531,4,FALSE),0) -> 0 | G26: =IFERROR(VLOOKUP($A26,Filtro!$A$5:$AW$2531,5,FALSE),0) -> 0 | H26: =IFERROR(VLOOKUP($A26,Filtro!$A$5:$AW$2531,6,FALSE),0) -> 0 | I26: =IFERROR(VLOOKUP($A26,Filtro!$A$5:$AW$2531,7,FALSE),0) -> 0 | J26: =IFERROR(VLOOKUP($A26,Filtro!$A$5:$AW$2531,8,FALSE),0) -> 0 | K26: =IFERROR(VLOOKUP($A26,Filtro!$A$5:$AW$2531,9,FALSE),0) -> 0 | L26: =IFERROR(VLOOKUP($A26,Filtro!$A$5:$AW$2531,10,FALSE),0) -> 0 | M26: =IFERROR(VLOOKUP($A26,Filtro!$A$5:$AW$2531,11,FALSE),0) -> 0 | N26: =IFERROR(VLOOKUP($A26,Filtro!$A$5:$AW$2531,12,FALSE),0) -> 0 | O26: =IFERROR(VLOOKUP($A26,Filtro!$A$5:$AW$2531,13,FALSE),0) -> 0 | P26: =IFERROR(VLOOKUP($A26,Filtro!$A$5:$AW$2531,14,FALSE),0) -> 0 | Q26: =IFERROR(VLOOKUP($A26,Filtro!$A$5:$AW$2531,15,FALSE),0) -> 0 | R26: =IFERROR(VLOOKUP($A26,Filtro!$A$5:$AW$2531,16,FALSE),0) -> 0 | S26: =IFERROR(VLOOKUP($A26,Filtro!$A$5:$AW$2531,17,FALSE),0) -> 0 | T26: =IFERROR(VLOOKUP($A26,Filtro!$A$5:$AW$2531,18,FALSE),0) -> 0 | U26: =IFERROR(VLOOKUP($A26,Filtro!$A$5:$AW$2531,19,FALSE),0) -> 0 | V26: =IFERROR(VLOOKUP($A26,Filtro!$A$5:$AW$2531,20,FALSE),0) -> 0 | W26: =IFERROR(VLOOKUP($A26,Filtro!$A$5:$AW$2531,21,FALSE),0) -> 1 | X26: =IFERROR(VLOOKUP($A26,Filtro!$A$5:$AW$2531,22,FALSE),0) -> 0 | Y26: =IFERROR(VLOOKUP($A26,Filtro!$A$5:$AW$2531,23,FALSE),0) -> 0 | Z26: =IFERROR(VLOOKUP($A26,Filtro!$A$5:$AW$2531,24,FALSE),0) -> 0 | AA26: =IFERROR(VLOOKUP($A26,Filtro!$A$5:$AW$2531,25,FALSE),0) -> 0 | AB26: =IFERROR(VLOOKUP($A26,Filtro!$A$5:$AW$2531,26,FALSE),0) -> 0 | AC26: =IFERROR(VLOOKUP($A26,Filtro!$A$5:$AW$2531,27,FALSE),0) -> 0 | AD26: =IFERROR(VLOOKUP($A26,Filtro!$A$5:$AW$2531,28,FALSE),0) -> 0 | DB26: 0 | DF26: 0 | DG26: 0 | DH26: 0 | DI26: 0 | DJ26: 0 | DK26: 0 | DL26: 0 | DM26: 0 | DN26: 0 | DO26: 0 | DP26: 0 | DQ26: 0
A27: 01502020 | C27: MATRONA /ÓN | D27: =SUM(E27) -> 352 | E27: =IFERROR(VLOOKUP($A27,Filtro!$A$5:$AW$2531,3,FALSE),0) -> 352 | F27: =IFERROR(VLOOKUP($A27,Filtro!$A$5:$AW$2531,4,FALSE),0) -> 0 | G27: =IFERROR(VLOOKUP($A27,Filtro!$A$5:$AW$2531,5,FALSE),0) -> 0 | H27: =IFERROR(VLOOKUP($A27,Filtro!$A$5:$AW$2531,6,FALSE),0) -> 0 | I27: =IFERROR(VLOOKUP($A27,Filtro!$A$5:$AW$2531,7,FALSE),0) -> 0 | J27: =IFERROR(VLOOKUP($A27,Filtro!$A$5:$AW$2531,8,FALSE),0) -> 0 | K27: =IFERROR(VLOOKUP($A27,Filtro!$A$5:$AW$2531,9,FALSE),0) -> 0 | L27: =IFERROR(VLOOKUP($A27,Filtro!$A$5:$AW$2531,10,FALSE),0) -> 0 | M27: =IFERROR(VLOOKUP($A27,Filtro!$A$5:$AW$2531,11,FALSE),0) -> 0 | N27: =IFERROR(VLOOKUP($A27,Filtro!$A$5:$AW$2531,12,FALSE),0) -> 0 | O27: =IFERROR(VLOOKUP($A27,Filtro!$A$5:$AW$2531,13,FALSE),0) -> 0 | P27: =IFERROR(VLOOKUP($A27,Filtro!$A$5:$AW$2531,14,FALSE),0) -> 0 | Q27: =IFERROR(VLOOKUP($A27,Filtro!$A$5:$AW$2531,15,FALSE),0) -> 0 | R27: =IFERROR(VLOOKUP($A27,Filtro!$A$5:$AW$2531,16,FALSE),0) -> 0 | S27: =IFERROR(VLOOKUP($A27,Filtro!$A$5:$AW$2531,17,FALSE),0) -> 0 | T27: =IFERROR(VLOOKUP($A27,Filtro!$A$5:$AW$2531,18,FALSE),0) -> 0 | U27: =IFERROR(VLOOKUP($A27,Filtro!$A$5:$AW$2531,19,FALSE),0) -> 0 | V27: =IFERROR(VLOOKUP($A27,Filtro!$A$5:$AW$2531,20,FALSE),0) -> 161 | W27: =IFERROR(VLOOKUP($A27,Filtro!$A$5:$AW$2531,21,FALSE),0) -> 184 | X27: =IFERROR(VLOOKUP($A27,Filtro!$A$5:$AW$2531,22,FALSE),0) -> 56 | Y27: =IFERROR(VLOOKUP($A27,Filtro!$A$5:$AW$2531,23,FALSE),0) -> 101 | Z27: =IFERROR(VLOOKUP($A27,Filtro!$A$5:$AW$2531,24,FALSE),0) -> 1 | AA27: =IFERROR(VLOOKUP($A27,Filtro!$A$5:$AW$2531,25,FALSE),0) -> 3 | AB27: =IFERROR(VLOOKUP($A27,Filtro!$A$5:$AW$2531,26,FALSE),0) -> 1 | AC27: =IFERROR(VLOOKUP($A27,Filtro!$A$5:$AW$2531,27,FALSE),0) -> 1 | AD27: =IFERROR(VLOOKUP($A27,Filtro!$A$5:$AW$2531,28,FALSE),0) -> 7 | DB27: 0 | DF27: 0 | DG27: 0 | DH27: 0 | DI27: 0 | DJ27: 0 | DK27: 0 | DL27: 0 | DM27: 0 | DN27: 0 | DO27: 0 | DP27: 0 | DQ27: 0
A28: 01010601 | B28: GINECOLÓGICO | C28: MÉDICO/A | D28: =SUM(G28:U28) -> 770 | E28: =IFERROR(VLOOKUP($A28,Filtro!$A$5:$AW$2531,3,FALSE),0) -> 0 | F28: =IFERROR(VLOOKUP($A28,Filtro!$A$5:$AW$2531,4,FALSE),0) -> 0 | G28: =IFERROR(VLOOKUP($A28,Filtro!$A$5:$AW$2531,5,FALSE),0) -> 23 | H28: =IFERROR(VLOOKUP($A28,Filtro!$A$5:$AW$2531,6,FALSE),0) -> 47 | I28: =IFERROR(VLOOKUP($A28,Filtro!$A$5:$AW$2531,7,FALSE),0) -> 46 | J28: =IFERROR(VLOOKUP($A28,Filtro!$A$5:$AW$2531,8,FALSE),0) -> 60 | K28: =IFERROR(VLOOKUP($A28,Filtro!$A$5:$AW$2531,9,FALSE),0) -> 100 | L28: =IFERROR(VLOOKUP($A28,Filtro!$A$5:$AW$2531,10,FALSE),0) -> 103 | M28: =IFERROR(VLOOKUP($A28,Filtro!$A$5:$AW$2531,11,FALSE),0) -> 111 | N28: =IFERROR(VLOOKUP($A28,Filtro!$A$5:$AW$2531,12,FALSE),0) -> 71 | O28: =IFERROR(VLOOKUP($A28,Filtro!$A$5:$AW$2531,13,FALSE),0) -> 72 | P28: =IFERROR(VLOOKUP($A28,Filtro!$A$5:$AW$2531,14,FALSE),0) -> 68 | Q28: =IFERROR(VLOOKUP($A28,Filtro!$A$5:$AW$2531,15,FALSE),0) -> 18 | R28: =IFERROR(VLOOKUP($A28,Filtro!$A$5:$AW$2531,16,FALSE),0) -> 21 | S28: =IFERROR(VLOOKUP($A28,Filtro!$A$5:$AW$2531,17,FALSE),0) -> 19 | T28: =IFERROR(VLOOKUP($A28,Filtro!$A$5:$AW$2531,18,FALSE),0) -> 8 | U28: =IFERROR(VLOOKUP($A28,Filtro!$A$5:$AW$2531,19,FALSE),0) -> 3 | V28: =IFERROR(VLOOKUP($A28,Filtro!$A$5:$AW$2531,20,FALSE),0) -> 0 | W28: =IFERROR(VLOOKUP($A28,Filtro!$A$5:$AW$2531,21,FALSE),0) -> 845 | X28: =IFERROR(VLOOKUP($A28,Filtro!$A$5:$AW$2531,22,FALSE),0) -> 0 | Y28: =IFERROR(VLOOKUP($A28,Filtro!$A$5:$AW$2531,23,FALSE),0) -> 0 | Z28: =IFERROR(VLOOKUP($A28,Filtro!$A$5:$AW$2531,24,FALSE),0) -> 0 | AA28: =IFERROR(VLOOKUP($A28,Filtro!$A$5:$AW$2531,25,FALSE),0) -> 0 | AB28: =IFERROR(VLOOKUP($A28,Filtro!$A$5:$AW$2531,26,FALSE),0) -> 0 | AC28: =IFERROR(VLOOKUP($A28,Filtro!$A$5:$AW$2531,27,FALSE),0) -> 0 | AD28: =IFERROR(VLOOKUP($A28,Filtro!$A$5:$AW$2531,28,FALSE),0) -> 15 | DB28: 0 | DF28: 0 | DG28: 0 | DH28: 0 | DI28: 0 | DJ28: 0 | DK28: 0 | DL28: 0 | DM28: 0 | DN28: 0 | DO28: 0 | DP28: 0 | DQ28: 0
A29: 01010603 | C29: MATRONA/ÓN | D29: =SUM(G29:U29) -> 32074 | E29: =IFERROR(VLOOKUP($A29,Filtro!$A$5:$AW$2531,3,FALSE),0) -> 0 | F29: =IFERROR(VLOOKUP($A29,Filtro!$A$5:$AW$2531,4,FALSE),0) -> 0 | G29: =IFERROR(VLOOKUP($A29,Filtro!$A$5:$AW$2531,5,FALSE),0) -> 206 | H29: =IFERROR(VLOOKUP($A29,Filtro!$A$5:$AW$2531,6,FALSE),0) -> 451 | I29: =IFERROR(VLOOKUP($A29,Filtro!$A$5:$AW$2531,7,FALSE),0) -> 1386 | J29: =IFERROR(VLOOKUP($A29,Filtro!$A$5:$AW$2531,8,FALSE),0) -> 2649 | K29: =IFERROR(VLOOKUP($A29,Filtro!$A$5:$AW$2531,9,FALSE),0) -> 3228 | L29: =IFERROR(VLOOKUP($A29,Filtro!$A$5:$AW$2531,10,FALSE),0) -> 3373 | M29: =IFERROR(VLOOKUP($A29,Filtro!$A$5:$AW$2531,11,FALSE),0) -> 3761 | N29: =IFERROR(VLOOKUP($A29,Filtro!$A$5:$AW$2531,12,FALSE),0) -> 3870 | O29: =IFERROR(VLOOKUP($A29,Filtro!$A$5:$AW$2531,13,FALSE),0) -> 3989 | P29: =IFERROR(VLOOKUP($A29,Filtro!$A$5:$AW$2531,14,FALSE),0) -> 3665 | Q29: =IFERROR(VLOOKUP($A29,Filtro!$A$5:$AW$2531,15,FALSE),0) -> 2983 | R29: =IFERROR(VLOOKUP($A29,Filtro!$A$5:$AW$2531,16,FALSE),0) -> 1521 | S29: =IFERROR(VLOOKUP($A29,Filtro!$A$5:$AW$2531,17,FALSE),0) -> 630 | T29: =IFERROR(VLOOKUP($A29,Filtro!$A$5:$AW$2531,18,FALSE),0) -> 253 | U29: =IFERROR(VLOOKUP($A29,Filtro!$A$5:$AW$2531,19,FALSE),0) -> 109 | V29: =IFERROR(VLOOKUP($A29,Filtro!$A$5:$AW$2531,20,FALSE),0) -> 0 | W29: =IFERROR(VLOOKUP($A29,Filtro!$A$5:$AW$2531,21,FALSE),0) -> 31719 | X29: =IFERROR(VLOOKUP($A29,Filtro!$A$5:$AW$2531,22,FALSE),0) -> 0 | Y29: =IFERROR(VLOOKUP($A29,Filtro!$A$5:$AW$2531,23,FALSE),0) -> 0 | Z29: =IFERROR(VLOOKUP($A29,Filtro!$A$5:$AW$2531,24,FALSE),0) -> 26 | AA29: =IFERROR(VLOOKUP($A29,Filtro!$A$5:$AW$2531,25,FALSE),0) -> 6 | AB29: =IFERROR(VLOOKUP($A29,Filtro!$A$5:$AW$2531,26,FALSE),0) -> 1 | AC29: =IFERROR(VLOOKUP($A29,Filtro!$A$5:$AW$2531,27,FALSE),0) -> 134 | AD29: =IFERROR(VLOOKUP($A29,Filtro!$A$5:$AW$2531,28,FALSE),0) -> 1038 | DB29: 0 | DF29: 0 | DG29: 0 | DH29: 0 | DI29: 0 | DJ29: 0 | DK29: 0 | DL29: 0 | DM29: 0 | DN29: 0 | DO29: 0 | DP29: 0 | DQ29: 0
A30: 01010901 | B30: CLIMATERIO | C30: MÉDICO/A | D30: =SUM(N30:Q30) -> 247 | E30: =IFERROR(VLOOKUP($A30,Filtro!$A$5:$AW$2531,3,FALSE),0) -> 0 | F30: =IFERROR(VLOOKUP($A30,Filtro!$A$5:$AW$2531,4,FALSE),0) -> 0 | G30: =IFERROR(VLOOKUP($A30,Filtro!$A$5:$AW$2531,5,FALSE),0) -> 0 | H30: =IFERROR(VLOOKUP($A30,Filtro!$A$5:$AW$2531,6,FALSE),0) -> 0 | I30: =IFERROR(VLOOKUP($A30,Filtro!$A$5:$AW$2531,7,FALSE),0) -> 0 | J30: =IFERROR(VLOOKUP($A30,Filtro!$A$5:$AW$2531,8,FALSE),0) -> 0 | K30: =IFERROR(VLOOKUP($A30,Filtro!$A$5:$AW$2531,9,FALSE),0) -> 0 | L30: =IFERROR(VLOOKUP($A30,Filtro!$A$5:$AW$2531,10,FALSE),0) -> 0 | M30: =IFERROR(VLOOKUP($A30,Filtro!$A$5:$AW$2531,11,FALSE),0) -> 0 | N30: =IFERROR(VLOOKUP($A30,Filtro!$A$5:$AW$2531,12,FALSE),0) -> 75 | O30: =IFERROR(VLOOKUP($A30,Filtro!$A$5:$AW$2531,13,FALSE),0) -> 83 | P30: =IFERROR(VLOOKUP($A30,Filtro!$A$5:$AW$2531,14,FALSE),0) -> 68 | Q30: =IFERROR(VLOOKUP($A30,Filtro!$A$5:$AW$2531,15,FALSE),0) -> 21 | R30: =IFERROR(VLOOKUP($A30,Filtro!$A$5:$AW$2531,16,FALSE),0) -> 0 | S30: =IFERROR(VLOOKUP($A30,Filtro!$A$5:$AW$2531,17,FALSE),0) -> 0 | T30: =IFERROR(VLOOKUP($A30,Filtro!$A$5:$AW$2531,18,FALSE),0) -> 0 | U30: =IFERROR(VLOOKUP($A30,Filtro!$A$5:$AW$2531,19,FALSE),0) -> 0 | V30: =IFERROR(VLOOKUP($A30,Filtro!$A$5:$AW$2531,20,FALSE),0) -> 0 | W30: =IFERROR(VLOOKUP($A30,Filtro!$A$5:$AW$2531,21,FALSE),0) -> 247 | X30: =IFERROR(VLOOKUP($A30,Filtro!$A$5:$AW$2531,22,FALSE),0) -> 0 | Y30: =IFERROR(VLOOKUP($A30,Filtro!$A$5:$AW$2531,23,FALSE),0) -> 0 | Z30: =IFERROR(VLOOKUP($A30,Filtro!$A$5:$AW$2531,24,FALSE),0) -> 0 | AA30: =IFERROR(VLOOKUP($A30,Filtro!$A$5:$AW$2531,25,FALSE),0) -> 0 | AB30: =IFERROR(VLOOKUP($A30,Filtro!$A$5:$AW$2531,26,FALSE),0) -> 0 | AC30: =IFERROR(VLOOKUP($A30,Filtro!$A$5:$AW$2531,27,FALSE),0) -> 4 | AD30: =IFERROR(VLOOKUP($A30,Filtro!$A$5:$AW$2531,28,FALSE),0) -> 6 | DB30: 0 | DF30: 0 | DG30: 0 | DH30: 0 | DI30: 0 | DJ30: 0 | DK30: 0 | DL30: 0 | DM30: 0 | DN30: 0 | DO30: 0 | DP30: 0 | DQ30: 0
A31: 01010903 | C31: MATRONA/ÓN | D31: =SUM(N31:Q31) -> 2491 | E31: =IFERROR(VLOOKUP($A31,Filtro!$A$5:$AW$2531,3,FALSE),0) -> 0 | F31: =IFERROR(VLOOKUP($A31,Filtro!$A$5:$AW$2531,4,FALSE),0) -> 0 | G31: =IFERROR(VLOOKUP($A31,Filtro!$A$5:$AW$2531,5,FALSE),0) -> 0 | H31: =IFERROR(VLOOKUP($A31,Filtro!$A$5:$AW$2531,6,FALSE),0) -> 0 | I31: =IFERROR(VLOOKUP($A31,Filtro!$A$5:$AW$2531,7,FALSE),0) -> 0 | J31: =IFERROR(VLOOKUP($A31,Filtro!$A$5:$AW$2531,8,FALSE),0) -> 0 | K31: =IFERROR(VLOOKUP($A31,Filtro!$A$5:$AW$2531,9,FALSE),0) -> 0 | L31: =IFERROR(VLOOKUP($A31,Filtro!$A$5:$AW$2531,10,FALSE),0) -> 0 | M31: =IFERROR(VLOOKUP($A31,Filtro!$A$5:$AW$2531,11,FALSE),0) -> 0 | N31: =IFERROR(VLOOKUP($A31,Filtro!$A$5:$AW$2531,12,FALSE),0) -> 647 | O31: =IFERROR(VLOOKUP($A31,Filtro!$A$5:$AW$2531,13,FALSE),0) -> 969 | P31: =IFERROR(VLOOKUP($A31,Filtro!$A$5:$AW$2531,14,FALSE),0) -> 569 | Q31: =IFERROR(VLOOKUP($A31,Filtro!$A$5:$AW$2531,15,FALSE),0) -> 306 | R31: =IFERROR(VLOOKUP($A31,Filtro!$A$5:$AW$2531,16,FALSE),0) -> 0 | S31: =IFERROR(VLOOKUP($A31,Filtro!$A$5:$AW$2531,17,FALSE),0) -> 0 | T31: =IFERROR(VLOOKUP($A31,Filtro!$A$5:$AW$2531,18,FALSE),0) -> 0 | U31: =IFERROR(VLOOKUP($A31,Filtro!$A$5:$AW$2531,19,FALSE),0) -> 0 | V31: =IFERROR(VLOOKUP($A31,Filtro!$A$5:$AW$2531,20,FALSE),0) -> 0 | W31: =IFERROR(VLOOKUP($A31,Filtro!$A$5:$AW$2531,21,FALSE),0) -> 2507 | X31: =IFERROR(VLOOKUP($A31,Filtro!$A$5:$AW$2531,22,FALSE),0) -> 0 | Y31: =IFERROR(VLOOKUP($A31,Filtro!$A$5:$AW$2531,23,FALSE),0) -> 0 | Z31: =IFERROR(VLOOKUP($A31,Filtro!$A$5:$AW$2531,24,FALSE),0) -> 0 | AA31: =IFERROR(VLOOKUP($A31,Filtro!$A$5:$AW$2531,25,FALSE),0) -> 0 | AB31: =IFERROR(VLOOKUP($A31,Filtro!$A$5:$AW$2531,26,FALSE),0) -> 0 | AC31: =IFERROR(VLOOKUP($A31,Filtro!$A$5:$AW$2531,27,FALSE),0) -> 26 | AD31: =IFERROR(VLOOKUP($A31,Filtro!$A$5:$AW$2531,28,FALSE),0) -> 107 | DB31: 0 | DF31: 0 | DG31: 0 | DH31: 0 | DI31: 0 | DJ31: 0 | DK31: 0 | DL31: 0 | DM31: 0 | DN31: 0 | DO31: 0 | DP31: 0 | DQ31: 0
A32: 01010401 | B32: REGULACIÓN DE FECUNDIDAD | C32: MÉDICO/A | D32: =SUM(G32:U32) -> 1 | E32: =IFERROR(VLOOKUP($A32,Filtro!$A$5:$AW$2531,3,FALSE),0) -> 0 | F32: =IFERROR(VLOOKUP($A32,Filtro!$A$5:$AW$2531,4,FALSE),0) -> 0 | G32: =IFERROR(VLOOKUP($A32,Filtro!$A$5:$AW$2531,5,FALSE),0) -> 1 | H32: =IFERROR(VLOOKUP($A32,Filtro!$A$5:$AW$2531,6,FALSE),0) -> 0 | I32: =IFERROR(VLOOKUP($A32,Filtro!$A$5:$AW$2531,7,FALSE),0) -> 0 | J32: =IFERROR(VLOOKUP($A32,Filtro!$A$5:$AW$2531,8,FALSE),0) -> 0 | K32: =IFERROR(VLOOKUP($A32,Filtro!$A$5:$AW$2531,9,FALSE),0) -> 0 | L32: =IFERROR(VLOOKUP($A32,Filtro!$A$5:$AW$2531,10,FALSE),0) -> 0 | M32: =IFERROR(VLOOKUP($A32,Filtro!$A$5:$AW$2531,11,FALSE),0) -> 0 | N32: =IFERROR(VLOOKUP($A32,Filtro!$A$5:$AW$2531,12,FALSE),0) -> 0 | O32: =IFERROR(VLOOKUP($A32,Filtro!$A$5:$AW$2531,13,FALSE),0) -> 0 | P32: =IFERROR(VLOOKUP($A32,Filtro!$A$5:$AW$2531,14,FALSE),0) -> 0 | Q32: =IFERROR(VLOOKUP($A32,Filtro!$A$5:$AW$2531,15,FALSE),0) -> 0 | R32: =IFERROR(VLOOKUP($A32,Filtro!$A$5:$AW$2531,16,FALSE),0) -> 0 | S32: =IFERROR(VLOOKUP($A32,Filtro!$A$5:$AW$2531,17,FALSE),0) -> 0 | T32: =IFERROR(VLOOKUP($A32,Filtro!$A$5:$AW$2531,18,FALSE),0) -> 0 | U32: =IFERROR(VLOOKUP($A32,Filtro!$A$5:$AW$2531,19,FALSE),0) -> 0 | V32: =IFERROR(VLOOKUP($A32,Filtro!$A$5:$AW$2531,20,FALSE),0) -> 0 | W32: =IFERROR(VLOOKUP($A32,Filtro!$A$5:$AW$2531,21,FALSE),0) -> 8 | X32: =IFERROR(VLOOKUP($A32,Filtro!$A$5:$AW$2531,22,FALSE),0) -> 0 | Y32: =IFERROR(VLOOKUP($A32,Filtro!$A$5:$AW$2531,23,FALSE),0) -> 0 | Z32: =IFERROR(VLOOKUP($A32,Filtro!$A$5:$AW$2531,24,FALSE),0) -> 8 | AA32: =IFERROR(VLOOKUP($A32,Filtro!$A$5:$AW$2531,25,FALSE),0) -> 8 | AB32: =IFERROR(VLOOKUP($A32,Filtro!$A$5:$AW$2531,26,FALSE),0) -> 8 | AC32: =IFERROR(VLOOKUP($A32,Filtro!$A$5:$AW$2531,27,FALSE),0) -> 4 | AD32: =IFERROR(VLOOKUP($A32,Filtro!$A$5:$AW$2531,28,FALSE),0) -> 8 | DB32: 0 | DF32: 0 | DG32: 0 | DH32: 0 | DI32: 0 | DJ32: 0 | DK32: 0 | DL32: 0 | DM32: 0 | DN32: 0 | DO32: 0 | DP32: 0 | DQ32: 0
A33: 01010403 | C33: MATRONA/ÓN | D33: =SUM(G33:U33) -> 47229 | E33: =IFERROR(VLOOKUP($A33,Filtro!$A$5:$AW$2531,3,FALSE),0) -> 0 | F33: =IFERROR(VLOOKUP($A33,Filtro!$A$5:$AW$2531,4,FALSE),0) -> 0 | G33: =IFERROR(VLOOKUP($A33,Filtro!$A$5:$AW$2531,5,FALSE),0) -> 1078 | H33: =IFERROR(VLOOKUP($A33,Filtro!$A$5:$AW$2531,6,FALSE),0) -> 6739 | I33: =IFERROR(VLOOKUP($A33,Filtro!$A$5:$AW$2531,7,FALSE),0) -> 8117 | J33: =IFERROR(VLOOKUP($A33,Filtro!$A$5:$AW$2531,8,FALSE),0) -> 8412 | K33: =IFERROR(VLOOKUP($A33,Filtro!$A$5:$AW$2531,9,FALSE),0) -> 7722 | L33: =IFERROR(VLOOKUP($A33,Filtro!$A$5:$AW$2531,10,FALSE),0) -> 5889 | M33: =IFERROR(VLOOKUP($A33,Filtro!$A$5:$AW$2531,11,FALSE),0) -> 4659 | N33: =IFERROR(VLOOKUP($A33,Filtro!$A$5:$AW$2531,12,FALSE),0) -> 3284 | O33: =IFERROR(VLOOKUP($A33,Filtro!$A$5:$AW$2531,13,FALSE),0) -> 1155 | P33: =IFERROR(VLOOKUP($A33,Filtro!$A$5:$AW$2531,14,FALSE),0) -> 114 | Q33: =IFERROR(VLOOKUP($A33,Filtro!$A$5:$AW$2531,15,FALSE),0) -> 38 | R33: =IFERROR(VLOOKUP($A33,Filtro!$A$5:$AW$2531,16,FALSE),0) -> 15 | S33: =IFERROR(VLOOKUP($A33,Filtro!$A$5:$AW$2531,17,FALSE),0) -> 4 | T33: =IFERROR(VLOOKUP($A33,Filtro!$A$5:$AW$2531,18,FALSE),0) -> 1 | U33: =IFERROR(VLOOKUP($A33,Filtro!$A$5:$AW$2531,19,FALSE),0) -> 2 | V33: =IFERROR(VLOOKUP($A33,Filtro!$A$5:$AW$2531,20,FALSE),0) -> 305 | W33: =IFERROR(VLOOKUP($A33,Filtro!$A$5:$AW$2531,21,FALSE),0) -> 46597 | X33: =IFERROR(VLOOKUP($A33,Filtro!$A$5:$AW$2531,22,FALSE),0) -> 0 | Y33: =IFERROR(VLOOKUP($A33,Filtro!$A$5:$AW$2531,23,FALSE),0) -> 0 | Z33: =IFERROR(VLOOKUP($A33,Filtro!$A$5:$AW$2531,24,FALSE),0) -> 884 | AA33: =IFERROR(VLOOKUP($A33,Filtro!$A$5:$AW$2531,25,FALSE),0) -> 34 | AB33: =IFERROR(VLOOKUP($A33,Filtro!$A$5:$AW$2531,26,FALSE),0) -> 30 | AC33: =IFERROR(VLOOKUP($A33,Filtro!$A$5:$AW$2531,27,FALSE),0) -> 294 | AD33: =IFERROR(VLOOKUP($A33,Filtro!$A$5:$AW$2531,28,FALSE),0) -> 946 | DB33: 0 | DF33: 0 | DG33: 0 | DH33: 0 | DI33: 0 | DJ33: 0 | DK33: 0 | DL33: 0 | DM33: 0 | DN33: 0 | DO33: 0 | DP33: 0 | DQ33: 0
B34: SECCIÓN B: CONTROLES DE SALUD SEGÚN CICLO VITAL
B35: TIPO DE CONTROL | C35: PROFESIONAL | D35: TOTAL | G35: POR EDAD | AJ35: Control con Presencia del Padre | AL35: Niños, Niñas, Adolescentes y Jóvenes SENAME | AM35: Niños, Niñas, Adolescentes y Jóvenes Mejor Niñez | AN35: Pueblos Originarios | AO35: Migrantes
D36: Ambos Sexos | E36: Hombres | F36: Mujeres | G36: Menor de 1 mes | H36: 1 mes | I36: 2 meses | J36: 3 meses | K36: 4 meses | L36: 5 meses | M36: 6 meses | N36: 7 - 11 meses | O36: 12 a 17 meses | P36: 18 - 23 meses | Q36: 24 - 47 meses | R36: 48 - 59 meses | S36: 60 - 71 meses | T36: 6 - 9 | U36: 10 - 14 | V36: 15 - 19 | W36: 20 - 24 | X36: 25 - 29 | Y36: 30 - 34 | Z36: 35 - 39 | AA36: 40 - 44 | AB36: 45 - 49 | AC36: 50 - 54 | AD36: 55 - 59 | AE36: 60 - 64 | AF36: 65 - 69 | AG36: 70 - 74 | AH36: 75 - 79 | AI36: 80 y mas | AJ36: menor 1 año | AK36: 1 año a 3 años 11 meses 29 días
A37: 02010101 | B37: DE SALUD | C37: MÉDICO/A | D37: =SUM(G37:AI37) -> 10744 | E37: =IFERROR(VLOOKUP($A37,Filtro!$A$5:$AW$2531,3,FALSE),0) -> 4917 | F37: =IFERROR(VLOOKUP($A37,Filtro!$A$5:$AW$2531,4,FALSE),0) -> 5822 | G37: =IFERROR(VLOOKUP($A37,Filtro!$A$5:$AW$2531,5,FALSE),0) -> 155 | H37: =IFERROR(VLOOKUP($A37,Filtro!$A$5:$AW$2531,6,FALSE),0) -> 2918 | I37: =IFERROR(VLOOKUP($A37,Filtro!$A$5:$AW$2531,7,FALSE),0) -> 261 | J37: =IFERROR(VLOOKUP($A37,Filtro!$A$5:$AW$2531,8,FALSE),0) -> 2846 | K37: =IFERROR(VLOOKUP($A37,Filtro!$A$5:$AW$2531,9,FALSE),0) -> 255 | L37: =IFERROR(VLOOKUP($A37,Filtro!$A$5:$AW$2531,10,FALSE),0) -> 52 | M37: =IFERROR(VLOOKUP($A37,Filtro!$A$5:$AW$2531,11,FALSE),0) -> 32 | N37: =IFERROR(VLOOKUP($A37,Filtro!$A$5:$AW$2531,12,FALSE),0) -> 30 | O37: =IFERROR(VLOOKUP($A37,Filtro!$A$5:$AW$2531,13,FALSE),0) -> 37 | P37: =IFERROR(VLOOKUP($A37,Filtro!$A$5:$AW$2531,14,FALSE),0) -> 37 | Q37: =IFERROR(VLOOKUP($A37,Filtro!$A$5:$AW$2531,15,FALSE),0) -> 112 | R37: =IFERROR(VLOOKUP($A37,Filtro!$A$5:$AW$2531,16,FALSE),0) -> 105 | S37: =IFERROR(VLOOKUP($A37,Filtro!$A$5:$AW$2531,17,FALSE),0) -> 126 | T37: =IFERROR(VLOOKUP($A37,Filtro!$A$5:$AW$2531,18,FALSE),0) -> 764 | U37: =IFERROR(VLOOKUP($A37,Filtro!$A$5:$AW$2531,19,FALSE),0) -> 218 | V37: =IFERROR(VLOOKUP($A37,Filtro!$A$5:$AW$2531,20,FALSE),0) -> 133 | W37: =IFERROR(VLOOKUP($A37,Filtro!$A$5:$AW$2531,21,FALSE),0) -> 31 | X37: =IFERROR(VLOOKUP($A37,Filtro!$A$5:$AW$2531,22,FALSE),0) -> 43 | Y37: =IFERROR(VLOOKUP($A37,Filtro!$A$5:$AW$2531,23,FALSE),0) -> 64 | Z37: =IFERROR(VLOOKUP($A37,Filtro!$A$5:$AW$2531,24,FALSE),0) -> 78 | AA37: =IFERROR(VLOOKUP($A37,Filtro!$A$5:$AW$2531,25,FALSE),0) -> 106 | AB37: =IFERROR(VLOOKUP($A37,Filtro!$A$5:$AW$2531,26,FALSE),0) -> 145 | AC37: =IFERROR(VLOOKUP($A37,Filtro!$A$5:$AW$2531,27,FALSE),0) -> 152 | AD37: =IFERROR(VLOOKUP($A37,Filtro!$A$5:$AW$2531,28,FALSE),0) -> 301 | AE37: =IFERROR(VLOOKUP($A37,Filtro!$A$5:$AW$2531,29,FALSE),0) -> 307 | AF37: =IFERROR(VLOOKUP($A37,Filtro!$A$5:$AW$2531,30,FALSE),0) -> 429 | AG37: =IFERROR(VLOOKUP($A37,Filtro!$A$5:$AW$2531,31,FALSE),0) -> 328 | AH37: =IFERROR(VLOOKUP($A37,Filtro!$A$5:$AW$2531,32,FALSE),0) -> 262 | AI37: =IFERROR(VLOOKUP($A37,Filtro!$A$5:$AW$2531,33,FALSE),0) -> 417 | AJ37: =IFERROR(VLOOKUP($A37,Filtro!$A$5:$AW$2531,34,FALSE),0) -> 1455 | AK37: =IFERROR(VLOOKUP($A37,Filtro!$A$5:$AW$2531,35,FALSE),0) -> 7 | AL37: =IFERROR(VLOOKUP($A37,Filtro!$A$5:$AW$2531,36,FALSE),0) -> 34 | AM37: =IFERROR(VLOOKUP($A37,Filtro!$A$5:$AW$2531,37,FALSE),0) -> 21 | AN37: =IFERROR(VLOOKUP($A37,Filtro!$A$5:$AW$2531,38,FALSE),0) -> 50 | AO37: =IFERROR(VLOOKUP($A37,Filtro!$A$5:$AW$2531,39,FALSE),0) -> 428 | CB37: * El número de controles con presencia de Padre para menor entre 1 año y 3 años NO DEBE ser Mayor a la suma de controles del rango correspondiente. | CC37: * El número de controles según sexo NO DEBE ser diferente al Total. | DA37: 0 | DB37: 1 | DC37: 1 | DD37: 0
A38: 02010201 | C38: ENFERMERA/O | D38: =SUM(G38:AI38) -> 61228 | E38: =IFERROR(VLOOKUP($A38,Filtro!$A$5:$AW$2531,3,FALSE),0) -> 28516 | F38: =IFERROR(VLOOKUP($A38,Filtro!$A$5:$AW$2531,4,FALSE),0) -> 32112 | G38: =IFERROR(VLOOKUP($A38,Filtro!$A$5:$AW$2531,5,FALSE),0) -> 35 | H38: =IFERROR(VLOOKUP($A38,Filtro!$A$5:$AW$2531,6,FALSE),0) -> 51 | I38: =IFERROR(VLOOKUP($A38,Filtro!$A$5:$AW$2531,7,FALSE),0) -> 3275 | J38: =IFERROR(VLOOKUP($A38,Filtro!$A$5:$AW$2531,8,FALSE),0) -> 176 | K38: =IFERROR(VLOOKUP($A38,Filtro!$A$5:$AW$2531,9,FALSE),0) -> 3201 | L38: =IFERROR(VLOOKUP($A38,Filtro!$A$5:$AW$2531,10,FALSE),0) -> 241 | M38: =IFERROR(VLOOKUP($A38,Filtro!$A$5:$AW$2531,11,FALSE),0) -> 3167 | N38: =IFERROR(VLOOKUP($A38,Filtro!$A$5:$AW$2531,12,FALSE),0) -> 3791 | O38: =IFERROR(VLOOKUP($A38,Filtro!$A$5:$AW$2531,13,FALSE),0) -> 3941 | P38: =IFERROR(VLOOKUP($A38,Filtro!$A$5:$AW$2531,14,FALSE),0) -> 3313 | Q38: =IFERROR(VLOOKUP($A38,Filtro!$A$5:$AW$2531,15,FALSE),0) -> 7562 | R38: =IFERROR(VLOOKUP($A38,Filtro!$A$5:$AW$2531,16,FALSE),0) -> 3546 | S38: =IFERROR(VLOOKUP($A38,Filtro!$A$5:$AW$2531,17,FALSE),0) -> 3271 | T38: =IFERROR(VLOOKUP($A38,Filtro!$A$5:$AW$2531,18,FALSE),0) -> 7750 | U38: =IFERROR(VLOOKUP($A38,Filtro!$A$5:$AW$2531,19,FALSE),0) -> 3380 | V38: =IFERROR(VLOOKUP($A38,Filtro!$A$5:$AW$2531,20,FALSE),0) -> 1000 | W38: =IFERROR(VLOOKUP($A38,Filtro!$A$5:$AW$2531,21,FALSE),0) -> 420 | X38: =IFERROR(VLOOKUP($A38,Filtro!$A$5:$AW$2531,22,FALSE),0) -> 520 | Y38: =IFERROR(VLOOKUP($A38,Filtro!$A$5:$AW$2531,23,FALSE),0) -> 552 | Z38: =IFERROR(VLOOKUP($A38,Filtro!$A$5:$AW$2531,24,FALSE),0) -> 572 | AA38: =IFERROR(VLOOKUP($A38,Filtro!$A$5:$AW$2531,25,FALSE),0) -> 575 | AB38: =IFERROR(VLOOKUP($A38,Filtro!$A$5:$AW$2531,26,FALSE),0) -> 662 | AC38: =IFERROR(VLOOKUP($A38,Filtro!$A$5:$AW$2531,27,FALSE),0) -> 696 | AD38: =IFERROR(VLOOKUP($A38,Filtro!$A$5:$AW$2531,28,FALSE),0) -> 807 | AE38: =IFERROR(VLOOKUP($A38,Filtro!$A$5:$AW$2531,29,FALSE),0) -> 864 | AF38: =IFERROR(VLOOKUP($A38,Filtro!$A$5:$AW$2531,30,FALSE),0) -> 1964 | AG38: =IFERROR(VLOOKUP($A38,Filtro!$A$5:$AW$2531,31,FALSE),0) -> 1992 | AH38: =IFERROR(VLOOKUP($A38,Filtro!$A$5:$AW$2531,32,FALSE),0) -> 1665 | AI38: =IFERROR(VLOOKUP($A38,Filtro!$A$5:$AW$2531,33,FALSE),0) -> 2239 | AJ38: =IFERROR(VLOOKUP($A38,Filtro!$A$5:$AW$2531,34,FALSE),0) -> 2963 | AK38: =IFERROR(VLOOKUP($A38,Filtro!$A$5:$AW$2531,35,FALSE),0) -> 2492 | AL38: =IFERROR(VLOOKUP($A38,Filtro!$A$5:$AW$2531,36,FALSE),0) -> 272 | AM38: =IFERROR(VLOOKUP($A38,Filtro!$A$5:$AW$2531,37,FALSE),0) -> 138 | AN38: =IFERROR(VLOOKUP($A38,Filtro!$A$5:$AW$2531,38,FALSE),0) -> 620 | AO38: =IFERROR(VLOOKUP($A38,Filtro!$A$5:$AW$2531,39,FALSE),0) -> 957 | CC38: * El número de controles según sexo NO DEBE ser diferente al Total. | DA38: 0 | DB38: 0 | DC38: 1 | DD38: 0
A39: 02010103 | C39: MATRONA/ÓN | D39: =SUM(G39+U39+V39+W39+X39+Y39+Z39+AA39+AB39+AC39+AD39+AE39+AF39+AG39+AH39+AI39) -> 12556 | E39: =IFERROR(VLOOKUP($A39,Filtro!$A$5:$AW$2531,3,FALSE),0) -> 2436 | F39: =IFERROR(VLOOKUP($A39,Filtro!$A$5:$AW$2531,4,FALSE),0) -> 9999 | G39: =IFERROR(VLOOKUP($A39,Filtro!$A$5:$AW$2531,5,FALSE),0) -> 2421 | H39: =IFERROR(VLOOKUP($A39,Filtro!$A$5:$AW$2531,6,FALSE),0) -> 0 | I39: =IFERROR(VLOOKUP($A39,Filtro!$A$5:$AW$2531,7,FALSE),0) -> 0 | J39: =IFERROR(VLOOKUP($A39,Filtro!$A$5:$AW$2531,8,FALSE),0) -> 0 | K39: =IFERROR(VLOOKUP($A39,Filtro!$A$5:$AW$2531,9,FALSE),0) -> 0 | L39: =IFERROR(VLOOKUP($A39,Filtro!$A$5:$AW$2531,10,FALSE),0) -> 0 | M39: =IFERROR(VLOOKUP($A39,Filtro!$A$5:$AW$2531,11,FALSE),0) -> 0 | N39: =IFERROR(VLOOKUP($A39,Filtro!$A$5:$AW$2531,12,FALSE),0) -> 0 | O39: =IFERROR(VLOOKUP($A39,Filtro!$A$5:$AW$2531,13,FALSE),0) -> 0 | P39: =IFERROR(VLOOKUP($A39,Filtro!$A$5:$AW$2531,14,FALSE),0) -> 0 | Q39: =IFERROR(VLOOKUP($A39,Filtro!$A$5:$AW$2531,15,FALSE),0) -> 0 | R39: =IFERROR(VLOOKUP($A39,Filtro!$A$5:$AW$2531,16,FALSE),0) -> 0 | S39: =IFERROR(VLOOKUP($A39,Filtro!$A$5:$AW$2531,17,FALSE),0) -> 0 | T39: =IFERROR(VLOOKUP($A39,Filtro!$A$5:$AW$2531,18,FALSE),0) -> 0 | U39: =IFERROR(VLOOKUP($A39,Filtro!$A$5:$AW$2531,19,FALSE),0) -> 1772 | V39: =IFERROR(VLOOKUP($A39,Filtro!$A$5:$AW$2531,20,FALSE),0) -> 1682 | W39: =IFERROR(VLOOKUP($A39,Filtro!$A$5:$AW$2531,21,FALSE),0) -> 864 | X39: =IFERROR(VLOOKUP($A39,Filtro!$A$5:$AW$2531,22,FALSE),0) -> 1080 | Y39: =IFERROR(VLOOKUP($A39,Filtro!$A$5:$AW$2531,23,FALSE),0) -> 1068 | Z39: =IFERROR(VLOOKUP($A39,Filtro!$A$5:$AW$2531,24,FALSE),0) -> 880 | AA39: =IFERROR(VLOOKUP($A39,Filtro!$A$5:$AW$2531,25,FALSE),0) -> 768 | AB39: =IFERROR(VLOOKUP($A39,Filtro!$A$5:$AW$2531,26,FALSE),0) -> 678 | AC39: =IFERROR(VLOOKUP($A39,Filtro!$A$5:$AW$2531,27,FALSE),0) -> 528 | AD39: =IFERROR(VLOOKUP($A39,Filtro!$A$5:$AW$2531,28,FALSE),0) -> 371 | AE39: =IFERROR(VLOOKUP($A39,Filtro!$A$5:$AW$2531,29,FALSE),0) -> 279 | AF39: =IFERROR(VLOOKUP($A39,Filtro!$A$5:$AW$2531,30,FALSE),0) -> 118 | AG39: =IFERROR(VLOOKUP($A39,Filtro!$A$5:$AW$2531,31,FALSE),0) -> 30 | AH39: =IFERROR(VLOOKUP($A39,Filtro!$A$5:$AW$2531,32,FALSE),0) -> 11 | AI39: =IFERROR(VLOOKUP($A39,Filtro!$A$5:$AW$2531,33,FALSE),0) -> 6 | AJ39: =IFERROR(VLOOKUP($A39,Filtro!$A$5:$AW$2531,34,FALSE),0) -> 1048 | AK39: =IFERROR(VLOOKUP($A39,Filtro!$A$5:$AW$2531,35,FALSE),0) -> 0 | AL39: =IFERROR(VLOOKUP($A39,Filtro!$A$5:$AW$2531,36,FALSE),0) -> 10 | AM39: =IFERROR(VLOOKUP($A39,Filtro!$A$5:$AW$2531,37,FALSE),0) -> 16 | AN39: =IFERROR(VLOOKUP($A39,Filtro!$A$5:$AW$2531,38,FALSE),0) -> 62 | AO39: =IFERROR(VLOOKUP($A39,Filtro!$A$5:$AW$2531,39,FALSE),0) -> 206 | CA39: * El número de controles con presencia de Padre para menor 1 año NO DEBE ser Mayor a la suma de controles del rango correspondiente. | CB39: * El número de controles con presencia de Padre para menor entre 1 año y 3 años NO DEBE ser Mayor a la suma de controles del rango correspondiente. | CC39: * El número de controles según sexo NO DEBE ser diferente al Total. | DA39: 1 | DB39: 1 | DC39: 1 | DD39: 0
A40: 02010105 | C40: TÉCNICO EN ENFERMERÍA | D40: =SUM(O40:T40) -> 27 | E40: =IFERROR(VLOOKUP($A40,Filtro!$A$5:$AW$2531,3,FALSE),0) -> 16 | F40: =IFERROR(VLOOKUP($A40,Filtro!$A$5:$AW$2531,4,FALSE),0) -> 10 | G40: =IFERROR(VLOOKUP($A40,Filtro!$A$5:$AW$2531,5,FALSE),0) -> 0 | H40: =IFERROR(VLOOKUP($A40,Filtro!$A$5:$AW$2531,6,FALSE),0) -> 0 | I40: =IFERROR(VLOOKUP($A40,Filtro!$A$5:$AW$2531,7,FALSE),0) -> 0 | J40: =IFERROR(VLOOKUP($A40,Filtro!$A$5:$AW$2531,8,FALSE),0) -> 0 | K40: =IFERROR(VLOOKUP($A40,Filtro!$A$5:$AW$2531,9,FALSE),0) -> 0 | L40: =IFERROR(VLOOKUP($A40,Filtro!$A$5:$AW$2531,10,FALSE),0) -> 0 | M40: =IFERROR(VLOOKUP($A40,Filtro!$A$5:$AW$2531,11,FALSE),0) -> 0 | N40: =IFERROR(VLOOKUP($A40,Filtro!$A$5:$AW$2531,12,FALSE),0) -> 0 | O40: =IFERROR(VLOOKUP($A40,Filtro!$A$5:$AW$2531,13,FALSE),0) -> 1 | P40: =IFERROR(VLOOKUP($A40,Filtro!$A$5:$AW$2531,14,FALSE),0) -> 1 | Q40: =IFERROR(VLOOKUP($A40,Filtro!$A$5:$AW$2531,15,FALSE),0) -> 11 | R40: =IFERROR(VLOOKUP($A40,Filtro!$A$5:$AW$2531,16,FALSE),0) -> 0 | S40: =IFERROR(VLOOKUP($A40,Filtro!$A$5:$AW$2531,17,FALSE),0) -> 2 | T40: =IFERROR(VLOOKUP($A40,Filtro!$A$5:$AW$2531,18,FALSE),0) -> 12 | U40: =IFERROR(VLOOKUP($A40,Filtro!$A$5:$AW$2531,19,FALSE),0) -> 0 | V40: =IFERROR(VLOOKUP($A40,Filtro!$A$5:$AW$2531,20,FALSE),0) -> 0 | W40: =IFERROR(VLOOKUP($A40,Filtro!$A$5:$AW$2531,21,FALSE),0) -> 0 | X40: =IFERROR(VLOOKUP($A40,Filtro!$A$5:$AW$2531,22,FALSE),0) -> 0 | Y40: =IFERROR(VLOOKUP($A40,Filtro!$A$5:$AW$2531,23,FALSE),0) -> 0 | Z40: =IFERROR(VLOOKUP($A40,Filtro!$A$5:$AW$2531,24,FALSE),0) -> 0 | AA40: =IFERROR(VLOOKUP($A40,Filtro!$A$5:$AW$2531,25,FALSE),0) -> 0 | AB40: =IFERROR(VLOOKUP($A40,Filtro!$A$5:$AW$2531,26,FALSE),0) -> 0 | AC40: =IFERROR(VLOOKUP($A40,Filtro!$A$5:$AW$2531,27,FALSE),0) -> 0 | AD40: =IFERROR(VLOOKUP($A40,Filtro!$A$5:$AW$2531,28,FALSE),0) -> 0 | AE40: =IFERROR(VLOOKUP($A40,Filtro!$A$5:$AW$2531,29,FALSE),0) -> 0 | AF40: =IFERROR(VLOOKUP($A40,Filtro!$A$5:$AW$2531,30,FALSE),0) -> 0 | AG40: =IFERROR(VLOOKUP($A40,Filtro!$A$5:$AW$2531,31,FALSE),0) -> 0 | AH40: =IFERROR(VLOOKUP($A40,Filtro!$A$5:$AW$2531,32,FALSE),0) -> 0 | AI40: =IFERROR(VLOOKUP($A40,Filtro!$A$5:$AW$2531,33,FALSE),0) -> 0 | AJ40: =IFERROR(VLOOKUP($A40,Filtro!$A$5:$AW$2531,34,FALSE),0) -> 0 | AK40: =IFERROR(VLOOKUP($A40,Filtro!$A$5:$AW$2531,35,FALSE),0) -> 4 | AL40: =IFERROR(VLOOKUP($A40,Filtro!$A$5:$AW$2531,36,FALSE),0) -> 2 | AM40: =IFERROR(VLOOKUP($A40,Filtro!$A$5:$AW$2531,37,FALSE),0) -> 0 | AN40: =IFERROR(VLOOKUP($A40,Filtro!$A$5:$AW$2531,38,FALSE),0) -> 1 | AO40: =IFERROR(VLOOKUP($A40,Filtro!$A$5:$AW$2531,39,FALSE),0) -> 36 | CC40: * El número de controles según sexo NO DEBE ser diferente al Total. | CD40: * No olvide digitar el campo Niños, Niñas, Adolescentes y Jóvenes SENAME (Digite CEROS si no tiene). | CF40: * No olvide digitar el campo Niños, Niñas, Adolescentes y Jóvenes Mejor Niñez (Digite CEROS si no tiene). | CH40: * No olvide digitar el campo Pueblos Originarios (Digite CEROS si no tiene). | CJ40: * No olvide digitar el campo Migrantes (Digite CEROS si no tiene). | DC40: 1 | DD40: 0
B41: SECCIÓN C: CONTROLES SEGÚN PROBLEMA DE SALUD
B42: TIPO DE CONTROL | C42: PROFESIONAL | D42: TOTAL | G42: POR EDAD | AO42: Pueblos Originarios | AP42: Migrantes
G43: 0 - 4 años | I43: 5 - 9 años | K43: 10 - 14 años | M43: 15 a 19 años | O43: 20 - 24 años | Q43: 25 - 29 años | S43: 30 - 34 años | U43: 35 - 39 años | W43: 40 - 44 años | Y43: 45 - 49 años | AA43: 50 - 54 años | AC43: 55 - 59 años | AE43: 60 - 64 años | AG43: 65 - 69 años | AI43: 70 - 74 años | AK43: 75 - 79 años | AM43: 80 y más años
D44: Ambos Sexos | E44: Hombres | F44: Mujeres | G44: Hombres | H44: Mujeres | I44: Hombres | J44: Mujeres | K44: Hombres | L44: Mujeres | M44: Hombres | N44: Mujeres | O44: Hombres | P44: Mujeres | Q44: Hombres | R44: Mujeres | S44: Hombres | T44: Mujeres | U44: Hombres | V44: Mujeres | W44: Hombres | X44: Mujeres | Y44: Hombres | Z44: Mujeres | AA44: Hombres | AB44: Mujeres | AC44: Hombres | AD44: Mujeres | AE44: Hombres | AF44: Mujeres | AG44: Hombres | AH44: Mujeres | AI44: Hombres | AJ44: Mujeres | AK44: Hombres | AL44: Mujeres | AM44: Hombres | AN44: Mujeres
A45: 03010501 | B45: DE SALUD CARDIOVASCULAR | C45: MÉDICO/A | D45: =SUM(E45:F45) -> 83366 | E45: =SUM(K45+M45+O45+Q45+S45+U45+W45+Y45+AA45+AC45+AE45+AG45+AI45+AK45+AM45) -> 28872 | F45: 54494 | G45: =IFERROR(VLOOKUP($A45,Filtro!$A$5:$AW$2531,5,FALSE),0) -> 0 | H45: =IFERROR(VLOOKUP($A45,Filtro!$A$5:$AW$2531,6,FALSE),0) -> 0 | I45: =IFERROR(VLOOKUP($A45,Filtro!$A$5:$AW$2531,7,FALSE),0) -> 0 | J45: =IFERROR(VLOOKUP($A45,Filtro!$A$5:$AW$2531,8,FALSE),0) -> 0 | K45: =IFERROR(VLOOKUP($A45,Filtro!$A$5:$AW$2531,9,FALSE),0) -> 0 | L45: =IFERROR(VLOOKUP($A45,Filtro!$A$5:$AW$2531,10,FALSE),0) -> 0 | M45: =IFERROR(VLOOKUP($A45,Filtro!$A$5:$AW$2531,11,FALSE),0) -> 57 | N45: =IFERROR(VLOOKUP($A45,Filtro!$A$5:$AW$2531,12,FALSE),0) -> 91 | O45: =IFERROR(VLOOKUP($A45,Filtro!$A$5:$AW$2531,13,FALSE),0) -> 91 | P45: =IFERROR(VLOOKUP($A45,Filtro!$A$5:$AW$2531,14,FALSE),0) -> 205 | Q45: =IFERROR(VLOOKUP($A45,Filtro!$A$5:$AW$2531,15,FALSE),0) -> 149 | R45: =IFERROR(VLOOKUP($A45,Filtro!$A$5:$AW$2531,16,FALSE),0) -> 385 | S45: =IFERROR(VLOOKUP($A45,Filtro!$A$5:$AW$2531,17,FALSE),0) -> 241 | T45: =IFERROR(VLOOKUP($A45,Filtro!$A$5:$AW$2531,18,FALSE),0) -> 679 | U45: =IFERROR(VLOOKUP($A45,Filtro!$A$5:$AW$2531,19,FALSE),0) -> 412 | V45: =IFERROR(VLOOKUP($A45,Filtro!$A$5:$AW$2531,20,FALSE),0) -> 1169 | W45: =IFERROR(VLOOKUP($A45,Filtro!$A$5:$AW$2531,21,FALSE),0) -> 688 | X45: =IFERROR(VLOOKUP($A45,Filtro!$A$5:$AW$2531,22,FALSE),0) -> 1933 | Y45: =IFERROR(VLOOKUP($A45,Filtro!$A$5:$AW$2531,23,FALSE),0) -> 1129 | Z45: =IFERROR(VLOOKUP($A45,Filtro!$A$5:$AW$2531,24,FALSE),0) -> 3053 | AA45: =IFERROR(VLOOKUP($A45,Filtro!$A$5:$AW$2531,25,FALSE),0) -> 1800 | AB45: =IFERROR(VLOOKUP($A45,Filtro!$A$5:$AW$2531,26,FALSE),0) -> 4638 | AC45: =IFERROR(VLOOKUP($A45,Filtro!$A$5:$AW$2531,27,FALSE),0) -> 2869 | AD45: =IFERROR(VLOOKUP($A45,Filtro!$A$5:$AW$2531,28,FALSE),0) -> 6711 | AE45: =IFERROR(VLOOKUP($A45,Filtro!$A$5:$AW$2531,29,FALSE),0) -> 4038 | AF45: =IFERROR(VLOOKUP($A45,Filtro!$A$5:$AW$2531,30,FALSE),0) -> 7770 | AG45: =IFERROR(VLOOKUP($A45,Filtro!$A$5:$AW$2531,31,FALSE),0) -> 4814 | AH45: =IFERROR(VLOOKUP($A45,Filtro!$A$5:$AW$2531,32,FALSE),0) -> 8079 | AI45: =IFERROR(VLOOKUP($A45,Filtro!$A$5:$AW$2531,33,FALSE),0) -> 4493 | AJ45: =IFERROR(VLOOKUP($A45,Filtro!$A$5:$AW$2531,34,FALSE),0) -> 7056 | AK45: =IFERROR(VLOOKUP($A45,Filtro!$A$5:$AW$2531,35,FALSE),0) -> 3857 | AL45: =IFERROR(VLOOKUP($A45,Filtro!$A$5:$AW$2531,36,FALSE),0) -> 5954 | AM45: =IFERROR(VLOOKUP($A45,Filtro!$A$5:$AW$2531,37,FALSE),0) -> 4234 | AN45: =IFERROR(VLOOKUP($A45,Filtro!$A$5:$AW$2531,38,FALSE),0) -> 6771 | AO45: =IFERROR(VLOOKUP($A45,Filtro!$A$5:$AW$2531,39,FALSE),0) -> 629 | AP45: =IFERROR(VLOOKUP($A45,Filtro!$A$5:$AW$2531,40,FALSE),0) -> 536 | DB45: 0 | DC45: 0 | DD45: 0 | DE45: 0
A46: 03010502 | C46: ENFERMERA/O | D46: =SUM(E46:F46) -> 35993 | E46: 13071 | F46: 22922 | G46: =IFERROR(VLOOKUP($A46,Filtro!$A$5:$AW$2531,5,FALSE),0) -> 0 | H46: =IFERROR(VLOOKUP($A46,Filtro!$A$5:$AW$2531,6,FALSE),0) -> 0 | I46: =IFERROR(VLOOKUP($A46,Filtro!$A$5:$AW$2531,7,FALSE),0) -> 0 | J46: =IFERROR(VLOOKUP($A46,Filtro!$A$5:$AW$2531,8,FALSE),0) -> 0 | K46: =IFERROR(VLOOKUP($A46,Filtro!$A$5:$AW$2531,9,FALSE),0) -> 0 | L46: =IFERROR(VLOOKUP($A46,Filtro!$A$5:$AW$2531,10,FALSE),0) -> 0 | M46: =IFERROR(VLOOKUP($A46,Filtro!$A$5:$AW$2531,11,FALSE),0) -> 23 | N46: =IFERROR(VLOOKUP($A46,Filtro!$A$5:$AW$2531,12,FALSE),0) -> 24 | O46: =IFERROR(VLOOKUP($A46,Filtro!$A$5:$AW$2531,13,FALSE),0) -> 33 | P46: =IFERROR(VLOOKUP($A46,Filtro!$A$5:$AW$2531,14,FALSE),0) -> 64 | Q46: =IFERROR(VLOOKUP($A46,Filtro!$A$5:$AW$2531,15,FALSE),0) -> 57 | R46: =IFERROR(VLOOKUP($A46,Filtro!$A$5:$AW$2531,16,FALSE),0) -> 150 | S46: =IFERROR(VLOOKUP($A46,Filtro!$A$5:$AW$2531,17,FALSE),0) -> 94 | T46: =IFERROR(VLOOKUP($A46,Filtro!$A$5:$AW$2531,18,FALSE),0) -> 263 | U46: =IFERROR(VLOOKUP($A46,Filtro!$A$5:$AW$2531,19,FALSE),0) -> 172 | V46: =IFERROR(VLOOKUP($A46,Filtro!$A$5:$AW$2531,20,FALSE),0) -> 474 | W46: =IFERROR(VLOOKUP($A46,Filtro!$A$5:$AW$2531,21,FALSE),0) -> 310 | X46: =IFERROR(VLOOKUP($A46,Filtro!$A$5:$AW$2531,22,FALSE),0) -> 798 | Y46: =IFERROR(VLOOKUP($A46,Filtro!$A$5:$AW$2531,23,FALSE),0) -> 470 | Z46: =IFERROR(VLOOKUP($A46,Filtro!$A$5:$AW$2531,24,FALSE),0) -> 1219 | AA46: =IFERROR(VLOOKUP($A46,Filtro!$A$5:$AW$2531,25,FALSE),0) -> 781 | AB46: =IFERROR(VLOOKUP($A46,Filtro!$A$5:$AW$2531,26,FALSE),0) -> 1833 | AC46: =IFERROR(VLOOKUP($A46,Filtro!$A$5:$AW$2531,27,FALSE),0) -> 1321 | AD46: =IFERROR(VLOOKUP($A46,Filtro!$A$5:$AW$2531,28,FALSE),0) -> 2668 | AE46: =IFERROR(VLOOKUP($A46,Filtro!$A$5:$AW$2531,29,FALSE),0) -> 1689 | AF46: =IFERROR(VLOOKUP($A46,Filtro!$A$5:$AW$2531,30,FALSE),0) -> 3139 | AG46: =IFERROR(VLOOKUP($A46,Filtro!$A$5:$AW$2531,31,FALSE),0) -> 2240 | AH46: =IFERROR(VLOOKUP($A46,Filtro!$A$5:$AW$2531,32,FALSE),0) -> 3572 | AI46: =IFERROR(VLOOKUP($A46,Filtro!$A$5:$AW$2531,33,FALSE),0) -> 2097 | AJ46: =IFERROR(VLOOKUP($A46,Filtro!$A$5:$AW$2531,34,FALSE),0) -> 3058 | AK46: =IFERROR(VLOOKUP($A46,Filtro!$A$5:$AW$2531,35,FALSE),0) -> 1698 | AL46: =IFERROR(VLOOKUP($A46,Filtro!$A$5:$AW$2531,36,FALSE),0) -> 2486 | AM46: =IFERROR(VLOOKUP($A46,Filtro!$A$5:$AW$2531,37,FALSE),0) -> 2086 | AN46: =IFERROR(VLOOKUP($A46,Filtro!$A$5:$AW$2531,38,FALSE),0) -> 3174 | AO46: =IFERROR(VLOOKUP($A46,Filtro!$A$5:$AW$2531,39,FALSE),0) -> 272 | AP46: =IFERROR(VLOOKUP($A46,Filtro!$A$5:$AW$2531,40,FALSE),0) -> 248 | DB46: 0 | DC46: 0 | DD46: 0 | DE46: 0
A47: 03010504 | C47: NUTRICIONISTA | D47: 35223 | E47: 11680 | F47: 23543 | G47: =IFERROR(VLOOKUP($A47,Filtro!$A$5:$AW$2531,5,FALSE),0) -> 0 | H47: =IFERROR(VLOOKUP($A47,Filtro!$A$5:$AW$2531,6,FALSE),0) -> 0 | I47: =IFERROR(VLOOKUP($A47,Filtro!$A$5:$AW$2531,7,FALSE),0) -> 0 | J47: =IFERROR(VLOOKUP($A47,Filtro!$A$5:$AW$2531,8,FALSE),0) -> 0 | K47: =IFERROR(VLOOKUP($A47,Filtro!$A$5:$AW$2531,9,FALSE),0) -> 0 | L47: =IFERROR(VLOOKUP($A47,Filtro!$A$5:$AW$2531,10,FALSE),0) -> 0 | M47: =IFERROR(VLOOKUP($A47,Filtro!$A$5:$AW$2531,11,FALSE),0) -> 27 | N47: =IFERROR(VLOOKUP($A47,Filtro!$A$5:$AW$2531,12,FALSE),0) -> 34 | O47: =IFERROR(VLOOKUP($A47,Filtro!$A$5:$AW$2531,13,FALSE),0) -> 41 | P47: =IFERROR(VLOOKUP($A47,Filtro!$A$5:$AW$2531,14,FALSE),0) -> 89 | Q47: =IFERROR(VLOOKUP($A47,Filtro!$A$5:$AW$2531,15,FALSE),0) -> 67 | R47: =IFERROR(VLOOKUP($A47,Filtro!$A$5:$AW$2531,16,FALSE),0) -> 169 | S47: =IFERROR(VLOOKUP($A47,Filtro!$A$5:$AW$2531,17,FALSE),0) -> 128 | T47: =IFERROR(VLOOKUP($A47,Filtro!$A$5:$AW$2531,18,FALSE),0) -> 342 | U47: =IFERROR(VLOOKUP($A47,Filtro!$A$5:$AW$2531,19,FALSE),0) -> 174 | V47: =IFERROR(VLOOKUP($A47,Filtro!$A$5:$AW$2531,20,FALSE),0) -> 588 | W47: =IFERROR(VLOOKUP($A47,Filtro!$A$5:$AW$2531,21,FALSE),0) -> 300 | X47: =IFERROR(VLOOKUP($A47,Filtro!$A$5:$AW$2531,22,FALSE),0) -> 956 | Y47: =IFERROR(VLOOKUP($A47,Filtro!$A$5:$AW$2531,23,FALSE),0) -> 494 | Z47: =IFERROR(VLOOKUP($A47,Filtro!$A$5:$AW$2531,24,FALSE),0) -> 1425 | AA47: =IFERROR(VLOOKUP($A47,Filtro!$A$5:$AW$2531,25,FALSE),0) -> 756 | AB47: =IFERROR(VLOOKUP($A47,Filtro!$A$5:$AW$2531,26,FALSE),0) -> 2082 | AC47: =IFERROR(VLOOKUP($A47,Filtro!$A$5:$AW$2531,27,FALSE),0) -> 1144 | AD47: =IFERROR(VLOOKUP($A47,Filtro!$A$5:$AW$2531,28,FALSE),0) -> 3045 | AE47: =IFERROR(VLOOKUP($A47,Filtro!$A$5:$AW$2531,29,FALSE),0) -> 1617 | AF47: =IFERROR(VLOOKUP($A47,Filtro!$A$5:$AW$2531,30,FALSE),0) -> 3401 | AG47: =IFERROR(VLOOKUP($A47,Filtro!$A$5:$AW$2531,31,FALSE),0) -> 1935 | AH47: =IFERROR(VLOOKUP($A47,Filtro!$A$5:$AW$2531,32,FALSE),0) -> 3467 | AI47: =IFERROR(VLOOKUP($A47,Filtro!$A$5:$AW$2531,33,FALSE),0) -> 1871 | AJ47: =IFERROR(VLOOKUP($A47,Filtro!$A$5:$AW$2531,34,FALSE),0) -> 2963 | AK47: =IFERROR(VLOOKUP($A47,Filtro!$A$5:$AW$2531,35,FALSE),0) -> 1423 | AL47: =IFERROR(VLOOKUP($A47,Filtro!$A$5:$AW$2531,36,FALSE),0) -> 2399 | AM47: =IFERROR(VLOOKUP($A47,Filtro!$A$5:$AW$2531,37,FALSE),0) -> 1703 | AN47: =IFERROR(VLOOKUP($A47,Filtro!$A$5:$AW$2531,38,FALSE),0) -> 2583 | AO47: =IFERROR(VLOOKUP($A47,Filtro!$A$5:$AW$2531,39,FALSE),0) -> 594 | AP47: =IFERROR(VLOOKUP($A47,Filtro!$A$5:$AW$2531,40,FALSE),0) -> 251 | DB47: 0 | DC47: 0 | DD47: 0 | DE47: 0
A48: 03010505 | C48: TÉCNICO EN ENFERMERÍA | D48: 476 | E48: 197 | F48: 279 | G48: =IFERROR(VLOOKUP($A48,Filtro!$A$5:$AW$2531,5,FALSE),0) -> 0 | H48: =IFERROR(VLOOKUP($A48,Filtro!$A$5:$AW$2531,6,FALSE),0) -> 0 | I48: =IFERROR(VLOOKUP($A48,Filtro!$A$5:$AW$2531,7,FALSE),0) -> 0 | J48: =IFERROR(VLOOKUP($A48,Filtro!$A$5:$AW$2531,8,FALSE),0) -> 0 | K48: =IFERROR(VLOOKUP($A48,Filtro!$A$5:$AW$2531,9,FALSE),0) -> 0 | L48: =IFERROR(VLOOKUP($A48,Filtro!$A$5:$AW$2531,10,FALSE),0) -> 0 | M48: =IFERROR(VLOOKUP($A48,Filtro!$A$5:$AW$2531,11,FALSE),0) -> 0 | N48: =IFERROR(VLOOKUP($A48,Filtro!$A$5:$AW$2531,12,FALSE),0) -> 0 | O48: =IFERROR(VLOOKUP($A48,Filtro!$A$5:$AW$2531,13,FALSE),0) -> 0 | P48: =IFERROR(VLOOKUP($A48,Filtro!$A$5:$AW$2531,14,FALSE),0) -> 1 | Q48: =IFERROR(VLOOKUP($A48,Filtro!$A$5:$AW$2531,15,FALSE),0) -> 2 | R48: =IFERROR(VLOOKUP($A48,Filtro!$A$5:$AW$2531,16,FALSE),0) -> 1 | S48: =IFERROR(VLOOKUP($A48,Filtro!$A$5:$AW$2531,17,FALSE),0) -> 3 | T48: =IFERROR(VLOOKUP($A48,Filtro!$A$5:$AW$2531,18,FALSE),0) -> 6 | U48: =IFERROR(VLOOKUP($A48,Filtro!$A$5:$AW$2531,19,FALSE),0) -> 4 | V48: =IFERROR(VLOOKUP($A48,Filtro!$A$5:$AW$2531,20,FALSE),0) -> 5 | W48: =IFERROR(VLOOKUP($A48,Filtro!$A$5:$AW$2531,21,FALSE),0) -> 7 | X48: =IFERROR(VLOOKUP($A48,Filtro!$A$5:$AW$2531,22,FALSE),0) -> 12 | Y48: =IFERROR(VLOOKUP($A48,Filtro!$A$5:$AW$2531,23,FALSE),0) -> 17 | Z48: =IFERROR(VLOOKUP($A48,Filtro!$A$5:$AW$2531,24,FALSE),0) -> 19 | AA48: =IFERROR(VLOOKUP($A48,Filtro!$A$5:$AW$2531,25,FALSE),0) -> 8 | AB48: =IFERROR(VLOOKUP($A48,Filtro!$A$5:$AW$2531,26,FALSE),0) -> 41 | AC48: =IFERROR(VLOOKUP($A48,Filtro!$A$5:$AW$2531,27,FALSE),0) -> 29 | AD48: =IFERROR(VLOOKUP($A48,Filtro!$A$5:$AW$2531,28,FALSE),0) -> 36 | AE48: =IFERROR(VLOOKUP($A48,Filtro!$A$5:$AW$2531,29,FALSE),0) -> 29 | AF48: =IFERROR(VLOOKUP($A48,Filtro!$A$5:$AW$2531,30,FALSE),0) -> 34 | AG48: =IFERROR(VLOOKUP($A48,Filtro!$A$5:$AW$2531,31,FALSE),0) -> 23 | AH48: =IFERROR(VLOOKUP($A48,Filtro!$A$5:$AW$2531,32,FALSE),0) -> 38 | AI48: =IFERROR(VLOOKUP($A48,Filtro!$A$5:$AW$2531,33,FALSE),0) -> 22 | AJ48: =IFERROR(VLOOKUP($A48,Filtro!$A$5:$AW$2531,34,FALSE),0) -> 29 | AK48: =IFERROR(VLOOKUP($A48,Filtro!$A$5:$AW$2531,35,FALSE),0) -> 22 | AL48: =IFERROR(VLOOKUP($A48,Filtro!$A$5:$AW$2531,36,FALSE),0) -> 26 | AM48: =IFERROR(VLOOKUP($A48,Filtro!$A$5:$AW$2531,37,FALSE),0) -> 31 | AN48: =IFERROR(VLOOKUP($A48,Filtro!$A$5:$AW$2531,38,FALSE),0) -> 31 | AO48: =IFERROR(VLOOKUP($A48,Filtro!$A$5:$AW$2531,39,FALSE),0) -> 36 | AP48: =IFERROR(VLOOKUP($A48,Filtro!$A$5:$AW$2531,40,FALSE),0) -> 0 | DB48: 0 | DC48: 0 | DD48: 0 | DE48: 0
A49: 01030100A | B49: SEGUIMIENTO AUTOVALENTE CON RIESGO | C49: MÉDICO/A | D49: 35 | E49: =SUM(AG49+AI49+AK49+AM49) -> 8 | F49: =SUM(AH49+AJ49+AL49+AN49) -> 27 | G49: =IFERROR(VLOOKUP($A49,Filtro!$A$5:$AW$2531,5,FALSE),0) -> 0 | H49: =IFERROR(VLOOKUP($A49,Filtro!$A$5:$AW$2531,6,FALSE),0) -> 0 | I49: =IFERROR(VLOOKUP($A49,Filtro!$A$5:$AW$2531,7,FALSE),0) -> 0 | J49: =IFERROR(VLOOKUP($A49,Filtro!$A$5:$AW$2531,8,FALSE),0) -> 0 | K49: =IFERROR(VLOOKUP($A49,Filtro!$A$5:$AW$2531,9,FALSE),0) -> 0 | L49: =IFERROR(VLOOKUP($A49,Filtro!$A$5:$AW$2531,10,FALSE),0) -> 0 | M49: =IFERROR(VLOOKUP($A49,Filtro!$A$5:$AW$2531,11,FALSE),0) -> 0 | N49: =IFERROR(VLOOKUP($A49,Filtro!$A$5:$AW$2531,12,FALSE),0) -> 0 | O49: =IFERROR(VLOOKUP($A49,Filtro!$A$5:$AW$2531,13,FALSE),0) -> 0 | P49: =IFERROR(VLOOKUP($A49,Filtro!$A$5:$AW$2531,14,FALSE),0) -> 0 | Q49: =IFERROR(VLOOKUP($A49,Filtro!$A$5:$AW$2531,15,FALSE),0) -> 0 | R49: =IFERROR(VLOOKUP($A49,Filtro!$A$5:$AW$2531,16,FALSE),0) -> 0 | S49: =IFERROR(VLOOKUP($A49,Filtro!$A$5:$AW$2531,17,FALSE),0) -> 0 | T49: =IFERROR(VLOOKUP($A49,Filtro!$A$5:$AW$2531,18,FALSE),0) -> 0 | U49: =IFERROR(VLOOKUP($A49,Filtro!$A$5:$AW$2531,19,FALSE),0) -> 0 | V49: =IFERROR(VLOOKUP($A49,Filtro!$A$5:$AW$2531,20,FALSE),0) -> 0 | W49: =IFERROR(VLOOKUP($A49,Filtro!$A$5:$AW$2531,21,FALSE),0) -> 0 | X49: =IFERROR(VLOOKUP($A49,Filtro!$A$5:$AW$2531,22,FALSE),0) -> 0 | Y49: =IFERROR(VLOOKUP($A49,Filtro!$A$5:$AW$2531,23,FALSE),0) -> 0 | Z49: =IFERROR(VLOOKUP($A49,Filtro!$A$5:$AW$2531,24,FALSE),0) -> 0 | AA49: =IFERROR(VLOOKUP($A49,Filtro!$A$5:$AW$2531,25,FALSE),0) -> 0 | AB49: =IFERROR(VLOOKUP($A49,Filtro!$A$5:$AW$2531,26,FALSE),0) -> 0 | AC49: =IFERROR(VLOOKUP($A49,Filtro!$A$5:$AW$2531,27,FALSE),0) -> 0 | AD49: =IFERROR(VLOOKUP($A49,Filtro!$A$5:$AW$2531,28,FALSE),0) -> 0 | AE49: =IFERROR(VLOOKUP($A49,Filtro!$A$5:$AW$2531,29,FALSE),0) -> 0 | AF49: =IFERROR(VLOOKUP($A49,Filtro!$A$5:$AW$2531,30,FALSE),0) -> 0 | AG49: =IFERROR(VLOOKUP($A49,Filtro!$A$5:$AW$2531,31,FALSE),0) -> 1 | AH49: =IFERROR(VLOOKUP($A49,Filtro!$A$5:$AW$2531,32,FALSE),0) -> 5 | AI49: =IFERROR(VLOOKUP($A49,Filtro!$A$5:$AW$2531,33,FALSE),0) -> 4 | AJ49: =IFERROR(VLOOKUP($A49,Filtro!$A$5:$AW$2531,34,FALSE),0) -> 4 | AK49: =IFERROR(VLOOKUP($A49,Filtro!$A$5:$AW$2531,35,FALSE),0) -> 0 | AL49: =IFERROR(VLOOKUP($A49,Filtro!$A$5:$AW$2531,36,FALSE),0) -> 11 | AM49: =IFERROR(VLOOKUP($A49,Filtro!$A$5:$AW$2531,37,FALSE),0) -> 3 | AN49: =IFERROR(VLOOKUP($A49,Filtro!$A$5:$AW$2531,38,FALSE),0) -> 7 | AO49: =IFERROR(VLOOKUP($A49,Filtro!$A$5:$AW$2531,39,FALSE),0) -> 0 | AP49: =IFERROR(VLOOKUP($A49,Filtro!$A$5:$AW$2531,40,FALSE),0) -> 0 | DB49: 0 | DC49: 0 | DD49: 0 | DE49: 0
A50: 01030200B | C50: ENFERMERA/O | D50: 944 | E50: =SUM(AG50+AI50+AK50+AM50) -> 369 | F50: =SUM(AH50+AJ50+AL50+AN50) -> 575 | G50: =IFERROR(VLOOKUP($A50,Filtro!$A$5:$AW$2531,5,FALSE),0) -> 0 | H50: =IFERROR(VLOOKUP($A50,Filtro!$A$5:$AW$2531,6,FALSE),0) -> 0 | I50: =IFERROR(VLOOKUP($A50,Filtro!$A$5:$AW$2531,7,FALSE),0) -> 0 | J50: =IFERROR(VLOOKUP($A50,Filtro!$A$5:$AW$2531,8,FALSE),0) -> 0 | K50: =IFERROR(VLOOKUP($A50,Filtro!$A$5:$AW$2531,9,FALSE),0) -> 0 | L50: =IFERROR(VLOOKUP($A50,Filtro!$A$5:$AW$2531,10,FALSE),0) -> 0 | M50: =IFERROR(VLOOKUP($A50,Filtro!$A$5:$AW$2531,11,FALSE),0) -> 0 | N50: =IFERROR(VLOOKUP($A50,Filtro!$A$5:$AW$2531,12,FALSE),0) -> 0 | O50: =IFERROR(VLOOKUP($A50,Filtro!$A$5:$AW$2531,13,FALSE),0) -> 0 | P50: =IFERROR(VLOOKUP($A50,Filtro!$A$5:$AW$2531,14,FALSE),0) -> 0 | Q50: =IFERROR(VLOOKUP($A50,Filtro!$A$5:$AW$2531,15,FALSE),0) -> 0 | R50: =IFERROR(VLOOKUP($A50,Filtro!$A$5:$AW$2531,16,FALSE),0) -> 0 | S50: =IFERROR(VLOOKUP($A50,Filtro!$A$5:$AW$2531,17,FALSE),0) -> 0 | T50: =IFERROR(VLOOKUP($A50,Filtro!$A$5:$AW$2531,18,FALSE),0) -> 0 | U50: =IFERROR(VLOOKUP($A50,Filtro!$A$5:$AW$2531,19,FALSE),0) -> 0 | V50: =IFERROR(VLOOKUP($A50,Filtro!$A$5:$AW$2531,20,FALSE),0) -> 0 | W50: =IFERROR(VLOOKUP($A50,Filtro!$A$5:$AW$2531,21,FALSE),0) -> 0 | X50: =IFERROR(VLOOKUP($A50,Filtro!$A$5:$AW$2531,22,FALSE),0) -> 0 | Y50: =IFERROR(VLOOKUP($A50,Filtro!$A$5:$AW$2531,23,FALSE),0) -> 0 | Z50: =IFERROR(VLOOKUP($A50,Filtro!$A$5:$AW$2531,24,FALSE),0) -> 0 | AA50: =IFERROR(VLOOKUP($A50,Filtro!$A$5:$AW$2531,25,FALSE),0) -> 0 | AB50: =IFERROR(VLOOKUP($A50,Filtro!$A$5:$AW$2531,26,FALSE),0) -> 0 | AC50: =IFERROR(VLOOKUP($A50,Filtro!$A$5:$AW$2531,27,FALSE),0) -> 0 | AD50: =IFERROR(VLOOKUP($A50,Filtro!$A$5:$AW$2531,28,FALSE),0) -> 0 | AE50: =IFERROR(VLOOKUP($A50,Filtro!$A$5:$AW$2531,29,FALSE),0) -> 0 | AF50: =IFERROR(VLOOKUP($A50,Filtro!$A$5:$AW$2531,30,FALSE),0) -> 0 | AG50: =IFERROR(VLOOKUP($A50,Filtro!$A$5:$AW$2531,31,FALSE),0) -> 68 | AH50: =IFERROR(VLOOKUP($A50,Filtro!$A$5:$AW$2531,32,FALSE),0) -> 138 | AI50: =IFERROR(VLOOKUP($A50,Filtro!$A$5:$AW$2531,33,FALSE),0) -> 108 | AJ50: =IFERROR(VLOOKUP($A50,Filtro!$A$5:$AW$2531,34,FALSE),0) -> 155 | AK50: =IFERROR(VLOOKUP($A50,Filtro!$A$5:$AW$2531,35,FALSE),0) -> 90 | AL50: =IFERROR(VLOOKUP($A50,Filtro!$A$5:$AW$2531,36,FALSE),0) -> 138 | AM50: =IFERROR(VLOOKUP($A50,Filtro!$A$5:$AW$2531,37,FALSE),0) -> 103 | AN50: =IFERROR(VLOOKUP($A50,Filtro!$A$5:$AW$2531,38,FALSE),0) -> 144 | AO50: =IFERROR(VLOOKUP($A50,Filtro!$A$5:$AW$2531,39,FALSE),0) -> 1 | AP50: =IFERROR(VLOOKUP($A50,Filtro!$A$5:$AW$2531,40,FALSE),0) -> 0 | DB50: 0 | DC50: 0 | DD50: 0 | DE50: 0
A51: 09600204 | C51: OTROS PROFESIONALES DEBIDAMENTE CAPACITADOS | D51: 75 | E51: 25 | F51: 50 | G51: =IFERROR(VLOOKUP($A51,Filtro!$A$5:$AW$2531,5,FALSE),0) -> 0 | H51: =IFERROR(VLOOKUP($A51,Filtro!$A$5:$AW$2531,6,FALSE),0) -> 0 | I51: =IFERROR(VLOOKUP($A51,Filtro!$A$5:$AW$2531,7,FALSE),0) -> 0 | J51: =IFERROR(VLOOKUP($A51,Filtro!$A$5:$AW$2531,8,FALSE),0) -> 0 | K51: =IFERROR(VLOOKUP($A51,Filtro!$A$5:$AW$2531,9,FALSE),0) -> 0 | L51: =IFERROR(VLOOKUP($A51,Filtro!$A$5:$AW$2531,10,FALSE),0) -> 0 | M51: =IFERROR(VLOOKUP($A51,Filtro!$A$5:$AW$2531,11,FALSE),0) -> 0 | N51: =IFERROR(VLOOKUP($A51,Filtro!$A$5:$AW$2531,12,FALSE),0) -> 0 | O51: =IFERROR(VLOOKUP($A51,Filtro!$A$5:$AW$2531,13,FALSE),0) -> 0 | P51: =IFERROR(VLOOKUP($A51,Filtro!$A$5:$AW$2531,14,FALSE),0) -> 0 | Q51: =IFERROR(VLOOKUP($A51,Filtro!$A$5:$AW$2531,15,FALSE),0) -> 0 | R51: =IFERROR(VLOOKUP($A51,Filtro!$A$5:$AW$2531,16,FALSE),0) -> 0 | S51: =IFERROR(VLOOKUP($A51,Filtro!$A$5:$AW$2531,17,FALSE),0) -> 0 | T51: =IFERROR(VLOOKUP($A51,Filtro!$A$5:$AW$2531,18,FALSE),0) -> 0 | U51: =IFERROR(VLOOKUP($A51,Filtro!$A$5:$AW$2531,19,FALSE),0) -> 0 | V51: =IFERROR(VLOOKUP($A51,Filtro!$A$5:$AW$2531,20,FALSE),0) -> 0 | W51: =IFERROR(VLOOKUP($A51,Filtro!$A$5:$AW$2531,21,FALSE),0) -> 0 | X51: =IFERROR(VLOOKUP($A51,Filtro!$A$5:$AW$2531,22,FALSE),0) -> 0 | Y51: =IFERROR(VLOOKUP($A51,Filtro!$A$5:$AW$2531,23,FALSE),0) -> 0 | Z51: =IFERROR(VLOOKUP($A51,Filtro!$A$5:$AW$2531,24,FALSE),0) -> 0 | AA51: =IFERROR(VLOOKUP($A51,Filtro!$A$5:$AW$2531,25,FALSE),0) -> 0 | AB51: =IFERROR(VLOOKUP($A51,Filtro!$A$5:$AW$2531,26,FALSE),0) -> 0 | AC51: =IFERROR(VLOOKUP($A51,Filtro!$A$5:$AW$2531,27,FALSE),0) -> 0 | AD51: =IFERROR(VLOOKUP($A51,Filtro!$A$5:$AW$2531,28,FALSE),0) -> 0 | AE51: =IFERROR(VLOOKUP($A51,Filtro!$A$5:$AW$2531,29,FALSE),0) -> 0 | AF51: =IFERROR(VLOOKUP($A51,Filtro!$A$5:$AW$2531,30,FALSE),0) -> 0 | AG51: =IFERROR(VLOOKUP($A51,Filtro!$A$5:$AW$2531,31,FALSE),0) -> 5 | AH51: =IFERROR(VLOOKUP($A51,Filtro!$A$5:$AW$2531,32,FALSE),0) -> 14 | AI51: =IFERROR(VLOOKUP($A51,Filtro!$A$5:$AW$2531,33,FALSE),0) -> 8 | AJ51: =IFERROR(VLOOKUP($A51,Filtro!$A$5:$AW$2531,34,FALSE),0) -> 22 | AK51: =IFERROR(VLOOKUP($A51,Filtro!$A$5:$AW$2531,35,FALSE),0) -> 6 | AL51: =IFERROR(VLOOKUP($A51,Filtro!$A$5:$AW$2531,36,FALSE),0) -> 7 | AM51: =IFERROR(VLOOKUP($A51,Filtro!$A$5:$AW$2531,37,FALSE),0) -> 6 | AN51: =IFERROR(VLOOKUP($A51,Filtro!$A$5:$AW$2531,38,FALSE),0) -> 7 | AO51: =IFERROR(VLOOKUP($A51,Filtro!$A$5:$AW$2531,39,FALSE),0) -> 0 | AP51: =IFERROR(VLOOKUP($A51,Filtro!$A$5:$AW$2531,40,FALSE),0) -> 0 | DB51: 0 | DC51: 0 | DD51: 0 | DE51: 0
A52: 01030300C | B52: SEGUIMIENTO RIESGO DEPENDENCIA | C52: MÉDICO/A | D52: 28 | E52: 13 | F52: 15 | G52: =IFERROR(VLOOKUP($A52,Filtro!$A$5:$AW$2531,5,FALSE),0) -> 0 | H52: =IFERROR(VLOOKUP($A52,Filtro!$A$5:$AW$2531,6,FALSE),0) -> 0 | I52: =IFERROR(VLOOKUP($A52,Filtro!$A$5:$AW$2531,7,FALSE),0) -> 0 | J52: =IFERROR(VLOOKUP($A52,Filtro!$A$5:$AW$2531,8,FALSE),0) -> 0 | K52: =IFERROR(VLOOKUP($A52,Filtro!$A$5:$AW$2531,9,FALSE),0) -> 0 | L52: =IFERROR(VLOOKUP($A52,Filtro!$A$5:$AW$2531,10,FALSE),0) -> 0 | M52: =IFERROR(VLOOKUP($A52,Filtro!$A$5:$AW$2531,11,FALSE),0) -> 0 | N52: =IFERROR(VLOOKUP($A52,Filtro!$A$5:$AW$2531,12,FALSE),0) -> 0 | O52: =IFERROR(VLOOKUP($A52,Filtro!$A$5:$AW$2531,13,FALSE),0) -> 0 | P52: =IFERROR(VLOOKUP($A52,Filtro!$A$5:$AW$2531,14,FALSE),0) -> 0 | Q52: =IFERROR(VLOOKUP($A52,Filtro!$A$5:$AW$2531,15,FALSE),0) -> 0 | R52: =IFERROR(VLOOKUP($A52,Filtro!$A$5:$AW$2531,16,FALSE),0) -> 0 | S52: =IFERROR(VLOOKUP($A52,Filtro!$A$5:$AW$2531,17,FALSE),0) -> 0 | T52: =IFERROR(VLOOKUP($A52,Filtro!$A$5:$AW$2531,18,FALSE),0) -> 0 | U52: =IFERROR(VLOOKUP($A52,Filtro!$A$5:$AW$2531,19,FALSE),0) -> 0 | V52: =IFERROR(VLOOKUP($A52,Filtro!$A$5:$AW$2531,20,FALSE),0) -> 0 | W52: =IFERROR(VLOOKUP($A52,Filtro!$A$5:$AW$2531,21,FALSE),0) -> 0 | X52: =IFERROR(VLOOKUP($A52,Filtro!$A$5:$AW$2531,22,FALSE),0) -> 0 | Y52: =IFERROR(VLOOKUP($A52,Filtro!$A$5:$AW$2531,23,FALSE),0) -> 0 | Z52: =IFERROR(VLOOKUP($A52,Filtro!$A$5:$AW$2531,24,FALSE),0) -> 0 | AA52: =IFERROR(VLOOKUP($A52,Filtro!$A$5:$AW$2531,25,FALSE),0) -> 0 | AB52: =IFERROR(VLOOKUP($A52,Filtro!$A$5:$AW$2531,26,FALSE),0) -> 0 | AC52: =IFERROR(VLOOKUP($A52,Filtro!$A$5:$AW$2531,27,FALSE),0) -> 0 | AD52: =IFERROR(VLOOKUP($A52,Filtro!$A$5:$AW$2531,28,FALSE),0) -> 0 | AE52: =IFERROR(VLOOKUP($A52,Filtro!$A$5:$AW$2531,29,FALSE),0) -> 0 | AF52: =IFERROR(VLOOKUP($A52,Filtro!$A$5:$AW$2531,30,FALSE),0) -> 0 | AG52: =IFERROR(VLOOKUP($A52,Filtro!$A$5:$AW$2531,31,FALSE),0) -> 2 | AH52: =IFERROR(VLOOKUP($A52,Filtro!$A$5:$AW$2531,32,FALSE),0) -> 6 | AI52: =IFERROR(VLOOKUP($A52,Filtro!$A$5:$AW$2531,33,FALSE),0) -> 4 | AJ52: =IFERROR(VLOOKUP($A52,Filtro!$A$5:$AW$2531,34,FALSE),0) -> 2 | AK52: =IFERROR(VLOOKUP($A52,Filtro!$A$5:$AW$2531,35,FALSE),0) -> 3 | AL52: =IFERROR(VLOOKUP($A52,Filtro!$A$5:$AW$2531,36,FALSE),0) -> 2 | AM52: =IFERROR(VLOOKUP($A52,Filtro!$A$5:$AW$2531,37,FALSE),0) -> 4 | AN52: =IFERROR(VLOOKUP($A52,Filtro!$A$5:$AW$2531,38,FALSE),0) -> 5 | AO52: =IFERROR(VLOOKUP($A52,Filtro!$A$5:$AW$2531,39,FALSE),0) -> 1 | AP52: =IFERROR(VLOOKUP($A52,Filtro!$A$5:$AW$2531,40,FALSE),0) -> 0 | DB52: 0 | DC52: 0 | DD52: 0 | DE52: 0
A53: 01030400D | C53: ENFERMERA/O | D53: 430 | E53: =SUM(AG53+AI53+AK53+AM53) -> 157 | F53: =SUM(AH53+AJ53+AL53+AN53) -> 273 | G53: =IFERROR(VLOOKUP($A53,Filtro!$A$5:$AW$2531,5,FALSE),0) -> 0 | H53: =IFERROR(VLOOKUP($A53,Filtro!$A$5:$AW$2531,6,FALSE),0) -> 0 | I53: =IFERROR(VLOOKUP($A53,Filtro!$A$5:$AW$2531,7,FALSE),0) -> 0 | J53: =IFERROR(VLOOKUP($A53,Filtro!$A$5:$AW$2531,8,FALSE),0) -> 0 | K53: =IFERROR(VLOOKUP($A53,Filtro!$A$5:$AW$2531,9,FALSE),0) -> 0 | L53: =IFERROR(VLOOKUP($A53,Filtro!$A$5:$AW$2531,10,FALSE),0) -> 0 | M53: =IFERROR(VLOOKUP($A53,Filtro!$A$5:$AW$2531,11,FALSE),0) -> 0 | N53: =IFERROR(VLOOKUP($A53,Filtro!$A$5:$AW$2531,12,FALSE),0) -> 0 | O53: =IFERROR(VLOOKUP($A53,Filtro!$A$5:$AW$2531,13,FALSE),0) -> 0 | P53: =IFERROR(VLOOKUP($A53,Filtro!$A$5:$AW$2531,14,FALSE),0) -> 0 | Q53: =IFERROR(VLOOKUP($A53,Filtro!$A$5:$AW$2531,15,FALSE),0) -> 0 | R53: =IFERROR(VLOOKUP($A53,Filtro!$A$5:$AW$2531,16,FALSE),0) -> 0 | S53: =IFERROR(VLOOKUP($A53,Filtro!$A$5:$AW$2531,17,FALSE),0) -> 0 | T53: =IFERROR(VLOOKUP($A53,Filtro!$A$5:$AW$2531,18,FALSE),0) -> 0 | U53: =IFERROR(VLOOKUP($A53,Filtro!$A$5:$AW$2531,19,FALSE),0) -> 0 | V53: =IFERROR(VLOOKUP($A53,Filtro!$A$5:$AW$2531,20,FALSE),0) -> 0 | W53: =IFERROR(VLOOKUP($A53,Filtro!$A$5:$AW$2531,21,FALSE),0) -> 0 | X53: =IFERROR(VLOOKUP($A53,Filtro!$A$5:$AW$2531,22,FALSE),0) -> 0 | Y53: =IFERROR(VLOOKUP($A53,Filtro!$A$5:$AW$2531,23,FALSE),0) -> 0 | Z53: =IFERROR(VLOOKUP($A53,Filtro!$A$5:$AW$2531,24,FALSE),0) -> 0 | AA53: =IFERROR(VLOOKUP($A53,Filtro!$A$5:$AW$2531,25,FALSE),0) -> 0 | AB53: =IFERROR(VLOOKUP($A53,Filtro!$A$5:$AW$2531,26,FALSE),0) -> 0 | AC53: =IFERROR(VLOOKUP($A53,Filtro!$A$5:$AW$2531,27,FALSE),0) -> 0 | AD53: =IFERROR(VLOOKUP($A53,Filtro!$A$5:$AW$2531,28,FALSE),0) -> 0 | AE53: =IFERROR(VLOOKUP($A53,Filtro!$A$5:$AW$2531,29,FALSE),0) -> 0 | AF53: =IFERROR(VLOOKUP($A53,Filtro!$A$5:$AW$2531,30,FALSE),0) -> 0 | AG53: =IFERROR(VLOOKUP($A53,Filtro!$A$5:$AW$2531,31,FALSE),0) -> 17 | AH53: =IFERROR(VLOOKUP($A53,Filtro!$A$5:$AW$2531,32,FALSE),0) -> 24 | AI53: =IFERROR(VLOOKUP($A53,Filtro!$A$5:$AW$2531,33,FALSE),0) -> 31 | AJ53: =IFERROR(VLOOKUP($A53,Filtro!$A$5:$AW$2531,34,FALSE),0) -> 65 | AK53: =IFERROR(VLOOKUP($A53,Filtro!$A$5:$AW$2531,35,FALSE),0) -> 29 | AL53: =IFERROR(VLOOKUP($A53,Filtro!$A$5:$AW$2531,36,FALSE),0) -> 58 | AM53: =IFERROR(VLOOKUP($A53,Filtro!$A$5:$AW$2531,37,FALSE),0) -> 80 | AN53: =IFERROR(VLOOKUP($A53,Filtro!$A$5:$AW$2531,38,FALSE),0) -> 126 | AO53: =IFERROR(VLOOKUP($A53,Filtro!$A$5:$AW$2531,39,FALSE),0) -> 5 | AP53: =IFERROR(VLOOKUP($A53,Filtro!$A$5:$AW$2531,40,FALSE),0) -> 0 | DB53: 0 | DC53: 0 | DD53: 0 | DE53: 0
A54: 09600205 | C54: OTROS PROFESIONALES DEBIDAMENTE CAPACITADOS | D54: 30 | E54: 12 | F54: 18 | G54: =IFERROR(VLOOKUP($A54,Filtro!$A$5:$AW$2531,5,FALSE),0) -> 0 | H54: =IFERROR(VLOOKUP($A54,Filtro!$A$5:$AW$2531,6,FALSE),0) -> 0 | I54: =IFERROR(VLOOKUP($A54,Filtro!$A$5:$AW$2531,7,FALSE),0) -> 0 | J54: =IFERROR(VLOOKUP($A54,Filtro!$A$5:$AW$2531,8,FALSE),0) -> 0 | K54: =IFERROR(VLOOKUP($A54,Filtro!$A$5:$AW$2531,9,FALSE),0) -> 0 | L54: =IFERROR(VLOOKUP($A54,Filtro!$A$5:$AW$2531,10,FALSE),0) -> 0 | M54: =IFERROR(VLOOKUP($A54,Filtro!$A$5:$AW$2531,11,FALSE),0) -> 0 | N54: =IFERROR(VLOOKUP($A54,Filtro!$A$5:$AW$2531,12,FALSE),0) -> 0 | O54: =IFERROR(VLOOKUP($A54,Filtro!$A$5:$AW$2531,13,FALSE),0) -> 0 | P54: =IFERROR(VLOOKUP($A54,Filtro!$A$5:$AW$2531,14,FALSE),0) -> 0 | Q54: =IFERROR(VLOOKUP($A54,Filtro!$A$5:$AW$2531,15,FALSE),0) -> 0 | R54: =IFERROR(VLOOKUP($A54,Filtro!$A$5:$AW$2531,16,FALSE),0) -> 0 | S54: =IFERROR(VLOOKUP($A54,Filtro!$A$5:$AW$2531,17,FALSE),0) -> 0 | T54: =IFERROR(VLOOKUP($A54,Filtro!$A$5:$AW$2531,18,FALSE),0) -> 0 | U54: =IFERROR(VLOOKUP($A54,Filtro!$A$5:$AW$2531,19,FALSE),0) -> 0 | V54: =IFERROR(VLOOKUP($A54,Filtro!$A$5:$AW$2531,20,FALSE),0) -> 0 | W54: =IFERROR(VLOOKUP($A54,Filtro!$A$5:$AW$2531,21,FALSE),0) -> 0 | X54: =IFERROR(VLOOKUP($A54,Filtro!$A$5:$AW$2531,22,FALSE),0) -> 0 | Y54: =IFERROR(VLOOKUP($A54,Filtro!$A$5:$AW$2531,23,FALSE),0) -> 0 | Z54: =IFERROR(VLOOKUP($A54,Filtro!$A$5:$AW$2531,24,FALSE),0) -> 0 | AA54: =IFERROR(VLOOKUP($A54,Filtro!$A$5:$AW$2531,25,FALSE),0) -> 0 | AB54: =IFERROR(VLOOKUP($A54,Filtro!$A$5:$AW$2531,26,FALSE),0) -> 0 | AC54: =IFERROR(VLOOKUP($A54,Filtro!$A$5:$AW$2531,27,FALSE),0) -> 0 | AD54: =IFERROR(VLOOKUP($A54,Filtro!$A$5:$AW$2531,28,FALSE),0) -> 0 | AE54: =IFERROR(VLOOKUP($A54,Filtro!$A$5:$AW$2531,29,FALSE),0) -> 0 | AF54: =IFERROR(VLOOKUP($A54,Filtro!$A$5:$AW$2531,30,FALSE),0) -> 0 | AG54: =IFERROR(VLOOKUP($A54,Filtro!$A$5:$AW$2531,31,FALSE),0) -> 1 | AH54: =IFERROR(VLOOKUP($A54,Filtro!$A$5:$AW$2531,32,FALSE),0) -> 3 | AI54: =IFERROR(VLOOKUP($A54,Filtro!$A$5:$AW$2531,33,FALSE),0) -> 3 | AJ54: =IFERROR(VLOOKUP($A54,Filtro!$A$5:$AW$2531,34,FALSE),0) -> 6 | AK54: =IFERROR(VLOOKUP($A54,Filtro!$A$5:$AW$2531,35,FALSE),0) -> 5 | AL54: =IFERROR(VLOOKUP($A54,Filtro!$A$5:$AW$2531,36,FALSE),0) -> 4 | AM54: =IFERROR(VLOOKUP($A54,Filtro!$A$5:$AW$2531,37,FALSE),0) -> 3 | AN54: =IFERROR(VLOOKUP($A54,Filtro!$A$5:$AW$2531,38,FALSE),0) -> 5 | AO54: =IFERROR(VLOOKUP($A54,Filtro!$A$5:$AW$2531,39,FALSE),0) -> 0 | AP54: =IFERROR(VLOOKUP($A54,Filtro!$A$5:$AW$2531,40,FALSE),0) -> 0 | DB54: 0 | DC54: 0 | DD54: 0 | DE54: 0
A55: 01200010 | B55: DE INFECCIÓN TRANSMISIÓN SEXUAL | C55: MÉDICO/A | D55: 38 | E55: =SUM(G55+I55+K55+M55+O55+Q55+S55+U55+W55+Y55+AA55+AC55+AE55+AG55+AI55+AK55+AM55) -> 13 | F55: =SUM(H55+J55+L55+N55+P55+R55+T55+V55+X55+Z55+AB55+AD55+AF55+AH55+AJ55+AL55+AN55) -> 25 | G55: =IFERROR(VLOOKUP($A55,Filtro!$A$5:$AW$2531,5,FALSE),0) -> 0 | H55: =IFERROR(VLOOKUP($A55,Filtro!$A$5:$AW$2531,6,FALSE),0) -> 0 | I55: =IFERROR(VLOOKUP($A55,Filtro!$A$5:$AW$2531,7,FALSE),0) -> 0 | J55: =IFERROR(VLOOKUP($A55,Filtro!$A$5:$AW$2531,8,FALSE),0) -> 0 | K55: =IFERROR(VLOOKUP($A55,Filtro!$A$5:$AW$2531,9,FALSE),0) -> 0 | L55: =IFERROR(VLOOKUP($A55,Filtro!$A$5:$AW$2531,10,FALSE),0) -> 0 | M55: =IFERROR(VLOOKUP($A55,Filtro!$A$5:$AW$2531,11,FALSE),0) -> 1 | N55: =IFERROR(VLOOKUP($A55,Filtro!$A$5:$AW$2531,12,FALSE),0) -> 1 | O55: =IFERROR(VLOOKUP($A55,Filtro!$A$5:$AW$2531,13,FALSE),0) -> 1 | P55: =IFERROR(VLOOKUP($A55,Filtro!$A$5:$AW$2531,14,FALSE),0) -> 1 | Q55: =IFERROR(VLOOKUP($A55,Filtro!$A$5:$AW$2531,15,FALSE),0) -> 1 | R55: =IFERROR(VLOOKUP($A55,Filtro!$A$5:$AW$2531,16,FALSE),0) -> 0 | S55: =IFERROR(VLOOKUP($A55,Filtro!$A$5:$AW$2531,17,FALSE),0) -> 1 | T55: =IFERROR(VLOOKUP($A55,Filtro!$A$5:$AW$2531,18,FALSE),0) -> 0 | U55: =IFERROR(VLOOKUP($A55,Filtro!$A$5:$AW$2531,19,FALSE),0) -> 1 | V55: =IFERROR(VLOOKUP($A55,Filtro!$A$5:$AW$2531,20,FALSE),0) -> 0 | W55: =IFERROR(VLOOKUP($A55,Filtro!$A$5:$AW$2531,21,FALSE),0) -> 0 | X55: =IFERROR(VLOOKUP($A55,Filtro!$A$5:$AW$2531,22,FALSE),0) -> 0 | Y55: =IFERROR(VLOOKUP($A55,Filtro!$A$5:$AW$2531,23,FALSE),0) -> 0 | Z55: =IFERROR(VLOOKUP($A55,Filtro!$A$5:$AW$2531,24,FALSE),0) -> 1 | AA55: =IFERROR(VLOOKUP($A55,Filtro!$A$5:$AW$2531,25,FALSE),0) -> 0 | AB55: =IFERROR(VLOOKUP($A55,Filtro!$A$5:$AW$2531,26,FALSE),0) -> 2 | AC55: =IFERROR(VLOOKUP($A55,Filtro!$A$5:$AW$2531,27,FALSE),0) -> 0 | AD55: =IFERROR(VLOOKUP($A55,Filtro!$A$5:$AW$2531,28,FALSE),0) -> 3 | AE55: =IFERROR(VLOOKUP($A55,Filtro!$A$5:$AW$2531,29,FALSE),0) -> 0 | AF55: =IFERROR(VLOOKUP($A55,Filtro!$A$5:$AW$2531,30,FALSE),0) -> 6 | AG55: =IFERROR(VLOOKUP($A55,Filtro!$A$5:$AW$2531,31,FALSE),0) -> 2 | AH55: =IFERROR(VLOOKUP($A55,Filtro!$A$5:$AW$2531,32,FALSE),0) -> 3 | AI55: =IFERROR(VLOOKUP($A55,Filtro!$A$5:$AW$2531,33,FALSE),0) -> 4 | AJ55: =IFERROR(VLOOKUP($A55,Filtro!$A$5:$AW$2531,34,FALSE),0) -> 3 | AK55: =IFERROR(VLOOKUP($A55,Filtro!$A$5:$AW$2531,35,FALSE),0) -> 1 | AL55: =IFERROR(VLOOKUP($A55,Filtro!$A$5:$AW$2531,36,FALSE),0) -> 2 | AM55: =IFERROR(VLOOKUP($A55,Filtro!$A$5:$AW$2531,37,FALSE),0) -> 1 | AN55: =IFERROR(VLOOKUP($A55,Filtro!$A$5:$AW$2531,38,FALSE),0) -> 3 | AO55: =IFERROR(VLOOKUP($A55,Filtro!$A$5:$AW$2531,39,FALSE),0) -> 0 | AP55: =IFERROR(VLOOKUP($A55,Filtro!$A$5:$AW$2531,40,FALSE),0) -> 0 | DB55: 0 | DC55: 0 | DD55: 0 | DE55: 0
A56: 01200020 | C56: ENFERMERA/O | D56: 222 | E56: =SUM(G56+I56+K56+M56+O56+Q56+S56+U56+W56+Y56+AA56+AC56+AE56+AG56+AI56+AK56+AM56) -> 68 | F56: 154 | G56: =IFERROR(VLOOKUP($A56,Filtro!$A$5:$AW$2531,5,FALSE),0) -> 0 | H56: =IFERROR(VLOOKUP($A56,Filtro!$A$5:$AW$2531,6,FALSE),0) -> 0 | I56: =IFERROR(VLOOKUP($A56,Filtro!$A$5:$AW$2531,7,FALSE),0) -> 2 | J56: =IFERROR(VLOOKUP($A56,Filtro!$A$5:$AW$2531,8,FALSE),0) -> 1 | K56: =IFERROR(VLOOKUP($A56,Filtro!$A$5:$AW$2531,9,FALSE),0) -> 0 | L56: =IFERROR(VLOOKUP($A56,Filtro!$A$5:$AW$2531,10,FALSE),0) -> 4 | M56: =IFERROR(VLOOKUP($A56,Filtro!$A$5:$AW$2531,11,FALSE),0) -> 0 | N56: =IFERROR(VLOOKUP($A56,Filtro!$A$5:$AW$2531,12,FALSE),0) -> 1 | O56: =IFERROR(VLOOKUP($A56,Filtro!$A$5:$AW$2531,13,FALSE),0) -> 0 | P56: =IFERROR(VLOOKUP($A56,Filtro!$A$5:$AW$2531,14,FALSE),0) -> 2 | Q56: =IFERROR(VLOOKUP($A56,Filtro!$A$5:$AW$2531,15,FALSE),0) -> 0 | R56: =IFERROR(VLOOKUP($A56,Filtro!$A$5:$AW$2531,16,FALSE),0) -> 4 | S56: =IFERROR(VLOOKUP($A56,Filtro!$A$5:$AW$2531,17,FALSE),0) -> 2 | T56: =IFERROR(VLOOKUP($A56,Filtro!$A$5:$AW$2531,18,FALSE),0) -> 4 | U56: =IFERROR(VLOOKUP($A56,Filtro!$A$5:$AW$2531,19,FALSE),0) -> 1 | V56: =IFERROR(VLOOKUP($A56,Filtro!$A$5:$AW$2531,20,FALSE),0) -> 10 | W56: =IFERROR(VLOOKUP($A56,Filtro!$A$5:$AW$2531,21,FALSE),0) -> 0 | X56: =IFERROR(VLOOKUP($A56,Filtro!$A$5:$AW$2531,22,FALSE),0) -> 17 | Y56: =IFERROR(VLOOKUP($A56,Filtro!$A$5:$AW$2531,23,FALSE),0) -> 1 | Z56: =IFERROR(VLOOKUP($A56,Filtro!$A$5:$AW$2531,24,FALSE),0) -> 7 | AA56: =IFERROR(VLOOKUP($A56,Filtro!$A$5:$AW$2531,25,FALSE),0) -> 2 | AB56: =IFERROR(VLOOKUP($A56,Filtro!$A$5:$AW$2531,26,FALSE),0) -> 12 | AC56: =IFERROR(VLOOKUP($A56,Filtro!$A$5:$AW$2531,27,FALSE),0) -> 8 | AD56: =IFERROR(VLOOKUP($A56,Filtro!$A$5:$AW$2531,28,FALSE),0) -> 16 | AE56: =IFERROR(VLOOKUP($A56,Filtro!$A$5:$AW$2531,29,FALSE),0) -> 16 | AF56: =IFERROR(VLOOKUP($A56,Filtro!$A$5:$AW$2531,30,FALSE),0) -> 12 | AG56: =IFERROR(VLOOKUP($A56,Filtro!$A$5:$AW$2531,31,FALSE),0) -> 11 | AH56: =IFERROR(VLOOKUP($A56,Filtro!$A$5:$AW$2531,32,FALSE),0) -> 20 | AI56: =IFERROR(VLOOKUP($A56,Filtro!$A$5:$AW$2531,33,FALSE),0) -> 10 | AJ56: =IFERROR(VLOOKUP($A56,Filtro!$A$5:$AW$2531,34,FALSE),0) -> 17 | AK56: =IFERROR(VLOOKUP($A56,Filtro!$A$5:$AW$2531,35,FALSE),0) -> 8 | AL56: =IFERROR(VLOOKUP($A56,Filtro!$A$5:$AW$2531,36,FALSE),0) -> 13 | AM56: =IFERROR(VLOOKUP($A56,Filtro!$A$5:$AW$2531,37,FALSE),0) -> 7 | AN56: =IFERROR(VLOOKUP($A56,Filtro!$A$5:$AW$2531,38,FALSE),0) -> 14 | AO56: =IFERROR(VLOOKUP($A56,Filtro!$A$5:$AW$2531,39,FALSE),0) -> 6 | AP56: =IFERROR(VLOOKUP($A56,Filtro!$A$5:$AW$2531,40,FALSE),0) -> 2 | DB56: 0 | DC56: 0 | DD56: 0 | DE56: 0
A57: 01200030 | C57: MATRONA/ÓN | D57: 185 | E57: =SUM(G57+I57+K57+M57+O57+Q57+S57+U57+W57+Y57+AA57+AC57+AE57+AG57+AI57+AK57+AM57) -> 39 | F57: 146 | G57: =IFERROR(VLOOKUP($A57,Filtro!$A$5:$AW$2531,5,FALSE),0) -> 0 | H57: =IFERROR(VLOOKUP($A57,Filtro!$A$5:$AW$2531,6,FALSE),0) -> 1 | I57: =IFERROR(VLOOKUP($A57,Filtro!$A$5:$AW$2531,7,FALSE),0) -> 0 | J57: =IFERROR(VLOOKUP($A57,Filtro!$A$5:$AW$2531,8,FALSE),0) -> 0 | K57: =IFERROR(VLOOKUP($A57,Filtro!$A$5:$AW$2531,9,FALSE),0) -> 0 | L57: =IFERROR(VLOOKUP($A57,Filtro!$A$5:$AW$2531,10,FALSE),0) -> 0 | M57: =IFERROR(VLOOKUP($A57,Filtro!$A$5:$AW$2531,11,FALSE),0) -> 2 | N57: =IFERROR(VLOOKUP($A57,Filtro!$A$5:$AW$2531,12,FALSE),0) -> 2 | O57: =IFERROR(VLOOKUP($A57,Filtro!$A$5:$AW$2531,13,FALSE),0) -> 8 | P57: =IFERROR(VLOOKUP($A57,Filtro!$A$5:$AW$2531,14,FALSE),0) -> 43 | Q57: =IFERROR(VLOOKUP($A57,Filtro!$A$5:$AW$2531,15,FALSE),0) -> 4 | R57: =IFERROR(VLOOKUP($A57,Filtro!$A$5:$AW$2531,16,FALSE),0) -> 23 | S57: =IFERROR(VLOOKUP($A57,Filtro!$A$5:$AW$2531,17,FALSE),0) -> 7 | T57: =IFERROR(VLOOKUP($A57,Filtro!$A$5:$AW$2531,18,FALSE),0) -> 22 | U57: =IFERROR(VLOOKUP($A57,Filtro!$A$5:$AW$2531,19,FALSE),0) -> 7 | V57: =IFERROR(VLOOKUP($A57,Filtro!$A$5:$AW$2531,20,FALSE),0) -> 11 | W57: =IFERROR(VLOOKUP($A57,Filtro!$A$5:$AW$2531,21,FALSE),0) -> 6 | X57: =IFERROR(VLOOKUP($A57,Filtro!$A$5:$AW$2531,22,FALSE),0) -> 14 | Y57: =IFERROR(VLOOKUP($A57,Filtro!$A$5:$AW$2531,23,FALSE),0) -> 3 | Z57: =IFERROR(VLOOKUP($A57,Filtro!$A$5:$AW$2531,24,FALSE),0) -> 5 | AA57: =IFERROR(VLOOKUP($A57,Filtro!$A$5:$AW$2531,25,FALSE),0) -> 1 | AB57: =IFERROR(VLOOKUP($A57,Filtro!$A$5:$AW$2531,26,FALSE),0) -> 10 | AC57: =IFERROR(VLOOKUP($A57,Filtro!$A$5:$AW$2531,27,FALSE),0) -> 0 | AD57: =IFERROR(VLOOKUP($A57,Filtro!$A$5:$AW$2531,28,FALSE),0) -> 5 | AE57: =IFERROR(VLOOKUP($A57,Filtro!$A$5:$AW$2531,29,FALSE),0) -> 0 | AF57: =IFERROR(VLOOKUP($A57,Filtro!$A$5:$AW$2531,30,FALSE),0) -> 1 | AG57: =IFERROR(VLOOKUP($A57,Filtro!$A$5:$AW$2531,31,FALSE),0) -> 1 | AH57: =IFERROR(VLOOKUP($A57,Filtro!$A$5:$AW$2531,32,FALSE),0) -> 2 | AI57: =IFERROR(VLOOKUP($A57,Filtro!$A$5:$AW$2531,33,FALSE),0) -> 0 | AJ57: =IFERROR(VLOOKUP($A57,Filtro!$A$5:$AW$2531,34,FALSE),0) -> 1 | AK57: =IFERROR(VLOOKUP($A57,Filtro!$A$5:$AW$2531,35,FALSE),0) -> 0 | AL57: =IFERROR(VLOOKUP($A57,Filtro!$A$5:$AW$2531,36,FALSE),0) -> 5 | AM57: =IFERROR(VLOOKUP($A57,Filtro!$A$5:$AW$2531,37,FALSE),0) -> 0 | AN57: =IFERROR(VLOOKUP($A57,Filtro!$A$5:$AW$2531,38,FALSE),0) -> 1 | AO57: =IFERROR(VLOOKUP($A57,Filtro!$A$5:$AW$2531,39,FALSE),0) -> 1 | AP57: =IFERROR(VLOOKUP($A57,Filtro!$A$5:$AW$2531,40,FALSE),0) -> 14 | DB57: 0 | DC57: 0 | DD57: 0 | DE57: 0
A58: 03030140 | B58: OTROS PROBLEMAS DE SALUD | C58: MÉDICO/A | D58: 17481 | E58: =SUM(G58+I58+K58+M58+O58+Q58+S58+U58+W58+Y58+AA58+AC58+AE58+AG58+AI58+AK58+AM58) -> 5208 | F58: 12273 | G58: =IFERROR(VLOOKUP($A58,Filtro!$A$5:$AW$2531,5,FALSE),0) -> 54 | H58: =IFERROR(VLOOKUP($A58,Filtro!$A$5:$AW$2531,6,FALSE),0) -> 48 | I58: =IFERROR(VLOOKUP($A58,Filtro!$A$5:$AW$2531,7,FALSE),0) -> 86 | J58: =IFERROR(VLOOKUP($A58,Filtro!$A$5:$AW$2531,8,FALSE),0) -> 50 | K58: =IFERROR(VLOOKUP($A58,Filtro!$A$5:$AW$2531,9,FALSE),0) -> 63 | L58: =IFERROR(VLOOKUP($A58,Filtro!$A$5:$AW$2531,10,FALSE),0) -> 66 | M58: =IFERROR(VLOOKUP($A58,Filtro!$A$5:$AW$2531,11,FALSE),0) -> 83 | N58: =IFERROR(VLOOKUP($A58,Filtro!$A$5:$AW$2531,12,FALSE),0) -> 149 | O58: =IFERROR(VLOOKUP($A58,Filtro!$A$5:$AW$2531,13,FALSE),0) -> 83 | P58: =IFERROR(VLOOKUP($A58,Filtro!$A$5:$AW$2531,14,FALSE),0) -> 211 | Q58: =IFERROR(VLOOKUP($A58,Filtro!$A$5:$AW$2531,15,FALSE),0) -> 73 | R58: =IFERROR(VLOOKUP($A58,Filtro!$A$5:$AW$2531,16,FALSE),0) -> 236 | S58: =IFERROR(VLOOKUP($A58,Filtro!$A$5:$AW$2531,17,FALSE),0) -> 85 | T58: =IFERROR(VLOOKUP($A58,Filtro!$A$5:$AW$2531,18,FALSE),0) -> 376 | U58: =IFERROR(VLOOKUP($A58,Filtro!$A$5:$AW$2531,19,FALSE),0) -> 122 | V58: =IFERROR(VLOOKUP($A58,Filtro!$A$5:$AW$2531,20,FALSE),0) -> 478 | W58: =IFERROR(VLOOKUP($A58,Filtro!$A$5:$AW$2531,21,FALSE),0) -> 136 | X58: =IFERROR(VLOOKUP($A58,Filtro!$A$5:$AW$2531,22,FALSE),0) -> 536 | Y58: =IFERROR(VLOOKUP($A58,Filtro!$A$5:$AW$2531,23,FALSE),0) -> 142 | Z58: =IFERROR(VLOOKUP($A58,Filtro!$A$5:$AW$2531,24,FALSE),0) -> 762 | AA58: =IFERROR(VLOOKUP($A58,Filtro!$A$5:$AW$2531,25,FALSE),0) -> 276 | AB58: =IFERROR(VLOOKUP($A58,Filtro!$A$5:$AW$2531,26,FALSE),0) -> 933 | AC58: =IFERROR(VLOOKUP($A58,Filtro!$A$5:$AW$2531,27,FALSE),0) -> 392 | AD58: =IFERROR(VLOOKUP($A58,Filtro!$A$5:$AW$2531,28,FALSE),0) -> 1334 | AE58: =IFERROR(VLOOKUP($A58,Filtro!$A$5:$AW$2531,29,FALSE),0) -> 607 | AF58: =IFERROR(VLOOKUP($A58,Filtro!$A$5:$AW$2531,30,FALSE),0) -> 1559 | AG58: =IFERROR(VLOOKUP($A58,Filtro!$A$5:$AW$2531,31,FALSE),0) -> 643 | AH58: =IFERROR(VLOOKUP($A58,Filtro!$A$5:$AW$2531,32,FALSE),0) -> 1492 | AI58: =IFERROR(VLOOKUP($A58,Filtro!$A$5:$AW$2531,33,FALSE),0) -> 738 | AJ58: =IFERROR(VLOOKUP($A58,Filtro!$A$5:$AW$2531,34,FALSE),0) -> 1363 | AK58: =IFERROR(VLOOKUP($A58,Filtro!$A$5:$AW$2531,35,FALSE),0) -> 630 | AL58: =IFERROR(VLOOKUP($A58,Filtro!$A$5:$AW$2531,36,FALSE),0) -> 1166 | AM58: =IFERROR(VLOOKUP($A58,Filtro!$A$5:$AW$2531,37,FALSE),0) -> 995 | AN58: =IFERROR(VLOOKUP($A58,Filtro!$A$5:$AW$2531,38,FALSE),0) -> 1514 | AO58: =IFERROR(VLOOKUP($A58,Filtro!$A$5:$AW$2531,39,FALSE),0) -> 52 | AP58: =IFERROR(VLOOKUP($A58,Filtro!$A$5:$AW$2531,40,FALSE),0) -> 82 | DB58: 0 | DC58: 0 | DD58: 0 | DE58: 0
A59: 03030150 | C59: ENFERMERA/O | D59: 1300 | E59: 372 | F59: 928 | G59: =IFERROR(VLOOKUP($A59,Filtro!$A$5:$AW$2531,5,FALSE),0) -> 9 | H59: =IFERROR(VLOOKUP($A59,Filtro!$A$5:$AW$2531,6,FALSE),0) -> 4 | I59: =IFERROR(VLOOKUP($A59,Filtro!$A$5:$AW$2531,7,FALSE),0) -> 2 | J59: =IFERROR(VLOOKUP($A59,Filtro!$A$5:$AW$2531,8,FALSE),0) -> 0 | K59: =IFERROR(VLOOKUP($A59,Filtro!$A$5:$AW$2531,9,FALSE),0) -> 5 | L59: =IFERROR(VLOOKUP($A59,Filtro!$A$5:$AW$2531,10,FALSE),0) -> 7 | M59: =IFERROR(VLOOKUP($A59,Filtro!$A$5:$AW$2531,11,FALSE),0) -> 3 | N59: =IFERROR(VLOOKUP($A59,Filtro!$A$5:$AW$2531,12,FALSE),0) -> 6 | O59: =IFERROR(VLOOKUP($A59,Filtro!$A$5:$AW$2531,13,FALSE),0) -> 4 | P59: =IFERROR(VLOOKUP($A59,Filtro!$A$5:$AW$2531,14,FALSE),0) -> 21 | Q59: =IFERROR(VLOOKUP($A59,Filtro!$A$5:$AW$2531,15,FALSE),0) -> 4 | R59: =IFERROR(VLOOKUP($A59,Filtro!$A$5:$AW$2531,16,FALSE),0) -> 16 | S59: =IFERROR(VLOOKUP($A59,Filtro!$A$5:$AW$2531,17,FALSE),0) -> 1 | T59: =IFERROR(VLOOKUP($A59,Filtro!$A$5:$AW$2531,18,FALSE),0) -> 44 | U59: =IFERROR(VLOOKUP($A59,Filtro!$A$5:$AW$2531,19,FALSE),0) -> 10 | V59: =IFERROR(VLOOKUP($A59,Filtro!$A$5:$AW$2531,20,FALSE),0) -> 50 | W59: =IFERROR(VLOOKUP($A59,Filtro!$A$5:$AW$2531,21,FALSE),0) -> 13 | X59: =IFERROR(VLOOKUP($A59,Filtro!$A$5:$AW$2531,22,FALSE),0) -> 65 | Y59: =IFERROR(VLOOKUP($A59,Filtro!$A$5:$AW$2531,23,FALSE),0) -> 14 | Z59: =IFERROR(VLOOKUP($A59,Filtro!$A$5:$AW$2531,24,FALSE),0) -> 61 | AA59: =IFERROR(VLOOKUP($A59,Filtro!$A$5:$AW$2531,25,FALSE),0) -> 25 | AB59: =IFERROR(VLOOKUP($A59,Filtro!$A$5:$AW$2531,26,FALSE),0) -> 88 | AC59: =IFERROR(VLOOKUP($A59,Filtro!$A$5:$AW$2531,27,FALSE),0) -> 31 | AD59: =IFERROR(VLOOKUP($A59,Filtro!$A$5:$AW$2531,28,FALSE),0) -> 98 | AE59: =IFERROR(VLOOKUP($A59,Filtro!$A$5:$AW$2531,29,FALSE),0) -> 45 | AF59: =IFERROR(VLOOKUP($A59,Filtro!$A$5:$AW$2531,30,FALSE),0) -> 105 | AG59: =IFERROR(VLOOKUP($A59,Filtro!$A$5:$AW$2531,31,FALSE),0) -> 56 | AH59: =IFERROR(VLOOKUP($A59,Filtro!$A$5:$AW$2531,32,FALSE),0) -> 88 | AI59: =IFERROR(VLOOKUP($A59,Filtro!$A$5:$AW$2531,33,FALSE),0) -> 52 | AJ59: =IFERROR(VLOOKUP($A59,Filtro!$A$5:$AW$2531,34,FALSE),0) -> 94 | AK59: =IFERROR(VLOOKUP($A59,Filtro!$A$5:$AW$2531,35,FALSE),0) -> 34 | AL59: =IFERROR(VLOOKUP($A59,Filtro!$A$5:$AW$2531,36,FALSE),0) -> 76 | AM59: =IFERROR(VLOOKUP($A59,Filtro!$A$5:$AW$2531,37,FALSE),0) -> 64 | AN59: =IFERROR(VLOOKUP($A59,Filtro!$A$5:$AW$2531,38,FALSE),0) -> 105 | AO59: =IFERROR(VLOOKUP($A59,Filtro!$A$5:$AW$2531,39,FALSE),0) -> 5 | AP59: =IFERROR(VLOOKUP($A59,Filtro!$A$5:$AW$2531,40,FALSE),0) -> 5 | DB59: 0 | DD59: 0
A60: 03030170 | C60: MATRONA/ÓN | D60: 132 | E60: 3 | F60: 129 | G60: =IFERROR(VLOOKUP($A60,Filtro!$A$5:$AW$2531,5,FALSE),0) -> 2 | H60: =IFERROR(VLOOKUP($A60,Filtro!$A$5:$AW$2531,6,FALSE),0) -> 1 | I60: =IFERROR(VLOOKUP($A60,Filtro!$A$5:$AW$2531,7,FALSE),0) -> 0 | J60: =IFERROR(VLOOKUP($A60,Filtro!$A$5:$AW$2531,8,FALSE),0) -> 1 | K60: =IFERROR(VLOOKUP($A60,Filtro!$A$5:$AW$2531,9,FALSE),0) -> 0 | L60: =IFERROR(VLOOKUP($A60,Filtro!$A$5:$AW$2531,10,FALSE),0) -> 2 | M60: =IFERROR(VLOOKUP($A60,Filtro!$A$5:$AW$2531,11,FALSE),0) -> 0 | N60: =IFERROR(VLOOKUP($A60,Filtro!$A$5:$AW$2531,12,FALSE),0) -> 10 | O60: =IFERROR(VLOOKUP($A60,Filtro!$A$5:$AW$2531,13,FALSE),0) -> 0 | P60: =IFERROR(VLOOKUP($A60,Filtro!$A$5:$AW$2531,14,FALSE),0) -> 22 | Q60: =IFERROR(VLOOKUP($A60,Filtro!$A$5:$AW$2531,15,FALSE),0) -> 0 | R60: =IFERROR(VLOOKUP($A60,Filtro!$A$5:$AW$2531,16,FALSE),0) -> 21 | S60: =IFERROR(VLOOKUP($A60,Filtro!$A$5:$AW$2531,17,FALSE),0) -> 0 | T60: =IFERROR(VLOOKUP($A60,Filtro!$A$5:$AW$2531,18,FALSE),0) -> 21 | U60: =IFERROR(VLOOKUP($A60,Filtro!$A$5:$AW$2531,19,FALSE),0) -> 0 | V60: =IFERROR(VLOOKUP($A60,Filtro!$A$5:$AW$2531,20,FALSE),0) -> 16 | W60: =IFERROR(VLOOKUP($A60,Filtro!$A$5:$AW$2531,21,FALSE),0) -> 0 | X60: =IFERROR(VLOOKUP($A60,Filtro!$A$5:$AW$2531,22,FALSE),0) -> 6 | Y60: =IFERROR(VLOOKUP($A60,Filtro!$A$5:$AW$2531,23,FALSE),0) -> 0 | Z60: =IFERROR(VLOOKUP($A60,Filtro!$A$5:$AW$2531,24,FALSE),0) -> 2 | AA60: =IFERROR(VLOOKUP($A60,Filtro!$A$5:$AW$2531,25,FALSE),0) -> 0 | AB60: =IFERROR(VLOOKUP($A60,Filtro!$A$5:$AW$2531,26,FALSE),0) -> 6 | AC60: =IFERROR(VLOOKUP($A60,Filtro!$A$5:$AW$2531,27,FALSE),0) -> 0 | AD60: =IFERROR(VLOOKUP($A60,Filtro!$A$5:$AW$2531,28,FALSE),0) -> 8 | AE60: =IFERROR(VLOOKUP($A60,Filtro!$A$5:$AW$2531,29,FALSE),0) -> 0 | AF60: =IFERROR(VLOOKUP($A60,Filtro!$A$5:$AW$2531,30,FALSE),0) -> 6 | AG60: =IFERROR(VLOOKUP($A60,Filtro!$A$5:$AW$2531,31,FALSE),0) -> 0 | AH60: =IFERROR(VLOOKUP($A60,Filtro!$A$5:$AW$2531,32,FALSE),0) -> 2 | AI60: =IFERROR(VLOOKUP($A60,Filtro!$A$5:$AW$2531,33,FALSE),0) -> 0 | AJ60: =IFERROR(VLOOKUP($A60,Filtro!$A$5:$AW$2531,34,FALSE),0) -> 2 | AK60: =IFERROR(VLOOKUP($A60,Filtro!$A$5:$AW$2531,35,FALSE),0) -> 0 | AL60: =IFERROR(VLOOKUP($A60,Filtro!$A$5:$AW$2531,36,FALSE),0) -> 0 | AM60: =IFERROR(VLOOKUP($A60,Filtro!$A$5:$AW$2531,37,FALSE),0) -> 1 | AN60: =IFERROR(VLOOKUP($A60,Filtro!$A$5:$AW$2531,38,FALSE),0) -> 3 | AO60: =IFERROR(VLOOKUP($A60,Filtro!$A$5:$AW$2531,39,FALSE),0) -> 0 | AP60: =IFERROR(VLOOKUP($A60,Filtro!$A$5:$AW$2531,40,FALSE),0) -> 9 | DB60: 0 | DD60: 0
A61: 03030160 | C61: NUTRICIONISTA | D61: 1961 | E61: 510 | F61: 1451 | G61: =IFERROR(VLOOKUP($A61,Filtro!$A$5:$AW$2531,5,FALSE),0) -> 114 | H61: =IFERROR(VLOOKUP($A61,Filtro!$A$5:$AW$2531,6,FALSE),0) -> 102 | I61: =IFERROR(VLOOKUP($A61,Filtro!$A$5:$AW$2531,7,FALSE),0) -> 50 | J61: =IFERROR(VLOOKUP($A61,Filtro!$A$5:$AW$2531,8,FALSE),0) -> 55 | K61: =IFERROR(VLOOKUP($A61,Filtro!$A$5:$AW$2531,9,FALSE),0) -> 35 | L61: =IFERROR(VLOOKUP($A61,Filtro!$A$5:$AW$2531,10,FALSE),0) -> 46 | M61: =IFERROR(VLOOKUP($A61,Filtro!$A$5:$AW$2531,11,FALSE),0) -> 20 | N61: =IFERROR(VLOOKUP($A61,Filtro!$A$5:$AW$2531,12,FALSE),0) -> 51 | O61: =IFERROR(VLOOKUP($A61,Filtro!$A$5:$AW$2531,13,FALSE),0) -> 26 | P61: =IFERROR(VLOOKUP($A61,Filtro!$A$5:$AW$2531,14,FALSE),0) -> 101 | Q61: =IFERROR(VLOOKUP($A61,Filtro!$A$5:$AW$2531,15,FALSE),0) -> 15 | R61: =IFERROR(VLOOKUP($A61,Filtro!$A$5:$AW$2531,16,FALSE),0) -> 90 | S61: =IFERROR(VLOOKUP($A61,Filtro!$A$5:$AW$2531,17,FALSE),0) -> 16 | T61: =IFERROR(VLOOKUP($A61,Filtro!$A$5:$AW$2531,18,FALSE),0) -> 124 | U61: =IFERROR(VLOOKUP($A61,Filtro!$A$5:$AW$2531,19,FALSE),0) -> 19 | V61: =IFERROR(VLOOKUP($A61,Filtro!$A$5:$AW$2531,20,FALSE),0) -> 111 | W61: =IFERROR(VLOOKUP($A61,Filtro!$A$5:$AW$2531,21,FALSE),0) -> 25 | X61: =IFERROR(VLOOKUP($A61,Filtro!$A$5:$AW$2531,22,FALSE),0) -> 107 | Y61: =IFERROR(VLOOKUP($A61,Filtro!$A$5:$AW$2531,23,FALSE),0) -> 21 | Z61: =IFERROR(VLOOKUP($A61,Filtro!$A$5:$AW$2531,24,FALSE),0) -> 121 | AA61: =IFERROR(VLOOKUP($A61,Filtro!$A$5:$AW$2531,25,FALSE),0) -> 21 | AB61: =IFERROR(VLOOKUP($A61,Filtro!$A$5:$AW$2531,26,FALSE),0) -> 134 | AC61: =IFERROR(VLOOKUP($A61,Filtro!$A$5:$AW$2531,27,FALSE),0) -> 22 | AD61: =IFERROR(VLOOKUP($A61,Filtro!$A$5:$AW$2531,28,FALSE),0) -> 115 | AE61: =IFERROR(VLOOKUP($A61,Filtro!$A$5:$AW$2531,29,FALSE),0) -> 24 | AF61: =IFERROR(VLOOKUP($A61,Filtro!$A$5:$AW$2531,30,FALSE),0) -> 98 | AG61: =IFERROR(VLOOKUP($A61,Filtro!$A$5:$AW$2531,31,FALSE),0) -> 34 | AH61: =IFERROR(VLOOKUP($A61,Filtro!$A$5:$AW$2531,32,FALSE),0) -> 67 | AI61: =IFERROR(VLOOKUP($A61,Filtro!$A$5:$AW$2531,33,FALSE),0) -> 27 | AJ61: =IFERROR(VLOOKUP($A61,Filtro!$A$5:$AW$2531,34,FALSE),0) -> 60 | AK61: =IFERROR(VLOOKUP($A61,Filtro!$A$5:$AW$2531,35,FALSE),0) -> 23 | AL61: =IFERROR(VLOOKUP($A61,Filtro!$A$5:$AW$2531,36,FALSE),0) -> 42 | AM61: =IFERROR(VLOOKUP($A61,Filtro!$A$5:$AW$2531,37,FALSE),0) -> 18 | AN61: =IFERROR(VLOOKUP($A61,Filtro!$A$5:$AW$2531,38,FALSE),0) -> 27 | AO61: =IFERROR(VLOOKUP($A61,Filtro!$A$5:$AW$2531,39,FALSE),0) -> 15 | AP61: =IFERROR(VLOOKUP($A61,Filtro!$A$5:$AW$2531,40,FALSE),0) -> 49 | DB61: 0 | DD61: 0
A62: 03030180 | C62: TÉCNICO EN ENFERMERÍA | D62: 172 | E62: 80 | F62: 92 | G62: =IFERROR(VLOOKUP($A62,Filtro!$A$5:$AW$2531,5,FALSE),0) -> 4 | H62: =IFERROR(VLOOKUP($A62,Filtro!$A$5:$AW$2531,6,FALSE),0) -> 2 | I62: =IFERROR(VLOOKUP($A62,Filtro!$A$5:$AW$2531,7,FALSE),0) -> 3 | J62: =IFERROR(VLOOKUP($A62,Filtro!$A$5:$AW$2531,8,FALSE),0) -> 1 | K62: =IFERROR(VLOOKUP($A62,Filtro!$A$5:$AW$2531,9,FALSE),0) -> 2 | L62: =IFERROR(VLOOKUP($A62,Filtro!$A$5:$AW$2531,10,FALSE),0) -> 2 | M62: =IFERROR(VLOOKUP($A62,Filtro!$A$5:$AW$2531,11,FALSE),0) -> 2 | N62: =IFERROR(VLOOKUP($A62,Filtro!$A$5:$AW$2531,12,FALSE),0) -> 1 | O62: =IFERROR(VLOOKUP($A62,Filtro!$A$5:$AW$2531,13,FALSE),0) -> 6 | P62: =IFERROR(VLOOKUP($A62,Filtro!$A$5:$AW$2531,14,FALSE),0) -> 14 | Q62: =IFERROR(VLOOKUP($A62,Filtro!$A$5:$AW$2531,15,FALSE),0) -> 1 | R62: =IFERROR(VLOOKUP($A62,Filtro!$A$5:$AW$2531,16,FALSE),0) -> 5 | S62: =IFERROR(VLOOKUP($A62,Filtro!$A$5:$AW$2531,17,FALSE),0) -> 5 | T62: =IFERROR(VLOOKUP($A62,Filtro!$A$5:$AW$2531,18,FALSE),0) -> 14 | U62: =IFERROR(VLOOKUP($A62,Filtro!$A$5:$AW$2531,19,FALSE),0) -> 3 | V62: =IFERROR(VLOOKUP($A62,Filtro!$A$5:$AW$2531,20,FALSE),0) -> 5 | W62: =IFERROR(VLOOKUP($A62,Filtro!$A$5:$AW$2531,21,FALSE),0) -> 12 | X62: =IFERROR(VLOOKUP($A62,Filtro!$A$5:$AW$2531,22,FALSE),0) -> 11 | Y62: =IFERROR(VLOOKUP($A62,Filtro!$A$5:$AW$2531,23,FALSE),0) -> 9 | Z62: =IFERROR(VLOOKUP($A62,Filtro!$A$5:$AW$2531,24,FALSE),0) -> 1 | AA62: =IFERROR(VLOOKUP($A62,Filtro!$A$5:$AW$2531,25,FALSE),0) -> 2 | AB62: =IFERROR(VLOOKUP($A62,Filtro!$A$5:$AW$2531,26,FALSE),0) -> 7 | AC62: =IFERROR(VLOOKUP($A62,Filtro!$A$5:$AW$2531,27,FALSE),0) -> 7 | AD62: =IFERROR(VLOOKUP($A62,Filtro!$A$5:$AW$2531,28,FALSE),0) -> 8 | AE62: =IFERROR(VLOOKUP($A62,Filtro!$A$5:$AW$2531,29,FALSE),0) -> 4 | AF62: =IFERROR(VLOOKUP($A62,Filtro!$A$5:$AW$2531,30,FALSE),0) -> 5 | AG62: =IFERROR(VLOOKUP($A62,Filtro!$A$5:$AW$2531,31,FALSE),0) -> 4 | AH62: =IFERROR(VLOOKUP($A62,Filtro!$A$5:$AW$2531,32,FALSE),0) -> 6 | AI62: =IFERROR(VLOOKUP($A62,Filtro!$A$5:$AW$2531,33,FALSE),0) -> 7 | AJ62: =IFERROR(VLOOKUP($A62,Filtro!$A$5:$AW$2531,34,FALSE),0) -> 3 | AK62: =IFERROR(VLOOKUP($A62,Filtro!$A$5:$AW$2531,35,FALSE),0) -> 4 | AL62: =IFERROR(VLOOKUP($A62,Filtro!$A$5:$AW$2531,36,FALSE),0) -> 5 | AM62: =IFERROR(VLOOKUP($A62,Filtro!$A$5:$AW$2531,37,FALSE),0) -> 5 | AN62: =IFERROR(VLOOKUP($A62,Filtro!$A$5:$AW$2531,38,FALSE),0) -> 2 | AO62: =IFERROR(VLOOKUP($A62,Filtro!$A$5:$AW$2531,39,FALSE),0) -> 8 | AP62: =IFERROR(VLOOKUP($A62,Filtro!$A$5:$AW$2531,40,FALSE),0) -> 0 | DB62: 0 | DD62: 0
A63: 09600206 | C63: OTROS PROFESIONALES DEBIDAMENTE CAPACITADOS | D63: =SUM(E63:F63) -> 0 | E63: =SUM(G63+I63+K63+M63+O63+Q63+S63+U63+W63+Y63+AA63+AC63+AE63+AG63+AI63+AK63+AM63) -> 0 | F63: =SUM(H63+J63+L63+N63+P63+R63+T63+V63+X63+Z63+AB63+AD63+AF63+AH63+AJ63+AL63+AN63) -> 0 | G63: =IFERROR(VLOOKUP($A63,Filtro!$A$5:$AW$2531,5,FALSE),0) -> 0 | H63: =IFERROR(VLOOKUP($A63,Filtro!$A$5:$AW$2531,6,FALSE),0) -> 0 | I63: =IFERROR(VLOOKUP($A63,Filtro!$A$5:$AW$2531,7,FALSE),0) -> 0 | J63: =IFERROR(VLOOKUP($A63,Filtro!$A$5:$AW$2531,8,FALSE),0) -> 0 | K63: =IFERROR(VLOOKUP($A63,Filtro!$A$5:$AW$2531,9,FALSE),0) -> 0 | L63: =IFERROR(VLOOKUP($A63,Filtro!$A$5:$AW$2531,10,FALSE),0) -> 0 | M63: =IFERROR(VLOOKUP($A63,Filtro!$A$5:$AW$2531,11,FALSE),0) -> 0 | N63: =IFERROR(VLOOKUP($A63,Filtro!$A$5:$AW$2531,12,FALSE),0) -> 0 | O63: =IFERROR(VLOOKUP($A63,Filtro!$A$5:$AW$2531,13,FALSE),0) -> 0 | P63: =IFERROR(VLOOKUP($A63,Filtro!$A$5:$AW$2531,14,FALSE),0) -> 0 | Q63: =IFERROR(VLOOKUP($A63,Filtro!$A$5:$AW$2531,15,FALSE),0) -> 0 | R63: =IFERROR(VLOOKUP($A63,Filtro!$A$5:$AW$2531,16,FALSE),0) -> 0 | S63: =IFERROR(VLOOKUP($A63,Filtro!$A$5:$AW$2531,17,FALSE),0) -> 0 | T63: =IFERROR(VLOOKUP($A63,Filtro!$A$5:$AW$2531,18,FALSE),0) -> 0 | U63: =IFERROR(VLOOKUP($A63,Filtro!$A$5:$AW$2531,19,FALSE),0) -> 0 | V63: =IFERROR(VLOOKUP($A63,Filtro!$A$5:$AW$2531,20,FALSE),0) -> 0 | W63: =IFERROR(VLOOKUP($A63,Filtro!$A$5:$AW$2531,21,FALSE),0) -> 0 | X63: =IFERROR(VLOOKUP($A63,Filtro!$A$5:$AW$2531,22,FALSE),0) -> 0 | Y63: =IFERROR(VLOOKUP($A63,Filtro!$A$5:$AW$2531,23,FALSE),0) -> 0 | Z63: =IFERROR(VLOOKUP($A63,Filtro!$A$5:$AW$2531,24,FALSE),0) -> 0 | AA63: =IFERROR(VLOOKUP($A63,Filtro!$A$5:$AW$2531,25,FALSE),0) -> 0 | AB63: =IFERROR(VLOOKUP($A63,Filtro!$A$5:$AW$2531,26,FALSE),0) -> 0 | AC63: =IFERROR(VLOOKUP($A63,Filtro!$A$5:$AW$2531,27,FALSE),0) -> 0 | AD63: =IFERROR(VLOOKUP($A63,Filtro!$A$5:$AW$2531,28,FALSE),0) -> 0 | AE63: =IFERROR(VLOOKUP($A63,Filtro!$A$5:$AW$2531,29,FALSE),0) -> 0 | AF63: =IFERROR(VLOOKUP($A63,Filtro!$A$5:$AW$2531,30,FALSE),0) -> 0 | AG63: =IFERROR(VLOOKUP($A63,Filtro!$A$5:$AW$2531,31,FALSE),0) -> 0 | AH63: =IFERROR(VLOOKUP($A63,Filtro!$A$5:$AW$2531,32,FALSE),0) -> 0 | AI63: =IFERROR(VLOOKUP($A63,Filtro!$A$5:$AW$2531,33,FALSE),0) -> 0 | AJ63: =IFERROR(VLOOKUP($A63,Filtro!$A$5:$AW$2531,34,FALSE),0) -> 0 | AK63: =IFERROR(VLOOKUP($A63,Filtro!$A$5:$AW$2531,35,FALSE),0) -> 0 | AL63: =IFERROR(VLOOKUP($A63,Filtro!$A$5:$AW$2531,36,FALSE),0) -> 0 | AM63: =IFERROR(VLOOKUP($A63,Filtro!$A$5:$AW$2531,37,FALSE),0) -> 0 | AN63: =IFERROR(VLOOKUP($A63,Filtro!$A$5:$AW$2531,38,FALSE),0) -> 0 | AO63: =IFERROR(VLOOKUP($A63,Filtro!$A$5:$AW$2531,39,FALSE),0) -> 0 | AP63: =IFERROR(VLOOKUP($A63,Filtro!$A$5:$AW$2531,40,FALSE),0) -> 0 | DB63: 0 | DD63: 0
A64: 01200031 | B64: NIÑOS CON NECESIDADES ESPECIALES | C64: MÉDICO/A | D64: 50 | E64: =SUM(G64+I64+K64+M64) -> 36 | F64: =SUM(H64+J64+L64+N64) -> 14 | G64: =IFERROR(VLOOKUP($A64,Filtro!$A$5:$AW$2531,5,FALSE),0) -> 23 | H64: =IFERROR(VLOOKUP($A64,Filtro!$A$5:$AW$2531,6,FALSE),0) -> 9 | I64: =IFERROR(VLOOKUP($A64,Filtro!$A$5:$AW$2531,7,FALSE),0) -> 9 | J64: =IFERROR(VLOOKUP($A64,Filtro!$A$5:$AW$2531,8,FALSE),0) -> 4 | K64: =IFERROR(VLOOKUP($A64,Filtro!$A$5:$AW$2531,9,FALSE),0) -> 2 | L64: =IFERROR(VLOOKUP($A64,Filtro!$A$5:$AW$2531,10,FALSE),0) -> 1 | M64: =IFERROR(VLOOKUP($A64,Filtro!$A$5:$AW$2531,11,FALSE),0) -> 2 | N64: =IFERROR(VLOOKUP($A64,Filtro!$A$5:$AW$2531,12,FALSE),0) -> 0 | O64: =IFERROR(VLOOKUP($A64,Filtro!$A$5:$AW$2531,13,FALSE),0) -> 0 | P64: =IFERROR(VLOOKUP($A64,Filtro!$A$5:$AW$2531,14,FALSE),0) -> 0 | Q64: =IFERROR(VLOOKUP($A64,Filtro!$A$5:$AW$2531,15,FALSE),0) -> 0 | R64: =IFERROR(VLOOKUP($A64,Filtro!$A$5:$AW$2531,16,FALSE),0) -> 0 | S64: =IFERROR(VLOOKUP($A64,Filtro!$A$5:$AW$2531,17,FALSE),0) -> 0 | T64: =IFERROR(VLOOKUP($A64,Filtro!$A$5:$AW$2531,18,FALSE),0) -> 0 | U64: =IFERROR(VLOOKUP($A64,Filtro!$A$5:$AW$2531,19,FALSE),0) -> 0 | V64: =IFERROR(VLOOKUP($A64,Filtro!$A$5:$AW$2531,20,FALSE),0) -> 0 | W64: =IFERROR(VLOOKUP($A64,Filtro!$A$5:$AW$2531,21,FALSE),0) -> 0 | X64: =IFERROR(VLOOKUP($A64,Filtro!$A$5:$AW$2531,22,FALSE),0) -> 0 | Y64: =IFERROR(VLOOKUP($A64,Filtro!$A$5:$AW$2531,23,FALSE),0) -> 0 | Z64: =IFERROR(VLOOKUP($A64,Filtro!$A$5:$AW$2531,24,FALSE),0) -> 0 | AA64: =IFERROR(VLOOKUP($A64,Filtro!$A$5:$AW$2531,25,FALSE),0) -> 0 | AB64: =IFERROR(VLOOKUP($A64,Filtro!$A$5:$AW$2531,26,FALSE),0) -> 0 | AC64: =IFERROR(VLOOKUP($A64,Filtro!$A$5:$AW$2531,27,FALSE),0) -> 0 | AD64: =IFERROR(VLOOKUP($A64,Filtro!$A$5:$AW$2531,28,FALSE),0) -> 0 | AE64: =IFERROR(VLOOKUP($A64,Filtro!$A$5:$AW$2531,29,FALSE),0) -> 0 | AF64: =IFERROR(VLOOKUP($A64,Filtro!$A$5:$AW$2531,30,FALSE),0) -> 0 | AG64: =IFERROR(VLOOKUP($A64,Filtro!$A$5:$AW$2531,31,FALSE),0) -> 0 | AH64: =IFERROR(VLOOKUP($A64,Filtro!$A$5:$AW$2531,32,FALSE),0) -> 0 | AI64: =IFERROR(VLOOKUP($A64,Filtro!$A$5:$AW$2531,33,FALSE),0) -> 0 | AJ64: =IFERROR(VLOOKUP($A64,Filtro!$A$5:$AW$2531,34,FALSE),0) -> 0 | AK64: =IFERROR(VLOOKUP($A64,Filtro!$A$5:$AW$2531,35,FALSE),0) -> 0 | AL64: =IFERROR(VLOOKUP($A64,Filtro!$A$5:$AW$2531,36,FALSE),0) -> 0 | AM64: =IFERROR(VLOOKUP($A64,Filtro!$A$5:$AW$2531,37,FALSE),0) -> 0 | AN64: =IFERROR(VLOOKUP($A64,Filtro!$A$5:$AW$2531,38,FALSE),0) -> 0 | AO64: =IFERROR(VLOOKUP($A64,Filtro!$A$5:$AW$2531,39,FALSE),0) -> 0 | AP64: =IFERROR(VLOOKUP($A64,Filtro!$A$5:$AW$2531,40,FALSE),0) -> 0 | DB64: 0 | DC64: 0 | DD64: 0 | DE64: 0
A65: 01200032 | C65: ENFERMERA/O | D65: 522 | E65: 336 | F65: =SUM(H65+J65+L65+N65) -> 186 | G65: =IFERROR(VLOOKUP($A65,Filtro!$A$5:$AW$2531,5,FALSE),0) -> 228 | H65: =IFERROR(VLOOKUP($A65,Filtro!$A$5:$AW$2531,6,FALSE),0) -> 131 | I65: =IFERROR(VLOOKUP($A65,Filtro!$A$5:$AW$2531,7,FALSE),0) -> 83 | J65: =IFERROR(VLOOKUP($A65,Filtro!$A$5:$AW$2531,8,FALSE),0) -> 40 | K65: =IFERROR(VLOOKUP($A65,Filtro!$A$5:$AW$2531,9,FALSE),0) -> 15 | L65: =IFERROR(VLOOKUP($A65,Filtro!$A$5:$AW$2531,10,FALSE),0) -> 9 | M65: =IFERROR(VLOOKUP($A65,Filtro!$A$5:$AW$2531,11,FALSE),0) -> 10 | N65: =IFERROR(VLOOKUP($A65,Filtro!$A$5:$AW$2531,12,FALSE),0) -> 6 | O65: =IFERROR(VLOOKUP($A65,Filtro!$A$5:$AW$2531,13,FALSE),0) -> 0 | P65: =IFERROR(VLOOKUP($A65,Filtro!$A$5:$AW$2531,14,FALSE),0) -> 0 | Q65: =IFERROR(VLOOKUP($A65,Filtro!$A$5:$AW$2531,15,FALSE),0) -> 0 | R65: =IFERROR(VLOOKUP($A65,Filtro!$A$5:$AW$2531,16,FALSE),0) -> 0 | S65: =IFERROR(VLOOKUP($A65,Filtro!$A$5:$AW$2531,17,FALSE),0) -> 0 | T65: =IFERROR(VLOOKUP($A65,Filtro!$A$5:$AW$2531,18,FALSE),0) -> 0 | U65: =IFERROR(VLOOKUP($A65,Filtro!$A$5:$AW$2531,19,FALSE),0) -> 0 | V65: =IFERROR(VLOOKUP($A65,Filtro!$A$5:$AW$2531,20,FALSE),0) -> 0 | W65: =IFERROR(VLOOKUP($A65,Filtro!$A$5:$AW$2531,21,FALSE),0) -> 0 | X65: =IFERROR(VLOOKUP($A65,Filtro!$A$5:$AW$2531,22,FALSE),0) -> 0 | Y65: =IFERROR(VLOOKUP($A65,Filtro!$A$5:$AW$2531,23,FALSE),0) -> 0 | Z65: =IFERROR(VLOOKUP($A65,Filtro!$A$5:$AW$2531,24,FALSE),0) -> 0 | AA65: =IFERROR(VLOOKUP($A65,Filtro!$A$5:$AW$2531,25,FALSE),0) -> 0 | AB65: =IFERROR(VLOOKUP($A65,Filtro!$A$5:$AW$2531,26,FALSE),0) -> 0 | AC65: =IFERROR(VLOOKUP($A65,Filtro!$A$5:$AW$2531,27,FALSE),0) -> 0 | AD65: =IFERROR(VLOOKUP($A65,Filtro!$A$5:$AW$2531,28,FALSE),0) -> 0 | AE65: =IFERROR(VLOOKUP($A65,Filtro!$A$5:$AW$2531,29,FALSE),0) -> 0 | AF65: =IFERROR(VLOOKUP($A65,Filtro!$A$5:$AW$2531,30,FALSE),0) -> 0 | AG65: =IFERROR(VLOOKUP($A65,Filtro!$A$5:$AW$2531,31,FALSE),0) -> 0 | AH65: =IFERROR(VLOOKUP($A65,Filtro!$A$5:$AW$2531,32,FALSE),0) -> 0 | AI65: =IFERROR(VLOOKUP($A65,Filtro!$A$5:$AW$2531,33,FALSE),0) -> 0 | AJ65: =IFERROR(VLOOKUP($A65,Filtro!$A$5:$AW$2531,34,FALSE),0) -> 0 | AK65: =IFERROR(VLOOKUP($A65,Filtro!$A$5:$AW$2531,35,FALSE),0) -> 0 | AL65: =IFERROR(VLOOKUP($A65,Filtro!$A$5:$AW$2531,36,FALSE),0) -> 0 | AM65: =IFERROR(VLOOKUP($A65,Filtro!$A$5:$AW$2531,37,FALSE),0) -> 0 | AN65: =IFERROR(VLOOKUP($A65,Filtro!$A$5:$AW$2531,38,FALSE),0) -> 0 | AO65: =IFERROR(VLOOKUP($A65,Filtro!$A$5:$AW$2531,39,FALSE),0) -> 1 | AP65: =IFERROR(VLOOKUP($A65,Filtro!$A$5:$AW$2531,40,FALSE),0) -> 0 | DB65: 0 | DD65: 0
A66: 01200033 | C66: MATRONA/ÓN | D66: 6 | E66: 2 | F66: 4 | G66: =IFERROR(VLOOKUP($A66,Filtro!$A$5:$AW$2531,5,FALSE),0) -> 1 | H66: =IFERROR(VLOOKUP($A66,Filtro!$A$5:$AW$2531,6,FALSE),0) -> 2 | I66: =IFERROR(VLOOKUP($A66,Filtro!$A$5:$AW$2531,7,FALSE),0) -> 1 | J66: =IFERROR(VLOOKUP($A66,Filtro!$A$5:$AW$2531,8,FALSE),0) -> 1 | K66: =IFERROR(VLOOKUP($A66,Filtro!$A$5:$AW$2531,9,FALSE),0) -> 0 | L66: =IFERROR(VLOOKUP($A66,Filtro!$A$5:$AW$2531,10,FALSE),0) -> 1 | M66: =IFERROR(VLOOKUP($A66,Filtro!$A$5:$AW$2531,11,FALSE),0) -> 0 | N66: =IFERROR(VLOOKUP($A66,Filtro!$A$5:$AW$2531,12,FALSE),0) -> 0 | O66: =IFERROR(VLOOKUP($A66,Filtro!$A$5:$AW$2531,13,FALSE),0) -> 0 | P66: =IFERROR(VLOOKUP($A66,Filtro!$A$5:$AW$2531,14,FALSE),0) -> 0 | Q66: =IFERROR(VLOOKUP($A66,Filtro!$A$5:$AW$2531,15,FALSE),0) -> 0 | R66: =IFERROR(VLOOKUP($A66,Filtro!$A$5:$AW$2531,16,FALSE),0) -> 0 | S66: =IFERROR(VLOOKUP($A66,Filtro!$A$5:$AW$2531,17,FALSE),0) -> 0 | T66: =IFERROR(VLOOKUP($A66,Filtro!$A$5:$AW$2531,18,FALSE),0) -> 0 | U66: =IFERROR(VLOOKUP($A66,Filtro!$A$5:$AW$2531,19,FALSE),0) -> 0 | V66: =IFERROR(VLOOKUP($A66,Filtro!$A$5:$AW$2531,20,FALSE),0) -> 0 | W66: =IFERROR(VLOOKUP($A66,Filtro!$A$5:$AW$2531,21,FALSE),0) -> 0 | X66: =IFERROR(VLOOKUP($A66,Filtro!$A$5:$AW$2531,22,FALSE),0) -> 0 | Y66: =IFERROR(VLOOKUP($A66,Filtro!$A$5:$AW$2531,23,FALSE),0) -> 0 | Z66: =IFERROR(VLOOKUP($A66,Filtro!$A$5:$AW$2531,24,FALSE),0) -> 0 | AA66: =IFERROR(VLOOKUP($A66,Filtro!$A$5:$AW$2531,25,FALSE),0) -> 0 | AB66: =IFERROR(VLOOKUP($A66,Filtro!$A$5:$AW$2531,26,FALSE),0) -> 0 | AC66: =IFERROR(VLOOKUP($A66,Filtro!$A$5:$AW$2531,27,FALSE),0) -> 0 | AD66: =IFERROR(VLOOKUP($A66,Filtro!$A$5:$AW$2531,28,FALSE),0) -> 0 | AE66: =IFERROR(VLOOKUP($A66,Filtro!$A$5:$AW$2531,29,FALSE),0) -> 0 | AF66: =IFERROR(VLOOKUP($A66,Filtro!$A$5:$AW$2531,30,FALSE),0) -> 0 | AG66: =IFERROR(VLOOKUP($A66,Filtro!$A$5:$AW$2531,31,FALSE),0) -> 0 | AH66: =IFERROR(VLOOKUP($A66,Filtro!$A$5:$AW$2531,32,FALSE),0) -> 0 | AI66: =IFERROR(VLOOKUP($A66,Filtro!$A$5:$AW$2531,33,FALSE),0) -> 0 | AJ66: =IFERROR(VLOOKUP($A66,Filtro!$A$5:$AW$2531,34,FALSE),0) -> 0 | AK66: =IFERROR(VLOOKUP($A66,Filtro!$A$5:$AW$2531,35,FALSE),0) -> 0 | AL66: =IFERROR(VLOOKUP($A66,Filtro!$A$5:$AW$2531,36,FALSE),0) -> 0 | AM66: =IFERROR(VLOOKUP($A66,Filtro!$A$5:$AW$2531,37,FALSE),0) -> 0 | AN66: =IFERROR(VLOOKUP($A66,Filtro!$A$5:$AW$2531,38,FALSE),0) -> 0 | AO66: =IFERROR(VLOOKUP($A66,Filtro!$A$5:$AW$2531,39,FALSE),0) -> 0 | AP66: =IFERROR(VLOOKUP($A66,Filtro!$A$5:$AW$2531,40,FALSE),0) -> 0 | DB66: 0 | DD66: 0
A67: 01200034 | C67: NUTRICIONISTA | D67: 139 | E67: 98 | F67: 41 | G67: =IFERROR(VLOOKUP($A67,Filtro!$A$5:$AW$2531,5,FALSE),0) -> 60 | H67: =IFERROR(VLOOKUP($A67,Filtro!$A$5:$AW$2531,6,FALSE),0) -> 25 | I67: =IFERROR(VLOOKUP($A67,Filtro!$A$5:$AW$2531,7,FALSE),0) -> 20 | J67: =IFERROR(VLOOKUP($A67,Filtro!$A$5:$AW$2531,8,FALSE),0) -> 13 | K67: =IFERROR(VLOOKUP($A67,Filtro!$A$5:$AW$2531,9,FALSE),0) -> 15 | L67: =IFERROR(VLOOKUP($A67,Filtro!$A$5:$AW$2531,10,FALSE),0) -> 2 | M67: =IFERROR(VLOOKUP($A67,Filtro!$A$5:$AW$2531,11,FALSE),0) -> 3 | N67: =IFERROR(VLOOKUP($A67,Filtro!$A$5:$AW$2531,12,FALSE),0) -> 1 | O67: =IFERROR(VLOOKUP($A67,Filtro!$A$5:$AW$2531,13,FALSE),0) -> 0 | P67: =IFERROR(VLOOKUP($A67,Filtro!$A$5:$AW$2531,14,FALSE),0) -> 0 | Q67: =IFERROR(VLOOKUP($A67,Filtro!$A$5:$AW$2531,15,FALSE),0) -> 0 | R67: =IFERROR(VLOOKUP($A67,Filtro!$A$5:$AW$2531,16,FALSE),0) -> 0 | S67: =IFERROR(VLOOKUP($A67,Filtro!$A$5:$AW$2531,17,FALSE),0) -> 0 | T67: =IFERROR(VLOOKUP($A67,Filtro!$A$5:$AW$2531,18,FALSE),0) -> 0 | U67: =IFERROR(VLOOKUP($A67,Filtro!$A$5:$AW$2531,19,FALSE),0) -> 0 | V67: =IFERROR(VLOOKUP($A67,Filtro!$A$5:$AW$2531,20,FALSE),0) -> 0 | W67: =IFERROR(VLOOKUP($A67,Filtro!$A$5:$AW$2531,21,FALSE),0) -> 0 | X67: =IFERROR(VLOOKUP($A67,Filtro!$A$5:$AW$2531,22,FALSE),0) -> 0 | Y67: =IFERROR(VLOOKUP($A67,Filtro!$A$5:$AW$2531,23,FALSE),0) -> 0 | Z67: =IFERROR(VLOOKUP($A67,Filtro!$A$5:$AW$2531,24,FALSE),0) -> 0 | AA67: =IFERROR(VLOOKUP($A67,Filtro!$A$5:$AW$2531,25,FALSE),0) -> 0 | AB67: =IFERROR(VLOOKUP($A67,Filtro!$A$5:$AW$2531,26,FALSE),0) -> 0 | AC67: =IFERROR(VLOOKUP($A67,Filtro!$A$5:$AW$2531,27,FALSE),0) -> 0 | AD67: =IFERROR(VLOOKUP($A67,Filtro!$A$5:$AW$2531,28,FALSE),0) -> 0 | AE67: =IFERROR(VLOOKUP($A67,Filtro!$A$5:$AW$2531,29,FALSE),0) -> 0 | AF67: =IFERROR(VLOOKUP($A67,Filtro!$A$5:$AW$2531,30,FALSE),0) -> 0 | AG67: =IFERROR(VLOOKUP($A67,Filtro!$A$5:$AW$2531,31,FALSE),0) -> 0 | AH67: =IFERROR(VLOOKUP($A67,Filtro!$A$5:$AW$2531,32,FALSE),0) -> 0 | AI67: =IFERROR(VLOOKUP($A67,Filtro!$A$5:$AW$2531,33,FALSE),0) -> 0 | AJ67: =IFERROR(VLOOKUP($A67,Filtro!$A$5:$AW$2531,34,FALSE),0) -> 0 | AK67: =IFERROR(VLOOKUP($A67,Filtro!$A$5:$AW$2531,35,FALSE),0) -> 0 | AL67: =IFERROR(VLOOKUP($A67,Filtro!$A$5:$AW$2531,36,FALSE),0) -> 0 | AM67: =IFERROR(VLOOKUP($A67,Filtro!$A$5:$AW$2531,37,FALSE),0) -> 0 | AN67: =IFERROR(VLOOKUP($A67,Filtro!$A$5:$AW$2531,38,FALSE),0) -> 0 | AO67: =IFERROR(VLOOKUP($A67,Filtro!$A$5:$AW$2531,39,FALSE),0) -> 0 | AP67: =IFERROR(VLOOKUP($A67,Filtro!$A$5:$AW$2531,40,FALSE),0) -> 0 | DB67: 0 | DD67: 0
B68: SECCIÓN D: CONTROL DE SALUD INTEGRAL DE ADOLESCENTES (incluidos en sección B)
B69: LUGAR DEL CONTROL, SEGÚN EDAD | D69: 10 A 14 AÑOS | I69: 15 A 19 AÑOS | N69: Niños, Niñas, Adolescentes y Jóvenes SENAME | O69: Niños, Niñas, Adolescentes y Jóvenes Mejor Niñez
D70: Ambos Sexos | E70: Hombres | F70: Mujeres | G70: Pueblos Originarios | H70: Migrantes | I70: Ambos Sexos | J70: Hombres | K70: Mujeres | L70: Pueblos Originarios | M70: Migrantes
A71: 01030500 | B71: EN ESPACIO AMIGABLE | D71: =SUM(E71:F71) -> 600 | E71: =IFERROR(VLOOKUP($A71,Filtro!$A$5:$AW$2531,3,FALSE),0) -> 223 | F71: =IFERROR(VLOOKUP($A71,Filtro!$A$5:$AW$2531,4,FALSE),0) -> 377 | G71: =IFERROR(VLOOKUP($A71,Filtro!$A$5:$AW$2531,5,FALSE),0) -> 17 | H71: =IFERROR(VLOOKUP($A71,Filtro!$A$5:$AW$2531,6,FALSE),0) -> 12 | I71: =SUM(J71:K71) -> 494 | J71: =IFERROR(VLOOKUP($A71,Filtro!$A$5:$AW$2531,8,FALSE),0) -> 123 | K71: =IFERROR(VLOOKUP($A71,Filtro!$A$5:$AW$2531,9,FALSE),0) -> 371 | L71: =IFERROR(VLOOKUP($A71,Filtro!$A$5:$AW$2531,10,FALSE),0) -> 21 | M71: =IFERROR(VLOOKUP($A71,Filtro!$A$5:$AW$2531,11,FALSE),0) -> 21 | N71: =IFERROR(VLOOKUP($A71,Filtro!$A$5:$AW$2531,12,FALSE),0) -> 9 | O71: =IFERROR(VLOOKUP($A71,Filtro!$A$5:$AW$2531,13,FALSE),0) -> 33 | CB71: * Niños, Niñas, Adolescentes y Jóvenes SENAME NO DEBE ser mayor al Total. | CF71: * Pueblos Originarios NO DEBE ser mayor al Total de controles de adolescentes de 10 a 14 años. | CH71: * Migrantes NO DEBE ser mayor al Total de controles de adolescentes de 10 a 14 años. | CJ71: * Pueblos Originarios NO DEBE ser mayor al Total de controles de adolescentes de 15 a 19 años. | CL71: * Migrantes NO DEBE ser mayor al Total de controles de adolescentes de 15 a 19 años. | DB71: 1 | DF71: 1 | DH71: 1 | DJ71: 1 | DL71: 1
A72: 01030600 | B72: EN OTROS ESPACIOS DEL ESTABLECIMIENTO DE SALUD | D72: =SUM(E72:F72) -> 2159 | E72: =IFERROR(VLOOKUP($A72,Filtro!$A$5:$AW$2531,3,FALSE),0) -> 936 | F72: =IFERROR(VLOOKUP($A72,Filtro!$A$5:$AW$2531,4,FALSE),0) -> 1223 | G72: =IFERROR(VLOOKUP($A72,Filtro!$A$5:$AW$2531,5,FALSE),0) -> 137 | H72: =IFERROR(VLOOKUP($A72,Filtro!$A$5:$AW$2531,6,FALSE),0) -> 87 | I72: =SUM(J72:K72) -> 892 | J72: =IFERROR(VLOOKUP($A72,Filtro!$A$5:$AW$2531,8,FALSE),0) -> 306 | K72: =IFERROR(VLOOKUP($A72,Filtro!$A$5:$AW$2531,9,FALSE),0) -> 586 | L72: =IFERROR(VLOOKUP($A72,Filtro!$A$5:$AW$2531,10,FALSE),0) -> 79 | M72: =IFERROR(VLOOKUP($A72,Filtro!$A$5:$AW$2531,11,FALSE),0) -> 49 | N72: =IFERROR(VLOOKUP($A72,Filtro!$A$5:$AW$2531,12,FALSE),0) -> 42 | O72: =IFERROR(VLOOKUP($A72,Filtro!$A$5:$AW$2531,13,FALSE),0) -> 43 | CF72: * Pueblos Originarios NO DEBE ser mayor al Total de controles de adolescentes de 10 a 14 años. | CH72: * Migrantes NO DEBE ser mayor al Total de controles de adolescentes de 10 a 14 años. | CJ72: * Pueblos Originarios NO DEBE ser mayor al Total de controles de adolescentes de 15 a 19 años. | DF72: 1 | DH72: 1 | DJ72: 1
A73: 01030700 | B73: EN ESTABLECIMIENTOS EDUCACIONALES | D73: =SUM(E73:F73) -> 2370 | E73: =IFERROR(VLOOKUP($A73,Filtro!$A$5:$AW$2531,3,FALSE),0) -> 1131 | F73: =IFERROR(VLOOKUP($A73,Filtro!$A$5:$AW$2531,4,FALSE),0) -> 1239 | G73: =IFERROR(VLOOKUP($A73,Filtro!$A$5:$AW$2531,5,FALSE),0) -> 89 | H73: =IFERROR(VLOOKUP($A73,Filtro!$A$5:$AW$2531,6,FALSE),0) -> 84 | I73: =SUM(J73:K73) -> 602 | J73: =IFERROR(VLOOKUP($A73,Filtro!$A$5:$AW$2531,8,FALSE),0) -> 275 | K73: =IFERROR(VLOOKUP($A73,Filtro!$A$5:$AW$2531,9,FALSE),0) -> 327 | L73: =IFERROR(VLOOKUP($A73,Filtro!$A$5:$AW$2531,10,FALSE),0) -> 31 | M73: =IFERROR(VLOOKUP($A73,Filtro!$A$5:$AW$2531,11,FALSE),0) -> 18 | N73: =IFERROR(VLOOKUP($A73,Filtro!$A$5:$AW$2531,12,FALSE),0) -> 3 | O73: =IFERROR(VLOOKUP($A73,Filtro!$A$5:$AW$2531,13,FALSE),0) -> 1 | CF73: * Pueblos Originarios NO DEBE ser mayor al Total de controles de adolescentes de 10 a 14 años. | CH73: * Migrantes NO DEBE ser mayor al Total de controles de adolescentes de 10 a 14 años. | CJ73: * Pueblos Originarios NO DEBE ser mayor al Total de controles de adolescentes de 15 a 19 años. | DF73: 1 | DH73: 1 | DJ73: 1
A74: 01030800 | B74: EN OTROS LUGARES FUERA DEL ESTABLECIMIENTO DE SALUD | D74: =SUM(E74:F74) -> 221 | E74: =IFERROR(VLOOKUP($A74,Filtro!$A$5:$AW$2531,3,FALSE),0) -> 103 | F74: =IFERROR(VLOOKUP($A74,Filtro!$A$5:$AW$2531,4,FALSE),0) -> 118 | G74: =IFERROR(VLOOKUP($A74,Filtro!$A$5:$AW$2531,5,FALSE),0) -> 7 | H74: =IFERROR(VLOOKUP($A74,Filtro!$A$5:$AW$2531,6,FALSE),0) -> 3 | I74: =SUM(J74:K74) -> 61 | J74: =IFERROR(VLOOKUP($A74,Filtro!$A$5:$AW$2531,8,FALSE),0) -> 41 | K74: =IFERROR(VLOOKUP($A74,Filtro!$A$5:$AW$2531,9,FALSE),0) -> 20 | L74: =IFERROR(VLOOKUP($A74,Filtro!$A$5:$AW$2531,10,FALSE),0) -> 5 | M74: =IFERROR(VLOOKUP($A74,Filtro!$A$5:$AW$2531,11,FALSE),0) -> 0 | N74: =IFERROR(VLOOKUP($A74,Filtro!$A$5:$AW$2531,12,FALSE),0) -> 40 | O74: =IFERROR(VLOOKUP($A74,Filtro!$A$5:$AW$2531,13,FALSE),0) -> 78 | CD74: * Niños, Niñas, Adolescentes y Jóvenes Mejor Niñez NO DEBE ser mayor al Total. | CF74: * Pueblos Originarios NO DEBE ser mayor al Total de controles de adolescentes de 10 a 14 años. | CH74: * Migrantes NO DEBE ser mayor al Total de controles de adolescentes de 10 a 14 años. | CJ74: * Pueblos Originarios NO DEBE ser mayor al Total de controles de adolescentes de 15 a 19 años. | CL74: * Migrantes NO DEBE ser mayor al Total de controles de adolescentes de 15 a 19 años. | DD74: 1 | DF74: 1 | DH74: 1 | DJ74: 1 | DL74: 1
B75: TOTAL | D75: =SUM(D71:D74) -> 5350 | E75: =SUM(E71:E74) -> 2393 | F75: 2957 | G75: 250 | H75: =SUM(H71:H74) -> 186 | I75: 2049 | J75: 745 | K75: 1304 | L75: 136 | M75: 88 | N75: =SUM(N71:N74) -> 94 | O75: =SUM(O71:O74) -> 155
B76: SECCIÓN E: CONTROLES DE SALUD EN ESTABLECIMIENTOS EDUCACIONALES
B77: SECCIÓN E1: CONTROLES INDIVIDUALES
B78: CURSO | C78: TOTAL | D78: SEXO | F78: Pueblos Originarios | G78: Migrantes | H78: Niños, Niñas, Adolescentes y Jóvenes SENAME | I78: Niños, Niñas, Adolescentes y Jóvenes Mejor Niñez
D79: Hombres | E79: Mujeres
A80: 01031000 | B80: KÍNDER | C80: =SUM(D80:E80) -> 220 | D80: =IFERROR(VLOOKUP($A80,Filtro!$A$5:$AW$2531,3,FALSE),0) -> 93 | E80: =IFERROR(VLOOKUP($A80,Filtro!$A$5:$AW$2531,4,FALSE),0) -> 127 | F80: =IFERROR(VLOOKUP($A80,Filtro!$A$5:$AW$2531,5,FALSE),0) -> 0 | G80: =IFERROR(VLOOKUP($A80,Filtro!$A$5:$AW$2531,6,FALSE),0) -> 0 | H80: =IFERROR(VLOOKUP($A80,Filtro!$A$5:$AW$2531,7,FALSE),0) -> 0 | I80: =IFERROR(VLOOKUP($A80,Filtro!$A$5:$AW$2531,8,FALSE),0) -> 0
A81: 01031100 | B81: PRIMERO BÁSICO | C81: =SUM(D81:E81) -> 364 | D81: =IFERROR(VLOOKUP($A81,Filtro!$A$5:$AW$2531,3,FALSE),0) -> 176 | E81: =IFERROR(VLOOKUP($A81,Filtro!$A$5:$AW$2531,4,FALSE),0) -> 188 | F81: =IFERROR(VLOOKUP($A81,Filtro!$A$5:$AW$2531,5,FALSE),0) -> 1 | G81: =IFERROR(VLOOKUP($A81,Filtro!$A$5:$AW$2531,6,FALSE),0) -> 2 | H81: =IFERROR(VLOOKUP($A81,Filtro!$A$5:$AW$2531,7,FALSE),0) -> 1 | I81: =IFERROR(VLOOKUP($A81,Filtro!$A$5:$AW$2531,8,FALSE),0) -> 0
A82: 01031200 | B82: SEGUNDO BÁSICO | C82: =SUM(D82:E82) -> 487 | D82: =IFERROR(VLOOKUP($A82,Filtro!$A$5:$AW$2531,3,FALSE),0) -> 224 | E82: =IFERROR(VLOOKUP($A82,Filtro!$A$5:$AW$2531,4,FALSE),0) -> 263 | F82: =IFERROR(VLOOKUP($A82,Filtro!$A$5:$AW$2531,5,FALSE),0) -> 0 | G82: =IFERROR(VLOOKUP($A82,Filtro!$A$5:$AW$2531,6,FALSE),0) -> 5 | H82: =IFERROR(VLOOKUP($A82,Filtro!$A$5:$AW$2531,7,FALSE),0) -> 0 | I82: =IFERROR(VLOOKUP($A82,Filtro!$A$5:$AW$2531,8,FALSE),0) -> 0
A83: 01031300 | B83: TERCERO BÁSICO | C83: =SUM(D83:E83) -> 529 | D83: =IFERROR(VLOOKUP($A83,Filtro!$A$5:$AW$2531,3,FALSE),0) -> 259 | E83: =IFERROR(VLOOKUP($A83,Filtro!$A$5:$AW$2531,4,FALSE),0) -> 270 | F83: =IFERROR(VLOOKUP($A83,Filtro!$A$5:$AW$2531,5,FALSE),0) -> 2 | G83: =IFERROR(VLOOKUP($A83,Filtro!$A$5:$AW$2531,6,FALSE),0) -> 2 | H83: =IFERROR(VLOOKUP($A83,Filtro!$A$5:$AW$2531,7,FALSE),0) -> 0 | I83: =IFERROR(VLOOKUP($A83,Filtro!$A$5:$AW$2531,8,FALSE),0) -> 0
A84: 01031400 | B84: CUARTO BÁSICO | C84: =SUM(D84:E84) -> 454 | D84: =IFERROR(VLOOKUP($A84,Filtro!$A$5:$AW$2531,3,FALSE),0) -> 200 | E84: =IFERROR(VLOOKUP($A84,Filtro!$A$5:$AW$2531,4,FALSE),0) -> 254 | F84: =IFERROR(VLOOKUP($A84,Filtro!$A$5:$AW$2531,5,FALSE),0) -> 2 | G84: =IFERROR(VLOOKUP($A84,Filtro!$A$5:$AW$2531,6,FALSE),0) -> 0 | H84: =IFERROR(VLOOKUP($A84,Filtro!$A$5:$AW$2531,7,FALSE),0) -> 1 | I84: =IFERROR(VLOOKUP($A84,Filtro!$A$5:$AW$2531,8,FALSE),0) -> 0
B85: SECCIÓN E2: CONTROLES GRUPALES
B86: CURSO | C86: TOTAL DE GRUPOS | D86: TOTAL | E86: SEXO | G86: Pueblos Originarios | H86: Migrantes | I86: Niños, Niñas, Adolescentes y Jóvenes SENAME | J86: Niños, Niñas, Adolescentes y Jóvenes Mejor Niñez
E87: Hombres | F87: Mujeres
A88: 01031500 | B88: KÍNDER | C88: =IFERROR(VLOOKUP($A88,Filtro!$A$5:$AW$2531,2,FALSE),0) -> 0 | D88: =SUM(E88:F88) -> 0 | E88: =IFERROR(VLOOKUP($A88,Filtro!$A$5:$AW$2531,4,FALSE),0) -> 0 | F88: =IFERROR(VLOOKUP($A88,Filtro!$A$5:$AW$2531,5,FALSE),0) -> 0 | G88: =IFERROR(VLOOKUP($A88,Filtro!$A$5:$AW$2531,6,FALSE),0) -> 0 | H88: =IFERROR(VLOOKUP($A88,Filtro!$A$5:$AW$2531,7,FALSE),0) -> 0 | I88: =IFERROR(VLOOKUP($A88,Filtro!$A$5:$AW$2531,8,FALSE),0) -> 0 | J88: =IFERROR(VLOOKUP($A88,Filtro!$A$5:$AW$2531,9,FALSE),0) -> 0
A89: 01031600 | B89: PRIMERO BÁSICO | C89: =IFERROR(VLOOKUP($A89,Filtro!$A$5:$AW$2531,2,FALSE),0) -> 0 | D89: =SUM(E89:F89) -> 0 | E89: =IFERROR(VLOOKUP($A89,Filtro!$A$5:$AW$2531,4,FALSE),0) -> 0 | F89: =IFERROR(VLOOKUP($A89,Filtro!$A$5:$AW$2531,5,FALSE),0) -> 0 | G89: =IFERROR(VLOOKUP($A89,Filtro!$A$5:$AW$2531,6,FALSE),0) -> 0 | H89: =IFERROR(VLOOKUP($A89,Filtro!$A$5:$AW$2531,7,FALSE),0) -> 0 | I89: =IFERROR(VLOOKUP($A89,Filtro!$A$5:$AW$2531,8,FALSE),0) -> 0 | J89: =IFERROR(VLOOKUP($A89,Filtro!$A$5:$AW$2531,9,FALSE),0) -> 0
A90: 01031700 | B90: SEGUNDO BÁSICO | C90: =IFERROR(VLOOKUP($A90,Filtro!$A$5:$AW$2531,2,FALSE),0) -> 0 | D90: =SUM(E90:F90) -> 0 | E90: =IFERROR(VLOOKUP($A90,Filtro!$A$5:$AW$2531,4,FALSE),0) -> 0 | F90: =IFERROR(VLOOKUP($A90,Filtro!$A$5:$AW$2531,5,FALSE),0) -> 0 | G90: =IFERROR(VLOOKUP($A90,Filtro!$A$5:$AW$2531,6,FALSE),0) -> 0 | H90: =IFERROR(VLOOKUP($A90,Filtro!$A$5:$AW$2531,7,FALSE),0) -> 0 | I90: =IFERROR(VLOOKUP($A90,Filtro!$A$5:$AW$2531,8,FALSE),0) -> 0 | J90: =IFERROR(VLOOKUP($A90,Filtro!$A$5:$AW$2531,9,FALSE),0) -> 0
A91: 01031800 | B91: TERCERO BÁSICO | C91: =IFERROR(VLOOKUP($A91,Filtro!$A$5:$AW$2531,2,FALSE),0) -> 0 | D91: =SUM(E91:F91) -> 0 | E91: =IFERROR(VLOOKUP($A91,Filtro!$A$5:$AW$2531,4,FALSE),0) -> 0 | F91: =IFERROR(VLOOKUP($A91,Filtro!$A$5:$AW$2531,5,FALSE),0) -> 0 | G91: =IFERROR(VLOOKUP($A91,Filtro!$A$5:$AW$2531,6,FALSE),0) -> 0 | H91: =IFERROR(VLOOKUP($A91,Filtro!$A$5:$AW$2531,7,FALSE),0) -> 0 | I91: =IFERROR(VLOOKUP($A91,Filtro!$A$5:$AW$2531,8,FALSE),0) -> 0 | J91: =IFERROR(VLOOKUP($A91,Filtro!$A$5:$AW$2531,9,FALSE),0) -> 0
A92: 01031900 | B92: CUARTO BÁSICO | C92: =IFERROR(VLOOKUP($A92,Filtro!$A$5:$AW$2531,2,FALSE),0) -> 0 | D92: =SUM(E92:F92) -> 0 | E92: =IFERROR(VLOOKUP($A92,Filtro!$A$5:$AW$2531,4,FALSE),0) -> 0 | F92: =IFERROR(VLOOKUP($A92,Filtro!$A$5:$AW$2531,5,FALSE),0) -> 0 | G92: =IFERROR(VLOOKUP($A92,Filtro!$A$5:$AW$2531,6,FALSE),0) -> 0 | H92: =IFERROR(VLOOKUP($A92,Filtro!$A$5:$AW$2531,7,FALSE),0) -> 1 | I92: =IFERROR(VLOOKUP($A92,Filtro!$A$5:$AW$2531,8,FALSE),0) -> 0 | J92: =IFERROR(VLOOKUP($A92,Filtro!$A$5:$AW$2531,9,FALSE),0) -> 0
B93: SECCIÓN F: CONTROLES INTEGRALES DE PERSONAS CON CONDICIONES CRÓNICAS (incluidos en Secciones B y C)
B94: TIPO DE CONTROL | C94: TOTAL | F94: POR EDAD | AH94: Migrantes | AI94: Pueblos Originarios
F95: 15 - 19 años | H95: 20 - 24 años | J95: 25 - 29 años | L95: 30 - 34 años | N95: 35 - 39 años | P95: 40 - 44 años | R95: 45 - 49 años | T95: 50 - 54 años | V95: 55 - 59 años | X95: 60 - 64 años | Z95: 65 - 69 años | AB95: 70 - 74 años | AD95: 75 - 79 años | AF95: 80 y más años
C96: Ambos Sexos | D96: Hombres | E96: Mujeres | F96: Hombres | G96: Mujeres | H96: Hombres | I96: Mujeres | J96: Hombres | K96: Mujeres | L96: Hombres | M96: Mujeres | N96: Hombres | O96: Mujeres | P96: Hombres | Q96: Mujeres | R96: Hombres | S96: Mujeres | T96: Hombres | U96: Mujeres | V96: Hombres | W96: Mujeres | X96: Hombres | Y96: Mujeres | Z96: Hombres | AA96: Mujeres | AB96: Hombres | AC96: Mujeres | AD96: Hombres | AE96: Mujeres | AF96: Hombres | AG96: Mujeres
A97: 01501010 | B97: CONTROL INTEGRAL CON RIESGO LEVE (G1) | C97: =SUM(D97:E97) -> 288 | D97: =SUM(F97+H97+J97+L97+N97+P97+R97+T97+V97+X97+Z97+AB97+AD97+AF97) -> 108 | E97: =SUM(+G97+I97+K97+M97+O97+Q97+S97+U97+W97+Y97+AA97+AC97+AE97+AG97) -> 180 | F97: =IFERROR(VLOOKUP($A97,Filtro!$A$5:$AW$2531,5,FALSE),0) -> 2 | G97: =IFERROR(VLOOKUP($A97,Filtro!$A$5:$AW$2531,6,FALSE),0) -> 0 | H97: =IFERROR(VLOOKUP($A97,Filtro!$A$5:$AW$2531,7,FALSE),0) -> 2 | I97: =IFERROR(VLOOKUP($A97,Filtro!$A$5:$AW$2531,8,FALSE),0) -> 1 | J97: =IFERROR(VLOOKUP($A97,Filtro!$A$5:$AW$2531,9,FALSE),0) -> 4 | K97: =IFERROR(VLOOKUP($A97,Filtro!$A$5:$AW$2531,10,FALSE),0) -> 0 | L97: =IFERROR(VLOOKUP($A97,Filtro!$A$5:$AW$2531,11,FALSE),0) -> 4 | M97: =IFERROR(VLOOKUP($A97,Filtro!$A$5:$AW$2531,12,FALSE),0) -> 6 | N97: =IFERROR(VLOOKUP($A97,Filtro!$A$5:$AW$2531,13,FALSE),0) -> 1 | O97: =IFERROR(VLOOKUP($A97,Filtro!$A$5:$AW$2531,14,FALSE),0) -> 9 | P97: =IFERROR(VLOOKUP($A97,Filtro!$A$5:$AW$2531,15,FALSE),0) -> 5 | Q97: =IFERROR(VLOOKUP($A97,Filtro!$A$5:$AW$2531,16,FALSE),0) -> 11 | R97: =IFERROR(VLOOKUP($A97,Filtro!$A$5:$AW$2531,17,FALSE),0) -> 5 | S97: =IFERROR(VLOOKUP($A97,Filtro!$A$5:$AW$2531,18,FALSE),0) -> 15 | T97: =IFERROR(VLOOKUP($A97,Filtro!$A$5:$AW$2531,19,FALSE),0) -> 13 | U97: =IFERROR(VLOOKUP($A97,Filtro!$A$5:$AW$2531,20,FALSE),0) -> 15 | V97: =IFERROR(VLOOKUP($A97,Filtro!$A$5:$AW$2531,21,FALSE),0) -> 15 | W97: =IFERROR(VLOOKUP($A97,Filtro!$A$5:$AW$2531,22,FALSE),0) -> 28 | X97: =IFERROR(VLOOKUP($A97,Filtro!$A$5:$AW$2531,23,FALSE),0) -> 20 | Y97: =IFERROR(VLOOKUP($A97,Filtro!$A$5:$AW$2531,24,FALSE),0) -> 24 | Z97: =IFERROR(VLOOKUP($A97,Filtro!$A$5:$AW$2531,25,FALSE),0) -> 12 | AA97: =IFERROR(VLOOKUP($A97,Filtro!$A$5:$AW$2531,26,FALSE),0) -> 27 | AB97: =IFERROR(VLOOKUP($A97,Filtro!$A$5:$AW$2531,27,FALSE),0) -> 8 | AC97: =IFERROR(VLOOKUP($A97,Filtro!$A$5:$AW$2531,28,FALSE),0) -> 12 | AD97: =IFERROR(VLOOKUP($A97,Filtro!$A$5:$AW$2531,29,FALSE),0) -> 7 | AE97: =IFERROR(VLOOKUP($A97,Filtro!$A$5:$AW$2531,30,FALSE),0) -> 17 | AF97: =IFERROR(VLOOKUP($A97,Filtro!$A$5:$AW$2531,31,FALSE),0) -> 10 | AG97: =IFERROR(VLOOKUP($A97,Filtro!$A$5:$AW$2531,32,FALSE),0) -> 15 | AH97: =IFERROR(VLOOKUP($A97,Filtro!$A$5:$AW$2531,33,FALSE),0) -> 0 | AI97: =IFERROR(VLOOKUP($A97,Filtro!$A$5:$AW$2531,34,FALSE),0) -> 0 | DA97: 0 | DB97: 0
A98: 01501020 | B98: CONTROL INTEGRAL CON RIESGO MODERADO (G2) | C98: 265 | D98: 93 | E98: 172 | F98: =IFERROR(VLOOKUP($A98,Filtro!$A$5:$AW$2531,5,FALSE),0) -> 1 | G98: =IFERROR(VLOOKUP($A98,Filtro!$A$5:$AW$2531,6,FALSE),0) -> 0 | H98: =IFERROR(VLOOKUP($A98,Filtro!$A$5:$AW$2531,7,FALSE),0) -> 0 | I98: =IFERROR(VLOOKUP($A98,Filtro!$A$5:$AW$2531,8,FALSE),0) -> 0 | J98: =IFERROR(VLOOKUP($A98,Filtro!$A$5:$AW$2531,9,FALSE),0) -> 3 | K98: =IFERROR(VLOOKUP($A98,Filtro!$A$5:$AW$2531,10,FALSE),0) -> 3 | L98: =IFERROR(VLOOKUP($A98,Filtro!$A$5:$AW$2531,11,FALSE),0) -> 0 | M98: =IFERROR(VLOOKUP($A98,Filtro!$A$5:$AW$2531,12,FALSE),0) -> 0 | N98: =IFERROR(VLOOKUP($A98,Filtro!$A$5:$AW$2531,13,FALSE),0) -> 2 | O98: =IFERROR(VLOOKUP($A98,Filtro!$A$5:$AW$2531,14,FALSE),0) -> 4 | P98: =IFERROR(VLOOKUP($A98,Filtro!$A$5:$AW$2531,15,FALSE),0) -> 2 | Q98: =IFERROR(VLOOKUP($A98,Filtro!$A$5:$AW$2531,16,FALSE),0) -> 7 | R98: =IFERROR(VLOOKUP($A98,Filtro!$A$5:$AW$2531,17,FALSE),0) -> 6 | S98: =IFERROR(VLOOKUP($A98,Filtro!$A$5:$AW$2531,18,FALSE),0) -> 12 | T98: =IFERROR(VLOOKUP($A98,Filtro!$A$5:$AW$2531,19,FALSE),0) -> 6 | U98: =IFERROR(VLOOKUP($A98,Filtro!$A$5:$AW$2531,20,FALSE),0) -> 7 | V98: =IFERROR(VLOOKUP($A98,Filtro!$A$5:$AW$2531,21,FALSE),0) -> 13 | W98: =IFERROR(VLOOKUP($A98,Filtro!$A$5:$AW$2531,22,FALSE),0) -> 36 | X98: =IFERROR(VLOOKUP($A98,Filtro!$A$5:$AW$2531,23,FALSE),0) -> 13 | Y98: =IFERROR(VLOOKUP($A98,Filtro!$A$5:$AW$2531,24,FALSE),0) -> 23 | Z98: =IFERROR(VLOOKUP($A98,Filtro!$A$5:$AW$2531,25,FALSE),0) -> 16 | AA98: =IFERROR(VLOOKUP($A98,Filtro!$A$5:$AW$2531,26,FALSE),0) -> 19 | AB98: =IFERROR(VLOOKUP($A98,Filtro!$A$5:$AW$2531,27,FALSE),0) -> 18 | AC98: =IFERROR(VLOOKUP($A98,Filtro!$A$5:$AW$2531,28,FALSE),0) -> 20 | AD98: =IFERROR(VLOOKUP($A98,Filtro!$A$5:$AW$2531,29,FALSE),0) -> 6 | AE98: =IFERROR(VLOOKUP($A98,Filtro!$A$5:$AW$2531,30,FALSE),0) -> 11 | AF98: =IFERROR(VLOOKUP($A98,Filtro!$A$5:$AW$2531,31,FALSE),0) -> 7 | AG98: =IFERROR(VLOOKUP($A98,Filtro!$A$5:$AW$2531,32,FALSE),0) -> 30 | AH98: =IFERROR(VLOOKUP($A98,Filtro!$A$5:$AW$2531,33,FALSE),0) -> 0 | AI98: =IFERROR(VLOOKUP($A98,Filtro!$A$5:$AW$2531,34,FALSE),0) -> 0 | DA98: 0 | DB98: 0
A99: 01501030 | B99: CONTROL INTEGRAL CON RIESGO ALTO (G3) | C99: 890 | D99: 283 | E99: 607 | F99: =IFERROR(VLOOKUP($A99,Filtro!$A$5:$AW$2531,5,FALSE),0) -> 0 | G99: =IFERROR(VLOOKUP($A99,Filtro!$A$5:$AW$2531,6,FALSE),0) -> 0 | H99: =IFERROR(VLOOKUP($A99,Filtro!$A$5:$AW$2531,7,FALSE),0) -> 0 | I99: =IFERROR(VLOOKUP($A99,Filtro!$A$5:$AW$2531,8,FALSE),0) -> 1 | J99: =IFERROR(VLOOKUP($A99,Filtro!$A$5:$AW$2531,9,FALSE),0) -> 0 | K99: =IFERROR(VLOOKUP($A99,Filtro!$A$5:$AW$2531,10,FALSE),0) -> 1 | L99: =IFERROR(VLOOKUP($A99,Filtro!$A$5:$AW$2531,11,FALSE),0) -> 0 | M99: =IFERROR(VLOOKUP($A99,Filtro!$A$5:$AW$2531,12,FALSE),0) -> 3 | N99: =IFERROR(VLOOKUP($A99,Filtro!$A$5:$AW$2531,13,FALSE),0) -> 5 | O99: =IFERROR(VLOOKUP($A99,Filtro!$A$5:$AW$2531,14,FALSE),0) -> 7 | P99: =IFERROR(VLOOKUP($A99,Filtro!$A$5:$AW$2531,15,FALSE),0) -> 1 | Q99: =IFERROR(VLOOKUP($A99,Filtro!$A$5:$AW$2531,16,FALSE),0) -> 12 | R99: =IFERROR(VLOOKUP($A99,Filtro!$A$5:$AW$2531,17,FALSE),0) -> 10 | S99: =IFERROR(VLOOKUP($A99,Filtro!$A$5:$AW$2531,18,FALSE),0) -> 20 | T99: =IFERROR(VLOOKUP($A99,Filtro!$A$5:$AW$2531,19,FALSE),0) -> 17 | U99: =IFERROR(VLOOKUP($A99,Filtro!$A$5:$AW$2531,20,FALSE),0) -> 39 | V99: =IFERROR(VLOOKUP($A99,Filtro!$A$5:$AW$2531,21,FALSE),0) -> 21 | W99: =IFERROR(VLOOKUP($A99,Filtro!$A$5:$AW$2531,22,FALSE),0) -> 74 | X99: =IFERROR(VLOOKUP($A99,Filtro!$A$5:$AW$2531,23,FALSE),0) -> 38 | Y99: =IFERROR(VLOOKUP($A99,Filtro!$A$5:$AW$2531,24,FALSE),0) -> 78 | Z99: =IFERROR(VLOOKUP($A99,Filtro!$A$5:$AW$2531,25,FALSE),0) -> 65 | AA99: =IFERROR(VLOOKUP($A99,Filtro!$A$5:$AW$2531,26,FALSE),0) -> 106 | AB99: =IFERROR(VLOOKUP($A99,Filtro!$A$5:$AW$2531,27,FALSE),0) -> 41 | AC99: =IFERROR(VLOOKUP($A99,Filtro!$A$5:$AW$2531,28,FALSE),0) -> 97 | AD99: =IFERROR(VLOOKUP($A99,Filtro!$A$5:$AW$2531,29,FALSE),0) -> 34 | AE99: =IFERROR(VLOOKUP($A99,Filtro!$A$5:$AW$2531,30,FALSE),0) -> 81 | AF99: =IFERROR(VLOOKUP($A99,Filtro!$A$5:$AW$2531,31,FALSE),0) -> 51 | AG99: =IFERROR(VLOOKUP($A99,Filtro!$A$5:$AW$2531,32,FALSE),0) -> 88 | AH99: =IFERROR(VLOOKUP($A99,Filtro!$A$5:$AW$2531,33,FALSE),0) -> 2 | AI99: =IFERROR(VLOOKUP($A99,Filtro!$A$5:$AW$2531,34,FALSE),0) -> 0 | DB99: 0 | DC99: 0
A100: 01502030 | B100: SEGUIMIENTO A DISTANCIA CON RIESGO LEVE (G1) | C100: 0 | D100: 0 | E100: 0 | F100: =IFERROR(VLOOKUP($A100,Filtro!$A$5:$AW$2531,5,FALSE),0) -> 0 | G100: =IFERROR(VLOOKUP($A100,Filtro!$A$5:$AW$2531,6,FALSE),0) -> 0 | H100: =IFERROR(VLOOKUP($A100,Filtro!$A$5:$AW$2531,7,FALSE),0) -> 0 | I100: =IFERROR(VLOOKUP($A100,Filtro!$A$5:$AW$2531,8,FALSE),0) -> 0 | J100: =IFERROR(VLOOKUP($A100,Filtro!$A$5:$AW$2531,9,FALSE),0) -> 0 | K100: =IFERROR(VLOOKUP($A100,Filtro!$A$5:$AW$2531,10,FALSE),0) -> 0 | L100: =IFERROR(VLOOKUP($A100,Filtro!$A$5:$AW$2531,11,FALSE),0) -> 0 | M100: =IFERROR(VLOOKUP($A100,Filtro!$A$5:$AW$2531,12,FALSE),0) -> 0 | N100: =IFERROR(VLOOKUP($A100,Filtro!$A$5:$AW$2531,13,FALSE),0) -> 0 | O100: =IFERROR(VLOOKUP($A100,Filtro!$A$5:$AW$2531,14,FALSE),0) -> 0 | P100: =IFERROR(VLOOKUP($A100,Filtro!$A$5:$AW$2531,15,FALSE),0) -> 0 | Q100: =IFERROR(VLOOKUP($A100,Filtro!$A$5:$AW$2531,16,FALSE),0) -> 0 | R100: =IFERROR(VLOOKUP($A100,Filtro!$A$5:$AW$2531,17,FALSE),0) -> 0 | S100: =IFERROR(VLOOKUP($A100,Filtro!$A$5:$AW$2531,18,FALSE),0) -> 0 | T100: =IFERROR(VLOOKUP($A100,Filtro!$A$5:$AW$2531,19,FALSE),0) -> 0 | U100: =IFERROR(VLOOKUP($A100,Filtro!$A$5:$AW$2531,20,FALSE),0) -> 0 | V100: =IFERROR(VLOOKUP($A100,Filtro!$A$5:$AW$2531,21,FALSE),0) -> 0 | W100: =IFERROR(VLOOKUP($A100,Filtro!$A$5:$AW$2531,22,FALSE),0) -> 0 | X100: =IFERROR(VLOOKUP($A100,Filtro!$A$5:$AW$2531,23,FALSE),0) -> 0 | Y100: =IFERROR(VLOOKUP($A100,Filtro!$A$5:$AW$2531,24,FALSE),0) -> 0 | Z100: =IFERROR(VLOOKUP($A100,Filtro!$A$5:$AW$2531,25,FALSE),0) -> 0 | AA100: =IFERROR(VLOOKUP($A100,Filtro!$A$5:$AW$2531,26,FALSE),0) -> 0 | AB100: =IFERROR(VLOOKUP($A100,Filtro!$A$5:$AW$2531,27,FALSE),0) -> 0 | AC100: =IFERROR(VLOOKUP($A100,Filtro!$A$5:$AW$2531,28,FALSE),0) -> 0 | AD100: =IFERROR(VLOOKUP($A100,Filtro!$A$5:$AW$2531,29,FALSE),0) -> 0 | AE100: =IFERROR(VLOOKUP($A100,Filtro!$A$5:$AW$2531,30,FALSE),0) -> 0 | AF100: =IFERROR(VLOOKUP($A100,Filtro!$A$5:$AW$2531,31,FALSE),0) -> 0 | AG100: =IFERROR(VLOOKUP($A100,Filtro!$A$5:$AW$2531,32,FALSE),0) -> 0 | AH100: =IFERROR(VLOOKUP($A100,Filtro!$A$5:$AW$2531,33,FALSE),0) -> 0 | AI100: =IFERROR(VLOOKUP($A100,Filtro!$A$5:$AW$2531,34,FALSE),0) -> 0 | DB100: 0 | DC100: 0
A101: 01502040 | B101: SEGUIMIENTO A DISTANCIA CON RIESGO MODERADO (G2) | C101: 1 | D101: 0 | E101: 1 | F101: =IFERROR(VLOOKUP($A101,Filtro!$A$5:$AW$2531,5,FALSE),0) -> 0 | G101: =IFERROR(VLOOKUP($A101,Filtro!$A$5:$AW$2531,6,FALSE),0) -> 0 | H101: =IFERROR(VLOOKUP($A101,Filtro!$A$5:$AW$2531,7,FALSE),0) -> 0 | I101: =IFERROR(VLOOKUP($A101,Filtro!$A$5:$AW$2531,8,FALSE),0) -> 0 | J101: =IFERROR(VLOOKUP($A101,Filtro!$A$5:$AW$2531,9,FALSE),0) -> 0 | K101: =IFERROR(VLOOKUP($A101,Filtro!$A$5:$AW$2531,10,FALSE),0) -> 1 | L101: =IFERROR(VLOOKUP($A101,Filtro!$A$5:$AW$2531,11,FALSE),0) -> 0 | M101: =IFERROR(VLOOKUP($A101,Filtro!$A$5:$AW$2531,12,FALSE),0) -> 0 | N101: =IFERROR(VLOOKUP($A101,Filtro!$A$5:$AW$2531,13,FALSE),0) -> 0 | O101: =IFERROR(VLOOKUP($A101,Filtro!$A$5:$AW$2531,14,FALSE),0) -> 0 | P101: =IFERROR(VLOOKUP($A101,Filtro!$A$5:$AW$2531,15,FALSE),0) -> 0 | Q101: =IFERROR(VLOOKUP($A101,Filtro!$A$5:$AW$2531,16,FALSE),0) -> 0 | R101: =IFERROR(VLOOKUP($A101,Filtro!$A$5:$AW$2531,17,FALSE),0) -> 0 | S101: =IFERROR(VLOOKUP($A101,Filtro!$A$5:$AW$2531,18,FALSE),0) -> 0 | T101: =IFERROR(VLOOKUP($A101,Filtro!$A$5:$AW$2531,19,FALSE),0) -> 0 | U101: =IFERROR(VLOOKUP($A101,Filtro!$A$5:$AW$2531,20,FALSE),0) -> 0 | V101: =IFERROR(VLOOKUP($A101,Filtro!$A$5:$AW$2531,21,FALSE),0) -> 0 | W101: =IFERROR(VLOOKUP($A101,Filtro!$A$5:$AW$2531,22,FALSE),0) -> 0 | X101: =IFERROR(VLOOKUP($A101,Filtro!$A$5:$AW$2531,23,FALSE),0) -> 0 | Y101: =IFERROR(VLOOKUP($A101,Filtro!$A$5:$AW$2531,24,FALSE),0) -> 0 | Z101: =IFERROR(VLOOKUP($A101,Filtro!$A$5:$AW$2531,25,FALSE),0) -> 0 | AA101: =IFERROR(VLOOKUP($A101,Filtro!$A$5:$AW$2531,26,FALSE),0) -> 0 | AB101: =IFERROR(VLOOKUP($A101,Filtro!$A$5:$AW$2531,27,FALSE),0) -> 0 | AC101: =IFERROR(VLOOKUP($A101,Filtro!$A$5:$AW$2531,28,FALSE),0) -> 0 | AD101: =IFERROR(VLOOKUP($A101,Filtro!$A$5:$AW$2531,29,FALSE),0) -> 0 | AE101: =IFERROR(VLOOKUP($A101,Filtro!$A$5:$AW$2531,30,FALSE),0) -> 0 | AF101: =IFERROR(VLOOKUP($A101,Filtro!$A$5:$AW$2531,31,FALSE),0) -> 0 | AG101: =IFERROR(VLOOKUP($A101,Filtro!$A$5:$AW$2531,32,FALSE),0) -> 0 | AH101: =IFERROR(VLOOKUP($A101,Filtro!$A$5:$AW$2531,33,FALSE),0) -> 0 | AI101: =IFERROR(VLOOKUP($A101,Filtro!$A$5:$AW$2531,34,FALSE),0) -> 0 | DB101: 0 | DC101: 0
A102: 01501040 | B102: SEGUIMIENTO A DISTANCIA CON RIESGO ALTO (G3) | C102: 1038 | D102: 303 | E102: 735 | F102: =IFERROR(VLOOKUP($A102,Filtro!$A$5:$AW$2531,5,FALSE),0) -> 0 | G102: =IFERROR(VLOOKUP($A102,Filtro!$A$5:$AW$2531,6,FALSE),0) -> 0 | H102: =IFERROR(VLOOKUP($A102,Filtro!$A$5:$AW$2531,7,FALSE),0) -> 0 | I102: =IFERROR(VLOOKUP($A102,Filtro!$A$5:$AW$2531,8,FALSE),0) -> 2 | J102: =IFERROR(VLOOKUP($A102,Filtro!$A$5:$AW$2531,9,FALSE),0) -> 0 | K102: =IFERROR(VLOOKUP($A102,Filtro!$A$5:$AW$2531,10,FALSE),0) -> 0 | L102: =IFERROR(VLOOKUP($A102,Filtro!$A$5:$AW$2531,11,FALSE),0) -> 2 | M102: =IFERROR(VLOOKUP($A102,Filtro!$A$5:$AW$2531,12,FALSE),0) -> 0 | N102: =IFERROR(VLOOKUP($A102,Filtro!$A$5:$AW$2531,13,FALSE),0) -> 0 | O102: =IFERROR(VLOOKUP($A102,Filtro!$A$5:$AW$2531,14,FALSE),0) -> 11 | P102: =IFERROR(VLOOKUP($A102,Filtro!$A$5:$AW$2531,15,FALSE),0) -> 0 | Q102: =IFERROR(VLOOKUP($A102,Filtro!$A$5:$AW$2531,16,FALSE),0) -> 15 | R102: =IFERROR(VLOOKUP($A102,Filtro!$A$5:$AW$2531,17,FALSE),0) -> 2 | S102: =IFERROR(VLOOKUP($A102,Filtro!$A$5:$AW$2531,18,FALSE),0) -> 11 | T102: =IFERROR(VLOOKUP($A102,Filtro!$A$5:$AW$2531,19,FALSE),0) -> 8 | U102: =IFERROR(VLOOKUP($A102,Filtro!$A$5:$AW$2531,20,FALSE),0) -> 74 | V102: =IFERROR(VLOOKUP($A102,Filtro!$A$5:$AW$2531,21,FALSE),0) -> 18 | W102: =IFERROR(VLOOKUP($A102,Filtro!$A$5:$AW$2531,22,FALSE),0) -> 109 | X102: =IFERROR(VLOOKUP($A102,Filtro!$A$5:$AW$2531,23,FALSE),0) -> 51 | Y102: =IFERROR(VLOOKUP($A102,Filtro!$A$5:$AW$2531,24,FALSE),0) -> 129 | Z102: =IFERROR(VLOOKUP($A102,Filtro!$A$5:$AW$2531,25,FALSE),0) -> 81 | AA102: =IFERROR(VLOOKUP($A102,Filtro!$A$5:$AW$2531,26,FALSE),0) -> 139 | AB102: =IFERROR(VLOOKUP($A102,Filtro!$A$5:$AW$2531,27,FALSE),0) -> 54 | AC102: =IFERROR(VLOOKUP($A102,Filtro!$A$5:$AW$2531,28,FALSE),0) -> 127 | AD102: =IFERROR(VLOOKUP($A102,Filtro!$A$5:$AW$2531,29,FALSE),0) -> 33 | AE102: =IFERROR(VLOOKUP($A102,Filtro!$A$5:$AW$2531,30,FALSE),0) -> 52 | AF102: =IFERROR(VLOOKUP($A102,Filtro!$A$5:$AW$2531,31,FALSE),0) -> 54 | AG102: =IFERROR(VLOOKUP($A102,Filtro!$A$5:$AW$2531,32,FALSE),0) -> 66 | AH102: =IFERROR(VLOOKUP($A102,Filtro!$A$5:$AW$2531,33,FALSE),0) -> 2 | AI102: =IFERROR(VLOOKUP($A102,Filtro!$A$5:$AW$2531,34,FALSE),0) -> 2 | DB102: 0 | DC102: 0
A105: CODIGOS NUEVOS
A106: 09600204
A107: 09600205
A108: 09600206
A109: CODIGOS ELIMINADOS
A110: 01200035
B193: =SUM(D12:D33,V32:W33,Y20:Y23,X14:X15,D37:D40,E37:F40,D45:F67,D71:D75,I71:I75,C80:C84,D88:D92,C97:C99) -> 712286 | C193: =SUM(DB1:EA99) -> 22

Sheet A02
B1: SERVICIO DE SALUD
B2: =CONCATENATE("COMUNA: ",NOMBRE!B2," - ","( ",NOMBRE!C2,NOMBRE!D2,NOMBRE!E2,NOMBRE!F2,NOMBRE!G2," )") -> COMUNA: - ( )
B3: =CONCATENATE("ESTABLECIMIENTO/ESTRATEGIA: ",NOMBRE!B3," - ","( ",NOMBRE!C3,NOMBRE!D3,NOMBRE!E3,NOMBRE!F3,NOMBRE!G3,NOMBRE!H3," )") -> ESTABLECIMIENTO/ESTRATEGIA: - ( )
B4: =CONCATENATE("MES: ",NOMBRE!B6," - ","( ",NOMBRE!C6,NOMBRE!D6," )") -> MES: - ( )
B5: =CONCATENATE("AÑO: ",NOMBRE!B7) -> AÑO: 2023
B6: REM-A02. EXAMEN DE MEDICINA PREVENTIVA EN MAYORES DE 15 AÑOS
B8: SECCIÓN A: EMP REALIZADO POR PROFESIONAL
B9: PROFESIONAL | C9: TOTAL | F9: Pueblos Originarios | G9: Migrantes
C10: Ambos Sexos | D10: Hombres | E10: Mujeres
B11: TOTAL | C11: =SUM(C12:C17) -> 59442 | D11: =SUM(D12:D17) -> 21099 | E11: =SUM(E12:E17) -> 38343 | F11: =SUM(F12:F17) -> 157 | G11: =SUM(G12:G17) -> 711
A12: 03030101 | B12: MÉDICO/A | C12: =SUM(D12:E12) -> 507 | D12: =IFERROR(VLOOKUP($A12,Filtro!$A$5:$AW$2531,3,FALSE),0) -> 188 | E12: =IFERROR(VLOOKUP($A12,Filtro!$A$5:$AW$2531,4,FALSE),0) -> 319 | F12: =IFERROR(VLOOKUP($A12,Filtro!$A$5:$AW$2531,5,FALSE),0) -> 0 | G12: =IFERROR(VLOOKUP($A12,Filtro!$A$5:$AW$2531,6,FALSE),0) -> 1
A13: 03030102 | B13: ENFERMERA/O | C13: 36159 | D13: =IFERROR(VLOOKUP($A13,Filtro!$A$5:$AW$2531,3,FALSE),0) -> 13621 | E13: =IFERROR(VLOOKUP($A13,Filtro!$A$5:$AW$2531,4,FALSE),0) -> 22538 | F13: =IFERROR(VLOOKUP($A13,Filtro!$A$5:$AW$2531,5,FALSE),0) -> 89 | G13: =IFERROR(VLOOKUP($A13,Filtro!$A$5:$AW$2531,6,FALSE),0) -> 317
A14: 03030103 | B14: MATRONA/ÓN | C14: 2022 | D14: =IFERROR(VLOOKUP($A14,Filtro!$A$5:$AW$2531,3,FALSE),0) -> 137 | E14: =IFERROR(VLOOKUP($A14,Filtro!$A$5:$AW$2531,4,FALSE),0) -> 1885 | F14: =IFERROR(VLOOKUP($A14,Filtro!$A$5:$AW$2531,5,FALSE),0) -> 4 | G14: =IFERROR(VLOOKUP($A14,Filtro!$A$5:$AW$2531,6,FALSE),0) -> 25
A15: 03030104 | B15: NUTRICIONISTA | C15: 4099 | D15: =IFERROR(VLOOKUP($A15,Filtro!$A$5:$AW$2531,3,FALSE),0) -> 1357 | E15: =IFERROR(VLOOKUP($A15,Filtro!$A$5:$AW$2531,4,FALSE),0) -> 2742 | F15: =IFERROR(VLOOKUP($A15,Filtro!$A$5:$AW$2531,5,FALSE),0) -> 3 | G15: =IFERROR(VLOOKUP($A15,Filtro!$A$5:$AW$2531,6,FALSE),0) -> 99
A16: 03030350 | B16: OTRO PROFESIONAL (capacitados en EMP Y EMPAM) | C16: 6983 | D16: =IFERROR(VLOOKUP($A16,Filtro!$A$5:$AW$2531,3,FALSE),0) -> 2622 | E16: =IFERROR(VLOOKUP($A16,Filtro!$A$5:$AW$2531,4,FALSE),0) -> 4361 | F16: =IFERROR(VLOOKUP($A16,Filtro!$A$5:$AW$2531,5,FALSE),0) -> 13 | G16: =IFERROR(VLOOKUP($A16,Filtro!$A$5:$AW$2531,6,FALSE),0) -> 108
A17: 03030110 | B17: TÉCNICO EN ENFERMERÍA | C17: 9672 | D17: =IFERROR(VLOOKUP($A17,Filtro!$A$5:$AW$2531,3,FALSE),0) -> 3174 | E17: =IFERROR(VLOOKUP($A17,Filtro!$A$5:$AW$2531,4,FALSE),0) -> 6498 | F17: =IFERROR(VLOOKUP($A17,Filtro!$A$5:$AW$2531,5,FALSE),0) -> 48 | G17: =IFERROR(VLOOKUP($A17,Filtro!$A$5:$AW$2531,6,FALSE),0) -> 161
B18: SECCIÓN B: EMP SEGÚN RESULTADO DEL ESTADO NUTRICIONAL
B19: ESTADO NUTRICIONAL | C19: TOTAL | F19: 15 a 19 años | H19: 20 a 24 años | J19: 25 a 29 años | L19: 30 a 34 años | N19: 35 a 39 años | P19: 40 a 44 años | R19: 45 a 49 años | T19: 50 a 54 años | V19: 55 a 59 años | X19: 60 a 64 años | Z19: 65 a 69 años | AB19: 70 a 74 años | AD19: 75 a 79 años | AF19: 80 y más años | AH19: Pueblos Originarios | AI19: Migrantes
C20: Ambos Sexos | D20: Hombres | E20: Mujeres | F20: Hombres | G20: Mujeres | H20: Hombres | I20: Mujeres | J20: Hombres | K20: Mujeres | L20: Hombres | M20: Mujeres | N20: Hombres | O20: Mujeres | P20: Hombres | Q20: Mujeres | R20: Hombres | S20: Mujeres | T20: Hombres | U20: Mujeres | V20: Hombres | W20: Mujeres | X20: Hombres | Y20: Mujeres | Z20: Hombres | AA20: Mujeres | AB20: Hombres | AC20: Mujeres | AD20: Hombres | AE20: Mujeres | AF20: Hombres | AG20: Mujeres
B21: TOTAL | C21: =SUM(C22:C25) -> 59180 | D21: =SUM(D22:D25) -> 20922 | E21: =SUM(E22:E25) -> 38258 | F21: =SUM(F22:F25) -> 161 | G21: 320 | H21: 1335 | I21: 2814 | J21: 1394 | K21: 3118 | L21: 1531 | M21: 3473 | N21: 1361 | O21: 3187 | P21: 1317 | Q21: 2840 | R21: 1267 | S21: 2659 | T21: 1258 | U21: 2364 | V21: 1198 | W21: 1850 | X21: 963 | Y21: 1419 | Z21: 2247 | AA21: 3719 | AB21: 2286 | AC21: 3419 | AD21: 2000 | AE21: 2911 | AF21: 2604 | AG21: 4165 | AH21: =SUM(AH22:AH25) -> 152 | AI21: =SUM(AI22:AI25) -> 623 | CA21: * Debe coincidir el total de EMP según Estado Nutricional con EMP realizado según profesional. | DA21: 1
A22: 03030330 | B22: NORMAL | C22: =SUM(D22:E22) -> 17910 | D22: =SUM(F22+H22+J22+L22+N22+P22+R22+T22+V22+X22+Z22+AB22+AD22+AF22) -> 6911 | E22: =SUM(G22+I22+K22+M22+O22+Q22+S22+U22+W22+Y22+AA22+AC22+AE22+AG22) -> 10999 | F22: =IFERROR(VLOOKUP($A22,Filtro!$A$5:$AW$2531,5,FALSE),0) -> 81 | G22: =IFERROR(VLOOKUP($A22,Filtro!$A$5:$AW$2531,6,FALSE),0) -> 145 | H22: =IFERROR(VLOOKUP($A22,Filtro!$A$5:$AW$2531,7,FALSE),0) -> 587 | I22: =IFERROR(VLOOKUP($A22,Filtro!$A$5:$AW$2531,8,FALSE),0) -> 1032 | J22: =IFERROR(VLOOKUP($A22,Filtro!$A$5:$AW$2531,9,FALSE),0) -> 441 | K22: =IFERROR(VLOOKUP($A22,Filtro!$A$5:$AW$2531,10,FALSE),0) -> 915 | L22: =IFERROR(VLOOKUP($A22,Filtro!$A$5:$AW$2531,11,FALSE),0) -> 390 | M22: =IFERROR(VLOOKUP($A22,Filtro!$A$5:$AW$2531,12,FALSE),0) -> 907 | N22: =IFERROR(VLOOKUP($A22,Filtro!$A$5:$AW$2531,13,FALSE),0) -> 304 | O22: =IFERROR(VLOOKUP($A22,Filtro!$A$5:$AW$2531,14,FALSE),0) -> 721 | P22: =IFERROR(VLOOKUP($A22,Filtro!$A$5:$AW$2531,15,FALSE),0) -> 275 | Q22: =IFERROR(VLOOKUP($A22,Filtro!$A$5:$AW$2531,16,FALSE),0) -> 634 | R22: =IFERROR(VLOOKUP($A22,Filtro!$A$5:$AW$2531,17,FALSE),0) -> 256 | S22: =IFERROR(VLOOKUP($A22,Filtro!$A$5:$AW$2531,18,FALSE),0) -> 579 | T22: =IFERROR(VLOOKUP($A22,Filtro!$A$5:$AW$2531,19,FALSE),0) -> 245 | U22: =IFERROR(VLOOKUP($A22,Filtro!$A$5:$AW$2531,20,FALSE),0) -> 439 | V22: =IFERROR(VLOOKUP($A22,Filtro!$A$5:$AW$2531,21,FALSE),0) -> 231 | W22: =IFERROR(VLOOKUP($A22,Filtro!$A$5:$AW$2531,22,FALSE),0) -> 402 | X22: =IFERROR(VLOOKUP($A22,Filtro!$A$5:$AW$2531,23,FALSE),0) -> 215 | Y22: =IFERROR(VLOOKUP($A22,Filtro!$A$5:$AW$2531,24,FALSE),0) -> 352 | Z22: =IFERROR(VLOOKUP($A22,Filtro!$A$5:$AW$2531,25,FALSE),0) -> 837 | AA22: =IFERROR(VLOOKUP($A22,Filtro!$A$5:$AW$2531,26,FALSE),0) -> 1119 | AB22: =IFERROR(VLOOKUP($A22,Filtro!$A$5:$AW$2531,27,FALSE),0) -> 900 | AC22: =IFERROR(VLOOKUP($A22,Filtro!$A$5:$AW$2531,28,FALSE),0) -> 1085 | AD22: =IFERROR(VLOOKUP($A22,Filtro!$A$5:$AW$2531,29,FALSE),0) -> 873 | AE22: =IFERROR(VLOOKUP($A22,Filtro!$A$5:$AW$2531,30,FALSE),0) -> 1003 | AF22: =IFERROR(VLOOKUP($A22,Filtro!$A$5:$AW$2531,31,FALSE),0) -> 1276 | AG22: =IFERROR(VLOOKUP($A22,Filtro!$A$5:$AW$2531,32,FALSE),0) -> 1666 | AH22: =IFERROR(VLOOKUP($A22,Filtro!$A$5:$AW$2531,33,FALSE),0) -> 48 | AI22: =IFERROR(VLOOKUP($A22,Filtro!$A$5:$AW$2531,34,FALSE),0) -> 160
A23: 03030340 | B23: BAJO PESO | C23: =SUM(D23:E23) -> 2595 | D23: =SUM(F23+H23+J23+L23+N23+P23+R23+T23+V23+X23+Z23+AB23+AD23+AF23) -> 1010 | E23: 1585 | F23: =IFERROR(VLOOKUP($A23,Filtro!$A$5:$AW$2531,5,FALSE),0) -> 23 | G23: =IFERROR(VLOOKUP($A23,Filtro!$A$5:$AW$2531,6,FALSE),0) -> 6 | H23: =IFERROR(VLOOKUP($A23,Filtro!$A$5:$AW$2531,7,FALSE),0) -> 29 | I23: =IFERROR(VLOOKUP($A23,Filtro!$A$5:$AW$2531,8,FALSE),0) -> 73 | J23: =IFERROR(VLOOKUP($A23,Filtro!$A$5:$AW$2531,9,FALSE),0) -> 20 | K23: =IFERROR(VLOOKUP($A23,Filtro!$A$5:$AW$2531,10,FALSE),0) -> 35 | L23: =IFERROR(VLOOKUP($A23,Filtro!$A$5:$AW$2531,11,FALSE),0) -> 16 | M23: =IFERROR(VLOOKUP($A23,Filtro!$A$5:$AW$2531,12,FALSE),0) -> 28 | N23: =IFERROR(VLOOKUP($A23,Filtro!$A$5:$AW$2531,13,FALSE),0) -> 6 | O23: =IFERROR(VLOOKUP($A23,Filtro!$A$5:$AW$2531,14,FALSE),0) -> 19 | P23: =IFERROR(VLOOKUP($A23,Filtro!$A$5:$AW$2531,15,FALSE),0) -> 4 | Q23: =IFERROR(VLOOKUP($A23,Filtro!$A$5:$AW$2531,16,FALSE),0) -> 17 | R23: =IFERROR(VLOOKUP($A23,Filtro!$A$5:$AW$2531,17,FALSE),0) -> 6 | S23: =IFERROR(VLOOKUP($A23,Filtro!$A$5:$AW$2531,18,FALSE),0) -> 18 | T23: =IFERROR(VLOOKUP($A23,Filtro!$A$5:$AW$2531,19,FALSE),0) -> 5 | U23: =IFERROR(VLOOKUP($A23,Filtro!$A$5:$AW$2531,20,FALSE),0) -> 15 | V23: =IFERROR(VLOOKUP($A23,Filtro!$A$5:$AW$2531,21,FALSE),0) -> 6 | W23: =IFERROR(VLOOKUP($A23,Filtro!$A$5:$AW$2531,22,FALSE),0) -> 13 | X23: =IFERROR(VLOOKUP($A23,Filtro!$A$5:$AW$2531,23,FALSE),0) -> 12 | Y23: =IFERROR(VLOOKUP($A23,Filtro!$A$5:$AW$2531,24,FALSE),0) -> 17 | Z23: =IFERROR(VLOOKUP($A23,Filtro!$A$5:$AW$2531,25,FALSE),0) -> 131 | AA23: =IFERROR(VLOOKUP($A23,Filtro!$A$5:$AW$2531,26,FALSE),0) -> 202 | AB23: =IFERROR(VLOOKUP($A23,Filtro!$A$5:$AW$2531,27,FALSE),0) -> 176 | AC23: =IFERROR(VLOOKUP($A23,Filtro!$A$5:$AW$2531,28,FALSE),0) -> 228 | AD23: =IFERROR(VLOOKUP($A23,Filtro!$A$5:$AW$2531,29,FALSE),0) -> 174 | AE23: =IFERROR(VLOOKUP($A23,Filtro!$A$5:$AW$2531,30,FALSE),0) -> 246 | AF23: =IFERROR(VLOOKUP($A23,Filtro!$A$5:$AW$2531,31,FALSE),0) -> 402 | AG23: =IFERROR(VLOOKUP($A23,Filtro!$A$5:$AW$2531,32,FALSE),0) -> 668 | AH23: =IFERROR(VLOOKUP($A23,Filtro!$A$5:$AW$2531,33,FALSE),0) -> 12 | AI23: =IFERROR(VLOOKUP($A23,Filtro!$A$5:$AW$2531,34,FALSE),0) -> 47
A24: 03030120 | B24: SOBREPESO | C24: =SUM(D24:E24) -> 20939 | D24: 7934 | E24: 13005 | F24: =IFERROR(VLOOKUP($A24,Filtro!$A$5:$AW$2531,5,FALSE),0) -> 32 | G24: =IFERROR(VLOOKUP($A24,Filtro!$A$5:$AW$2531,6,FALSE),0) -> 79 | H24: =IFERROR(VLOOKUP($A24,Filtro!$A$5:$AW$2531,7,FALSE),0) -> 435 | I24: =IFERROR(VLOOKUP($A24,Filtro!$A$5:$AW$2531,8,FALSE),0) -> 860 | J24: =IFERROR(VLOOKUP($A24,Filtro!$A$5:$AW$2531,9,FALSE),0) -> 537 | K24: =IFERROR(VLOOKUP($A24,Filtro!$A$5:$AW$2531,10,FALSE),0) -> 1056 | L24: =IFERROR(VLOOKUP($A24,Filtro!$A$5:$AW$2531,11,FALSE),0) -> 659 | M24: =IFERROR(VLOOKUP($A24,Filtro!$A$5:$AW$2531,12,FALSE),0) -> 1222 | N24: =IFERROR(VLOOKUP($A24,Filtro!$A$5:$AW$2531,13,FALSE),0) -> 631 | O24: =IFERROR(VLOOKUP($A24,Filtro!$A$5:$AW$2531,14,FALSE),0) -> 1234 | P24: =IFERROR(VLOOKUP($A24,Filtro!$A$5:$AW$2531,15,FALSE),0) -> 601 | Q24: =IFERROR(VLOOKUP($A24,Filtro!$A$5:$AW$2531,16,FALSE),0) -> 1083 | R24: =IFERROR(VLOOKUP($A24,Filtro!$A$5:$AW$2531,17,FALSE),0) -> 585 | S24: =IFERROR(VLOOKUP($A24,Filtro!$A$5:$AW$2531,18,FALSE),0) -> 1074 | T24: =IFERROR(VLOOKUP($A24,Filtro!$A$5:$AW$2531,19,FALSE),0) -> 590 | U24: =IFERROR(VLOOKUP($A24,Filtro!$A$5:$AW$2531,20,FALSE),0) -> 994 | V24: =IFERROR(VLOOKUP($A24,Filtro!$A$5:$AW$2531,21,FALSE),0) -> 580 | W24: =IFERROR(VLOOKUP($A24,Filtro!$A$5:$AW$2531,22,FALSE),0) -> 772 | X24: =IFERROR(VLOOKUP($A24,Filtro!$A$5:$AW$2531,23,FALSE),0) -> 466 | Y24: =IFERROR(VLOOKUP($A24,Filtro!$A$5:$AW$2531,24,FALSE),0) -> 538 | Z24: =IFERROR(VLOOKUP($A24,Filtro!$A$5:$AW$2531,25,FALSE),0) -> 766 | AA24: =IFERROR(VLOOKUP($A24,Filtro!$A$5:$AW$2531,26,FALSE),0) -> 1123 | AB24: =IFERROR(VLOOKUP($A24,Filtro!$A$5:$AW$2531,27,FALSE),0) -> 781 | AC24: =IFERROR(VLOOKUP($A24,Filtro!$A$5:$AW$2531,28,FALSE),0) -> 1043 | AD24: =IFERROR(VLOOKUP($A24,Filtro!$A$5:$AW$2531,29,FALSE),0) -> 634 | AE24: =IFERROR(VLOOKUP($A24,Filtro!$A$5:$AW$2531,30,FALSE),0) -> 903 | AF24: =IFERROR(VLOOKUP($A24,Filtro!$A$5:$AW$2531,31,FALSE),0) -> 637 | AG24: =IFERROR(VLOOKUP($A24,Filtro!$A$5:$AW$2531,32,FALSE),0) -> 1024 | AH24: =IFERROR(VLOOKUP($A24,Filtro!$A$5:$AW$2531,33,FALSE),0) -> 44 | AI24: =IFERROR(VLOOKUP($A24,Filtro!$A$5:$AW$2531,34,FALSE),0) -> 220
A25: 03030130 | B25: OBESOS | C25: =SUM(D25:E25) -> 17736 | D25: 5067 | E25: 12669 | F25: =IFERROR(VLOOKUP($A25,Filtro!$A$5:$AW$2531,5,FALSE),0) -> 25 | G25: =IFERROR(VLOOKUP($A25,Filtro!$A$5:$AW$2531,6,FALSE),0) -> 90 | H25: =IFERROR(VLOOKUP($A25,Filtro!$A$5:$AW$2531,7,FALSE),0) -> 284 | I25: =IFERROR(VLOOKUP($A25,Filtro!$A$5:$AW$2531,8,FALSE),0) -> 849 | J25: =IFERROR(VLOOKUP($A25,Filtro!$A$5:$AW$2531,9,FALSE),0) -> 396 | K25: =IFERROR(VLOOKUP($A25,Filtro!$A$5:$AW$2531,10,FALSE),0) -> 1112 | L25: =IFERROR(VLOOKUP($A25,Filtro!$A$5:$AW$2531,11,FALSE),0) -> 466 | M25: =IFERROR(VLOOKUP($A25,Filtro!$A$5:$AW$2531,12,FALSE),0) -> 1316 | N25: =IFERROR(VLOOKUP($A25,Filtro!$A$5:$AW$2531,13,FALSE),0) -> 420 | O25: =IFERROR(VLOOKUP($A25,Filtro!$A$5:$AW$2531,14,FALSE),0) -> 1213 | P25: =IFERROR(VLOOKUP($A25,Filtro!$A$5:$AW$2531,15,FALSE),0) -> 437 | Q25: =IFERROR(VLOOKUP($A25,Filtro!$A$5:$AW$2531,16,FALSE),0) -> 1106 | R25: =IFERROR(VLOOKUP($A25,Filtro!$A$5:$AW$2531,17,FALSE),0) -> 420 | S25: =IFERROR(VLOOKUP($A25,Filtro!$A$5:$AW$2531,18,FALSE),0) -> 988 | T25: =IFERROR(VLOOKUP($A25,Filtro!$A$5:$AW$2531,19,FALSE),0) -> 418 | U25: =IFERROR(VLOOKUP($A25,Filtro!$A$5:$AW$2531,20,FALSE),0) -> 916 | V25: =IFERROR(VLOOKUP($A25,Filtro!$A$5:$AW$2531,21,FALSE),0) -> 381 | W25: =IFERROR(VLOOKUP($A25,Filtro!$A$5:$AW$2531,22,FALSE),0) -> 663 | X25: =IFERROR(VLOOKUP($A25,Filtro!$A$5:$AW$2531,23,FALSE),0) -> 270 | Y25: =IFERROR(VLOOKUP($A25,Filtro!$A$5:$AW$2531,24,FALSE),0) -> 512 | Z25: =IFERROR(VLOOKUP($A25,Filtro!$A$5:$AW$2531,25,FALSE),0) -> 513 | AA25: =IFERROR(VLOOKUP($A25,Filtro!$A$5:$AW$2531,26,FALSE),0) -> 1275 | AB25: =IFERROR(VLOOKUP($A25,Filtro!$A$5:$AW$2531,27,FALSE),0) -> 429 | AC25: =IFERROR(VLOOKUP($A25,Filtro!$A$5:$AW$2531,28,FALSE),0) -> 1063 | AD25: =IFERROR(VLOOKUP($A25,Filtro!$A$5:$AW$2531,29,FALSE),0) -> 319 | AE25: =IFERROR(VLOOKUP($A25,Filtro!$A$5:$AW$2531,30,FALSE),0) -> 759 | AF25: =IFERROR(VLOOKUP($A25,Filtro!$A$5:$AW$2531,31,FALSE),0) -> 289 | AG25: =IFERROR(VLOOKUP($A25,Filtro!$A$5:$AW$2531,32,FALSE),0) -> 807 | AH25: =IFERROR(VLOOKUP($A25,Filtro!$A$5:$AW$2531,33,FALSE),0) -> 48 | AI25: =IFERROR(VLOOKUP($A25,Filtro!$A$5:$AW$2531,34,FALSE),0) -> 196
B26: SECCIÓN C: RESULTADOS DE EMP SEGÚN ESTADO DE SALUD
B27: ESTADO DE SALUD | C27: TOTAL | F27: 15 a 19 años | H27: 20 a 24 años | J27: 25 a 29 años | L27: 30 a 34 años | N27: 35 a 39 años | P27: 40 a 44 años | R27: 45 a 49 años | T27: 50 a 54 años | V27: 55 a 59 años | X27: 60 a 64 años | Z27: 65 a 69 años | AB27: 70 a 74 años | AD27: 75 a 79 años | AF27: 80 y más años | AH27: Pueblos Originarios | AI27: Migrantes
C28: Ambos Sexos | D28: Hombres | E28: Mujeres | F28: Hombres | G28: Mujeres | H28: Hombres | I28: Mujeres | J28: Hombres | K28: Mujeres | L28: Hombres | M28: Mujeres | N28: Hombres | O28: Mujeres | P28: Hombres | Q28: Mujeres | R28: Hombres | S28: Mujeres | T28: Hombres | U28: Mujeres | V28: Hombres | W28: Mujeres | X28: Hombres | Y28: Mujeres | Z28: Hombres | AA28: Mujeres | AB28: Hombres | AC28: Mujeres | AD28: Hombres | AE28: Mujeres | AF28: Hombres | AG28: Mujeres
A29: 02200010 | B29: TABAQUISMO | C29: =SUM(D29:E29) -> 10118 | D29: =SUM(F29+H29+J29+L29+N29+P29+R29+T29+V29+X29+Z29+AB29+AD29+AF29) -> 3830 | E29: =SUM(G29+I29+K29+M29+O29+Q29+S29+U29+W29+Y29+AA29+AC29+AE29+AG29) -> 6288 | F29: =IFERROR(VLOOKUP($A29,Filtro!$A$5:$AW$2531,5,FALSE),0) -> 10 | G29: =IFERROR(VLOOKUP($A29,Filtro!$A$5:$AW$2531,6,FALSE),0) -> 22 | H29: =IFERROR(VLOOKUP($A29,Filtro!$A$5:$AW$2531,7,FALSE),0) -> 371 | I29: =IFERROR(VLOOKUP($A29,Filtro!$A$5:$AW$2531,8,FALSE),0) -> 637 | J29: =IFERROR(VLOOKUP($A29,Filtro!$A$5:$AW$2531,9,FALSE),0) -> 423 | K29: =IFERROR(VLOOKUP($A29,Filtro!$A$5:$AW$2531,10,FALSE),0) -> 712 | L29: =IFERROR(VLOOKUP($A29,Filtro!$A$5:$AW$2531,11,FALSE),0) -> 446 | M29: =IFERROR(VLOOKUP($A29,Filtro!$A$5:$AW$2531,12,FALSE),0) -> 868 | N29: =IFERROR(VLOOKUP($A29,Filtro!$A$5:$AW$2531,13,FALSE),0) -> 428 | O29: =IFERROR(VLOOKUP($A29,Filtro!$A$5:$AW$2531,14,FALSE),0) -> 814 | P29: =IFERROR(VLOOKUP($A29,Filtro!$A$5:$AW$2531,15,FALSE),0) -> 450 | Q29: =IFERROR(VLOOKUP($A29,Filtro!$A$5:$AW$2531,16,FALSE),0) -> 728 | R29: =IFERROR(VLOOKUP($A29,Filtro!$A$5:$AW$2531,17,FALSE),0) -> 360 | S29: =IFERROR(VLOOKUP($A29,Filtro!$A$5:$AW$2531,18,FALSE),0) -> 688 | T29: =IFERROR(VLOOKUP($A29,Filtro!$A$5:$AW$2531,19,FALSE),0) -> 372 | U29: =IFERROR(VLOOKUP($A29,Filtro!$A$5:$AW$2531,20,FALSE),0) -> 590 | V29: =IFERROR(VLOOKUP($A29,Filtro!$A$5:$AW$2531,21,FALSE),0) -> 319 | W29: =IFERROR(VLOOKUP($A29,Filtro!$A$5:$AW$2531,22,FALSE),0) -> 390 | X29: =IFERROR(VLOOKUP($A29,Filtro!$A$5:$AW$2531,23,FALSE),0) -> 203 | Y29: =IFERROR(VLOOKUP($A29,Filtro!$A$5:$AW$2531,24,FALSE),0) -> 275 | Z29: =IFERROR(VLOOKUP($A29,Filtro!$A$5:$AW$2531,25,FALSE),0) -> 162 | AA29: =IFERROR(VLOOKUP($A29,Filtro!$A$5:$AW$2531,26,FALSE),0) -> 245 | AB29: =IFERROR(VLOOKUP($A29,Filtro!$A$5:$AW$2531,27,FALSE),0) -> 133 | AC29: =IFERROR(VLOOKUP($A29,Filtro!$A$5:$AW$2531,28,FALSE),0) -> 159 | AD29: =IFERROR(VLOOKUP($A29,Filtro!$A$5:$AW$2531,29,FALSE),0) -> 90 | AE29: =IFERROR(VLOOKUP($A29,Filtro!$A$5:$AW$2531,30,FALSE),0) -> 87 | AF29: =IFERROR(VLOOKUP($A29,Filtro!$A$5:$AW$2531,31,FALSE),0) -> 63 | AG29: =IFERROR(VLOOKUP($A29,Filtro!$A$5:$AW$2531,32,FALSE),0) -> 73 | AH29: =IFERROR(VLOOKUP($A29,Filtro!$A$5:$AW$2531,33,FALSE),0) -> 19 | AI29: =IFERROR(VLOOKUP($A29,Filtro!$A$5:$AW$2531,34,FALSE),0) -> 50
A30: 02200020 | B30: PRESIÓN ARTERIAL ELEVADA (= >140/90 mmHg) | C30: =SUM(D30:E30) -> 9087 | D30: =SUM(F30+H30+J30+L30+N30+P30+R30+T30+V30+X30+Z30+AB30+AD30+AF30) -> 3987 | E30: =SUM(G30+I30+K30+M30+O30+Q30+S30+U30+W30+Y30+AA30+AC30+AE30+AG30) -> 5100 | F30: =IFERROR(VLOOKUP($A30,Filtro!$A$5:$AW$2531,5,FALSE),0) -> 13 | G30: =IFERROR(VLOOKUP($A30,Filtro!$A$5:$AW$2531,6,FALSE),0) -> 24 | H30: =IFERROR(VLOOKUP($A30,Filtro!$A$5:$AW$2531,7,FALSE),0) -> 127 | I30: =IFERROR(VLOOKUP($A30,Filtro!$A$5:$AW$2531,8,FALSE),0) -> 119 | J30: =IFERROR(VLOOKUP($A30,Filtro!$A$5:$AW$2531,9,FALSE),0) -> 146 | K30: =IFERROR(VLOOKUP($A30,Filtro!$A$5:$AW$2531,10,FALSE),0) -> 131 | L30: =IFERROR(VLOOKUP($A30,Filtro!$A$5:$AW$2531,11,FALSE),0) -> 168 | M30: =IFERROR(VLOOKUP($A30,Filtro!$A$5:$AW$2531,12,FALSE),0) -> 201 | N30: =IFERROR(VLOOKUP($A30,Filtro!$A$5:$AW$2531,13,FALSE),0) -> 191 | O30: =IFERROR(VLOOKUP($A30,Filtro!$A$5:$AW$2531,14,FALSE),0) -> 254 | P30: =IFERROR(VLOOKUP($A30,Filtro!$A$5:$AW$2531,15,FALSE),0) -> 215 | Q30: =IFERROR(VLOOKUP($A30,Filtro!$A$5:$AW$2531,16,FALSE),0) -> 293 | R30: =IFERROR(VLOOKUP($A30,Filtro!$A$5:$AW$2531,17,FALSE),0) -> 262 | S30: =IFERROR(VLOOKUP($A30,Filtro!$A$5:$AW$2531,18,FALSE),0) -> 347 | T30: =IFERROR(VLOOKUP($A30,Filtro!$A$5:$AW$2531,19,FALSE),0) -> 323 | U30: =IFERROR(VLOOKUP($A30,Filtro!$A$5:$AW$2531,20,FALSE),0) -> 401 | V30: =IFERROR(VLOOKUP($A30,Filtro!$A$5:$AW$2531,21,FALSE),0) -> 331 | W30: =IFERROR(VLOOKUP($A30,Filtro!$A$5:$AW$2531,22,FALSE),0) -> 298 | X30: =IFERROR(VLOOKUP($A30,Filtro!$A$5:$AW$2531,23,FALSE),0) -> 259 | Y30: =IFERROR(VLOOKUP($A30,Filtro!$A$5:$AW$2531,24,FALSE),0) -> 278 | Z30: =IFERROR(VLOOKUP($A30,Filtro!$A$5:$AW$2531,25,FALSE),0) -> 512 | AA30: =IFERROR(VLOOKUP($A30,Filtro!$A$5:$AW$2531,26,FALSE),0) -> 680 | AB30: =IFERROR(VLOOKUP($A30,Filtro!$A$5:$AW$2531,27,FALSE),0) -> 504 | AC30: =IFERROR(VLOOKUP($A30,Filtro!$A$5:$AW$2531,28,FALSE),0) -> 659 | AD30: =IFERROR(VLOOKUP($A30,Filtro!$A$5:$AW$2531,29,FALSE),0) -> 461 | AE30: =IFERROR(VLOOKUP($A30,Filtro!$A$5:$AW$2531,30,FALSE),0) -> 612 | AF30: =IFERROR(VLOOKUP($A30,Filtro!$A$5:$AW$2531,31,FALSE),0) -> 475 | AG30: =IFERROR(VLOOKUP($A30,Filtro!$A$5:$AW$2531,32,FALSE),0) -> 803 | AH30: =IFERROR(VLOOKUP($A30,Filtro!$A$5:$AW$2531,33,FALSE),0) -> 27 | AI30: =IFERROR(VLOOKUP($A30,Filtro!$A$5:$AW$2531,34,FALSE),0) -> 60
B31: SECCIÓN D: RESULTADOS DE EMP SEGÚN ESTADO DE SALUD (EXÁMENES DE LABORATORIO)
B32: ESTADO DE SALUD | C32: TOTAL | F32: 15 a 19 años | H32: 20 a 24 años | J32: 25 a 29 años | L32: 30 a 34 años | N32: 35 a 39 años | P32: 40 a 44 años | R32: 45 a 49 años | T32: 50 a 54 años | V32: 55 a 59 años | X32: 60 a 64 años | Z32: 65 a 69 años | AB32: 70 a 74 años | AD32: 75 a 79 años | AF32: 80 y más años | AH32: Pueblos Originarios | AI32: Migrantes
C33: Ambos Sexos | D33: Hombres | E33: Mujeres | F33: Hombres | G33: Mujeres | H33: Hombres | I33: Mujeres | J33: Hombres | K33: Mujeres | L33: Hombres | M33: Mujeres | N33: Hombres | O33: Mujeres | P33: Hombres | Q33: Mujeres | R33: Hombres | S33: Mujeres | T33: Hombres | U33: Mujeres | V33: Hombres | W33: Mujeres | X33: Hombres | Y33: Mujeres | Z33: Hombres | AA33: Mujeres | AB33: Hombres | AC33: Mujeres | AD33: Hombres | AE33: Mujeres | AF33: Hombres | AG33: Mujeres
A34: 02200030 | B34: GLICEMIA ALTERADA (= > a 100 mg/dl) | C34: =SUM(D34:E34) -> 7768 | D34: =SUM(F34+H34+J34+L34+N34+P34+R34+T34+V34+X34+Z34+AB34+AD34+AF34) -> 2721 | E34: =SUM(G34+I34+K34+M34+O34+Q34+S34+U34+W34+Y34+AA34+AC34+AE34+AG34) -> 5047 | F34: =IFERROR(VLOOKUP($A34,Filtro!$A$5:$AW$2531,5,FALSE),0) -> 7 | G34: =IFERROR(VLOOKUP($A34,Filtro!$A$5:$AW$2531,6,FALSE),0) -> 13 | H34: =IFERROR(VLOOKUP($A34,Filtro!$A$5:$AW$2531,7,FALSE),0) -> 136 | I34: =IFERROR(VLOOKUP($A34,Filtro!$A$5:$AW$2531,8,FALSE),0) -> 346 | J34: =IFERROR(VLOOKUP($A34,Filtro!$A$5:$AW$2531,9,FALSE),0) -> 138 | K34: =IFERROR(VLOOKUP($A34,Filtro!$A$5:$AW$2531,10,FALSE),0) -> 383 | L34: =IFERROR(VLOOKUP($A34,Filtro!$A$5:$AW$2531,11,FALSE),0) -> 204 | M34: =IFERROR(VLOOKUP($A34,Filtro!$A$5:$AW$2531,12,FALSE),0) -> 457 | N34: =IFERROR(VLOOKUP($A34,Filtro!$A$5:$AW$2531,13,FALSE),0) -> 219 | O34: =IFERROR(VLOOKUP($A34,Filtro!$A$5:$AW$2531,14,FALSE),0) -> 499 | P34: =IFERROR(VLOOKUP($A34,Filtro!$A$5:$AW$2531,15,FALSE),0) -> 221 | Q34: =IFERROR(VLOOKUP($A34,Filtro!$A$5:$AW$2531,16,FALSE),0) -> 443 | R34: =IFERROR(VLOOKUP($A34,Filtro!$A$5:$AW$2531,17,FALSE),0) -> 212 | S34: =IFERROR(VLOOKUP($A34,Filtro!$A$5:$AW$2531,18,FALSE),0) -> 458 | T34: =IFERROR(VLOOKUP($A34,Filtro!$A$5:$AW$2531,19,FALSE),0) -> 258 | U34: =IFERROR(VLOOKUP($A34,Filtro!$A$5:$AW$2531,20,FALSE),0) -> 415 | V34: =IFERROR(VLOOKUP($A34,Filtro!$A$5:$AW$2531,21,FALSE),0) -> 237 | W34: =IFERROR(VLOOKUP($A34,Filtro!$A$5:$AW$2531,22,FALSE),0) -> 350 | X34: =IFERROR(VLOOKUP($A34,Filtro!$A$5:$AW$2531,23,FALSE),0) -> 190 | Y34: =IFERROR(VLOOKUP($A34,Filtro!$A$5:$AW$2531,24,FALSE),0) -> 284 | Z34: =IFERROR(VLOOKUP($A34,Filtro!$A$5:$AW$2531,25,FALSE),0) -> 266 | AA34: =IFERROR(VLOOKUP($A34,Filtro!$A$5:$AW$2531,26,FALSE),0) -> 429 | AB34: =IFERROR(VLOOKUP($A34,Filtro!$A$5:$AW$2531,27,FALSE),0) -> 248 | AC34: =IFERROR(VLOOKUP($A34,Filtro!$A$5:$AW$2531,28,FALSE),0) -> 349 | AD34: =IFERROR(VLOOKUP($A34,Filtro!$A$5:$AW$2531,29,FALSE),0) -> 187 | AE34: =IFERROR(VLOOKUP($A34,Filtro!$A$5:$AW$2531,30,FALSE),0) -> 293 | AF34: =IFERROR(VLOOKUP($A34,Filtro!$A$5:$AW$2531,31,FALSE),0) -> 198 | AG34: =IFERROR(VLOOKUP($A34,Filtro!$A$5:$AW$2531,32,FALSE),0) -> 328 | AH34: =IFERROR(VLOOKUP($A34,Filtro!$A$5:$AW$2531,33,FALSE),0) -> 24 | AI34: =IFERROR(VLOOKUP($A34,Filtro!$A$5:$AW$2531,34,FALSE),0) -> 98
A35: 02200040 | B35: COLESTEROL ELEVADO (= > 200 mg/dl) | C35: =SUM(D35:E35) -> 2896 | D35: =SUM(F35+H35+J35+L35+N35+P35+R35+T35+V35+X35+Z35+AB35+AD35+AF35) -> 966 | E35: =SUM(G35+I35+K35+M35+O35+Q35+S35+U35+W35+Y35+AA35+AC35+AE35+AG35) -> 1930 | F35: =IFERROR(VLOOKUP($A35,Filtro!$A$5:$AW$2531,5,FALSE),0) -> 0 | G35: =IFERROR(VLOOKUP($A35,Filtro!$A$5:$AW$2531,6,FALSE),0) -> 2 | H35: =IFERROR(VLOOKUP($A35,Filtro!$A$5:$AW$2531,7,FALSE),0) -> 19 | I35: =IFERROR(VLOOKUP($A35,Filtro!$A$5:$AW$2531,8,FALSE),0) -> 33 | J35: =IFERROR(VLOOKUP($A35,Filtro!$A$5:$AW$2531,9,FALSE),0) -> 33 | K35: =IFERROR(VLOOKUP($A35,Filtro!$A$5:$AW$2531,10,FALSE),0) -> 59 | L35: =IFERROR(VLOOKUP($A35,Filtro!$A$5:$AW$2531,11,FALSE),0) -> 47 | M35: =IFERROR(VLOOKUP($A35,Filtro!$A$5:$AW$2531,12,FALSE),0) -> 83 | N35: =IFERROR(VLOOKUP($A35,Filtro!$A$5:$AW$2531,13,FALSE),0) -> 44 | O35: =IFERROR(VLOOKUP($A35,Filtro!$A$5:$AW$2531,14,FALSE),0) -> 102 | P35: =IFERROR(VLOOKUP($A35,Filtro!$A$5:$AW$2531,15,FALSE),0) -> 82 | Q35: =IFERROR(VLOOKUP($A35,Filtro!$A$5:$AW$2531,16,FALSE),0) -> 142 | R35: =IFERROR(VLOOKUP($A35,Filtro!$A$5:$AW$2531,17,FALSE),0) -> 90 | S35: =IFERROR(VLOOKUP($A35,Filtro!$A$5:$AW$2531,18,FALSE),0) -> 183 | T35: =IFERROR(VLOOKUP($A35,Filtro!$A$5:$AW$2531,19,FALSE),0) -> 81 | U35: =IFERROR(VLOOKUP($A35,Filtro!$A$5:$AW$2531,20,FALSE),0) -> 162 | V35: =IFERROR(VLOOKUP($A35,Filtro!$A$5:$AW$2531,21,FALSE),0) -> 87 | W35: =IFERROR(VLOOKUP($A35,Filtro!$A$5:$AW$2531,22,FALSE),0) -> 153 | X35: =IFERROR(VLOOKUP($A35,Filtro!$A$5:$AW$2531,23,FALSE),0) -> 64 | Y35: =IFERROR(VLOOKUP($A35,Filtro!$A$5:$AW$2531,24,FALSE),0) -> 115 | Z35: =IFERROR(VLOOKUP($A35,Filtro!$A$5:$AW$2531,25,FALSE),0) -> 125 | AA35: =IFERROR(VLOOKUP($A35,Filtro!$A$5:$AW$2531,26,FALSE),0) -> 289 | AB35: =IFERROR(VLOOKUP($A35,Filtro!$A$5:$AW$2531,27,FALSE),0) -> 116 | AC35: =IFERROR(VLOOKUP($A35,Filtro!$A$5:$AW$2531,28,FALSE),0) -> 249 | AD35: =IFERROR(VLOOKUP($A35,Filtro!$A$5:$AW$2531,29,FALSE),0) -> 94 | AE35: =IFERROR(VLOOKUP($A35,Filtro!$A$5:$AW$2531,30,FALSE),0) -> 173 | AF35: =IFERROR(VLOOKUP($A35,Filtro!$A$5:$AW$2531,31,FALSE),0) -> 84 | AG35: =IFERROR(VLOOKUP($A35,Filtro!$A$5:$AW$2531,32,FALSE),0) -> 185 | AH35: =IFERROR(VLOOKUP($A35,Filtro!$A$5:$AW$2531,33,FALSE),0) -> 12 | AI35: =IFERROR(VLOOKUP($A35,Filtro!$A$5:$AW$2531,34,FALSE),0) -> 16
B195: =SUM(C12:C17,C21:C25,C29:C30,C34:C35) -> 207671 | C195: =SUM(DB7:EA52) -> 0

Sheet A03
B1: SERVICIO DE SALUD
B2: =CONCATENATE("COMUNA: ",NOMBRE!B2," - ","( ",NOMBRE!C2,NOMBRE!D2,NOMBRE!E2,NOMBRE!F2,NOMBRE!G2," )") -> COMUNA: - ( )
B3: =CONCATENATE("ESTABLECIMIENTO/ESTRATEGIA: ",NOMBRE!B3," - ","( ",NOMBRE!C3,NOMBRE!D3,NOMBRE!E3,NOMBRE!F3,NOMBRE!G3,NOMBRE!H3," )") -> ESTABLECIMIENTO/ESTRATEGIA: - ( )
B4: =CONCATENATE("MES: ",NOMBRE!B6," - ","( ",NOMBRE!C6,NOMBRE!D6," )") -> MES: - ( )
B5: =CONCATENATE("AÑO: ",NOMBRE!B7) -> AÑO: 2023
B6: REM-A03. APLICACIÓN Y RESULTADOS DE ESCALAS DE EVALUACIÓN
B7: SECCIÓN A: APLICACIÓN DE INSTRUMENTO Y RESULTADO EN EL NIÑO (A)
B8: SECCIÓN A.1: APLICACIÓN Y RESULTADOS DE PAUTA BREVE
B9: EVALUACIONES POR EDAD DEL NIÑO | D9: TOTAL | G9: GRUPO DE EDAD
G10: Menor de 1 mes | I10: 1 mes | K10: 2 meses | M10: 3 meses | O10: 4 meses | Q10: 5 meses | S10: 6 meses | U10: 7 - 11 meses | W10: 12 - 17 meses | Y10: 18 - 24 meses
D11: Ambos Sexos | E11: Hombres | F11: Mujeres | G11: Hombres | H11: Mujeres | I11: Hombres | J11: Mujeres | K11: Hombres | L11: Mujeres | M11: Hombres | N11: Mujeres | O11: Hombres | P11: Mujeres | Q11: Hombres | R11: Mujeres | S11: Hombres | T11: Mujeres | U11: Hombres | V11: Mujeres | W11: Hombres | X11: Mujeres | Y11: Hombres | Z11: Mujeres
A12: 02021730 | B12: APLICACIÓN PAUTA BREVE | D12: =SUM(E12+F12) -> 8642 | E12: =SUM(G12+I12+K12+M12+O12+Q12+S12+U12+W12+Y12) -> 4300 | F12: =SUM(H12+J12+L12+N12+P12+R12+T12+V12+X12+Z12) -> 4342 | G12: =IFERROR(VLOOKUP($A12,Filtro!$A$5:$AW$2531,5,FALSE),0) -> 3 | H12: =IFERROR(VLOOKUP($A12,Filtro!$A$5:$AW$2531,6,FALSE),0) -> 13 | I12: =IFERROR(VLOOKUP($A12,Filtro!$A$5:$AW$2531,7,FALSE),0) -> 44 | J12: =IFERROR(VLOOKUP($A12,Filtro!$A$5:$AW$2531,8,FALSE),0) -> 45 | K12: =IFERROR(VLOOKUP($A12,Filtro!$A$5:$AW$2531,9,FALSE),0) -> 1 | L12: =IFERROR(VLOOKUP($A12,Filtro!$A$5:$AW$2531,10,FALSE),0) -> 9 | M12: =IFERROR(VLOOKUP($A12,Filtro!$A$5:$AW$2531,11,FALSE),0) -> 55 | N12: =IFERROR(VLOOKUP($A12,Filtro!$A$5:$AW$2531,12,FALSE),0) -> 83 | O12: =IFERROR(VLOOKUP($A12,Filtro!$A$5:$AW$2531,13,FALSE),0) -> 1459 | P12: =IFERROR(VLOOKUP($A12,Filtro!$A$5:$AW$2531,14,FALSE),0) -> 1518 | Q12: =IFERROR(VLOOKUP($A12,Filtro!$A$5:$AW$2531,15,FALSE),0) -> 65 | R12: =IFERROR(VLOOKUP($A12,Filtro!$A$5:$AW$2531,16,FALSE),0) -> 66 | S12: =IFERROR(VLOOKUP($A12,Filtro!$A$5:$AW$2531,17,FALSE),0) -> 12 | T12: =IFERROR(VLOOKUP($A12,Filtro!$A$5:$AW$2531,18,FALSE),0) -> 14 | U12: =IFERROR(VLOOKUP($A12,Filtro!$A$5:$AW$2531,19,FALSE),0) -> 54 | V12: =IFERROR(VLOOKUP($A12,Filtro!$A$5:$AW$2531,20,FALSE),0) -> 51 | W12: =IFERROR(VLOOKUP($A12,Filtro!$A$5:$AW$2531,21,FALSE),0) -> 1471 | X12: =IFERROR(VLOOKUP($A12,Filtro!$A$5:$AW$2531,22,FALSE),0) -> 1369 | Y12: =IFERROR(VLOOKUP($A12,Filtro!$A$5:$AW$2531,23,FALSE),0) -> 1136 | Z12: =IFERROR(VLOOKUP($A12,Filtro!$A$5:$AW$2531,24,FALSE),0) -> 1174
A13: 03500020 | B13: RESULTADOS | C13: NORMAL | D13: =SUM(E13+F13) -> 7691 | E13: 3724 | F13: =SUM(H13+J13+L13+N13+P13+R13+T13+V13+X13+Z13) -> 3967 | G13: =IFERROR(VLOOKUP($A13,Filtro!$A$5:$AW$2531,5,FALSE),0) -> 3 | H13: =IFERROR(VLOOKUP($A13,Filtro!$A$5:$AW$2531,6,FALSE),0) -> 12 | I13: =IFERROR(VLOOKUP($A13,Filtro!$A$5:$AW$2531,7,FALSE),0) -> 44 | J13: =IFERROR(VLOOKUP($A13,Filtro!$A$5:$AW$2531,8,FALSE),0) -> 45 | K13: =IFERROR(VLOOKUP($A13,Filtro!$A$5:$AW$2531,9,FALSE),0) -> 1 | L13: =IFERROR(VLOOKUP($A13,Filtro!$A$5:$AW$2531,10,FALSE),0) -> 9 | M13: =IFERROR(VLOOKUP($A13,Filtro!$A$5:$AW$2531,11,FALSE),0) -> 54 | N13: =IFERROR(VLOOKUP($A13,Filtro!$A$5:$AW$2531,12,FALSE),0) -> 82 | O13: =IFERROR(VLOOKUP($A13,Filtro!$A$5:$AW$2531,13,FALSE),0) -> 1378 | P13: =IFERROR(VLOOKUP($A13,Filtro!$A$5:$AW$2531,14,FALSE),0) -> 1465 | Q13: =IFERROR(VLOOKUP($A13,Filtro!$A$5:$AW$2531,15,FALSE),0) -> 61 | R13: =IFERROR(VLOOKUP($A13,Filtro!$A$5:$AW$2531,16,FALSE),0) -> 62 | S13: =IFERROR(VLOOKUP($A13,Filtro!$A$5:$AW$2531,17,FALSE),0) -> 12 | T13: =IFERROR(VLOOKUP($A13,Filtro!$A$5:$AW$2531,18,FALSE),0) -> 11 | U13: =IFERROR(VLOOKUP($A13,Filtro!$A$5:$AW$2531,19,FALSE),0) -> 49 | V13: =IFERROR(VLOOKUP($A13,Filtro!$A$5:$AW$2531,20,FALSE),0) -> 45 | W13: =IFERROR(VLOOKUP($A13,Filtro!$A$5:$AW$2531,21,FALSE),0) -> 1280 | X13: =IFERROR(VLOOKUP($A13,Filtro!$A$5:$AW$2531,22,FALSE),0) -> 1250 | Y13: =IFERROR(VLOOKUP($A13,Filtro!$A$5:$AW$2531,23,FALSE),0) -> 842 | Z13: =IFERROR(VLOOKUP($A13,Filtro!$A$5:$AW$2531,24,FALSE),0) -> 986 | CF13: * Aplicacion de Pauta Breve en Hombres Menor de 1 mes debe ser igual a la suma de resultados. | CO13: * Aplicacion de Pauta Breve en Mujeres de 4 meses debe ser igual a la suma de resultados. | CP13: * Aplicacion de Pauta Breve en Hombres de 5 meses debe ser igual a la suma de resultados. | CT13: * Aplicacion de Pauta Breve en Hombres de 7 - 11 meses debe ser igual a la suma de resultados. | CW13: * Aplicacion de Pauta Breve en Mujeres de 12 - 17 meses debe ser igual a la suma de resultados. | CX13: * Aplicacion de Pauta Breve en Hombres de 18 - 24 meses debe ser igual a la suma de resultados. | CY13: * Aplicacion de Pauta Breve en Mujeres de 18 - 24 meses debe ser igual a la suma de resultados. | DE13: 0 | DF13: 1 | DG13: 0 | DH13: 0 | DI13: 0 | DJ13: 0 | DK13: 0 | DL13: 0 | DM13: 0 | DN13: 0 | DO13: 1 | DP13: 1 | DQ13: 0 | DR13: 0 | DS13: 0 | DT13: 1 | DU13: 0 | DV13: 0 | DW13: 1 | DX13: 1 | DY13: 1 | DZ13: 0
A14: 03500030 | C14: ALTERADO | D14: =SUM(E14+F14) -> 937 | E14: 574 | F14: 363 | G14: =IFERROR(VLOOKUP($A14,Filtro!$A$5:$AW$2531,5,FALSE),0) -> 0 | H14: =IFERROR(VLOOKUP($A14,Filtro!$A$5:$AW$2531,6,FALSE),0) -> 1 | I14: =IFERROR(VLOOKUP($A14,Filtro!$A$5:$AW$2531,7,FALSE),0) -> 0 | J14: =IFERROR(VLOOKUP($A14,Filtro!$A$5:$AW$2531,8,FALSE),0) -> 0 | K14: =IFERROR(VLOOKUP($A14,Filtro!$A$5:$AW$2531,9,FALSE),0) -> 0 | L14: =IFERROR(VLOOKUP($A14,Filtro!$A$5:$AW$2531,10,FALSE),0) -> 0 | M14: =IFERROR(VLOOKUP($A14,Filtro!$A$5:$AW$2531,11,FALSE),0) -> 1 | N14: =IFERROR(VLOOKUP($A14,Filtro!$A$5:$AW$2531,12,FALSE),0) -> 1 | O14: =IFERROR(VLOOKUP($A14,Filtro!$A$5:$AW$2531,13,FALSE),0) -> 79 | P14: =IFERROR(VLOOKUP($A14,Filtro!$A$5:$AW$2531,14,FALSE),0) -> 50 | Q14: =IFERROR(VLOOKUP($A14,Filtro!$A$5:$AW$2531,15,FALSE),0) -> 4 | R14: =IFERROR(VLOOKUP($A14,Filtro!$A$5:$AW$2531,16,FALSE),0) -> 4 | S14: =IFERROR(VLOOKUP($A14,Filtro!$A$5:$AW$2531,17,FALSE),0) -> 0 | T14: =IFERROR(VLOOKUP($A14,Filtro!$A$5:$AW$2531,18,FALSE),0) -> 2 | U14: =IFERROR(VLOOKUP($A14,Filtro!$A$5:$AW$2531,19,FALSE),0) -> 5 | V14: =IFERROR(VLOOKUP($A14,Filtro!$A$5:$AW$2531,20,FALSE),0) -> 6 | W14: =IFERROR(VLOOKUP($A14,Filtro!$A$5:$AW$2531,21,FALSE),0) -> 192 | X14: =IFERROR(VLOOKUP($A14,Filtro!$A$5:$AW$2531,22,FALSE),0) -> 113 | Y14: =IFERROR(VLOOKUP($A14,Filtro!$A$5:$AW$2531,23,FALSE),0) -> 293 | Z14: =IFERROR(VLOOKUP($A14,Filtro!$A$5:$AW$2531,24,FALSE),0) -> 186
B15: SECCIÓN A.2: RESULTADOS DE LA APLICACIÓN DE ESCALA DE EVALUACIÓN DEL DESARROLLO PSICOMOTOR
B16: ACTIVIDAD | C16: RESULTADO | D16: TOTAL | G16: POR EDAD | S16: Pueblos Originarios | T16: Migrantes
G17: Menor 7 meses | I17: 7 - 11 meses | K17: 12 - 17 meses | M17: 18 - 23 meses | O17: 24 - 47 meses | Q17: 48 - 59 meses
D18: Ambos Sexos | E18: Hombres | F18: Mujeres | G18: Hombres | H18: Mujeres | I18: Hombres | J18: Mujeres | K18: Hombres | L18: Mujeres | M18: Hombres | N18: Mujeres | O18: Hombres | P18: Mujeres | Q18: Hombres | R18: Mujeres
A19: 02021740 | B19: APLICACIÓN TEST DE DESARROLLO PSICOMOTOR | D19: =SUM(E19+F19) -> 10745 | E19: =SUM(G19+I19+K19+M19+O19+Q19) -> 5538 | F19: =SUM(H19+J19+L19+N19+P19+R19) -> 5207 | G19: =IFERROR(VLOOKUP($A19,Filtro!$A$5:$AW$2531,5,FALSE),0) -> 69 | H19: =IFERROR(VLOOKUP($A19,Filtro!$A$5:$AW$2531,6,FALSE),0) -> 46 | I19: =IFERROR(VLOOKUP($A19,Filtro!$A$5:$AW$2531,7,FALSE),0) -> 1683 | J19: =IFERROR(VLOOKUP($A19,Filtro!$A$5:$AW$2531,8,FALSE),0) -> 1667 | K19: =IFERROR(VLOOKUP($A19,Filtro!$A$5:$AW$2531,9,FALSE),0) -> 388 | L19: =IFERROR(VLOOKUP($A19,Filtro!$A$5:$AW$2531,10,FALSE),0) -> 345 | M19: =IFERROR(VLOOKUP($A19,Filtro!$A$5:$AW$2531,11,FALSE),0) -> 1790 | N19: =IFERROR(VLOOKUP($A19,Filtro!$A$5:$AW$2531,12,FALSE),0) -> 1650 | O19: =IFERROR(VLOOKUP($A19,Filtro!$A$5:$AW$2531,13,FALSE),0) -> 1473 | P19: =IFERROR(VLOOKUP($A19,Filtro!$A$5:$AW$2531,14,FALSE),0) -> 1391 | Q19: =IFERROR(VLOOKUP($A19,Filtro!$A$5:$AW$2531,15,FALSE),0) -> 135 | R19: =IFERROR(VLOOKUP($A19,Filtro!$A$5:$AW$2531,16,FALSE),0) -> 108 | S19: =IFERROR(VLOOKUP($A19,Filtro!$A$5:$AW$2531,17,FALSE),0) -> 48 | T19: =IFERROR(VLOOKUP($A19,Filtro!$A$5:$AW$2531,18,FALSE),0) -> 55 | CH19: * El total de aplicaciones de Pueblos Originarios debe ser IGUAL a los resultados de la totalidad de las aplicaciones de la primera evaluación y la reevaluación. | CJ19: * El total de aplicaciones de Migrantes debe ser IGUAL a los resultados de la totalidad de las aplicaciones de la primera evaluación y la reevaluación. | CL19: 0 | CM19: 0 | CN19: 0 | CO19: 0 | DB19: 0 | DC19: 0 | DD19: 0 | DE19: 0 | DF19: 0 | DG19: 0 | DI19: 0 | DK19: 0
A20: 02010320 | B20: PRIMERA EVALUACIÓN | C20: NORMAL | D20: =SUM(E20+F20) -> 8115 | E20: =SUM(G20+I20+K20+M20+O20+Q20) -> 3922 | F20: 4193 | G20: =IFERROR(VLOOKUP($A20,Filtro!$A$5:$AW$2531,5,FALSE),0) -> 51 | H20: =IFERROR(VLOOKUP($A20,Filtro!$A$5:$AW$2531,6,FALSE),0) -> 35 | I20: =IFERROR(VLOOKUP($A20,Filtro!$A$5:$AW$2531,7,FALSE),0) -> 1493 | J20: =IFERROR(VLOOKUP($A20,Filtro!$A$5:$AW$2531,8,FALSE),0) -> 1494 | K20: =IFERROR(VLOOKUP($A20,Filtro!$A$5:$AW$2531,9,FALSE),0) -> 262 | L20: =IFERROR(VLOOKUP($A20,Filtro!$A$5:$AW$2531,10,FALSE),0) -> 272 | M20: =IFERROR(VLOOKUP($A20,Filtro!$A$5:$AW$2531,11,FALSE),0) -> 1188 | N20: =IFERROR(VLOOKUP($A20,Filtro!$A$5:$AW$2531,12,FALSE),0) -> 1295 | O20: =IFERROR(VLOOKUP($A20,Filtro!$A$5:$AW$2531,13,FALSE),0) -> 854 | P20: =IFERROR(VLOOKUP($A20,Filtro!$A$5:$AW$2531,14,FALSE),0) -> 1013 | Q20: =IFERROR(VLOOKUP($A20,Filtro!$A$5:$AW$2531,15,FALSE),0) -> 74 | R20: =IFERROR(VLOOKUP($A20,Filtro!$A$5:$AW$2531,16,FALSE),0) -> 84 | S20: =IFERROR(VLOOKUP($A20,Filtro!$A$5:$AW$2531,17,FALSE),0) -> 34 | T20: =IFERROR(VLOOKUP($A20,Filtro!$A$5:$AW$2531,18,FALSE),0) -> 43
A21: 05225303 | C21: NORMAL CON REZAGO | D21: =SUM(E21+F21) -> 598 | E21: 349 | F21: 249 | G21: =IFERROR(VLOOKUP($A21,Filtro!$A$5:$AW$2531,5,FALSE),0) -> 5 | H21: =IFERROR(VLOOKUP($A21,Filtro!$A$5:$AW$2531,6,FALSE),0) -> 2 | I21: =IFERROR(VLOOKUP($A21,Filtro!$A$5:$AW$2531,7,FALSE),0) -> 54 | J21: =IFERROR(VLOOKUP($A21,Filtro!$A$5:$AW$2531,8,FALSE),0) -> 55 | K21: =IFERROR(VLOOKUP($A21,Filtro!$A$5:$AW$2531,9,FALSE),0) -> 29 | L21: =IFERROR(VLOOKUP($A21,Filtro!$A$5:$AW$2531,10,FALSE),0) -> 19 | M21: =IFERROR(VLOOKUP($A21,Filtro!$A$5:$AW$2531,11,FALSE),0) -> 105 | N21: =IFERROR(VLOOKUP($A21,Filtro!$A$5:$AW$2531,12,FALSE),0) -> 59 | O21: =IFERROR(VLOOKUP($A21,Filtro!$A$5:$AW$2531,13,FALSE),0) -> 149 | P21: =IFERROR(VLOOKUP($A21,Filtro!$A$5:$AW$2531,14,FALSE),0) -> 114 | Q21: =IFERROR(VLOOKUP($A21,Filtro!$A$5:$AW$2531,15,FALSE),0) -> 7 | R21: =IFERROR(VLOOKUP($A21,Filtro!$A$5:$AW$2531,16,FALSE),0) -> 0 | S21: =IFERROR(VLOOKUP($A21,Filtro!$A$5:$AW$2531,17,FALSE),0) -> 7 | T21: =IFERROR(VLOOKUP($A21,Filtro!$A$5:$AW$2531,18,FALSE),0) -> 5
A22: 02010321 | C22: RIESGO | D22: 847 | E22: 518 | F22: 329 | G22: =IFERROR(VLOOKUP($A22,Filtro!$A$5:$AW$2531,5,FALSE),0) -> 9 | H22: =IFERROR(VLOOKUP($A22,Filtro!$A$5:$AW$2531,6,FALSE),0) -> 5 | I22: =IFERROR(VLOOKUP($A22,Filtro!$A$5:$AW$2531,7,FALSE),0) -> 70 | J22: =IFERROR(VLOOKUP($A22,Filtro!$A$5:$AW$2531,8,FALSE),0) -> 59 | K22: =IFERROR(VLOOKUP($A22,Filtro!$A$5:$AW$2531,9,FALSE),0) -> 38 | L22: =IFERROR(VLOOKUP($A22,Filtro!$A$5:$AW$2531,10,FALSE),0) -> 12 | M22: =IFERROR(VLOOKUP($A22,Filtro!$A$5:$AW$2531,11,FALSE),0) -> 201 | N22: =IFERROR(VLOOKUP($A22,Filtro!$A$5:$AW$2531,12,FALSE),0) -> 137 | O22: =IFERROR(VLOOKUP($A22,Filtro!$A$5:$AW$2531,13,FALSE),0) -> 195 | P22: =IFERROR(VLOOKUP($A22,Filtro!$A$5:$AW$2531,14,FALSE),0) -> 112 | Q22: =IFERROR(VLOOKUP($A22,Filtro!$A$5:$AW$2531,15,FALSE),0) -> 5 | R22: =IFERROR(VLOOKUP($A22,Filtro!$A$5:$AW$2531,16,FALSE),0) -> 4 | S22: =IFERROR(VLOOKUP($A22,Filtro!$A$5:$AW$2531,17,FALSE),0) -> 1 | T22: =IFERROR(VLOOKUP($A22,Filtro!$A$5:$AW$2531,18,FALSE),0) -> 6
A23: 02010322 | C23: RETRASO | D23: 275 | E23: 188 | F23: 87 | G23: =IFERROR(VLOOKUP($A23,Filtro!$A$5:$AW$2531,5,FALSE),0) -> 1 | H23: =IFERROR(VLOOKUP($A23,Filtro!$A$5:$AW$2531,6,FALSE),0) -> 1 | I23: =IFERROR(VLOOKUP($A23,Filtro!$A$5:$AW$2531,7,FALSE),0) -> 11 | J23: =IFERROR(VLOOKUP($A23,Filtro!$A$5:$AW$2531,8,FALSE),0) -> 12 | K23: =IFERROR(VLOOKUP($A23,Filtro!$A$5:$AW$2531,9,FALSE),0) -> 9 | L23: =IFERROR(VLOOKUP($A23,Filtro!$A$5:$AW$2531,10,FALSE),0) -> 3 | M23: =IFERROR(VLOOKUP($A23,Filtro!$A$5:$AW$2531,11,FALSE),0) -> 88 | N23: =IFERROR(VLOOKUP($A23,Filtro!$A$5:$AW$2531,12,FALSE),0) -> 36 | O23: =IFERROR(VLOOKUP($A23,Filtro!$A$5:$AW$2531,13,FALSE),0) -> 73 | P23: =IFERROR(VLOOKUP($A23,Filtro!$A$5:$AW$2531,14,FALSE),0) -> 32 | Q23: =IFERROR(VLOOKUP($A23,Filtro!$A$5:$AW$2531,15,FALSE),0) -> 6 | R23: =IFERROR(VLOOKUP($A23,Filtro!$A$5:$AW$2531,16,FALSE),0) -> 3 | S23: =IFERROR(VLOOKUP($A23,Filtro!$A$5:$AW$2531,17,FALSE),0) -> 0 | T23: =IFERROR(VLOOKUP($A23,Filtro!$A$5:$AW$2531,18,FALSE),0) -> 1
A24: 05225304 | B24: REEVALUACIÓN | C24: NORMAL (desde normal con rezago) | D24: 254 | E24: 140 | F24: 114 | G24: =IFERROR(VLOOKUP($A24,Filtro!$A$5:$AW$2531,5,FALSE),0) -> 2 | H24: =IFERROR(VLOOKUP($A24,Filtro!$A$5:$AW$2531,6,FALSE),0) -> 2 | I24: =IFERROR(VLOOKUP($A24,Filtro!$A$5:$AW$2531,7,FALSE),0) -> 22 | J24: =IFERROR(VLOOKUP($A24,Filtro!$A$5:$AW$2531,8,FALSE),0) -> 24 | K24: =IFERROR(VLOOKUP($A24,Filtro!$A$5:$AW$2531,9,FALSE),0) -> 14 | L24: =IFERROR(VLOOKUP($A24,Filtro!$A$5:$AW$2531,10,FALSE),0) -> 17 | M24: =IFERROR(VLOOKUP($A24,Filtro!$A$5:$AW$2531,11,FALSE),0) -> 35 | N24: =IFERROR(VLOOKUP($A24,Filtro!$A$5:$AW$2531,12,FALSE),0) -> 24 | O24: =IFERROR(VLOOKUP($A24,Filtro!$A$5:$AW$2531,13,FALSE),0) -> 57 | P24: =IFERROR(VLOOKUP($A24,Filtro!$A$5:$AW$2531,14,FALSE),0) -> 39 | Q24: =IFERROR(VLOOKUP($A24,Filtro!$A$5:$AW$2531,15,FALSE),0) -> 10 | R24: =IFERROR(VLOOKUP($A24,Filtro!$A$5:$AW$2531,16,FALSE),0) -> 8 | S24: =IFERROR(VLOOKUP($A24,Filtro!$A$5:$AW$2531,17,FALSE),0) -> 3 | T24: =IFERROR(VLOOKUP($A24,Filtro!$A$5:$AW$2531,18,FALSE),0) -> 0
A25: 02010420 | C25: NORMAL (desde riesgo) | D25: 285 | E25: 163 | F25: 122 | G25: =IFERROR(VLOOKUP($A25,Filtro!$A$5:$AW$2531,5,FALSE),0) -> 1 | H25: =IFERROR(VLOOKUP($A25,Filtro!$A$5:$AW$2531,6,FALSE),0) -> 1 | I25: =IFERROR(VLOOKUP($A25,Filtro!$A$5:$AW$2531,7,FALSE),0) -> 15 | J25: =IFERROR(VLOOKUP($A25,Filtro!$A$5:$AW$2531,8,FALSE),0) -> 16 | K25: =IFERROR(VLOOKUP($A25,Filtro!$A$5:$AW$2531,9,FALSE),0) -> 13 | L25: =IFERROR(VLOOKUP($A25,Filtro!$A$5:$AW$2531,10,FALSE),0) -> 8 | M25: =IFERROR(VLOOKUP($A25,Filtro!$A$5:$AW$2531,11,FALSE),0) -> 76 | N25: =IFERROR(VLOOKUP($A25,Filtro!$A$5:$AW$2531,12,FALSE),0) -> 52 | O25: =IFERROR(VLOOKUP($A25,Filtro!$A$5:$AW$2531,13,FALSE),0) -> 50 | P25: =IFERROR(VLOOKUP($A25,Filtro!$A$5:$AW$2531,14,FALSE),0) -> 38 | Q25: =IFERROR(VLOOKUP($A25,Filtro!$A$5:$AW$2531,15,FALSE),0) -> 8 | R25: =IFERROR(VLOOKUP($A25,Filtro!$A$5:$AW$2531,16,FALSE),0) -> 7 | S25: =IFERROR(VLOOKUP($A25,Filtro!$A$5:$AW$2531,17,FALSE),0) -> 0 | T25: =IFERROR(VLOOKUP($A25,Filtro!$A$5:$AW$2531,18,FALSE),0) -> 0
A26: 05225305 | C26: NORMAL (desde retraso) | D26: 36 | E26: 19 | F26: 17 | G26: =IFERROR(VLOOKUP($A26,Filtro!$A$5:$AW$2531,5,FALSE),0) -> 0 | H26: =IFERROR(VLOOKUP($A26,Filtro!$A$5:$AW$2531,6,FALSE),0) -> 0 | I26: =IFERROR(VLOOKUP($A26,Filtro!$A$5:$AW$2531,7,FALSE),0) -> 0 | J26: =IFERROR(VLOOKUP($A26,Filtro!$A$5:$AW$2531,8,FALSE),0) -> 2 | K26: =IFERROR(VLOOKUP($A26,Filtro!$A$5:$AW$2531,9,FALSE),0) -> 0 | L26: =IFERROR(VLOOKUP($A26,Filtro!$A$5:$AW$2531,10,FALSE),0) -> 1 | M26: =IFERROR(VLOOKUP($A26,Filtro!$A$5:$AW$2531,11,FALSE),0) -> 9 | N26: =IFERROR(VLOOKUP($A26,Filtro!$A$5:$AW$2531,12,FALSE),0) -> 6 | O26: =IFERROR(VLOOKUP($A26,Filtro!$A$5:$AW$2531,13,FALSE),0) -> 4 | P26: =IFERROR(VLOOKUP($A26,Filtro!$A$5:$AW$2531,14,FALSE),0) -> 7 | Q26: =IFERROR(VLOOKUP($A26,Filtro!$A$5:$AW$2531,15,FALSE),0) -> 6 | R26: =IFERROR(VLOOKUP($A26,Filtro!$A$5:$AW$2531,16,FALSE),0) -> 1 | S26: =IFERROR(VLOOKUP($A26,Filtro!$A$5:$AW$2531,17,FALSE),0) -> 3 | T26: =IFERROR(VLOOKUP($A26,Filtro!$A$5:$AW$2531,18,FALSE),0) -> 0
A27: 03500366 | C27: NORMAL CON REZAGO (desde riesgo) | D27: 90 | E27: 60 | F27: 30 | G27: =IFERROR(VLOOKUP($A27,Filtro!$A$5:$AW$2531,5,FALSE),0) -> 0 | H27: =IFERROR(VLOOKUP($A27,Filtro!$A$5:$AW$2531,6,FALSE),0) -> 0 | I27: =IFERROR(VLOOKUP($A27,Filtro!$A$5:$AW$2531,7,FALSE),0) -> 3 | J27: =IFERROR(VLOOKUP($A27,Filtro!$A$5:$AW$2531,8,FALSE),0) -> 4 | K27: =IFERROR(VLOOKUP($A27,Filtro!$A$5:$AW$2531,9,FALSE),0) -> 4 | L27: =IFERROR(VLOOKUP($A27,Filtro!$A$5:$AW$2531,10,FALSE),0) -> 3 | M27: =IFERROR(VLOOKUP($A27,Filtro!$A$5:$AW$2531,11,FALSE),0) -> 37 | N27: =IFERROR(VLOOKUP($A27,Filtro!$A$5:$AW$2531,12,FALSE),0) -> 14 | O27: =IFERROR(VLOOKUP($A27,Filtro!$A$5:$AW$2531,13,FALSE),0) -> 13 | P27: =IFERROR(VLOOKUP($A27,Filtro!$A$5:$AW$2531,14,FALSE),0) -> 8 | Q27: =IFERROR(VLOOKUP($A27,Filtro!$A$5:$AW$2531,15,FALSE),0) -> 3 | R27: =IFERROR(VLOOKUP($A27,Filtro!$A$5:$AW$2531,16,FALSE),0) -> 1 | S27: =IFERROR(VLOOKUP($A27,Filtro!$A$5:$AW$2531,17,FALSE),0) -> 0 | T27: =IFERROR(VLOOKUP($A27,Filtro!$A$5:$AW$2531,18,FALSE),0) -> 0
A28: 03500400 | C28: NORMAL CON REZAGO (desde retraso) | D28: 17 | E28: 9 | F28: 8 | G28: =IFERROR(VLOOKUP($A28,Filtro!$A$5:$AW$2531,5,FALSE),0) -> 0 | H28: =IFERROR(VLOOKUP($A28,Filtro!$A$5:$AW$2531,6,FALSE),0) -> 0 | I28: =IFERROR(VLOOKUP($A28,Filtro!$A$5:$AW$2531,7,FALSE),0) -> 1 | J28: =IFERROR(VLOOKUP($A28,Filtro!$A$5:$AW$2531,8,FALSE),0) -> 0 | K28: =IFERROR(VLOOKUP($A28,Filtro!$A$5:$AW$2531,9,FALSE),0) -> 0 | L28: =IFERROR(VLOOKUP($A28,Filtro!$A$5:$AW$2531,10,FALSE),0) -> 1 | M28: =IFERROR(VLOOKUP($A28,Filtro!$A$5:$AW$2531,11,FALSE),0) -> 2 | N28: =IFERROR(VLOOKUP($A28,Filtro!$A$5:$AW$2531,12,FALSE),0) -> 4 | O28: =IFERROR(VLOOKUP($A28,Filtro!$A$5:$AW$2531,13,FALSE),0) -> 4 | P28: =IFERROR(VLOOKUP($A28,Filtro!$A$5:$AW$2531,14,FALSE),0) -> 3 | Q28: =IFERROR(VLOOKUP($A28,Filtro!$A$5:$AW$2531,15,FALSE),0) -> 2 | R28: =IFERROR(VLOOKUP($A28,Filtro!$A$5:$AW$2531,16,FALSE),0) -> 0 | S28: =IFERROR(VLOOKUP($A28,Filtro!$A$5:$AW$2531,17,FALSE),0) -> 0 | T28: =IFERROR(VLOOKUP($A28,Filtro!$A$5:$AW$2531,18,FALSE),0) -> 0
A29: 03500401 | C29: RIESGO (desde retraso) | D29: =SUM(E29:F29) -> 21 | E29: 16 | F29: 5 | G29: =IFERROR(VLOOKUP($A29,Filtro!$A$5:$AW$2531,5,FALSE),0) -> 0 | H29: =IFERROR(VLOOKUP($A29,Filtro!$A$5:$AW$2531,6,FALSE),0) -> 0 | I29: =IFERROR(VLOOKUP($A29,Filtro!$A$5:$AW$2531,7,FALSE),0) -> 0 | J29: =IFERROR(VLOOKUP($A29,Filtro!$A$5:$AW$2531,8,FALSE),0) -> 0 | K29: =IFERROR(VLOOKUP($A29,Filtro!$A$5:$AW$2531,9,FALSE),0) -> 2 | L29: =IFERROR(VLOOKUP($A29,Filtro!$A$5:$AW$2531,10,FALSE),0) -> 0 | M29: =IFERROR(VLOOKUP($A29,Filtro!$A$5:$AW$2531,11,FALSE),0) -> 7 | N29: =IFERROR(VLOOKUP($A29,Filtro!$A$5:$AW$2531,12,FALSE),0) -> 2 | O29: =IFERROR(VLOOKUP($A29,Filtro!$A$5:$AW$2531,13,FALSE),0) -> 7 | P29: =IFERROR(VLOOKUP($A29,Filtro!$A$5:$AW$2531,14,FALSE),0) -> 3 | Q29: =IFERROR(VLOOKUP($A29,Filtro!$A$5:$AW$2531,15,FALSE),0) -> 0 | R29: =IFERROR(VLOOKUP($A29,Filtro!$A$5:$AW$2531,16,FALSE),0) -> 0 | S29: =IFERROR(VLOOKUP($A29,Filtro!$A$5:$AW$2531,17,FALSE),0) -> 0 | T29: =IFERROR(VLOOKUP($A29,Filtro!$A$5:$AW$2531,18,FALSE),0) -> 0
A30: 05225306 | C30: NORMAL CON REZAGO (desde normal con rezago) | D30: =SUM(E30:F30) -> 62 | E30: 49 | F30: 13 | G30: =IFERROR(VLOOKUP($A30,Filtro!$A$5:$AW$2531,5,FALSE),0) -> 0 | H30: =IFERROR(VLOOKUP($A30,Filtro!$A$5:$AW$2531,6,FALSE),0) -> 0 | I30: =IFERROR(VLOOKUP($A30,Filtro!$A$5:$AW$2531,7,FALSE),0) -> 4 | J30: =IFERROR(VLOOKUP($A30,Filtro!$A$5:$AW$2531,8,FALSE),0) -> 1 | K30: =IFERROR(VLOOKUP($A30,Filtro!$A$5:$AW$2531,9,FALSE),0) -> 3 | L30: =IFERROR(VLOOKUP($A30,Filtro!$A$5:$AW$2531,10,FALSE),0) -> 2 | M30: =IFERROR(VLOOKUP($A30,Filtro!$A$5:$AW$2531,11,FALSE),0) -> 13 | N30: =IFERROR(VLOOKUP($A30,Filtro!$A$5:$AW$2531,12,FALSE),0) -> 3 | O30: =IFERROR(VLOOKUP($A30,Filtro!$A$5:$AW$2531,13,FALSE),0) -> 22 | P30: =IFERROR(VLOOKUP($A30,Filtro!$A$5:$AW$2531,14,FALSE),0) -> 6 | Q30: =IFERROR(VLOOKUP($A30,Filtro!$A$5:$AW$2531,15,FALSE),0) -> 7 | R30: =IFERROR(VLOOKUP($A30,Filtro!$A$5:$AW$2531,16,FALSE),0) -> 1 | S30: =IFERROR(VLOOKUP($A30,Filtro!$A$5:$AW$2531,17,FALSE),0) -> 1 | T30: =IFERROR(VLOOKUP($A30,Filtro!$A$5:$AW$2531,18,FALSE),0) -> 0
A31: 02010421 | C31: RIESGO (desde riesgo) | D31: =SUM(E31+F31) -> 74 | E31: 48 | F31: 26 | G31: =IFERROR(VLOOKUP($A31,Filtro!$A$5:$AW$2531,5,FALSE),0) -> 0 | H31: =IFERROR(VLOOKUP($A31,Filtro!$A$5:$AW$2531,6,FALSE),0) -> 0 | I31: =IFERROR(VLOOKUP($A31,Filtro!$A$5:$AW$2531,7,FALSE),0) -> 4 | J31: =IFERROR(VLOOKUP($A31,Filtro!$A$5:$AW$2531,8,FALSE),0) -> 1 | K31: =IFERROR(VLOOKUP($A31,Filtro!$A$5:$AW$2531,9,FALSE),0) -> 8 | L31: =IFERROR(VLOOKUP($A31,Filtro!$A$5:$AW$2531,10,FALSE),0) -> 3 | M31: =IFERROR(VLOOKUP($A31,Filtro!$A$5:$AW$2531,11,FALSE),0) -> 21 | N31: =IFERROR(VLOOKUP($A31,Filtro!$A$5:$AW$2531,12,FALSE),0) -> 13 | O31: =IFERROR(VLOOKUP($A31,Filtro!$A$5:$AW$2531,13,FALSE),0) -> 13 | P31: =IFERROR(VLOOKUP($A31,Filtro!$A$5:$AW$2531,14,FALSE),0) -> 9 | Q31: =IFERROR(VLOOKUP($A31,Filtro!$A$5:$AW$2531,15,FALSE),0) -> 2 | R31: =IFERROR(VLOOKUP($A31,Filtro!$A$5:$AW$2531,16,FALSE),0) -> 0 | S31: =IFERROR(VLOOKUP($A31,Filtro!$A$5:$AW$2531,17,FALSE),0) -> 0 | T31: =IFERROR(VLOOKUP($A31,Filtro!$A$5:$AW$2531,18,FALSE),0) -> 0
A32: 03600110 | C32: RIESGO (desde normal con rezago) | D32: =SUM(E32+F32) -> 20 | E32: 16 | F32: 4 | G32: =IFERROR(VLOOKUP($A32,Filtro!$A$5:$AW$2531,5,FALSE),0) -> 0 | H32: =IFERROR(VLOOKUP($A32,Filtro!$A$5:$AW$2531,6,FALSE),0) -> 0 | I32: =IFERROR(VLOOKUP($A32,Filtro!$A$5:$AW$2531,7,FALSE),0) -> 2 | J32: =IFERROR(VLOOKUP($A32,Filtro!$A$5:$AW$2531,8,FALSE),0) -> 1 | K32: =IFERROR(VLOOKUP($A32,Filtro!$A$5:$AW$2531,9,FALSE),0) -> 4 | L32: =IFERROR(VLOOKUP($A32,Filtro!$A$5:$AW$2531,10,FALSE),0) -> 2 | M32: =IFERROR(VLOOKUP($A32,Filtro!$A$5:$AW$2531,11,FALSE),0) -> 1 | N32: =IFERROR(VLOOKUP($A32,Filtro!$A$5:$AW$2531,12,FALSE),0) -> 1 | O32: =IFERROR(VLOOKUP($A32,Filtro!$A$5:$AW$2531,13,FALSE),0) -> 9 | P32: =IFERROR(VLOOKUP($A32,Filtro!$A$5:$AW$2531,14,FALSE),0) -> 0 | Q32: =IFERROR(VLOOKUP($A32,Filtro!$A$5:$AW$2531,15,FALSE),0) -> 0 | R32: =IFERROR(VLOOKUP($A32,Filtro!$A$5:$AW$2531,16,FALSE),0) -> 0 | S32: =IFERROR(VLOOKUP($A32,Filtro!$A$5:$AW$2531,17,FALSE),0) -> 0 | T32: =IFERROR(VLOOKUP($A32,Filtro!$A$5:$AW$2531,18,FALSE),0) -> 0
A33: 02010422 | C33: RETRASO (desde retraso) | D33: =SUM(E33+F33) -> 21 | E33: 17 | F33: 4 | G33: =IFERROR(VLOOKUP($A33,Filtro!$A$5:$AW$2531,5,FALSE),0) -> 0 | H33: =IFERROR(VLOOKUP($A33,Filtro!$A$5:$AW$2531,6,FALSE),0) -> 0 | I33: =IFERROR(VLOOKUP($A33,Filtro!$A$5:$AW$2531,7,FALSE),0) -> 1 | J33: =IFERROR(VLOOKUP($A33,Filtro!$A$5:$AW$2531,8,FALSE),0) -> 0 | K33: =IFERROR(VLOOKUP($A33,Filtro!$A$5:$AW$2531,9,FALSE),0) -> 0 | L33: =IFERROR(VLOOKUP($A33,Filtro!$A$5:$AW$2531,10,FALSE),0) -> 0 | M33: =IFERROR(VLOOKUP($A33,Filtro!$A$5:$AW$2531,11,FALSE),0) -> 6 | N33: =IFERROR(VLOOKUP($A33,Filtro!$A$5:$AW$2531,12,FALSE),0) -> 3 | O33: =IFERROR(VLOOKUP($A33,Filtro!$A$5:$AW$2531,13,FALSE),0) -> 8 | P33: =IFERROR(VLOOKUP($A33,Filtro!$A$5:$AW$2531,14,FALSE),0) -> 1 | Q33: =IFERROR(VLOOKUP($A33,Filtro!$A$5:$AW$2531,15,FALSE),0) -> 2 | R33: =IFERROR(VLOOKUP($A33,Filtro!$A$5:$AW$2531,16,FALSE),0) -> 0 | S33: =IFERROR(VLOOKUP($A33,Filtro!$A$5:$AW$2531,17,FALSE),0) -> 0 | T33: =IFERROR(VLOOKUP($A33,Filtro!$A$5:$AW$2531,18,FALSE),0) -> 0
A34: 03600120 | C34: RETRASO (desde riesgo) | D34: =SUM(E34+F34) -> 34 | E34: 28 | F34: 6 | G34: =IFERROR(VLOOKUP($A34,Filtro!$A$5:$AW$2531,5,FALSE),0) -> 0 | H34: =IFERROR(VLOOKUP($A34,Filtro!$A$5:$AW$2531,6,FALSE),0) -> 0 | I34: =IFERROR(VLOOKUP($A34,Filtro!$A$5:$AW$2531,7,FALSE),0) -> 0 | J34: =IFERROR(VLOOKUP($A34,Filtro!$A$5:$AW$2531,8,FALSE),0) -> 0 | K34: =IFERROR(VLOOKUP($A34,Filtro!$A$5:$AW$2531,9,FALSE),0) -> 5 | L34: =IFERROR(VLOOKUP($A34,Filtro!$A$5:$AW$2531,10,FALSE),0) -> 0 | M34: =IFERROR(VLOOKUP($A34,Filtro!$A$5:$AW$2531,11,FALSE),0) -> 4 | N34: =IFERROR(VLOOKUP($A34,Filtro!$A$5:$AW$2531,12,FALSE),0) -> 3 | O34: =IFERROR(VLOOKUP($A34,Filtro!$A$5:$AW$2531,13,FALSE),0) -> 15 | P34: =IFERROR(VLOOKUP($A34,Filtro!$A$5:$AW$2531,14,FALSE),0) -> 3 | Q34: =IFERROR(VLOOKUP($A34,Filtro!$A$5:$AW$2531,15,FALSE),0) -> 4 | R34: =IFERROR(VLOOKUP($A34,Filtro!$A$5:$AW$2531,16,FALSE),0) -> 0 | S34: =IFERROR(VLOOKUP($A34,Filtro!$A$5:$AW$2531,17,FALSE),0) -> 0 | T34: =IFERROR(VLOOKUP($A34,Filtro!$A$5:$AW$2531,18,FALSE),0) -> 0
A35: 03600130 | C35: RETRASO (desde normal con rezago) | D35: =SUM(E35+F35) -> 6 | E35: 3 | F35: 3 | G35: =IFERROR(VLOOKUP($A35,Filtro!$A$5:$AW$2531,5,FALSE),0) -> 0 | H35: =IFERROR(VLOOKUP($A35,Filtro!$A$5:$AW$2531,6,FALSE),0) -> 0 | I35: =IFERROR(VLOOKUP($A35,Filtro!$A$5:$AW$2531,7,FALSE),0) -> 0 | J35: =IFERROR(VLOOKUP($A35,Filtro!$A$5:$AW$2531,8,FALSE),0) -> 0 | K35: =IFERROR(VLOOKUP($A35,Filtro!$A$5:$AW$2531,9,FALSE),0) -> 2 | L35: =IFERROR(VLOOKUP($A35,Filtro!$A$5:$AW$2531,10,FALSE),0) -> 1 | M35: =IFERROR(VLOOKUP($A35,Filtro!$A$5:$AW$2531,11,FALSE),0) -> 0 | N35: =IFERROR(VLOOKUP($A35,Filtro!$A$5:$AW$2531,12,FALSE),0) -> 0 | O35: =IFERROR(VLOOKUP($A35,Filtro!$A$5:$AW$2531,13,FALSE),0) -> 1 | P35: =IFERROR(VLOOKUP($A35,Filtro!$A$5:$AW$2531,14,FALSE),0) -> 2 | Q35: =IFERROR(VLOOKUP($A35,Filtro!$A$5:$AW$2531,15,FALSE),0) -> 0 | R35: =IFERROR(VLOOKUP($A35,Filtro!$A$5:$AW$2531,16,FALSE),0) -> 0 | S35: =IFERROR(VLOOKUP($A35,Filtro!$A$5:$AW$2531,17,FALSE),0) -> 0 | T35: =IFERROR(VLOOKUP($A35,Filtro!$A$5:$AW$2531,18,FALSE),0) -> 0
A36: 03500331 | B36: DERIVADOS A ESPECIALIDAD | C36: RIESGO | D36: 93 | E36: =SUM(G36+I36+K36+M36+O36+Q36) -> 59 | F36: 34 | G36: =IFERROR(VLOOKUP($A36,Filtro!$A$5:$AW$2531,5,FALSE),0) -> 0 | H36: =IFERROR(VLOOKUP($A36,Filtro!$A$5:$AW$2531,6,FALSE),0) -> 0 | I36: =IFERROR(VLOOKUP($A36,Filtro!$A$5:$AW$2531,7,FALSE),0) -> 9 | J36: =IFERROR(VLOOKUP($A36,Filtro!$A$5:$AW$2531,8,FALSE),0) -> 6 | K36: =IFERROR(VLOOKUP($A36,Filtro!$A$5:$AW$2531,9,FALSE),0) -> 8 | L36: =IFERROR(VLOOKUP($A36,Filtro!$A$5:$AW$2531,10,FALSE),0) -> 5 | M36: =IFERROR(VLOOKUP($A36,Filtro!$A$5:$AW$2531,11,FALSE),0) -> 19 | N36: =IFERROR(VLOOKUP($A36,Filtro!$A$5:$AW$2531,12,FALSE),0) -> 12 | O36: =IFERROR(VLOOKUP($A36,Filtro!$A$5:$AW$2531,13,FALSE),0) -> 20 | P36: =IFERROR(VLOOKUP($A36,Filtro!$A$5:$AW$2531,14,FALSE),0) -> 10 | Q36: =IFERROR(VLOOKUP($A36,Filtro!$A$5:$AW$2531,15,FALSE),0) -> 3 | R36: =IFERROR(VLOOKUP($A36,Filtro!$A$5:$AW$2531,16,FALSE),0) -> 1 | S36: =IFERROR(VLOOKUP($A36,Filtro!$A$5:$AW$2531,17,FALSE),0) -> 0 | T36: =IFERROR(VLOOKUP($A36,Filtro!$A$5:$AW$2531,18,FALSE),0) -> 0
A37: 03500332 | C37: RETRASO | D37: 91 | E37: 71 | F37: 20 | G37: =IFERROR(VLOOKUP($A37,Filtro!$A$5:$AW$2531,5,FALSE),0) -> 0 | H37: =IFERROR(VLOOKUP($A37,Filtro!$A$5:$AW$2531,6,FALSE),0) -> 1 | I37: =IFERROR(VLOOKUP($A37,Filtro!$A$5:$AW$2531,7,FALSE),0) -> 1 | J37: =IFERROR(VLOOKUP($A37,Filtro!$A$5:$AW$2531,8,FALSE),0) -> 2 | K37: =IFERROR(VLOOKUP($A37,Filtro!$A$5:$AW$2531,9,FALSE),0) -> 9 | L37: =IFERROR(VLOOKUP($A37,Filtro!$A$5:$AW$2531,10,FALSE),0) -> 1 | M37: =IFERROR(VLOOKUP($A37,Filtro!$A$5:$AW$2531,11,FALSE),0) -> 33 | N37: =IFERROR(VLOOKUP($A37,Filtro!$A$5:$AW$2531,12,FALSE),0) -> 10 | O37: =IFERROR(VLOOKUP($A37,Filtro!$A$5:$AW$2531,13,FALSE),0) -> 24 | P37: =IFERROR(VLOOKUP($A37,Filtro!$A$5:$AW$2531,14,FALSE),0) -> 4 | Q37: =IFERROR(VLOOKUP($A37,Filtro!$A$5:$AW$2531,15,FALSE),0) -> 4 | R37: =IFERROR(VLOOKUP($A37,Filtro!$A$5:$AW$2531,16,FALSE),0) -> 2 | S37: =IFERROR(VLOOKUP($A37,Filtro!$A$5:$AW$2531,17,FALSE),0) -> 0 | T37: =IFERROR(VLOOKUP($A37,Filtro!$A$5:$AW$2531,18,FALSE),0) -> 1
A38: 03500333 | B38: TRASLADO DE ESTABLECIMIENTO | C38: NORMAL CON REZAGO | D38: 2 | E38: 0 | F38: 2 | G38: =IFERROR(VLOOKUP($A38,Filtro!$A$5:$AW$2531,5,FALSE),0) -> 0 | H38: =IFERROR(VLOOKUP($A38,Filtro!$A$5:$AW$2531,6,FALSE),0) -> 0 | I38: =IFERROR(VLOOKUP($A38,Filtro!$A$5:$AW$2531,7,FALSE),0) -> 0 | J38: =IFERROR(VLOOKUP($A38,Filtro!$A$5:$AW$2531,8,FALSE),0) -> 1 | K38: =IFERROR(VLOOKUP($A38,Filtro!$A$5:$AW$2531,9,FALSE),0) -> 0 | L38: =IFERROR(VLOOKUP($A38,Filtro!$A$5:$AW$2531,10,FALSE),0) -> 0 | M38: =IFERROR(VLOOKUP($A38,Filtro!$A$5:$AW$2531,11,FALSE),0) -> 0 | N38: =IFERROR(VLOOKUP($A38,Filtro!$A$5:$AW$2531,12,FALSE),0) -> 1 | O38: =IFERROR(VLOOKUP($A38,Filtro!$A$5:$AW$2531,13,FALSE),0) -> 0 | P38: =IFERROR(VLOOKUP($A38,Filtro!$A$5:$AW$2531,14,FALSE),0) -> 0 | Q38: =IFERROR(VLOOKUP($A38,Filtro!$A$5:$AW$2531,15,FALSE),0) -> 0 | R38: =IFERROR(VLOOKUP($A38,Filtro!$A$5:$AW$2531,16,FALSE),0) -> 0 | S38: =IFERROR(VLOOKUP($A38,Filtro!$A$5:$AW$2531,17,FALSE),0) -> 0 | T38: =IFERROR(VLOOKUP($A38,Filtro!$A$5:$AW$2531,18,FALSE),0) -> 0
A39: 03500334 | C39: RIESGO | D39: 10 | E39: 7 | F39: 3 | G39: =IFERROR(VLOOKUP($A39,Filtro!$A$5:$AW$2531,5,FALSE),0) -> 0 | H39: =IFERROR(VLOOKUP($A39,Filtro!$A$5:$AW$2531,6,FALSE),0) -> 0 | I39: =IFERROR(VLOOKUP($A39,Filtro!$A$5:$AW$2531,7,FALSE),0) -> 0 | J39: =IFERROR(VLOOKUP($A39,Filtro!$A$5:$AW$2531,8,FALSE),0) -> 0 | K39: =IFERROR(VLOOKUP($A39,Filtro!$A$5:$AW$2531,9,FALSE),0) -> 2 | L39: =IFERROR(VLOOKUP($A39,Filtro!$A$5:$AW$2531,10,FALSE),0) -> 0 | M39: =IFERROR(VLOOKUP($A39,Filtro!$A$5:$AW$2531,11,FALSE),0) -> 4 | N39: =IFERROR(VLOOKUP($A39,Filtro!$A$5:$AW$2531,12,FALSE),0) -> 1 | O39: =IFERROR(VLOOKUP($A39,Filtro!$A$5:$AW$2531,13,FALSE),0) -> 1 | P39: =IFERROR(VLOOKUP($A39,Filtro!$A$5:$AW$2531,14,FALSE),0) -> 1 | Q39: =IFERROR(VLOOKUP($A39,Filtro!$A$5:$AW$2531,15,FALSE),0) -> 0 | R39: =IFERROR(VLOOKUP($A39,Filtro!$A$5:$AW$2531,16,FALSE),0) -> 1 | S39: =IFERROR(VLOOKUP($A39,Filtro!$A$5:$AW$2531,17,FALSE),0) -> 0 | T39: =IFERROR(VLOOKUP($A39,Filtro!$A$5:$AW$2531,18,FALSE),0) -> 0
A40: 03500335 | C40: RETRASO | D40: 0 | E40: 0 | F40: 0 | G40: =IFERROR(VLOOKUP($A40,Filtro!$A$5:$AW$2531,5,FALSE),0) -> 0 | H40: =IFERROR(VLOOKUP($A40,Filtro!$A$5:$AW$2531,6,FALSE),0) -> 0 | I40: =IFERROR(VLOOKUP($A40,Filtro!$A$5:$AW$2531,7,FALSE),0) -> 0 | J40: =IFERROR(VLOOKUP($A40,Filtro!$A$5:$AW$2531,8,FALSE),0) -> 0 | K40: =IFERROR(VLOOKUP($A40,Filtro!$A$5:$AW$2531,9,FALSE),0) -> 0 | L40: =IFERROR(VLOOKUP($A40,Filtro!$A$5:$AW$2531,10,FALSE),0) -> 0 | M40: =IFERROR(VLOOKUP($A40,Filtro!$A$5:$AW$2531,11,FALSE),0) -> 0 | N40: =IFERROR(VLOOKUP($A40,Filtro!$A$5:$AW$2531,12,FALSE),0) -> 0 | O40: =IFERROR(VLOOKUP($A40,Filtro!$A$5:$AW$2531,13,FALSE),0) -> 0 | P40: =IFERROR(VLOOKUP($A40,Filtro!$A$5:$AW$2531,14,FALSE),0) -> 0 | Q40: =IFERROR(VLOOKUP($A40,Filtro!$A$5:$AW$2531,15,FALSE),0) -> 0 | R40: =IFERROR(VLOOKUP($A40,Filtro!$A$5:$AW$2531,16,FALSE),0) -> 0 | S40: =IFERROR(VLOOKUP($A40,Filtro!$A$5:$AW$2531,17,FALSE),0) -> 0 | T40: =IFERROR(VLOOKUP($A40,Filtro!$A$5:$AW$2531,18,FALSE),0) -> 0
B41: SECCIÓN A.3: NIÑOS Y NIÑAS CON REZAGO, DÉFICIT U OTRA VULNERABILIDAD DERIVADOS A ALGUNA MODALIDAD DE ESTIMULACIÓN EN LA PRIMERA EVALUACIÓN
B42: NIÑO / A | C42: TOTAL | F42: POR EDAD
F43: Menor 7 meses | H43: 7 - 11 meses | J43: 12 - 17 meses | L43: 18 - 23 meses | N43: 24 - 47 meses | P43: 48 - 59 meses
C44: Ambos Sexos | D44: Hombres | E44: Mujeres | F44: Hombres | G44: Mujeres | H44: Hombres | I44: Mujeres | J44: Hombres | K44: Mujeres | L44: Hombres | M44: Mujeres | N44: Hombres | O44: Mujeres | P44: Hombres | Q44: Mujeres
A45: 02021790 | B45: NORMAL CON REZAGO | C45: =SUM(D45+E45) -> 713 | D45: =SUM(F45+H45+J45+L45+N45+P45) -> 405 | E45: =SUM(G45+I45+K45+M45+O45+Q45) -> 308 | F45: =IFERROR(VLOOKUP($A45,Filtro!$A$5:$AW$2531,5,FALSE),0) -> 17 | G45: =IFERROR(VLOOKUP($A45,Filtro!$A$5:$AW$2531,6,FALSE),0) -> 16 | H45: =IFERROR(VLOOKUP($A45,Filtro!$A$5:$AW$2531,7,FALSE),0) -> 50 | I45: =IFERROR(VLOOKUP($A45,Filtro!$A$5:$AW$2531,8,FALSE),0) -> 62 | J45: =IFERROR(VLOOKUP($A45,Filtro!$A$5:$AW$2531,9,FALSE),0) -> 46 | K45: =IFERROR(VLOOKUP($A45,Filtro!$A$5:$AW$2531,10,FALSE),0) -> 25 | L45: =IFERROR(VLOOKUP($A45,Filtro!$A$5:$AW$2531,11,FALSE),0) -> 114 | M45: =IFERROR(VLOOKUP($A45,Filtro!$A$5:$AW$2531,12,FALSE),0) -> 76 | N45: =IFERROR(VLOOKUP($A45,Filtro!$A$5:$AW$2531,13,FALSE),0) -> 167 | O45: =IFERROR(VLOOKUP($A45,Filtro!$A$5:$AW$2531,14,FALSE),0) -> 128 | P45: =IFERROR(VLOOKUP($A45,Filtro!$A$5:$AW$2531,15,FALSE),0) -> 11 | Q45: =IFERROR(VLOOKUP($A45,Filtro!$A$5:$AW$2531,16,FALSE),0) -> 1 | R45: =CB45 ->  | CB45: =IF(C45<'A05'!D90,"* Niños derivados deben ser mayores o iguales al ingreso de niños(as) Normal con Rezago a salas de estimulación REM A05 sección F. ","") ->  | DB45: =IF(C45<'A05'!D90,1,0) -> 0
A46: 02021810 | B46: RIESGO | C46: =SUM(D46+E46) -> 794 | D46: =SUM(F46+H46+J46+L46+N46+P46) -> 493 | E46: 301 | F46: =IFERROR(VLOOKUP($A46,Filtro!$A$5:$AW$2531,5,FALSE),0) -> 7 | G46: =IFERROR(VLOOKUP($A46,Filtro!$A$5:$AW$2531,6,FALSE),0) -> 7 | H46: =IFERROR(VLOOKUP($A46,Filtro!$A$5:$AW$2531,7,FALSE),0) -> 58 | I46: =IFERROR(VLOOKUP($A46,Filtro!$A$5:$AW$2531,8,FALSE),0) -> 58 | J46: =IFERROR(VLOOKUP($A46,Filtro!$A$5:$AW$2531,9,FALSE),0) -> 48 | K46: =IFERROR(VLOOKUP($A46,Filtro!$A$5:$AW$2531,10,FALSE),0) -> 22 | L46: =IFERROR(VLOOKUP($A46,Filtro!$A$5:$AW$2531,11,FALSE),0) -> 178 | M46: =IFERROR(VLOOKUP($A46,Filtro!$A$5:$AW$2531,12,FALSE),0) -> 107 | N46: =IFERROR(VLOOKUP($A46,Filtro!$A$5:$AW$2531,13,FALSE),0) -> 192 | O46: =IFERROR(VLOOKUP($A46,Filtro!$A$5:$AW$2531,14,FALSE),0) -> 103 | P46: =IFERROR(VLOOKUP($A46,Filtro!$A$5:$AW$2531,15,FALSE),0) -> 10 | Q46: =IFERROR(VLOOKUP($A46,Filtro!$A$5:$AW$2531,16,FALSE),0) -> 4 | CB46: =IF(C46<'A05'!D91,"* Niños derivados deben ser mayores o iguales al ingreso de niños(as) Normal con Rezago a salas de estimulación REM A05 sección F. ","") ->  | DB46: =IF(C46<'A05'!D91,1,0) -> 0
A47: 02021820 | B47: RETRASO | C47: =SUM(D47+E47) -> 251 | D47: 180 | E47: 71 | F47: =IFERROR(VLOOKUP($A47,Filtro!$A$5:$AW$2531,5,FALSE),0) -> 1 | G47: =IFERROR(VLOOKUP($A47,Filtro!$A$5:$AW$2531,6,FALSE),0) -> 1 | H47: =IFERROR(VLOOKUP($A47,Filtro!$A$5:$AW$2531,7,FALSE),0) -> 8 | I47: =IFERROR(VLOOKUP($A47,Filtro!$A$5:$AW$2531,8,FALSE),0) -> 7 | J47: =IFERROR(VLOOKUP($A47,Filtro!$A$5:$AW$2531,9,FALSE),0) -> 13 | K47: =IFERROR(VLOOKUP($A47,Filtro!$A$5:$AW$2531,10,FALSE),0) -> 4 | L47: =IFERROR(VLOOKUP($A47,Filtro!$A$5:$AW$2531,11,FALSE),0) -> 76 | M47: =IFERROR(VLOOKUP($A47,Filtro!$A$5:$AW$2531,12,FALSE),0) -> 34 | N47: =IFERROR(VLOOKUP($A47,Filtro!$A$5:$AW$2531,13,FALSE),0) -> 71 | O47: =IFERROR(VLOOKUP($A47,Filtro!$A$5:$AW$2531,14,FALSE),0) -> 23 | P47: =IFERROR(VLOOKUP($A47,Filtro!$A$5:$AW$2531,15,FALSE),0) -> 11 | Q47: =IFERROR(VLOOKUP($A47,Filtro!$A$5:$AW$2531,16,FALSE),0) -> 2 | CB47: =IF(C47<'A05'!D92,"* Niños derivados deben ser mayores o iguales al ingreso de niños(as) Normal con Rezago a salas de estimulación REM A05 sección F. ","") ->  | DB47: =IF(C47<'A05'!D92,1,0) -> 0
A48: 05225307 | B48: OTRA VULNERABILIDAD | C48: =SUM(D48:E48) -> 1344 | D48: 776 | E48: 568 | F48: =IFERROR(VLOOKUP($A48,Filtro!$A$5:$AW$2531,5,FALSE),0) -> 212 | G48: =IFERROR(VLOOKUP($A48,Filtro!$A$5:$AW$2531,6,FALSE),0) -> 193 | H48: =IFERROR(VLOOKUP($A48,Filtro!$A$5:$AW$2531,7,FALSE),0) -> 64 | I48: =IFERROR(VLOOKUP($A48,Filtro!$A$5:$AW$2531,8,FALSE),0) -> 70 | J48: =IFERROR(VLOOKUP($A48,Filtro!$A$5:$AW$2531,9,FALSE),0) -> 92 | K48: =IFERROR(VLOOKUP($A48,Filtro!$A$5:$AW$2531,10,FALSE),0) -> 49 | L48: =IFERROR(VLOOKUP($A48,Filtro!$A$5:$AW$2531,11,FALSE),0) -> 105 | M48: =IFERROR(VLOOKUP($A48,Filtro!$A$5:$AW$2531,12,FALSE),0) -> 75 | N48: =IFERROR(VLOOKUP($A48,Filtro!$A$5:$AW$2531,13,FALSE),0) -> 245 | O48: =IFERROR(VLOOKUP($A48,Filtro!$A$5:$AW$2531,14,FALSE),0) -> 138 | P48: =IFERROR(VLOOKUP($A48,Filtro!$A$5:$AW$2531,15,FALSE),0) -> 58 | Q48: =IFERROR(VLOOKUP($A48,Filtro!$A$5:$AW$2531,16,FALSE),0) -> 43 | CB48: =IF(C48<'A05'!D93,"* Niños derivados deben ser mayores o iguales al ingreso de niños(as) Normal con Rezago a salas de estimulación REM A05 sección F. ","") -> * Niños derivados deben ser mayores o iguales al ingreso de niños(as) Normal con Rezago a salas de estimulación REM A05 sección F. | DB48: =IF(C48<'A05'!D93,1,0) -> 1
B49: SECCIÓN A.4: RESULTADOS DE LA APLICACIÓN DE PROTOCOLO NEUROSENSORIAL
B50: RESULTADOS | C50: TOTAL | F50: POR EDAD
F51: 1 mes | H51: 2 meses
C52: Ambos Sexos | D52: Hombres | E52: Mujeres | F52: Hombres | G52: Mujeres | H52: Hombres | I52: Mujeres
A53: 02021760 | B53: APLICACIÓN DE PROTOCOLO NEUROSENSORIAL (1-2 MESES) | C53: =SUM(D53+E53) -> 2895 | D53: =SUM(F53+H53) -> 1423 | E53: =SUM(G53+I53) -> 1472 | F53: =IFERROR(VLOOKUP($A53,Filtro!$A$5:$AW$2531,5,FALSE),0) -> 1178 | G53: =IFERROR(VLOOKUP($A53,Filtro!$A$5:$AW$2531,6,FALSE),0) -> 1204 | H53: =IFERROR(VLOOKUP($A53,Filtro!$A$5:$AW$2531,7,FALSE),0) -> 245 | I53: =IFERROR(VLOOKUP($A53,Filtro!$A$5:$AW$2531,8,FALSE),0) -> 268
A54: 03500040 | B54: NORMAL | C54: =SUM(D54+E54) -> 2442 | D54: =SUM(F54+H54) -> 1190 | E54: 1252 | F54: =IFERROR(VLOOKUP($A54,Filtro!$A$5:$AW$2531,5,FALSE),0) -> 1000 | G54: =IFERROR(VLOOKUP($A54,Filtro!$A$5:$AW$2531,6,FALSE),0) -> 1030 | H54: =IFERROR(VLOOKUP($A54,Filtro!$A$5:$AW$2531,7,FALSE),0) -> 190 | I54: =IFERROR(VLOOKUP($A54,Filtro!$A$5:$AW$2531,8,FALSE),0) -> 222
A55: 03500050 | B55: ANORMAL | C55: =SUM(D55+E55) -> 425 | D55: =SUM(F55+H55) -> 219 | E55: =SUM(G55+I55) -> 206 | F55: =IFERROR(VLOOKUP($A55,Filtro!$A$5:$AW$2531,5,FALSE),0) -> 169 | G55: =IFERROR(VLOOKUP($A55,Filtro!$A$5:$AW$2531,6,FALSE),0) -> 165 | H55: =IFERROR(VLOOKUP($A55,Filtro!$A$5:$AW$2531,7,FALSE),0) -> 50 | I55: =IFERROR(VLOOKUP($A55,Filtro!$A$5:$AW$2531,8,FALSE),0) -> 41
A56: 03500060 | B56: MUY ANORMAL | C56: =SUM(D56+E56) -> 40 | D56: 22 | E56: 18 | F56: =IFERROR(VLOOKUP($A56,Filtro!$A$5:$AW$2531,5,FALSE),0) -> 17 | G56: =IFERROR(VLOOKUP($A56,Filtro!$A$5:$AW$2531,6,FALSE),0) -> 13 | H56: =IFERROR(VLOOKUP($A56,Filtro!$A$5:$AW$2531,7,FALSE),0) -> 5 | I56: =IFERROR(VLOOKUP($A56,Filtro!$A$5:$AW$2531,8,FALSE),0) -> 5
B57: SECCIÓN A.5: LACTANCIA EN NIÑOS Y NIÑAS CONTROLADOS
B58: TIPO DE ALIMENTACIÓN | D58: TOTAL | E58: SEGÚN CONTROL PROGRAMÁTICO | K58: Pueblos Originarios | L58: Migrantes
E59: Diada | F59: Del 1° mes | G59: Del 3° mes | H59: Del 6° mes | I59: Del 12° mes | J59: Del 24° mes | CB59: 0 | CC59: 0 | CD59: 0 | CE59: 0 | CF59: 0
A60: A0200002 | B60: LACTANCIA MATERNA EXCLUSIVA | D60: =SUM(E60:H60) -> 7552 | E60: =IFERROR(VLOOKUP($A60,Filtro!$A$5:$AW$2531,3,FALSE),0) -> 2024 | F60: =IFERROR(VLOOKUP($A60,Filtro!$A$5:$AW$2531,4,FALSE),0) -> 1895 | G60: =IFERROR(VLOOKUP($A60,Filtro!$A$5:$AW$2531,5,FALSE),0) -> 1889 | H60: =IFERROR(VLOOKUP($A60,Filtro!$A$5:$AW$2531,6,FALSE),0) -> 1744 | I60: =IFERROR(VLOOKUP($A60,Filtro!$A$5:$AW$2531,7,FALSE),0) -> 0 | J60: =IFERROR(VLOOKUP($A60,Filtro!$A$5:$AW$2531,8,FALSE),0) -> 0 | K60: =IFERROR(VLOOKUP($A60,Filtro!$A$5:$AW$2531,9,FALSE),0) -> 26 | L60: =IFERROR(VLOOKUP($A60,Filtro!$A$5:$AW$2531,10,FALSE),0) -> 49 | CD60: * * El campo Migrantes NO PUEDE ser mayor al Total. | CF60: 0 | CG60: 0 | CH60: 0 | DA60: 0 | DB60: 0 | DC60: 0 | DD60: 1 | DE60: 0
A61: 03500359 | B61: LACTANCIA MATERNA / FORMULA LÁCTEA | D61: =SUM(E61:H61) -> 2261 | E61: =IFERROR(VLOOKUP($A61,Filtro!$A$5:$AW$2531,3,FALSE),0) -> 494 | F61: =IFERROR(VLOOKUP($A61,Filtro!$A$5:$AW$2531,4,FALSE),0) -> 721 | G61: =IFERROR(VLOOKUP($A61,Filtro!$A$5:$AW$2531,5,FALSE),0) -> 627 | H61: =IFERROR(VLOOKUP($A61,Filtro!$A$5:$AW$2531,6,FALSE),0) -> 419 | I61: =IFERROR(VLOOKUP($A61,Filtro!$A$5:$AW$2531,7,FALSE),0) -> 0 | J61: =IFERROR(VLOOKUP($A61,Filtro!$A$5:$AW$2531,8,FALSE),0) -> 0 | K61: =IFERROR(VLOOKUP($A61,Filtro!$A$5:$AW$2531,9,FALSE),0) -> 6 | L61: =IFERROR(VLOOKUP($A61,Filtro!$A$5:$AW$2531,10,FALSE),0) -> 17 | DB61: 0 | DC61: 0 | DD61: 0 | DE61: 0
A62: 03500360 | B62: FORMULA LÁCTEA | D62: =SUM(E62:H62) -> 837 | E62: =IFERROR(VLOOKUP($A62,Filtro!$A$5:$AW$2531,3,FALSE),0) -> 34 | F62: =IFERROR(VLOOKUP($A62,Filtro!$A$5:$AW$2531,4,FALSE),0) -> 186 | G62: =IFERROR(VLOOKUP($A62,Filtro!$A$5:$AW$2531,5,FALSE),0) -> 290 | H62: =IFERROR(VLOOKUP($A62,Filtro!$A$5:$AW$2531,6,FALSE),0) -> 327 | I62: =IFERROR(VLOOKUP($A62,Filtro!$A$5:$AW$2531,7,FALSE),0) -> 0 | J62: =IFERROR(VLOOKUP($A62,Filtro!$A$5:$AW$2531,8,FALSE),0) -> 0 | K62: =IFERROR(VLOOKUP($A62,Filtro!$A$5:$AW$2531,9,FALSE),0) -> 2 | L62: =IFERROR(VLOOKUP($A62,Filtro!$A$5:$AW$2531,10,FALSE),0) -> 3 | DB62: 0 | DC62: 0 | DD62: 0 | DE62: 0
A63: A0200003 | B63: LACTANCIA MATERNA MAS ALIMENTACIÓN COMPLEMENTARIA | D63: =SUM(E63:J63) -> 1311 | E63: =IFERROR(VLOOKUP($A63,Filtro!$A$5:$AW$2531,3,FALSE),0) -> 4 | F63: =IFERROR(VLOOKUP($A63,Filtro!$A$5:$AW$2531,4,FALSE),0) -> 5 | G63: =IFERROR(VLOOKUP($A63,Filtro!$A$5:$AW$2531,5,FALSE),0) -> 9 | H63: =IFERROR(VLOOKUP($A63,Filtro!$A$5:$AW$2531,6,FALSE),0) -> 217 | I63: =IFERROR(VLOOKUP($A63,Filtro!$A$5:$AW$2531,7,FALSE),0) -> 793 | J63: =IFERROR(VLOOKUP($A63,Filtro!$A$5:$AW$2531,8,FALSE),0) -> 283 | K63: =IFERROR(VLOOKUP($A63,Filtro!$A$5:$AW$2531,9,FALSE),0) -> 7 | L63: =IFERROR(VLOOKUP($A63,Filtro!$A$5:$AW$2531,10,FALSE),0) -> 9 | DB63: 0 | DC63: 0 | DD63: 0 | DE63: 0
A64: 03600140 | B64: LACTANCIA MATERNA/ FÓRMULA LÁCTEA/ ALIMENTACIÓN COMPLEMENTARIA | D64: =SUM(H64:J64)+E64 -> 1541 | E64: =IFERROR(VLOOKUP($A64,Filtro!$A$5:$AW$2531,3,FALSE),0) -> 9 | F64: =IFERROR(VLOOKUP($A64,Filtro!$A$5:$AW$2531,4,FALSE),0) -> 0 | G64: =IFERROR(VLOOKUP($A64,Filtro!$A$5:$AW$2531,5,FALSE),0) -> 0 | H64: =IFERROR(VLOOKUP($A64,Filtro!$A$5:$AW$2531,6,FALSE),0) -> 217 | I64: =IFERROR(VLOOKUP($A64,Filtro!$A$5:$AW$2531,7,FALSE),0) -> 797 | J64: =IFERROR(VLOOKUP($A64,Filtro!$A$5:$AW$2531,8,FALSE),0) -> 518 | K64: =IFERROR(VLOOKUP($A64,Filtro!$A$5:$AW$2531,9,FALSE),0) -> 4 | L64: =IFERROR(VLOOKUP($A64,Filtro!$A$5:$AW$2531,10,FALSE),0) -> 4 | DA64: 0 | DB64: 0 | DC64: 0 | DD64: 0 | DE64: 0
A65: 03600150 | B65: FORMULA LÁCTEA ALIMENTACIÓN COMPLEMENTARIA | D65: =SUM(H65:J65)+E65 -> 2470 | E65: =IFERROR(VLOOKUP($A65,Filtro!$A$5:$AW$2531,3,FALSE),0) -> 9 | F65: =IFERROR(VLOOKUP($A65,Filtro!$A$5:$AW$2531,4,FALSE),0) -> 0 | G65: =IFERROR(VLOOKUP($A65,Filtro!$A$5:$AW$2531,5,FALSE),0) -> 0 | H65: =IFERROR(VLOOKUP($A65,Filtro!$A$5:$AW$2531,6,FALSE),0) -> 212 | I65: =IFERROR(VLOOKUP($A65,Filtro!$A$5:$AW$2531,7,FALSE),0) -> 959 | J65: =IFERROR(VLOOKUP($A65,Filtro!$A$5:$AW$2531,8,FALSE),0) -> 1290 | K65: =IFERROR(VLOOKUP($A65,Filtro!$A$5:$AW$2531,9,FALSE),0) -> 3 | L65: =IFERROR(VLOOKUP($A65,Filtro!$A$5:$AW$2531,10,FALSE),0) -> 20 | DA65: 0 | DB65: 0 | DC65: 0 | DD65: 0 | DE65: 0
A66: A0200001 | B66: NÚMERO DE NIÑOS Y NIÑAS CONTROLADOS | D66: =SUM(E66:J66) -> 15090 | E66: =IFERROR(VLOOKUP($A66,Filtro!$A$5:$AW$2531,3,FALSE),0) -> 2050 | F66: =IFERROR(VLOOKUP($A66,Filtro!$A$5:$AW$2531,4,FALSE),0) -> 2562 | G66: =IFERROR(VLOOKUP($A66,Filtro!$A$5:$AW$2531,5,FALSE),0) -> 2633 | H66: =IFERROR(VLOOKUP($A66,Filtro!$A$5:$AW$2531,6,FALSE),0) -> 3138 | I66: =IFERROR(VLOOKUP($A66,Filtro!$A$5:$AW$2531,7,FALSE),0) -> 2524 | J66: =IFERROR(VLOOKUP($A66,Filtro!$A$5:$AW$2531,8,FALSE),0) -> 2183 | K66: =IFERROR(VLOOKUP($A66,Filtro!$A$5:$AW$2531,9,FALSE),0) -> 23 | L66: =IFERROR(VLOOKUP($A66,Filtro!$A$5:$AW$2531,10,FALSE),0) -> 55 | CE66: * El número de menores con lactancia materna Exclusiva o Artificial al control del 6er mes NO debe ser MAYOR al número de menores controlados. | CG66: * El número de menores con lactancia Materna o Artificial mas Solidos al control del 24 meses NO debe ser MAYOR al número de menores controlados. | DA66: 0 | DB66: 0 | DC66: 0 | DD66: 0 | DE66: 1 | DF66: 0 | DG66: 1 | DH66: 0
B67: SECCIÓN A.6: RESULTADOS RADIOGRAFÍA DE PELVIS (CADERA)
B68: RESULTADO | C68: TOTAL | F68: POR EDAD | J68: 3 MESES | L68: 4 MESES
F69: 3 MESES | H69: 4 MESES | J69: Pueblos Originarios | K69: Migrantes | L69: Pueblos Originarios | M69: Migrantes
C70: Ambos Sexos | D70: Hombres | E70: Mujeres | F70: Hombres | G70: Mujeres | H70: Hombres | I70: Mujeres
A71: 09600207 | B71: NORMAL | C71: =SUM(D71:E71) -> 2046 | D71: =+F71+H71 -> 1077 | E71: 969 | F71: =IFERROR(VLOOKUP($A71,Filtro!$A$5:$AW$2531,5,FALSE),0) -> 784 | G71: =IFERROR(VLOOKUP($A71,Filtro!$A$5:$AW$2531,6,FALSE),0) -> 751 | H71: =IFERROR(VLOOKUP($A71,Filtro!$A$5:$AW$2531,7,FALSE),0) -> 293 | I71: =IFERROR(VLOOKUP($A71,Filtro!$A$5:$AW$2531,8,FALSE),0) -> 218 | J71: =IFERROR(VLOOKUP($A71,Filtro!$A$5:$AW$2531,9,FALSE),0) -> 7 | K71: =IFERROR(VLOOKUP($A71,Filtro!$A$5:$AW$2531,10,FALSE),0) -> 7 | L71: =IFERROR(VLOOKUP($A71,Filtro!$A$5:$AW$2531,11,FALSE),0) -> 0 | M71: =IFERROR(VLOOKUP($A71,Filtro!$A$5:$AW$2531,12,FALSE),0) -> 9 | DA71: 0 | DB71: 0 | DC71: 0 | DD71: 0 | DE71: 0 | DF71: 0 | DG71: 0 | DH71: 0 | DI71: 0
A72: 09600208 | B72: ANORMAL | C72: =SUM(D72:E72) -> 388 | D72: 151 | E72: 237 | F72: =IFERROR(VLOOKUP($A72,Filtro!$A$5:$AW$2531,5,FALSE),0) -> 103 | G72: =IFERROR(VLOOKUP($A72,Filtro!$A$5:$AW$2531,6,FALSE),0) -> 153 | H72: =IFERROR(VLOOKUP($A72,Filtro!$A$5:$AW$2531,7,FALSE),0) -> 48 | I72: =IFERROR(VLOOKUP($A72,Filtro!$A$5:$AW$2531,8,FALSE),0) -> 84 | J72: =IFERROR(VLOOKUP($A72,Filtro!$A$5:$AW$2531,9,FALSE),0) -> 0 | K72: =IFERROR(VLOOKUP($A72,Filtro!$A$5:$AW$2531,10,FALSE),0) -> 1 | L72: =IFERROR(VLOOKUP($A72,Filtro!$A$5:$AW$2531,11,FALSE),0) -> 0 | M72: =IFERROR(VLOOKUP($A72,Filtro!$A$5:$AW$2531,12,FALSE),0) -> 1 | CF72: * * No olvide digitar el campo Pueblos Originarios (4 MESES) (Digite CEROS si no tiene). | CG72: * * No olvide digitar el campo Migrantes (4 MESES) (Digite CEROS si no tiene). | DB72: 0 | DC72: 0 | DD72: 0 | DE72: 0 | DF72: 0 | DG72: 0 | DH72: 0 | DI72: 0
A73: 09600209 | B73: INMADURA | C73: =SUM(D73:E73) -> 440 | D73: 165 | E73: 275 | F73: =IFERROR(VLOOKUP($A73,Filtro!$A$5:$AW$2531,5,FALSE),0) -> 133 | G73: =IFERROR(VLOOKUP($A73,Filtro!$A$5:$AW$2531,6,FALSE),0) -> 210 | H73: =IFERROR(VLOOKUP($A73,Filtro!$A$5:$AW$2531,7,FALSE),0) -> 32 | I73: =IFERROR(VLOOKUP($A73,Filtro!$A$5:$AW$2531,8,FALSE),0) -> 65 | J73: =IFERROR(VLOOKUP($A73,Filtro!$A$5:$AW$2531,9,FALSE),0) -> 3 | K73: =IFERROR(VLOOKUP($A73,Filtro!$A$5:$AW$2531,10,FALSE),0) -> 5 | L73: =IFERROR(VLOOKUP($A73,Filtro!$A$5:$AW$2531,11,FALSE),0) -> 0 | M73: =IFERROR(VLOOKUP($A73,Filtro!$A$5:$AW$2531,12,FALSE),0) -> 4 | CF73: * * No olvide digitar el campo Pueblos Originarios (4 MESES) (Digite CEROS si no tiene). | CG73: * * No olvide digitar el campo Migrantes (4 MESES) (Digite CEROS si no tiene). | DB73: 0 | DC73: 0 | DD73: 0 | DE73: 0 | DF73: 0 | DG73: 0 | DH73: 0 | DI73: 0
B74: SECCION B: EVALUACIÓN, APLICACIÓN Y RESULTADOS DE ESCALAS EN LA MUJER
B75: SECCIÓN B.1: EVALUACIÓN DEL ESTADO NUTRICIONAL A MUJERES CONTROLADAS AL OCTAVO MES POST PARTO
B76: ESTADO NUTRICIONAL | C76: TOTAL
B78: TOTAL | C78: =SUM(C79:C82) -> 570
A79: 03500120 | B79: OBESA | C79: =IFERROR(VLOOKUP($A79,Filtro!$A$5:$AW$2531,2,FALSE),0) -> 218
A80: 03500130 | B80: SOBREPESO | C80: =IFERROR(VLOOKUP($A80,Filtro!$A$5:$AW$2531,2,FALSE),0) -> 220
A81: 03500140 | B81: NORMAL | C81: =IFERROR(VLOOKUP($A81,Filtro!$A$5:$AW$2531,2,FALSE),0) -> 120
A82: 03500150 | B82: BAJO PESO | C82: =IFERROR(VLOOKUP($A82,Filtro!$A$5:$AW$2531,2,FALSE),0) -> 12
B83: SECCIÓN B.2: APLICACIÓN DE ESCALA SEGÚN EVALUACIÓN DE RIESGO PSICOSOCIAL ABREVIADA A GESTANTES
B84: TIPO | C84: Total de Aplicaciones | D84: Riesgo | E84: Derivadas a equipo de cabecera | F84: Violencia Intrafamiliar | CG84: 0
A85: 02021830 | B85: EVALUACIÓN AL INGRESO | C85: =IFERROR(VLOOKUP($A85,Filtro!$A$5:$AW$2531,2,FALSE),0) -> 3656 | D85: =IFERROR(VLOOKUP($A85,Filtro!$A$5:$AW$2531,3,FALSE),0) -> 1026 | E85: =IFERROR(VLOOKUP($A85,Filtro!$A$5:$AW$2531,4,FALSE),0) -> 830 | F85: =IFERROR(VLOOKUP($A85,Filtro!$A$5:$AW$2531,5,FALSE),0) -> 81 | G85: =CA85&CB85&CC85 ->  | BU85: =IF(CA85=1,"* Las Aplicaciones de EPSA con resultado de Riesgo NO DEBE ser MAYOR que el Total de las aplicaciones. ","") ->  | BX85: =IF(CD85=1,"* Las Aplicaciones de EPSA con resultado de Riesgo NO DEBE ser MAYOR que el Total de las aplicaciones. ","") ->  | CA85: =IF(CG85=1,"* Las Aplicaciones de EPSA con resultado de Riesgo NO DEBE ser MAYOR que el Total de las aplicaciones. ","") ->  | CB85: =IF(CH85=1,"* Las Aplicaciones de EPSA con resultado de Riesgo NO DEBE ser MENOR que las Derivaciones a equipo de cabecera. ","") ->  | CC85: =IF(CI85=1,"* Las Aplicaciones de EPSA asociadas a Violencia Intrafamiliar NO DEBEN ser MAYOR al Total de las aplicaciones. ","") ->  | CG85: =IF(C85<D85,1,0) -> 0 | CH85: =IF(D85<E85,1,0) -> 0 | CI85: =IF(F85>C85,1,0) -> 0
A86: 03600160 | B86: EVALUACIÓN AL TERCER TRIMESTRE | C86: =IFERROR(VLOOKUP($A86,Filtro!$A$5:$AW$2531,2,FALSE),0) -> 224 | D86: =IFERROR(VLOOKUP($A86,Filtro!$A$5:$AW$2531,3,FALSE),0) -> 31 | E86: =IFERROR(VLOOKUP($A86,Filtro!$A$5:$AW$2531,4,FALSE),0) -> 26 | F86: =IFERROR(VLOOKUP($A86,Filtro!$A$5:$AW$2531,5,FALSE),0) -> 1 | G86: =CA86&CB86&CC86 ->  | CA86: =IF(CG86=1,"* Las Aplicaciones de EPSA con resultado de Riesgo NO DEBE ser MAYOR que el Total de las aplicaciones. ","") ->  | CB86: =IF(CH86=1,"* Las Aplicaciones de EPSA con resultado de Riesgo NO DEBE ser MENOR que las Derivaciones a equipo de cabecera. ","") ->  | CC86: =IF(CI86=1,"* Las Aplicaciones de EPSA asociadas a Violencia Intrafamiliar NO DEBEN ser MAYOR al Total de las aplicaciones. ","") ->  | CG86: =IF(C86<D86,1,0) -> 0 | CH86: =IF(D86<E86,1,0) -> 0 | CI86: =IF(F86>C86,1,0) -> 0
B87: SECCIÓN B.3: APLICACIÓN DE ESCALA DE EDIMBURGO A GESTANTES Y MUJERES POST PARTO | CH87: 0
B88: CONCEPTO | D88: TOTAL DE APLICACIONES | E88: RESULTADOS 10 O MÁS PTOS. O RESULTADO DISTINTO DE 0 EN PREG 10 . (PUERPERAS) | F88: RESULTADOS 13 O MÁS PTOS O RESULTADO DISTINTO DE 0 EN PREG 10. (GESTANTES) | G88: TOTAL DE CASOS ALTERADOS DERIVADOS A SALUD MENTAL | CH88: 0
A89: 03500160 | B89: EVALUACIÓN A GESTANTES | C89: PRIMERA EVALUACIÓN (2º control prenatal) | D89: =IFERROR(VLOOKUP($A89,Filtro!$A$5:$AW$2531,2,FALSE),0) -> 3640 | E89: =IFERROR(VLOOKUP($A89,Filtro!$A$5:$AW$2531,3,FALSE),0) -> 0 | F89: =IFERROR(VLOOKUP($A89,Filtro!$A$5:$AW$2531,4,FALSE),0) -> 334 | G89: =IFERROR(VLOOKUP($A89,Filtro!$A$5:$AW$2531,5,FALSE),0) -> 322 | CH89: 0 | DA89: 0 | DC89: 0
A90: 03500170 | C90: REEVALUACIÓN (con puntaje elevado en la primera evaluación) | D90: =IFERROR(VLOOKUP($A90,Filtro!$A$5:$AW$2531,2,FALSE),0) -> 61 | E90: =IFERROR(VLOOKUP($A90,Filtro!$A$5:$AW$2531,3,FALSE),0) -> 0 | F90: =IFERROR(VLOOKUP($A90,Filtro!$A$5:$AW$2531,4,FALSE),0) -> 24 | G90: =IFERROR(VLOOKUP($A90,Filtro!$A$5:$AW$2531,5,FALSE),0) -> 12 | CH90: 0 | DC90: 0
A91: 03500200 | B91: EVALUACIÓN A MUJERES POST PARTO O SÍNTOMAS DE DEPRESIÓN | C91: A los 2 meses | D91: =IFERROR(VLOOKUP($A91,Filtro!$A$5:$AW$2531,2,FALSE),0) -> 2709 | E91: =IFERROR(VLOOKUP($A91,Filtro!$A$5:$AW$2531,3,FALSE),0) -> 407 | F91: =IFERROR(VLOOKUP($A91,Filtro!$A$5:$AW$2531,4,FALSE),0) -> 0 | G91: =IFERROR(VLOOKUP($A91,Filtro!$A$5:$AW$2531,5,FALSE),0) -> 297 | CH91: 0 | DB91: 0
A92: 03500210 | C92: A los 6 meses | D92: =IFERROR(VLOOKUP($A92,Filtro!$A$5:$AW$2531,2,FALSE),0) -> 2581 | E92: =IFERROR(VLOOKUP($A92,Filtro!$A$5:$AW$2531,3,FALSE),0) -> 384 | F92: =IFERROR(VLOOKUP($A92,Filtro!$A$5:$AW$2531,4,FALSE),0) -> 0 | G92: =IFERROR(VLOOKUP($A92,Filtro!$A$5:$AW$2531,5,FALSE),0) -> 260 | CH92: 0 | DB92: 0
B93: SECCIÓN C: RESULTADOS DE LA EVALUACIÓN DEL ESTADO NUTRICIONAL DEL ADOLESCENTE CON CONTROL SALUD INTEGRAL
B94: ESTADO NUTRICIONAL | D94: TOTAL | G94: 10 A 14 años | I94: 15 A 19 años
D95: Ambos Sexos | E95: Hombres | F95: Mujeres | G95: Hombres | H95: Mujeres | I95: Hombres | J95: Mujeres
B96: TOTAL | D96: =SUM(D97:D101) -> 6813 | E96: =SUM(E97:E101) -> 2869 | F96: 3944 | G96: =SUM(G97:G101) -> 2132 | H96: =SUM(H97:H101) -> 2646 | I96: 737 | J96: 1298
A97: 03050400 | B97: NORMAL | D97: =SUM(E97+F97) -> 3014 | E97: =SUM(G97+I97) -> 1230 | F97: =SUM(H97+J97) -> 1784 | G97: =IFERROR(VLOOKUP($A97,Filtro!$A$5:$AW$2531,5,FALSE),0) -> 891 | H97: =IFERROR(VLOOKUP($A97,Filtro!$A$5:$AW$2531,6,FALSE),0) -> 1220 | I97: =IFERROR(VLOOKUP($A97,Filtro!$A$5:$AW$2531,7,FALSE),0) -> 339 | J97: =IFERROR(VLOOKUP($A97,Filtro!$A$5:$AW$2531,8,FALSE),0) -> 564
A98: 03050500 | B98: BAJO PESO | D98: =SUM(E98+F98) -> 444 | E98: 231 | F98: 213 | G98: =IFERROR(VLOOKUP($A98,Filtro!$A$5:$AW$2531,5,FALSE),0) -> 146 | H98: =IFERROR(VLOOKUP($A98,Filtro!$A$5:$AW$2531,6,FALSE),0) -> 144 | I98: =IFERROR(VLOOKUP($A98,Filtro!$A$5:$AW$2531,7,FALSE),0) -> 85 | J98: =IFERROR(VLOOKUP($A98,Filtro!$A$5:$AW$2531,8,FALSE),0) -> 69
A99: 03050600 | B99: SOBREPESO | D99: =SUM(E99+F99) -> 1710 | E99: 660 | F99: 1050 | G99: =IFERROR(VLOOKUP($A99,Filtro!$A$5:$AW$2531,5,FALSE),0) -> 507 | H99: =IFERROR(VLOOKUP($A99,Filtro!$A$5:$AW$2531,6,FALSE),0) -> 704 | I99: =IFERROR(VLOOKUP($A99,Filtro!$A$5:$AW$2531,7,FALSE),0) -> 153 | J99: =IFERROR(VLOOKUP($A99,Filtro!$A$5:$AW$2531,8,FALSE),0) -> 346
A100: 03050700 | B100: OBESOS | D100: =SUM(E100+F100) -> 1378 | E100: 614 | F100: 764 | G100: =IFERROR(VLOOKUP($A100,Filtro!$A$5:$AW$2531,5,FALSE),0) -> 486 | H100: =IFERROR(VLOOKUP($A100,Filtro!$A$5:$AW$2531,6,FALSE),0) -> 496 | I100: =IFERROR(VLOOKUP($A100,Filtro!$A$5:$AW$2531,7,FALSE),0) -> 128 | J100: =IFERROR(VLOOKUP($A100,Filtro!$A$5:$AW$2531,8,FALSE),0) -> 268
A101: 03050710 | B101: OBESOS SEVEROS | D101: =SUM(E101+F101) -> 267 | E101: 134 | F101: 133 | G101: =IFERROR(VLOOKUP($A101,Filtro!$A$5:$AW$2531,5,FALSE),0) -> 102 | H101: =IFERROR(VLOOKUP($A101,Filtro!$A$5:$AW$2531,6,FALSE),0) -> 82 | I101: =IFERROR(VLOOKUP($A101,Filtro!$A$5:$AW$2531,7,FALSE),0) -> 32 | J101: =IFERROR(VLOOKUP($A101,Filtro!$A$5:$AW$2531,8,FALSE),0) -> 51
B102: SECCIÓN D: OTRAS EVALUACIONES, APLICACIONES Y RESULTADOS DE ESCALAS EN TODAS LAS EDADES
B103: SECCIÓN D.1: APLICACIÓN DE TAMIZAJE PARA EVALUAR EL NIVEL DE RIESGO DE CONSUMO DE ALCOHOL, TABACO Y OTRAS DROGAS
B104: COMPONENTE | D104: TOTAL | G104: POR EDAD
G105: 10-14 años | I105: 15-19 años | K105: 20-24 años | M105: 25-44 años | O105: 45-64 años | Q105: 65-69 años | S105: 70-79 años | U105: 80 y más años
D106: Ambos Sexos | E106: Hombres | F106: Mujeres | G106: Hombres | H106: Mujeres | I106: Hombres | J106: Mujeres | K106: Hombres | L106: Mujeres | M106: Hombres | N106: Mujeres | O106: Hombres | P106: Mujeres | Q106: Hombres | R106: Mujeres | S106: Hombres | T106: Mujeres | U106: Hombres | V106: Mujeres
A107: 03500346 | B107: Nº DE AUDIT (EMP/EMPAM) | D107: =SUM(E107+F107) -> 23189 | E107: =+I107+K107+M107+O107+Q107+S107+U107 -> 7796 | F107: =+J107+L107+N107+P107+R107+T107+V107 -> 15393 | G107: =IFERROR(VLOOKUP($A107,Filtro!$A$5:$AW$2531,5,FALSE),0) -> 0 | H107: =IFERROR(VLOOKUP($A107,Filtro!$A$5:$AW$2531,6,FALSE),0) -> 0 | I107: =IFERROR(VLOOKUP($A107,Filtro!$A$5:$AW$2531,7,FALSE),0) -> 87 | J107: =IFERROR(VLOOKUP($A107,Filtro!$A$5:$AW$2531,8,FALSE),0) -> 177 | K107: =IFERROR(VLOOKUP($A107,Filtro!$A$5:$AW$2531,9,FALSE),0) -> 487 | L107: =IFERROR(VLOOKUP($A107,Filtro!$A$5:$AW$2531,10,FALSE),0) -> 1193 | M107: =IFERROR(VLOOKUP($A107,Filtro!$A$5:$AW$2531,11,FALSE),0) -> 2167 | N107: =IFERROR(VLOOKUP($A107,Filtro!$A$5:$AW$2531,12,FALSE),0) -> 5301 | O107: =IFERROR(VLOOKUP($A107,Filtro!$A$5:$AW$2531,13,FALSE),0) -> 1910 | P107: =IFERROR(VLOOKUP($A107,Filtro!$A$5:$AW$2531,14,FALSE),0) -> 3685 | Q107: =IFERROR(VLOOKUP($A107,Filtro!$A$5:$AW$2531,15,FALSE),0) -> 842 | R107: =IFERROR(VLOOKUP($A107,Filtro!$A$5:$AW$2531,16,FALSE),0) -> 1464 | S107: =IFERROR(VLOOKUP($A107,Filtro!$A$5:$AW$2531,17,FALSE),0) -> 1486 | T107: =IFERROR(VLOOKUP($A107,Filtro!$A$5:$AW$2531,18,FALSE),0) -> 2260 | U107: =IFERROR(VLOOKUP($A107,Filtro!$A$5:$AW$2531,19,FALSE),0) -> 817 | V107: =IFERROR(VLOOKUP($A107,Filtro!$A$5:$AW$2531,20,FALSE),0) -> 1313
A108: 03500347 | B108: Nº DE AUDIT APLICADO | D108: =SUM(E108+F108) -> 16522 | E108: =SUM(K108+M108+O108+Q108+S108+U108) -> 5709 | F108: 10813 | G108: =IFERROR(VLOOKUP($A108,Filtro!$A$5:$AW$2531,5,FALSE),0) -> 0 | H108: =IFERROR(VLOOKUP($A108,Filtro!$A$5:$AW$2531,6,FALSE),0) -> 0 | I108: =IFERROR(VLOOKUP($A108,Filtro!$A$5:$AW$2531,7,FALSE),0) -> 0 | J108: =IFERROR(VLOOKUP($A108,Filtro!$A$5:$AW$2531,8,FALSE),0) -> 0 | K108: =IFERROR(VLOOKUP($A108,Filtro!$A$5:$AW$2531,9,FALSE),0) -> 660 | L108: =IFERROR(VLOOKUP($A108,Filtro!$A$5:$AW$2531,10,FALSE),0) -> 1194 | M108: =IFERROR(VLOOKUP($A108,Filtro!$A$5:$AW$2531,11,FALSE),0) -> 1740 | N108: =IFERROR(VLOOKUP($A108,Filtro!$A$5:$AW$2531,12,FALSE),0) -> 3973 | O108: =IFERROR(VLOOKUP($A108,Filtro!$A$5:$AW$2531,13,FALSE),0) -> 1663 | P108: =IFERROR(VLOOKUP($A108,Filtro!$A$5:$AW$2531,14,FALSE),0) -> 3343 | Q108: =IFERROR(VLOOKUP($A108,Filtro!$A$5:$AW$2531,15,FALSE),0) -> 630 | R108: =IFERROR(VLOOKUP($A108,Filtro!$A$5:$AW$2531,16,FALSE),0) -> 954 | S108: =IFERROR(VLOOKUP($A108,Filtro!$A$5:$AW$2531,17,FALSE),0) -> 679 | T108: =IFERROR(VLOOKUP($A108,Filtro!$A$5:$AW$2531,18,FALSE),0) -> 980 | U108: =IFERROR(VLOOKUP($A108,Filtro!$A$5:$AW$2531,19,FALSE),0) -> 337 | V108: =IFERROR(VLOOKUP($A108,Filtro!$A$5:$AW$2531,20,FALSE),0) -> 369
A109: 03500402 | B109: Nº DE ASSIST (EMP/EMPAM) | D109: 1341 | E109: 479 | F109: 862 | G109: =IFERROR(VLOOKUP($A109,Filtro!$A$5:$AW$2531,5,FALSE),0) -> 0 | H109: =IFERROR(VLOOKUP($A109,Filtro!$A$5:$AW$2531,6,FALSE),0) -> 0 | I109: =IFERROR(VLOOKUP($A109,Filtro!$A$5:$AW$2531,7,FALSE),0) -> 0 | J109: =IFERROR(VLOOKUP($A109,Filtro!$A$5:$AW$2531,8,FALSE),0) -> 0 | K109: =IFERROR(VLOOKUP($A109,Filtro!$A$5:$AW$2531,9,FALSE),0) -> 34 | L109: =IFERROR(VLOOKUP($A109,Filtro!$A$5:$AW$2531,10,FALSE),0) -> 64 | M109: =IFERROR(VLOOKUP($A109,Filtro!$A$5:$AW$2531,11,FALSE),0) -> 133 | N109: =IFERROR(VLOOKUP($A109,Filtro!$A$5:$AW$2531,12,FALSE),0) -> 302 | O109: =IFERROR(VLOOKUP($A109,Filtro!$A$5:$AW$2531,13,FALSE),0) -> 83 | P109: =IFERROR(VLOOKUP($A109,Filtro!$A$5:$AW$2531,14,FALSE),0) -> 208 | Q109: =IFERROR(VLOOKUP($A109,Filtro!$A$5:$AW$2531,15,FALSE),0) -> 84 | R109: =IFERROR(VLOOKUP($A109,Filtro!$A$5:$AW$2531,16,FALSE),0) -> 95 | S109: =IFERROR(VLOOKUP($A109,Filtro!$A$5:$AW$2531,17,FALSE),0) -> 98 | T109: =IFERROR(VLOOKUP($A109,Filtro!$A$5:$AW$2531,18,FALSE),0) -> 132 | U109: =IFERROR(VLOOKUP($A109,Filtro!$A$5:$AW$2531,19,FALSE),0) -> 47 | V109: =IFERROR(VLOOKUP($A109,Filtro!$A$5:$AW$2531,20,FALSE),0) -> 61
A110: 03500348 | B110: N° DE ASSIST APLICADO | D110: 1679 | E110: 436 | F110: 1243 | G110: =IFERROR(VLOOKUP($A110,Filtro!$A$5:$AW$2531,5,FALSE),0) -> 0 | H110: =IFERROR(VLOOKUP($A110,Filtro!$A$5:$AW$2531,6,FALSE),0) -> 0 | I110: =IFERROR(VLOOKUP($A110,Filtro!$A$5:$AW$2531,7,FALSE),0) -> 0 | J110: =IFERROR(VLOOKUP($A110,Filtro!$A$5:$AW$2531,8,FALSE),0) -> 0 | K110: =IFERROR(VLOOKUP($A110,Filtro!$A$5:$AW$2531,9,FALSE),0) -> 38 | L110: =IFERROR(VLOOKUP($A110,Filtro!$A$5:$AW$2531,10,FALSE),0) -> 107 | M110: =IFERROR(VLOOKUP($A110,Filtro!$A$5:$AW$2531,11,FALSE),0) -> 172 | N110: =IFERROR(VLOOKUP($A110,Filtro!$A$5:$AW$2531,12,FALSE),0) -> 492 | O110: =IFERROR(VLOOKUP($A110,Filtro!$A$5:$AW$2531,13,FALSE),0) -> 146 | P110: =IFERROR(VLOOKUP($A110,Filtro!$A$5:$AW$2531,14,FALSE),0) -> 486 | Q110: =IFERROR(VLOOKUP($A110,Filtro!$A$5:$AW$2531,15,FALSE),0) -> 33 | R110: =IFERROR(VLOOKUP($A110,Filtro!$A$5:$AW$2531,16,FALSE),0) -> 72 | S110: =IFERROR(VLOOKUP($A110,Filtro!$A$5:$AW$2531,17,FALSE),0) -> 36 | T110: =IFERROR(VLOOKUP($A110,Filtro!$A$5:$AW$2531,18,FALSE),0) -> 66 | U110: =IFERROR(VLOOKUP($A110,Filtro!$A$5:$AW$2531,19,FALSE),0) -> 11 | V110: =IFERROR(VLOOKUP($A110,Filtro!$A$5:$AW$2531,20,FALSE),0) -> 20
A111: 03600100 | B111: N° DE CRAFFT EN CONTROL DE SALUD INTEGRAL DEL ADOLESCENTE | D111: 2692 | E111: =+G111+I111 -> 1176 | F111: =+H111+J111 -> 1516 | G111: =IFERROR(VLOOKUP($A111,Filtro!$A$5:$AW$2531,5,FALSE),0) -> 775 | H111: =IFERROR(VLOOKUP($A111,Filtro!$A$5:$AW$2531,6,FALSE),0) -> 941 | I111: =IFERROR(VLOOKUP($A111,Filtro!$A$5:$AW$2531,7,FALSE),0) -> 401 | J111: =IFERROR(VLOOKUP($A111,Filtro!$A$5:$AW$2531,8,FALSE),0) -> 575 | K111: =IFERROR(VLOOKUP($A111,Filtro!$A$5:$AW$2531,9,FALSE),0) -> 0 | L111: =IFERROR(VLOOKUP($A111,Filtro!$A$5:$AW$2531,10,FALSE),0) -> 0 | M111: =IFERROR(VLOOKUP($A111,Filtro!$A$5:$AW$2531,11,FALSE),0) -> 0 | N111: =IFERROR(VLOOKUP($A111,Filtro!$A$5:$AW$2531,12,FALSE),0) -> 0 | O111: =IFERROR(VLOOKUP($A111,Filtro!$A$5:$AW$2531,13,FALSE),0) -> 0 | P111: =IFERROR(VLOOKUP($A111,Filtro!$A$5:$AW$2531,14,FALSE),0) -> 0 | Q111: =IFERROR(VLOOKUP($A111,Filtro!$A$5:$AW$2531,15,FALSE),0) -> 0 | R111: =IFERROR(VLOOKUP($A111,Filtro!$A$5:$AW$2531,16,FALSE),0) -> 0 | S111: =IFERROR(VLOOKUP($A111,Filtro!$A$5:$AW$2531,17,FALSE),0) -> 0 | T111: =IFERROR(VLOOKUP($A111,Filtro!$A$5:$AW$2531,18,FALSE),0) -> 0 | U111: =IFERROR(VLOOKUP($A111,Filtro!$A$5:$AW$2531,19,FALSE),0) -> 0 | V111: =IFERROR(VLOOKUP($A111,Filtro!$A$5:$AW$2531,20,FALSE),0) -> 0
A112: 03500367 | B112: N° DE CRAFFT APLICADO | D112: 2765 | E112: =+G112+I112 -> 1177 | F112: =+H112+J112 -> 1588 | G112: =IFERROR(VLOOKUP($A112,Filtro!$A$5:$AW$2531,5,FALSE),0) -> 704 | H112: =IFERROR(VLOOKUP($A112,Filtro!$A$5:$AW$2531,6,FALSE),0) -> 884 | I112: =IFERROR(VLOOKUP($A112,Filtro!$A$5:$AW$2531,7,FALSE),0) -> 473 | J112: =IFERROR(VLOOKUP($A112,Filtro!$A$5:$AW$2531,8,FALSE),0) -> 704 | K112: =IFERROR(VLOOKUP($A112,Filtro!$A$5:$AW$2531,9,FALSE),0) -> 0 | L112: =IFERROR(VLOOKUP($A112,Filtro!$A$5:$AW$2531,10,FALSE),0) -> 0 | M112: =IFERROR(VLOOKUP($A112,Filtro!$A$5:$AW$2531,11,FALSE),0) -> 0 | N112: =IFERROR(VLOOKUP($A112,Filtro!$A$5:$AW$2531,12,FALSE),0) -> 0 | O112: =IFERROR(VLOOKUP($A112,Filtro!$A$5:$AW$2531,13,FALSE),0) -> 0 | P112: =IFERROR(VLOOKUP($A112,Filtro!$A$5:$AW$2531,14,FALSE),0) -> 0 | Q112: =IFERROR(VLOOKUP($A112,Filtro!$A$5:$AW$2531,15,FALSE),0) -> 0 | R112: =IFERROR(VLOOKUP($A112,Filtro!$A$5:$AW$2531,16,FALSE),0) -> 0 | S112: =IFERROR(VLOOKUP($A112,Filtro!$A$5:$AW$2531,17,FALSE),0) -> 0 | T112: =IFERROR(VLOOKUP($A112,Filtro!$A$5:$AW$2531,18,FALSE),0) -> 0 | U112: =IFERROR(VLOOKUP($A112,Filtro!$A$5:$AW$2531,19,FALSE),0) -> 0 | V112: =IFERROR(VLOOKUP($A112,Filtro!$A$5:$AW$2531,20,FALSE),0) -> 0
A113: 03500349 | B113: RESULTADOS DE EVALUACIÓN | C113: BAJO RIESGO | D113: 43038 | E113: =SUM(G113+I113+K113+M113+O113+Q113+S113+U113) -> 14800 | F113: 28238 | G113: =IFERROR(VLOOKUP($A113,Filtro!$A$5:$AW$2531,5,FALSE),0) -> 1305 | H113: =IFERROR(VLOOKUP($A113,Filtro!$A$5:$AW$2531,6,FALSE),0) -> 1588 | I113: =IFERROR(VLOOKUP($A113,Filtro!$A$5:$AW$2531,7,FALSE),0) -> 749 | J113: =IFERROR(VLOOKUP($A113,Filtro!$A$5:$AW$2531,8,FALSE),0) -> 1212 | K113: =IFERROR(VLOOKUP($A113,Filtro!$A$5:$AW$2531,9,FALSE),0) -> 1083 | L113: =IFERROR(VLOOKUP($A113,Filtro!$A$5:$AW$2531,10,FALSE),0) -> 2308 | M113: =IFERROR(VLOOKUP($A113,Filtro!$A$5:$AW$2531,11,FALSE),0) -> 3633 | N113: =IFERROR(VLOOKUP($A113,Filtro!$A$5:$AW$2531,12,FALSE),0) -> 8921 | O113: =IFERROR(VLOOKUP($A113,Filtro!$A$5:$AW$2531,13,FALSE),0) -> 3313 | P113: =IFERROR(VLOOKUP($A113,Filtro!$A$5:$AW$2531,14,FALSE),0) -> 6886 | Q113: =IFERROR(VLOOKUP($A113,Filtro!$A$5:$AW$2531,15,FALSE),0) -> 1481 | R113: =IFERROR(VLOOKUP($A113,Filtro!$A$5:$AW$2531,16,FALSE),0) -> 2439 | S113: =IFERROR(VLOOKUP($A113,Filtro!$A$5:$AW$2531,17,FALSE),0) -> 2098 | T113: =IFERROR(VLOOKUP($A113,Filtro!$A$5:$AW$2531,18,FALSE),0) -> 3227 | U113: =IFERROR(VLOOKUP($A113,Filtro!$A$5:$AW$2531,19,FALSE),0) -> 1138 | V113: =IFERROR(VLOOKUP($A113,Filtro!$A$5:$AW$2531,20,FALSE),0) -> 1657
A114: 03500290 | C114: CONSUMO RIESGOSO / INTERMEDIO | D114: 2250 | E114: 925 | F114: 1325 | G114: =IFERROR(VLOOKUP($A114,Filtro!$A$5:$AW$2531,5,FALSE),0) -> 18 | H114: =IFERROR(VLOOKUP($A114,Filtro!$A$5:$AW$2531,6,FALSE),0) -> 25 | I114: =IFERROR(VLOOKUP($A114,Filtro!$A$5:$AW$2531,7,FALSE),0) -> 81 | J114: =IFERROR(VLOOKUP($A114,Filtro!$A$5:$AW$2531,8,FALSE),0) -> 82 | K114: =IFERROR(VLOOKUP($A114,Filtro!$A$5:$AW$2531,9,FALSE),0) -> 92 | L114: =IFERROR(VLOOKUP($A114,Filtro!$A$5:$AW$2531,10,FALSE),0) -> 162 | M114: =IFERROR(VLOOKUP($A114,Filtro!$A$5:$AW$2531,11,FALSE),0) -> 334 | N114: =IFERROR(VLOOKUP($A114,Filtro!$A$5:$AW$2531,12,FALSE),0) -> 557 | O114: =IFERROR(VLOOKUP($A114,Filtro!$A$5:$AW$2531,13,FALSE),0) -> 264 | P114: =IFERROR(VLOOKUP($A114,Filtro!$A$5:$AW$2531,14,FALSE),0) -> 338 | Q114: =IFERROR(VLOOKUP($A114,Filtro!$A$5:$AW$2531,15,FALSE),0) -> 58 | R114: =IFERROR(VLOOKUP($A114,Filtro!$A$5:$AW$2531,16,FALSE),0) -> 59 | S114: =IFERROR(VLOOKUP($A114,Filtro!$A$5:$AW$2531,17,FALSE),0) -> 66 | T114: =IFERROR(VLOOKUP($A114,Filtro!$A$5:$AW$2531,18,FALSE),0) -> 84 | U114: =IFERROR(VLOOKUP($A114,Filtro!$A$5:$AW$2531,19,FALSE),0) -> 12 | V114: =IFERROR(VLOOKUP($A114,Filtro!$A$5:$AW$2531,20,FALSE),0) -> 18
A115: 03500300 | C115: POSIBLE CONSUMO PERJUDICIAL O DEPENDENCIA | D115: 387 | E115: 212 | F115: 175 | G115: =IFERROR(VLOOKUP($A115,Filtro!$A$5:$AW$2531,5,FALSE),0) -> 14 | H115: =IFERROR(VLOOKUP($A115,Filtro!$A$5:$AW$2531,6,FALSE),0) -> 16 | I115: =IFERROR(VLOOKUP($A115,Filtro!$A$5:$AW$2531,7,FALSE),0) -> 37 | J115: =IFERROR(VLOOKUP($A115,Filtro!$A$5:$AW$2531,8,FALSE),0) -> 39 | K115: =IFERROR(VLOOKUP($A115,Filtro!$A$5:$AW$2531,9,FALSE),0) -> 10 | L115: =IFERROR(VLOOKUP($A115,Filtro!$A$5:$AW$2531,10,FALSE),0) -> 9 | M115: =IFERROR(VLOOKUP($A115,Filtro!$A$5:$AW$2531,11,FALSE),0) -> 59 | N115: =IFERROR(VLOOKUP($A115,Filtro!$A$5:$AW$2531,12,FALSE),0) -> 50 | O115: =IFERROR(VLOOKUP($A115,Filtro!$A$5:$AW$2531,13,FALSE),0) -> 67 | P115: =IFERROR(VLOOKUP($A115,Filtro!$A$5:$AW$2531,14,FALSE),0) -> 40 | Q115: =IFERROR(VLOOKUP($A115,Filtro!$A$5:$AW$2531,15,FALSE),0) -> 13 | R115: =IFERROR(VLOOKUP($A115,Filtro!$A$5:$AW$2531,16,FALSE),0) -> 14 | S115: =IFERROR(VLOOKUP($A115,Filtro!$A$5:$AW$2531,17,FALSE),0) -> 11 | T115: =IFERROR(VLOOKUP($A115,Filtro!$A$5:$AW$2531,18,FALSE),0) -> 4 | U115: =IFERROR(VLOOKUP($A115,Filtro!$A$5:$AW$2531,19,FALSE),0) -> 1 | V115: =IFERROR(VLOOKUP($A115,Filtro!$A$5:$AW$2531,20,FALSE),0) -> 3
B116: SECCIÓN D.2: RESULTADOS DE LA APLICACIÓN DE INSTRUMENTO DE VALORACIÓN DE DESEMPEÑO EN COMUNIDAD (IVADEC-CIF)
B117: ACTIVIDAD | C117: RESULTADO | D117: TOTAL | G117: POR EDAD
G118: 6 -11 meses | I118: 12 - 23 meses | K118: 2 - 4 años | M118: 5 - 9 años | O118: 10 a 14 años | Q118: 15 a 19 años | S118: 20 a 24 años | U118: 25 a 64 años | W118: 65 a 69 años | Y118: 70 a 79 años | AA118: 80 y más años
D119: Ambos Sexos | E119: Hombres | F119: Mujeres | G119: Hombres | H119: Mujeres | I119: Hombres | J119: Mujeres | K119: Hombres | L119: Mujeres | M119: Hombres | N119: Mujeres | O119: Hombres | P119: Mujeres | Q119: Hombres | R119: Mujeres | S119: Hombres | T119: Mujeres | U119: Hombres | V119: Mujeres | W119: Hombres | X119: Mujeres | Y119: Hombres | Z119: Mujeres | AA119: Hombres | AB119: Mujeres
A120: 03051000A | B120: ORIGEN FÍSICO | C120: SIN DISCAPACIDAD | D120: =SUM(E120+F120) -> 6 | E120: =SUM(G120+I120+K120+M120+O120+Q120+S120+U120+W120+Y120+AA120) -> 5 | F120: =SUM(H120+J120+L120+N120+P120+R120+T120+V120+X120+Z120+AB120) -> 1 | G120: =IFERROR(VLOOKUP($A120,Filtro!$A$5:$AW$2531,5,FALSE),0) -> 0 | H120: =IFERROR(VLOOKUP($A120,Filtro!$A$5:$AW$2531,6,FALSE),0) -> 0 | I120: =IFERROR(VLOOKUP($A120,Filtro!$A$5:$AW$2531,7,FALSE),0) -> 0 | J120: =IFERROR(VLOOKUP($A120,Filtro!$A$5:$AW$2531,8,FALSE),0) -> 0 | K120: =IFERROR(VLOOKUP($A120,Filtro!$A$5:$AW$2531,9,FALSE),0) -> 1 | L120: =IFERROR(VLOOKUP($A120,Filtro!$A$5:$AW$2531,10,FALSE),0) -> 0 | M120: =IFERROR(VLOOKUP($A120,Filtro!$A$5:$AW$2531,11,FALSE),0) -> 0 | N120: =IFERROR(VLOOKUP($A120,Filtro!$A$5:$AW$2531,12,FALSE),0) -> 0 | O120: =IFERROR(VLOOKUP($A120,Filtro!$A$5:$AW$2531,13,FALSE),0) -> 0 | P120: =IFERROR(VLOOKUP($A120,Filtro!$A$5:$AW$2531,14,FALSE),0) -> 0 | Q120: =IFERROR(VLOOKUP($A120,Filtro!$A$5:$AW$2531,15,FALSE),0) -> 0 | R120: =IFERROR(VLOOKUP($A120,Filtro!$A$5:$AW$2531,16,FALSE),0) -> 0 | S120: =IFERROR(VLOOKUP($A120,Filtro!$A$5:$AW$2531,17,FALSE),0) -> 0 | T120: =IFERROR(VLOOKUP($A120,Filtro!$A$5:$AW$2531,18,FALSE),0) -> 0 | U120: =IFERROR(VLOOKUP($A120,Filtro!$A$5:$AW$2531,19,FALSE),0) -> 2 | V120: =IFERROR(VLOOKUP($A120,Filtro!$A$5:$AW$2531,20,FALSE),0) -> 0 | W120: =IFERROR(VLOOKUP($A120,Filtro!$A$5:$AW$2531,21,FALSE),0) -> 1 | X120: =IFERROR(VLOOKUP($A120,Filtro!$A$5:$AW$2531,22,FALSE),0) -> 0 | Y120: =IFERROR(VLOOKUP($A120,Filtro!$A$5:$AW$2531,23,FALSE),0) -> 1 | Z120: =IFERROR(VLOOKUP($A120,Filtro!$A$5:$AW$2531,24,FALSE),0) -> 1 | AA120: =IFERROR(VLOOKUP($A120,Filtro!$A$5:$AW$2531,25,FALSE),0) -> 0 | AB120: =IFERROR(VLOOKUP($A120,Filtro!$A$5:$AW$2531,26,FALSE),0) -> 0
A121: 03051100 | C121: DISCAPACIDAD LEVE | D121: 190 | E121: =SUM(G121+I121+K121+M121+O121+Q121+S121+U121+W121+Y121+AA121) -> 107 | F121: 83 | G121: =IFERROR(VLOOKUP($A121,Filtro!$A$5:$AW$2531,5,FALSE),0) -> 2 | H121: =IFERROR(VLOOKUP($A121,Filtro!$A$5:$AW$2531,6,FALSE),0) -> 1 | I121: =IFERROR(VLOOKUP($A121,Filtro!$A$5:$AW$2531,7,FALSE),0) -> 0 | J121: =IFERROR(VLOOKUP($A121,Filtro!$A$5:$AW$2531,8,FALSE),0) -> 0 | K121: =IFERROR(VLOOKUP($A121,Filtro!$A$5:$AW$2531,9,FALSE),0) -> 1 | L121: =IFERROR(VLOOKUP($A121,Filtro!$A$5:$AW$2531,10,FALSE),0) -> 0 | M121: =IFERROR(VLOOKUP($A121,Filtro!$A$5:$AW$2531,11,FALSE),0) -> 5 | N121: =IFERROR(VLOOKUP($A121,Filtro!$A$5:$AW$2531,12,FALSE),0) -> 1 | O121: =IFERROR(VLOOKUP($A121,Filtro!$A$5:$AW$2531,13,FALSE),0) -> 5 | P121: =IFERROR(VLOOKUP($A121,Filtro!$A$5:$AW$2531,14,FALSE),0) -> 1 | Q121: =IFERROR(VLOOKUP($A121,Filtro!$A$5:$AW$2531,15,FALSE),0) -> 1 | R121: =IFERROR(VLOOKUP($A121,Filtro!$A$5:$AW$2531,16,FALSE),0) -> 2 | S121: =IFERROR(VLOOKUP($A121,Filtro!$A$5:$AW$2531,17,FALSE),0) -> 0 | T121: =IFERROR(VLOOKUP($A121,Filtro!$A$5:$AW$2531,18,FALSE),0) -> 5 | U121: =IFERROR(VLOOKUP($A121,Filtro!$A$5:$AW$2531,19,FALSE),0) -> 60 | V121: =IFERROR(VLOOKUP($A121,Filtro!$A$5:$AW$2531,20,FALSE),0) -> 58 | W121: =IFERROR(VLOOKUP($A121,Filtro!$A$5:$AW$2531,21,FALSE),0) -> 14 | X121: =IFERROR(VLOOKUP($A121,Filtro!$A$5:$AW$2531,22,FALSE),0) -> 7 | Y121: =IFERROR(VLOOKUP($A121,Filtro!$A$5:$AW$2531,23,FALSE),0) -> 14 | Z121: =IFERROR(VLOOKUP($A121,Filtro!$A$5:$AW$2531,24,FALSE),0) -> 7 | AA121: =IFERROR(VLOOKUP($A121,Filtro!$A$5:$AW$2531,25,FALSE),0) -> 5 | AB121: =IFERROR(VLOOKUP($A121,Filtro!$A$5:$AW$2531,26,FALSE),0) -> 1
A122: 03051200 | C122: DISCAPACIDAD MODERADA | D122: 244 | E122: 110 | F122: 134 | G122: =IFERROR(VLOOKUP($A122,Filtro!$A$5:$AW$2531,5,FALSE),0) -> 0 | H122: =IFERROR(VLOOKUP($A122,Filtro!$A$5:$AW$2531,6,FALSE),0) -> 0 | I122: =IFERROR(VLOOKUP($A122,Filtro!$A$5:$AW$2531,7,FALSE),0) -> 0 | J122: =IFERROR(VLOOKUP($A122,Filtro!$A$5:$AW$2531,8,FALSE),0) -> 1 | K122: =IFERROR(VLOOKUP($A122,Filtro!$A$5:$AW$2531,9,FALSE),0) -> 0 | L122: =IFERROR(VLOOKUP($A122,Filtro!$A$5:$AW$2531,10,FALSE),0) -> 1 | M122: =IFERROR(VLOOKUP($A122,Filtro!$A$5:$AW$2531,11,FALSE),0) -> 3 | N122: =IFERROR(VLOOKUP($A122,Filtro!$A$5:$AW$2531,12,FALSE),0) -> 1 | O122: =IFERROR(VLOOKUP($A122,Filtro!$A$5:$AW$2531,13,FALSE),0) -> 1 | P122: =IFERROR(VLOOKUP($A122,Filtro!$A$5:$AW$2531,14,FALSE),0) -> 0 | Q122: =IFERROR(VLOOKUP($A122,Filtro!$A$5:$AW$2531,15,FALSE),0) -> 1 | R122: =IFERROR(VLOOKUP($A122,Filtro!$A$5:$AW$2531,16,FALSE),0) -> 1 | S122: =IFERROR(VLOOKUP($A122,Filtro!$A$5:$AW$2531,17,FALSE),0) -> 6 | T122: =IFERROR(VLOOKUP($A122,Filtro!$A$5:$AW$2531,18,FALSE),0) -> 3 | U122: =IFERROR(VLOOKUP($A122,Filtro!$A$5:$AW$2531,19,FALSE),0) -> 73 | V122: =IFERROR(VLOOKUP($A122,Filtro!$A$5:$AW$2531,20,FALSE),0) -> 82 | W122: =IFERROR(VLOOKUP($A122,Filtro!$A$5:$AW$2531,21,FALSE),0) -> 9 | X122: =IFERROR(VLOOKUP($A122,Filtro!$A$5:$AW$2531,22,FALSE),0) -> 22 | Y122: =IFERROR(VLOOKUP($A122,Filtro!$A$5:$AW$2531,23,FALSE),0) -> 11 | Z122: =IFERROR(VLOOKUP($A122,Filtro!$A$5:$AW$2531,24,FALSE),0) -> 16 | AA122: =IFERROR(VLOOKUP($A122,Filtro!$A$5:$AW$2531,25,FALSE),0) -> 6 | AB122: =IFERROR(VLOOKUP($A122,Filtro!$A$5:$AW$2531,26,FALSE),0) -> 7
A123: 03051300 | C123: DISCAPACIDAD SEVERA | D123: 175 | E123: 85 | F123: 90 | G123: =IFERROR(VLOOKUP($A123,Filtro!$A$5:$AW$2531,5,FALSE),0) -> 0 | H123: =IFERROR(VLOOKUP($A123,Filtro!$A$5:$AW$2531,6,FALSE),0) -> 0 | I123: =IFERROR(VLOOKUP($A123,Filtro!$A$5:$AW$2531,7,FALSE),0) -> 1 | J123: =IFERROR(VLOOKUP($A123,Filtro!$A$5:$AW$2531,8,FALSE),0) -> 1 | K123: =IFERROR(VLOOKUP($A123,Filtro!$A$5:$AW$2531,9,FALSE),0) -> 2 | L123: =IFERROR(VLOOKUP($A123,Filtro!$A$5:$AW$2531,10,FALSE),0) -> 1 | M123: =IFERROR(VLOOKUP($A123,Filtro!$A$5:$AW$2531,11,FALSE),0) -> 8 | N123: =IFERROR(VLOOKUP($A123,Filtro!$A$5:$AW$2531,12,FALSE),0) -> 4 | O123: =IFERROR(VLOOKUP($A123,Filtro!$A$5:$AW$2531,13,FALSE),0) -> 4 | P123: =IFERROR(VLOOKUP($A123,Filtro!$A$5:$AW$2531,14,FALSE),0) -> 1 | Q123: =IFERROR(VLOOKUP($A123,Filtro!$A$5:$AW$2531,15,FALSE),0) -> 0 | R123: =IFERROR(VLOOKUP($A123,Filtro!$A$5:$AW$2531,16,FALSE),0) -> 0 | S123: =IFERROR(VLOOKUP($A123,Filtro!$A$5:$AW$2531,17,FALSE),0) -> 0 | T123: =IFERROR(VLOOKUP($A123,Filtro!$A$5:$AW$2531,18,FALSE),0) -> 2 | U123: =IFERROR(VLOOKUP($A123,Filtro!$A$5:$AW$2531,19,FALSE),0) -> 38 | V123: =IFERROR(VLOOKUP($A123,Filtro!$A$5:$AW$2531,20,FALSE),0) -> 49 | W123: =IFERROR(VLOOKUP($A123,Filtro!$A$5:$AW$2531,21,FALSE),0) -> 6 | X123: =IFERROR(VLOOKUP($A123,Filtro!$A$5:$AW$2531,22,FALSE),0) -> 6 | Y123: =IFERROR(VLOOKUP($A123,Filtro!$A$5:$AW$2531,23,FALSE),0) -> 19 | Z123: =IFERROR(VLOOKUP($A123,Filtro!$A$5:$AW$2531,24,FALSE),0) -> 12 | AA123: =IFERROR(VLOOKUP($A123,Filtro!$A$5:$AW$2531,25,FALSE),0) -> 7 | AB123: =IFERROR(VLOOKUP($A123,Filtro!$A$5:$AW$2531,26,FALSE),0) -> 14
A124: 03051400 | C124: DISCAPACIDAD PROFUNDA | D124: 15 | E124: 6 | F124: 9 | G124: =IFERROR(VLOOKUP($A124,Filtro!$A$5:$AW$2531,5,FALSE),0) -> 0 | H124: =IFERROR(VLOOKUP($A124,Filtro!$A$5:$AW$2531,6,FALSE),0) -> 0 | I124: =IFERROR(VLOOKUP($A124,Filtro!$A$5:$AW$2531,7,FALSE),0) -> 0 | J124: =IFERROR(VLOOKUP($A124,Filtro!$A$5:$AW$2531,8,FALSE),0) -> 0 | K124: =IFERROR(VLOOKUP($A124,Filtro!$A$5:$AW$2531,9,FALSE),0) -> 1 | L124: =IFERROR(VLOOKUP($A124,Filtro!$A$5:$AW$2531,10,FALSE),0) -> 1 | M124: =IFERROR(VLOOKUP($A124,Filtro!$A$5:$AW$2531,11,FALSE),0) -> 0 | N124: =IFERROR(VLOOKUP($A124,Filtro!$A$5:$AW$2531,12,FALSE),0) -> 0 | O124: =IFERROR(VLOOKUP($A124,Filtro!$A$5:$AW$2531,13,FALSE),0) -> 0 | P124: =IFERROR(VLOOKUP($A124,Filtro!$A$5:$AW$2531,14,FALSE),0) -> 0 | Q124: =IFERROR(VLOOKUP($A124,Filtro!$A$5:$AW$2531,15,FALSE),0) -> 0 | R124: =IFERROR(VLOOKUP($A124,Filtro!$A$5:$AW$2531,16,FALSE),0) -> 0 | S124: =IFERROR(VLOOKUP($A124,Filtro!$A$5:$AW$2531,17,FALSE),0) -> 0 | T124: =IFERROR(VLOOKUP($A124,Filtro!$A$5:$AW$2531,18,FALSE),0) -> 0 | U124: =IFERROR(VLOOKUP($A124,Filtro!$A$5:$AW$2531,19,FALSE),0) -> 1 | V124: =IFERROR(VLOOKUP($A124,Filtro!$A$5:$AW$2531,20,FALSE),0) -> 1 | W124: =IFERROR(VLOOKUP($A124,Filtro!$A$5:$AW$2531,21,FALSE),0) -> 0 | X124: =IFERROR(VLOOKUP($A124,Filtro!$A$5:$AW$2531,22,FALSE),0) -> 1 | Y124: =IFERROR(VLOOKUP($A124,Filtro!$A$5:$AW$2531,23,FALSE),0) -> 1 | Z124: =IFERROR(VLOOKUP($A124,Filtro!$A$5:$AW$2531,24,FALSE),0) -> 3 | AA124: =IFERROR(VLOOKUP($A124,Filtro!$A$5:$AW$2531,25,FALSE),0) -> 3 | AB124: =IFERROR(VLOOKUP($A124,Filtro!$A$5:$AW$2531,26,FALSE),0) -> 3
A125: 03051500 | B125: ORIGEN SENSORIAL VISUAL | C125: SIN DISCAPACIDAD | D125: 1 | E125: 0 | F125: 1 | G125: =IFERROR(VLOOKUP($A125,Filtro!$A$5:$AW$2531,5,FALSE),0) -> 0 | H125: =IFERROR(VLOOKUP($A125,Filtro!$A$5:$AW$2531,6,FALSE),0) -> 0 | I125: =IFERROR(VLOOKUP($A125,Filtro!$A$5:$AW$2531,7,FALSE),0) -> 0 | J125: =IFERROR(VLOOKUP($A125,Filtro!$A$5:$AW$2531,8,FALSE),0) -> 0 | K125: =IFERROR(VLOOKUP($A125,Filtro!$A$5:$AW$2531,9,FALSE),0) -> 0 | L125: =IFERROR(VLOOKUP($A125,Filtro!$A$5:$AW$2531,10,FALSE),0) -> 0 | M125: =IFERROR(VLOOKUP($A125,Filtro!$A$5:$AW$2531,11,FALSE),0) -> 0 | N125: =IFERROR(VLOOKUP($A125,Filtro!$A$5:$AW$2531,12,FALSE),0) -> 0 | O125: =IFERROR(VLOOKUP($A125,Filtro!$A$5:$AW$2531,13,FALSE),0) -> 0 | P125: =IFERROR(VLOOKUP($A125,Filtro!$A$5:$AW$2531,14,FALSE),0) -> 0 | Q125: =IFERROR(VLOOKUP($A125,Filtro!$A$5:$AW$2531,15,FALSE),0) -> 0 | R125: =IFERROR(VLOOKUP($A125,Filtro!$A$5:$AW$2531,16,FALSE),0) -> 0 | S125: =IFERROR(VLOOKUP($A125,Filtro!$A$5:$AW$2531,17,FALSE),0) -> 0 | T125: =IFERROR(VLOOKUP($A125,Filtro!$A$5:$AW$2531,18,FALSE),0) -> 0 | U125: =IFERROR(VLOOKUP($A125,Filtro!$A$5:$AW$2531,19,FALSE),0) -> 0 | V125: =IFERROR(VLOOKUP($A125,Filtro!$A$5:$AW$2531,20,FALSE),0) -> 1 | W125: =IFERROR(VLOOKUP($A125,Filtro!$A$5:$AW$2531,21,FALSE),0) -> 0 | X125: =IFERROR(VLOOKUP($A125,Filtro!$A$5:$AW$2531,22,FALSE),0) -> 0 | Y125: =IFERROR(VLOOKUP($A125,Filtro!$A$5:$AW$2531,23,FALSE),0) -> 0 | Z125: =IFERROR(VLOOKUP($A125,Filtro!$A$5:$AW$2531,24,FALSE),0) -> 0 | AA125: =IFERROR(VLOOKUP($A125,Filtro!$A$5:$AW$2531,25,FALSE),0) -> 0 | AB125: =IFERROR(VLOOKUP($A125,Filtro!$A$5:$AW$2531,26,FALSE),0) -> 0
A126: 03051600 | C126: DISCAPACIDAD LEVE | D126: 24 | E126: 16 | F126: 8 | G126: =IFERROR(VLOOKUP($A126,Filtro!$A$5:$AW$2531,5,FALSE),0) -> 0 | H126: =IFERROR(VLOOKUP($A126,Filtro!$A$5:$AW$2531,6,FALSE),0) -> 0 | I126: =IFERROR(VLOOKUP($A126,Filtro!$A$5:$AW$2531,7,FALSE),0) -> 0 | J126: =IFERROR(VLOOKUP($A126,Filtro!$A$5:$AW$2531,8,FALSE),0) -> 0 | K126: =IFERROR(VLOOKUP($A126,Filtro!$A$5:$AW$2531,9,FALSE),0) -> 0 | L126: =IFERROR(VLOOKUP($A126,Filtro!$A$5:$AW$2531,10,FALSE),0) -> 0 | M126: =IFERROR(VLOOKUP($A126,Filtro!$A$5:$AW$2531,11,FALSE),0) -> 1 | N126: =IFERROR(VLOOKUP($A126,Filtro!$A$5:$AW$2531,12,FALSE),0) -> 0 | O126: =IFERROR(VLOOKUP($A126,Filtro!$A$5:$AW$2531,13,FALSE),0) -> 0 | P126: =IFERROR(VLOOKUP($A126,Filtro!$A$5:$AW$2531,14,FALSE),0) -> 0 | Q126: =IFERROR(VLOOKUP($A126,Filtro!$A$5:$AW$2531,15,FALSE),0) -> 1 | R126: =IFERROR(VLOOKUP($A126,Filtro!$A$5:$AW$2531,16,FALSE),0) -> 1 | S126: =IFERROR(VLOOKUP($A126,Filtro!$A$5:$AW$2531,17,FALSE),0) -> 0 | T126: =IFERROR(VLOOKUP($A126,Filtro!$A$5:$AW$2531,18,FALSE),0) -> 0 | U126: =IFERROR(VLOOKUP($A126,Filtro!$A$5:$AW$2531,19,FALSE),0) -> 10 | V126: =IFERROR(VLOOKUP($A126,Filtro!$A$5:$AW$2531,20,FALSE),0) -> 6 | W126: =IFERROR(VLOOKUP($A126,Filtro!$A$5:$AW$2531,21,FALSE),0) -> 4 | X126: =IFERROR(VLOOKUP($A126,Filtro!$A$5:$AW$2531,22,FALSE),0) -> 1 | Y126: =IFERROR(VLOOKUP($A126,Filtro!$A$5:$AW$2531,23,FALSE),0) -> 0 | Z126: =IFERROR(VLOOKUP($A126,Filtro!$A$5:$AW$2531,24,FALSE),0) -> 0 | AA126: =IFERROR(VLOOKUP($A126,Filtro!$A$5:$AW$2531,25,FALSE),0) -> 0 | AB126: =IFERROR(VLOOKUP($A126,Filtro!$A$5:$AW$2531,26,FALSE),0) -> 0
A127: 03051700 | C127: DISCAPACIDAD MODERADA | D127: 29 | E127: 16 | F127: 13 | G127: =IFERROR(VLOOKUP($A127,Filtro!$A$5:$AW$2531,5,FALSE),0) -> 0 | H127: =IFERROR(VLOOKUP($A127,Filtro!$A$5:$AW$2531,6,FALSE),0) -> 0 | I127: =IFERROR(VLOOKUP($A127,Filtro!$A$5:$AW$2531,7,FALSE),0) -> 1 | J127: =IFERROR(VLOOKUP($A127,Filtro!$A$5:$AW$2531,8,FALSE),0) -> 0 | K127: =IFERROR(VLOOKUP($A127,Filtro!$A$5:$AW$2531,9,FALSE),0) -> 0 | L127: =IFERROR(VLOOKUP($A127,Filtro!$A$5:$AW$2531,10,FALSE),0) -> 0 | M127: =IFERROR(VLOOKUP($A127,Filtro!$A$5:$AW$2531,11,FALSE),0) -> 0 | N127: =IFERROR(VLOOKUP($A127,Filtro!$A$5:$AW$2531,12,FALSE),0) -> 0 | O127: =IFERROR(VLOOKUP($A127,Filtro!$A$5:$AW$2531,13,FALSE),0) -> 1 | P127: =IFERROR(VLOOKUP($A127,Filtro!$A$5:$AW$2531,14,FALSE),0) -> 0 | Q127: =IFERROR(VLOOKUP($A127,Filtro!$A$5:$AW$2531,15,FALSE),0) -> 1 | R127: =IFERROR(VLOOKUP($A127,Filtro!$A$5:$AW$2531,16,FALSE),0) -> 0 | S127: =IFERROR(VLOOKUP($A127,Filtro!$A$5:$AW$2531,17,FALSE),0) -> 0 | T127: =IFERROR(VLOOKUP($A127,Filtro!$A$5:$AW$2531,18,FALSE),0) -> 1 | U127: =IFERROR(VLOOKUP($A127,Filtro!$A$5:$AW$2531,19,FALSE),0) -> 10 | V127: =IFERROR(VLOOKUP($A127,Filtro!$A$5:$AW$2531,20,FALSE),0) -> 9 | W127: =IFERROR(VLOOKUP($A127,Filtro!$A$5:$AW$2531,21,FALSE),0) -> 2 | X127: =IFERROR(VLOOKUP($A127,Filtro!$A$5:$AW$2531,22,FALSE),0) -> 1 | Y127: =IFERROR(VLOOKUP($A127,Filtro!$A$5:$AW$2531,23,FALSE),0) -> 1 | Z127: =IFERROR(VLOOKUP($A127,Filtro!$A$5:$AW$2531,24,FALSE),0) -> 2 | AA127: =IFERROR(VLOOKUP($A127,Filtro!$A$5:$AW$2531,25,FALSE),0) -> 0 | AB127: =IFERROR(VLOOKUP($A127,Filtro!$A$5:$AW$2531,26,FALSE),0) -> 0
